Workbook

Sheet Sheet3 (hidden)
A1: Locality | B1: Fiscal Year | C1: Accomack | D1: Albemarle | E1: Alexandria | F1: Alleghany | G1: Amelia | H1: Amherst | I1: Appomattox | J1: Arlington | K1: Augusta | L1: Bath | M1: Bedford County_Bedford City | N1: Bland | O1: Botetourt | P1: Bristol | Q1: Brunswick | R1: Buchanan | S1: Buckingham | T1: Buena Vista | U1: Campbell | V1: Caroline | W1: Carroll | X1: Charles City | Y1: Charlotte | Z1: Charlottesville | AA1: Chesapeake | AB1: Chesterfield | AC1: Clarke | AD1: Colonial Heights | AE1: Covington | AF1: Craig | AG1: Culpeper | AH1: Cumberland | AI1: Danville | AJ1: Dickenson | AK1: Dinwiddie | AL1: Essex | AM1: Fairfax_Falls Church | AN1: Fauquier | AO1: Floyd | AP1: Fluvanna | AQ1: Franklin City | AR1: Franklin County | AS1: Frederick | AT1: Fredericksburg | AU1: Galax | AV1: Giles | AW1: Gloucester | AX1: Goochland | AY1: Grayson | AZ1: Greene | BA1: Greensville_Emporia | BB1: Halifax | BC1: Hampton | BD1: Hanover | BE1: Harrisonburg | BF1: Henrico | BG1: Henry | BH1: Highland | BI1: Hopewell | BJ1: Isle of Wight | BK1: James City | BL1: King & Queen | BM1: King George | BN1: King William | BO1: Lancaster | BP1: Lee | BQ1: Lexington | BR1: Loudoun | BS1: Louisa | BT1: Lunenburg | BU1: Lynchburg | BV1: Madison | BW1: Manassas City | BX1: Manassas Park | BY1: Martinsville | BZ1: Mathews | CA1: Mecklenburg | CB1: Middlesex | CC1: Montgomery | CD1: Nelson | CE1: New Kent | CF1: Newport News | CG1: Norfolk | CH1: Northampton | CI1: Northumberland | CJ1: Norton | CK1: Nottoway | CL1: Orange | CM1: Page | CN1: Patrick | CO1: Petersburg | CP1: Pittsylvania | CQ1: Poquoson | CR1: Portsmouth | CS1: Powhatan | CT1: Prince Edward | CU1: Prince George | CV1: Prince William | CW1: Pulaski | CX1: Radford | CY1: Rappahannock | CZ1: Richmond City | DA1: Richmond County | DB1: Roanoke City | DC1: Roanoke County | DD1: Rockbridge | DE1: Rockingham | DF1: Russell | DG1: Salem | DH1: Scott | DI1: Shenandoah | DJ1: Smyth | DK1: Southampton | DL1: Spotsylvania | DM1: Stafford | DN1: Staunton | DO1: Suffolk | DP1: Surry | DQ1: Sussex | DR1: Tazewell | DS1: Virginia Beach | DT1: Warren | DU1: Washington | DV1: Waynesboro | DW1: Westmoreland | DX1: Williamsburg | DY1: Winchester | DZ1: Wise | EA1: Wythe | EB1: York | EC1: Statewide
A2: Percent of Youth with a Decrease in CANS Child School Domain1 | B2: 2015 | C2: 0.5 | D2: 0.4666666667 | E2: 0.5 | F2: 0.5 | G2: 0.6 | H2: 0.6956521739 | I2: 0.44 | J2: 0.5396825397 | K2: 0.4857142857 | L2: 0 | M2: 0.6111111111 | O2: 0.8181818182 | P2: 0.5789473684 | Q2: 0.6666666667 | R2: 0.4705882353 | S2: 0.8571428571 | T2: 0.5 | U2: 0.5151515152 | V2: 0.6666666667 | W2: 0.4888888889 | X2: 1 | Y2: 0.2857142857 | Z2: 0.488372093 | AA2: 0.5909090909 | AB2: 0.5495495495 | AC2: 0.3333333333 | AD2: 0.6666666667 | AE2: 0 | AF2: 0.2857142857 | AG2: 0.3636363636 | AH2: 0.8 | AI2: 0.5319148936 | AJ2: 0.4571428571 | AK2: 0.6666666667 | AL2: 0.5 | AM2: 0.474537037 | AN2: 0.4642857143 | AO2: 0.5 | AP2: 0.5555555556 | AQ2: 0.5 | AR2: 0.4181818182 | AS2: 0.5 | AT2: 0.6470588235 | AU2: 0.3571428571 | AV2: 0.6 | AW2: 0.3333333333 | AX2: 0.2857142857 | AY2: 0.4583333333 | AZ2: 0.7 | BA2: 0.6666666667 | BB2: 0.4117647059 | BC2: 0.4047619048 | BD2: 0.6 | BE2: 0.5 | BF2: 0.4375 | BG2: 0.4705882353 | BI2: 0.6 | BJ2: 1 | BK2: 0.5 | BL2: 0.8333333333 | BM2: 0.6842105263 | BN2: 0.5 | BO2: 0 | BP2: 0.7391304348 | BQ2: 0 | BR2: 0.4459459459 | BS2: 0.6086956522 | BU2: 0.4057971014 | BV2: 0.5135135135 | BW2: 0.5714285714 | BX2: 0 | BZ2: 0.5 | CA2: 0.7368421053 | CB2: 0.5 | CC2: 0.48 | CE2: 0.6 | CF2: 0.4197530864 | CG2: 0.625 | CH2: 0.25 | CI2: 0.3333333333 | CJ2: 0.6 | CL2: 0.5428571429 | CM2: 0.84 | CN2: 0.6666666667 | CO2: 0.6818181818 | CP2: 0.4561403509 | CQ2: 1 | CR2: 0.3076923077 | CS2: 0.5151515152 | CT2: 0.5 | CU2: 0.3636363636 | CV2: 0.5769230769 | CW2: 0.44 | CX2: 0.8571428571 | CY2: 0.2857142857 | CZ2: 0.5102040816 | DA2: 0.3333333333 | DB2: 0.5833333333 | DC2: 0.5333333333 | DD2: 0.5882352941 | DE2: 0.3703703704 | DF2: 0.6222222222 | DG2: 0.4666666667 | DH2: 0.2857142857 | DI2: 0.6034482759 | DJ2: 0.7777777778 | DK2: 1 | DL2: 0.6164383562 | DM2: 0.775 | DN2: 0.5357142857 | DO2: 0.5 | DP2: 0.1 | DQ2: 0.25 | DR2: 0.64 | DS2: 0.4954954955 | DT2: 0.65 | DU2: 0.75 | DV2: 0.5 | DW2: 0.5 | DX2: 0.6666666667 | DY2: 0.3333333333 | DZ2: 0.5 | EA2: 0.5 | EB2: 0.6 | EC2: 0.5184128631
B3: 2016 | C3: 0.75 | D3: 0.4942528736 | E3: 0.3823529412 | F3: 0.6 | G3: 0.4 | H3: 0.3870967742 | I3: 0.5714285714 | J3: 0.5166666667 | K3: 0.4857142857 | M3: 0.6037735849 | N3: 0.8 | O3: 0.6315789474 | P3: 0.75 | Q3: 0.625 | R3: 0.3 | S3: 0.2727272727 | T3: 0.6923076923 | U3: 0.6071428571 | V3: 0.6666666667 | W3: 0.6046511628 | X3: 0 | Y3: 0.25 | Z3: 0.5925925926 | AA3: 0.5957446809 | AB3: 0.5631067961 | AC3: 0.8333333333 | AD3: 1 | AE3: 0.625 | AF3: 0 | AG3: 0.6 | AH3: 0.6363636364 | AI3: 0.5306122449 | AJ3: 0.4722222222 | AK3: 0.4666666667 | AL3: 0.5 | AM3: 0.4219066937 | AN3: 0.4482758621 | AO3: 0.5555555556 | AP3: 0.4482758621 | AR3: 0.5490196078 | AS3: 0.59375 | AT3: 0.4705882353 | AU3: 0.4285714286 | AV3: 0.6333333333 | AW3: 0.4 | AX3: 0.7142857143 | AY3: 0.2142857143 | AZ3: 0.4375 | BA3: 0 | BB3: 0.7272727273 | BC3: 0.5573770492 | BD3: 0.6744186047 | BE3: 0.4814814815 | BF3: 0.4406779661 | BG3: 0.4230769231 | BI3: 0.75 | BJ3: 0.375 | BK3: 0.65 | BM3: 0.4705882353 | BN3: 0.5 | BP3: 0.4137931034 | BQ3: 1 | BR3: 0.5245901639 | BS3: 0.4347826087 | BU3: 0.4179104478 | BV3: 0.5652173913 | BW3: 0.5 | BX3: 0 | BY3: 1 | CA3: 0.6666666667 | CB3: 0.5 | CC3: 0.5333333333 | CE3: 0.5 | CF3: 0.4090909091 | CG3: 0.654676259 | CH3: 0.2857142857 | CI3: 0.6666666667 | CL3: 0.3846153846 | CM3: 0.7142857143 | CN3: 0.2727272727 | CO3: 0.6666666667 | CP3: 0.4528301887 | CQ3: 1 | CR3: 0.4545454545 | CS3: 0.5714285714 | CT3: 0.2857142857 | CU3: 0.7777777778 | CV3: 0.4846153846 | CW3: 0.4019607843 | CX3: 0.75 | CY3: 0.25 | CZ3: 0.5251798561 | DA3: 0.3333333333 | DB3: 0.6017699115 | DC3: 0.5192307692 | DD3: 0.4761904762 | DE3: 0.4838709677 | DF3: 0.5102040816 | DG3: 0.2105263158 | DH3: 0.2352941176 | DI3: 0.4358974359 | DJ3: 0.1818181818 | DK3: 0.6666666667 | DL3: 0.4142857143 | DM3: 0.5606060606 | DN3: 0.5238095238 | DO3: 0.5 | DP3: 0 | DQ3: 1 | DR3: 0.45 | DS3: 0.4942528736 | DT3: 0.5 | DU3: 0.5 | DV3: 0.4545454545 | DW3: 0.5 | DX3: 1 | DY3: 0.4375 | DZ3: 0.3125 | EA3: 0.6666666667 | EB3: 0.2 | EC3: 0.4985922703
B4: 2017
A5: Percent of Youth with a Decrease in CANS Child Behavior/Emotional Needs Domain1 | B5: 2015 | C5: 0.6666666667 | D5: 0.3466666667 | E5: 0.3793103448 | F5: 0.5 | G5: 0.8 | H5: 0.5652173913 | I5: 0.44 | J5: 0.5238095238 | K5: 0.4285714286 | L5: 0 | M5: 0.3888888889 | O5: 0.6363636364 | P5: 0.4210526316 | Q5: 0.6666666667 | R5: 0.4117647059 | S5: 0.5714285714 | T5: 0.8 | U5: 0.5454545455 | V5: 0.3333333333 | W5: 0.4222222222 | X5: 0 | Y5: 0.3571428571 | Z5: 0.4186046512 | AA5: 0.6590909091 | AB5: 0.4504504505 | AC5: 0.3333333333 | AD5: 0.5 | AE5: 0 | AF5: 0.5714285714 | AG5: 0.5454545455 | AH5: 0.7 | AI5: 0.4255319149 | AJ5: 0.5142857143 | AK5: 0.4761904762 | AL5: 1 | AM5: 0.4976851852 | AN5: 0.5 | AO5: 0.5 | AP5: 0.6666666667 | AQ5: 1 | AR5: 0.3636363636 | AS5: 0.4642857143 | AT5: 0.7058823529 | AU5: 0.2857142857 | AV5: 0.4 | AW5: 0.6111111111 | AX5: 0.3571428571 | AY5: 0.5833333333 | AZ5: 0.55 | BA5: 0.3333333333 | BB5: 0.5294117647 | BC5: 0.5 | BD5: 0.6 | BE5: 0.35 | BF5: 0.475 | BG5: 0.3725490196 | BI5: 0.4 | BJ5: 1 | BK5: 0.875 | BL5: 0.5 | BM5: 0.4736842105 | BN5: 0.625 | BO5: 0 | BP5: 0.5217391304 | BQ5: 1 | BR5: 0.472972973 | BS5: 0.5217391304 | BU5: 0.4492753623 | BV5: 0.4594594595 | BW5: 0.7857142857 | BX5: 0 | BZ5: 1 | CA5: 0.8947368421 | CB5: 0.5 | CC5: 0.28 | CE5: 0.7 | CF5: 0.4320987654 | CG5: 0.4270833333 | CH5: 0 | CI5: 0.5 | CJ5: 1 | CL5: 0.7428571429 | CM5: 0.76 | CN5: 0.6666666667 | CO5: 0.6818181818 | CP5: 0.4912280702 | CQ5: 1 | CR5: 0.4230769231 | CS5: 0.6060606061 | CT5: 0 | CU5: 0.2727272727 | CV5: 0.4711538462 | CW5: 0.5866666667 | CX5: 0.5714285714 | CY5: 0.2857142857 | CZ5: 0.4489795918 | DA5: 1 | DB5: 0.4880952381 | DC5: 0.5666666667 | DD5: 0.4117647059 | DE5: 0.3703703704 | DF5: 0.5333333333 | DG5: 0.4666666667 | DH5: 0.1428571429 | DI5: 0.5 | DJ5: 0.7777777778 | DK5: 1 | DL5: 0.602739726 | DM5: 0.65 | DN5: 0.3214285714 | DO5: 0.5 | DP5: 0.3 | DQ5: 0.5 | DR5: 0.48 | DS5: 0.4594594595 | DT5: 0.4 | DU5: 0.5 | DV5: 0.4666666667 | DW5: 0.5 | DX5: 0.3333333333 | DY5: 0.3888888889 | DZ5: 0.4166666667 | EA5: 0.5 | EB5: 0.5 | EC5: 0.4909232365
B6: 2016 | C6: 0.625 | D6: 0.5287356322 | E6: 0.4117647059 | F6: 0.4 | G6: 0 | H6: 0.5161290323 | I6: 0.4571428571 | J6: 0.45 | K6: 0.7142857143 | M6: 0.5471698113 | N6: 0.4 | O6: 0.5789473684 | P6: 0.25 | Q6: 0.75 | R6: 0.25 | S6: 0.2727272727 | T6: 0.6923076923 | U6: 0.7142857143 | V6: 0.25 | W6: 0.4651162791 | X6: 0 | Y6: 0.6875 | Z6: 0.3148148148 | AA6: 0.5744680851 | AB6: 0.4757281553 | AC6: 0.8333333333 | AD6: 0.5555555556 | AE6: 0.5 | AF6: 0 | AG6: 0.8 | AH6: 0.6363636364 | AI6: 0.4081632653 | AJ6: 0.3888888889 | AK6: 0.2 | AL6: 1 | AM6: 0.5050709939 | AN6: 0.4827586207 | AO6: 0.5555555556 | AP6: 0.6206896552 | AR6: 0.568627451 | AS6: 0.5 | AT6: 0.5294117647 | AU6: 0.2857142857 | AV6: 0.5 | AW6: 0.35 | AX6: 0.5714285714 | AY6: 0.2857142857 | AZ6: 0.5625 | BA6: 0 | BB6: 0.3636363636 | BC6: 0.5573770492 | BD6: 0.5813953488 | BE6: 0.3333333333 | BF6: 0.5254237288 | BG6: 0.3846153846 | BI6: 0.375 | BJ6: 0.375 | BK6: 0.7 | BM6: 0.2352941176 | BN6: 0.75 | BP6: 0.3448275862 | BQ6: 1 | BR6: 0.4426229508 | BS6: 0.3043478261 | BU6: 0.3731343284 | BV6: 0.4782608696 | BW6: 0.2222222222 | BX6: 1 | BY6: 0.6666666667 | CA6: 0.7333333333 | CB6: 0.25 | CC6: 0.5333333333 | CE6: 0.8 | CF6: 0.4318181818 | CG6: 0.5395683453 | CH6: 0.1428571429 | CI6: 0.3333333333 | CL6: 0.4615384615 | CM6: 0.380952381 | CN6: 0.3636363636 | CO6: 0.6666666667 | CP6: 0.3773584906 | CQ6: 1 | CR6: 0.4545454545 | CS6: 0.5714285714 | CT6: 0.3571428571 | CU6: 0.5555555556 | CV6: 0.5 | CW6: 0.5196078431 | CX6: 0.75 | CY6: 0.75 | CZ6: 0.4100719424 | DA6: 0.6666666667 | DB6: 0.4955752212 | DC6: 0.4423076923 | DD6: 0.4761904762 | DE6: 0.5483870968 | DF6: 0.4285714286 | DG6: 0.3684210526 | DH6: 0.2941176471 | DI6: 0.6153846154 | DJ6: 0.2727272727 | DK6: 0.6666666667 | DL6: 0.4428571429 | DM6: 0.5606060606 | DN6: 0.4761904762 | DO6: 0.6111111111 | DP6: 0.6666666667 | DQ6: 1 | DR6: 0.35 | DS6: 0.4137931034 | DT6: 0.4444444444 | DU6: 0.7777777778 | DV6: 0.3636363636 | DW6: 1 | DX6: 1 | DY6: 0.5625 | DZ6: 0.375 | EA6: 0.4761904762 | EB6: 0.6 | EC6: 0.4845149731
B7: 2017
A8: Percent of Youth Receiving ICC Against Those in Residential2 (Target = 75%) | B8: 2015 | C8: 0 | D8: 0.5 | E8: 0.5833333333 | F8: 0 | H8: 1 | I8: 0.4285714286 | J8: 0 | K8: 1 | O8: 1 | P8: 0.1489361702 | R8: 0 | U8: 0 | V8: 0 | W8: 1 | Y8: 0 | Z8: 0.2285714286 | AA8: 0.2222222222 | AB8: 0.1290322581 | AF8: 0.3333333333 | AG8: 0 | AI8: 0 | AJ8: 0 | AK8: 0.25 | AM8: 0.8612440191 | AN8: 0.2142857143 | AP8: 0 | AQ8: 1 | AR8: 0.5555555556 | AS8: 0 | AT8: 0.375 | AX8: 0 | BB8: 0 | BC8: 1 | BD8: 0.04545454545 | BE8: 0.4761904762 | BF8: 0.9473684211 | BG8: 0 | BI8: 0 | BK8: 0.2857142857 | BM8: 0 | BN8: 1 | BO8: 0 | BP8: 0 | BR8: 0.7222222222 | BS8: 1 | BT8: 0 | BU8: 0.1587301587 | BV8: 0 | CA8: 0 | CF8: 0.75 | CG8: 0.3432835821 | CK8: 0 | CL8: 0.09090909091 | CM8: 0 | CO8: 0.07692307692 | CP8: 0.125 | CQ8: 0.5 | CR8: 1 | CS8: 0 | CT8: 0.3333333333 | CV8: 0.01075268817 | CW8: 0 | CX8: 0 | CY8: 0 | CZ8: 0.2602739726 | DA8: 0.5 | DB8: 0.2340425532 | DC8: 0.5238095238 | DD8: 0 | DE8: 0.4594594595 | DF8: 0 | DG8: 1 | DI8: 0 | DJ8: 0.8333333333 | DL8: 0.347826087 | DM8: 0 | DN8: 1 | DO8: 0.2222222222 | DQ8: 1 | DR8: 0 | DS8: 0.128 | DT8: 0 | DU8: 0.6086956522 | DV8: 0.8571428571 | DW8: 0.6666666667 | DY8: 0 | DZ8: 0 | EA8: 0 | EB8: 0.2 | EC8: 0.3192267503
B9: 2016 | C9: 0 | D9: 0.6875 | E9: 0.8571428571 | H9: 0.1 | I9: 0 | J9: 0.04651162791 | K9: 1 | M9: 0 | O9: 0.3333333333 | P9: 0.1578947368 | R9: 0 | U9: 0 | W9: 1 | Y9: 0.1 | Z9: 0.2903225806 | AA9: 0.3043478261 | AB9: 0.1627906977 | AF9: 1 | AG9: 0 | AI9: 0 | AJ9: 0 | AK9: 0.1428571429 | AM9: 0.9292035398 | AN9: 0.07142857143 | AP9: 0.04347826087 | AR9: 1 | AS9: 0 | AT9: 0.1666666667 | AV9: 0 | AX9: 0.09090909091 | AZ9: 0 | BB9: 0 | BC9: 1 | BD9: 0.2142857143 | BE9: 0.2962962963 | BF9: 0.7666666667 | BJ9: 0.3333333333 | BL9: 1 | BM9: 0 | BN9: 1 | BO9: 0 | BR9: 0.25 | BS9: 0.5 | BU9: 0 | BV9: 0.03846153846 | CA9: 0 | CB9: 1 | CF9: 0.25 | CG9: 0.3230769231 | CI9: 0.3333333333 | CL9: 0 | CO9: 0.1212121212 | CP9: 0.5833333333 | CR9: 0.5714285714 | CT9: 0.3333333333 | CV9: 0.02857142857 | CW9: 0 | CX9: 0 | CY9: 0 | CZ9: 0.198630137 | DA9: 1 | DB9: 0 | DC9: 0.75 | DD9: 0 | DE9: 0.4137931034 | DF9: 0 | DG9: 0.8 | DH9: 0 | DI9: 0 | DJ9: 1 | DK9: 0.3333333333 | DL9: 0 | DM9: 0 | DN9: 0.875 | DO9: 0.3333333333 | DS9: 0.05357142857 | DU9: 0.7142857143 | DV9: 1 | DW9: 1 | DY9: 0.06666666667 | DZ9: 0 | EA9: 0 | EB9: 0 | EC9: 0.3104557641
B10: 2017
A11: Percent of Youth Receiving CBS Out of All CSA Youth (Target = 50%) | B11: 2015 | C11: 0.09090909091 | D11: 0.4894894895 | E11: 0.489539749 | F11: 0.7333333333 | G11: 0.4285714286 | H11: 0.3670886076 | I11: 0.5375 | J11: 0.3886462882 | K11: 0.5025125628 | L11: 0.6666666667 | M11: 0.3867924528 | N11: 0.06666666667 | O11: 0.7272727273 | P11: 0.0977443609 | Q11: 0.4210526316 | R11: 0.2716049383 | S11: 0.7101449275 | T11: 0.6976744186 | U11: 0.6467065868 | V11: 0.4745762712 | W11: 0.6639344262 | X11: 0.625 | Y11: 0.5842696629 | Z11: 0.5663430421 | AA11: 0.5611510791 | AB11: 0.5129032258 | AC11: 0.4333333333 | AD11: 0.625 | AE11: 0.7272727273 | AF11: 0.71875 | AG11: 0.6778242678 | AH11: 0.7142857143 | AI11: 0.5541401274 | AJ11: 0.4895104895 | AK11: 0.5208333333 | AL11: 0.3333333333 | AM11: 0.6736214605 | AN11: 0.5277777778 | AO11: 0.6 | AP11: 0.8034188034 | AQ11: 0.2857142857 | AR11: 0.6274509804 | AS11: 0.4198473282 | AT11: 0.5303030303 | AU11: 0.9411764706 | AV11: 0.2933333333 | AW11: 0.2549019608 | AX11: 0.325 | AY11: 0.6440677966 | AZ11: 0.525 | BA11: 0.4827586207 | BB11: 0.6354166667 | BC11: 0.8403846154 | BD11: 0.5819672131 | BE11: 0.4046242775 | BF11: 0.6347150259 | BG11: 0.4765625 | BH11: 0 | BI11: 0.7441860465 | BJ11: 0.08333333333 | BK11: 0.5192307692 | BL11: 0.5 | BM11: 0.6896551724 | BN11: 0.625 | BO11: 0.2941176471 | BP11: 0.09677419355 | BQ11: 0.9285714286 | BR11: 0.5131578947 | BS11: 0.5479452055 | BT11: 0.7352941176 | BU11: 0.3717105263 | BV11: 0.4909090909 | BW11: 0.4285714286 | BX11: 0.8 | BY11: 0.4444444444 | BZ11: 0.5384615385 | CA11: 0.4698795181 | CB11: 0.625 | CC11: 0.2708333333 | CD11: 0.6551724138 | CE11: 0.7037037037 | CF11: 0.4664310954 | CG11: 0.197080292 | CH11: 0.2727272727 | CI11: 0.7 | CJ11: 0.3333333333 | CK11: 0.08333333333 | CL11: 0.6395348837 | CM11: 0.5769230769 | CN11: 0 | CO11: 0.3986928105 | CP11: 0.7265625 | CQ11: 0.5384615385 | CR11: 0.06944444444 | CS11: 0.5079365079 | CT11: 0.5625 | CU11: 0.6170212766 | CV11: 0.6633986928 | CW11: 0.5240963855 | CX11: 0.1818181818 | CY11: 0.3409090909 | CZ11: 0.2106227106 | DA11: 0.5 | DB11: 0.3350649351 | DC11: 0.4509803922 | DD11: 0.7432432432 | DE11: 0.3483146067 | DF11: 0.2307692308 | DG11: 0.406779661 | DH11: 0.1886792453 | DI11: 0.7614678899 | DJ11: 0.6590909091 | DK11: 0.4117647059 | DL11: 0.456928839 | DM11: 0.6319444444 | DN11: 0.4461538462 | DO11: 0.243902439 | DP11: 0.7272727273 | DQ11: 0.68 | DR11: 0.27 | DS11: 0.3314917127 | DT11: 0.5185185185 | DU11: 0.2748091603 | DV11: 0.4827586207 | DW11: 0.7073170732 | DX11: 0.25 | DY11: 0.5535714286 | DZ11: 0.2582417582 | EA11: 0.5052631579 | EB11: 0.5625 | EC11: 0.5039400346
B12: 2016 | C12: 0.25 | D12: 0.6060606061 | E12: 0.5043859649 | F12: 0.8070175439 | G12: 0.4545454545 | H12: 0.5211267606 | I12: 0.5454545455 | J12: 0.3611111111 | K12: 0.5490196078 | L12: 0.6666666667 | M12: 0.5 | N12: 0.06666666667 | O12: 0.7804878049 | P12: 0.09333333333 | Q12: 0.5238095238 | R12: 0.08641975309 | S12: 0.737704918 | T12: 0.8333333333 | U12: 0.6538461538 | V12: 0.4909090909 | W12: 0.5338983051 | X12: 0.8888888889 | Y12: 0.5405405405 | Z12: 0.5454545455 | AA12: 0.4429530201 | AB12: 0.5275362319 | AC12: 0.5 | AD12: 0.6333333333 | AE12: 0.8181818182 | AF12: 0.6206896552 | AG12: 0.6592920354 | AH12: 0.6285714286 | AI12: 0.5197368421 | AJ12: 0.5801526718 | AK12: 0.6 | AL12: 0.6129032258 | AM12: 0.6784996651 | AN12: 0.6096491228 | AO12: 0.6 | AP12: 0.7280701754 | AQ12: 0 | AR12: 0.6666666667 | AS12: 0.4468085106 | AT12: 0.5373134328 | AU12: 0.7843137255 | AV12: 0.3571428571 | AW12: 0.2037037037 | AX12: 0.2888888889 | AY12: 0.6326530612 | AZ12: 0.511627907 | BA12: 0.4545454545 | BB12: 0.6095238095 | BC12: 0.8203592814 | BD12: 0.6218487395 | BE12: 0.40625 | BF12: 0.6223958333 | BG12: 0.2372881356 | BH12: 0 | BI12: 0.7698412698 | BJ12: 0 | BK12: 0.6470588235 | BL12: 0.5 | BM12: 0.5490196078 | BN12: 0.6315789474 | BO12: 0.4 | BP12: 0.2209302326 | BQ12: 0.8461538462 | BR12: 0.5873786408 | BS12: 0.4888888889 | BT12: 0.847826087 | BU12: 0.4054878049 | BV12: 0.4434782609 | BW12: 0.4255319149 | BX12: 0.7368421053 | BY12: 0.5 | BZ12: 0.2857142857 | CA12: 0.4545454545 | CB12: 0.6923076923 | CC12: 0.488372093 | CD12: 0.4827586207 | CE12: 0.6428571429 | CF12: 0.5075757576 | CG12: 0.25 | CH12: 0.3571428571 | CI12: 0.5925925926 | CJ12: 0.1428571429 | CK12: 0.1052631579 | CL12: 0.4608695652 | CM12: 0.4565217391 | CN12: 0 | CO12: 0.4642857143 | CP12: 0.7172413793 | CQ12: 0.4 | CR12: 0.09090909091 | CS12: 0.5161290323 | CT12: 0.5090909091 | CU12: 0.7 | CV12: 0.4820627803 | CW12: 0.5482233503 | CX12: 0.2093023256 | CY12: 0.3125 | CZ12: 0.2114754098 | DA12: 0.6666666667 | DB12: 0.2670157068 | DC12: 0.5092592593 | DD12: 0.6707317073 | DE12: 0.3655913978 | DF12: 0.1393442623 | DG12: 0.46875 | DH12: 0.1428571429 | DI12: 0.7862068966 | DJ12: 0.5775862069 | DK12: 0.3888888889 | DL12: 0.5252525253 | DM12: 0.6242424242 | DN12: 0.5462184874 | DO12: 0.275 | DP12: 0.8571428571 | DQ12: 0.7727272727 | DR12: 0.2745098039 | DS12: 0.126146789 | DT12: 0.4833333333 | DU12: 0.1923076923 | DV12: 0.5405405405 | DW12: 0.8571428571 | DX12: 0.3333333333 | DY12: 0.5923566879 | DZ12: 0.303030303 | EA12: 0.5565217391 | EB12: 0.6 | EC12: 0.5048650042
B13: 2017
A14: Percent of Foster Care Children in Family-based Placements (Target = 85%) | B14: 2015 | C14: 0.7142857143 | D14: 0.869047619 | E14: 0.8865979381 | F14: 0.3333333333 | H14: 0.875 | I14: 0.8947368421 | J14: 0.7777777778 | K14: 0.5 | L14: 0.8 | M14: 0.8103448276 | N14: 0.9166666667 | O14: 1 | P14: 0.7666666667 | Q14: 0.6666666667 | R14: 0.7910447761 | S14: 0.8 | T14: 0.5789473684 | U14: 0.8333333333 | V14: 0.7368421053 | W14: 0.8846153846 | Y14: 0.9259259259 | Z14: 0.7816091954 | AA14: 0.8358208955 | AB14: 0.8064516129 | AC14: 0.8888888889 | AD14: 0.8064516129 | AE14: 0.3333333333 | AF14: 0.8888888889 | AG14: 0.6896551724 | AH14: 0.8333333333 | AI14: 0.6444444444 | AJ14: 0.8985507246 | AK14: 0.8214285714 | AL14: 0.6666666667 | AM14: 0.8684210526 | AN14: 0.8 | AO14: 0.875 | AP14: 0.8333333333 | AQ14: 1 | AR14: 0.8571428571 | AS14: 0.8 | AT14: 0.875 | AU14: 1 | AV14: 0.8857142857 | AW14: 0.8333333333 | AX14: 0.6 | AY14: 0.9444444444 | AZ14: 0.7272727273 | BA14: 1 | BB14: 0.6428571429 | BC14: 0.9636363636 | BD14: 0.8148148148 | BE14: 0.8116883117 | BF14: 0.7522123894 | BG14: 0.825 | BI14: 0.8095238095 | BJ14: 1 | BK14: 1 | BL14: 0.8 | BM14: 0.75 | BN14: 0.6 | BO14: 0.625 | BP14: 0.8518518519 | BQ14: 0.5789473684 | BR14: 0.76 | BS14: 0.7222222222 | BT14: 0.5714285714 | BU14: 0.8523489933 | BV14: 0.6756756757 | BW14: 0.8 | BX14: 1 | BY14: 0.825 | BZ14: 1 | CA14: 0.5909090909 | CB14: 1 | CC14: 0.9523809524 | CD14: 0.7142857143 | CE14: 0.75 | CF14: 0.8846153846 | CG14: 0.8893442623 | CH14: 0.6666666667 | CI14: 1 | CJ14: 1 | CK14: 1 | CL14: 0.5652173913 | CM14: 0.5555555556 | CN14: 1 | CO14: 0.6842105263 | CP14: 0.9285714286 | CQ14: 0.5 | CR14: 0.9206349206 | CS14: 0.625 | CT14: 1 | CU14: 0.6923076923 | CV14: 0.6705882353 | CW14: 0.6363636364 | CX14: 0.6470588235 | CY14: 0.84 | CZ14: 0.7272727273 | DA14: 0.4 | DB14: 0.8870967742 | DC14: 0.8490566038 | DD14: 0.5789473684 | DE14: 0.8116883117 | DF14: 0.8656716418 | DG14: 0.8490566038 | DH14: 0.9230769231 | DI14: 0.6111111111 | DJ14: 0.8571428571 | DK14: 0.625 | DL14: 0.7792207792 | DM14: 0.9655172414 | DN14: 0.8846153846 | DO14: 0.7142857143 | DQ14: 1 | DR14: 0.9387755102 | DS14: 0.8136363636 | DT14: 0.7222222222 | DU14: 0.8461538462 | DV14: 0.8846153846 | DW14: 0.3333333333 | DX14: 0.8888888889 | DY14: 1 | DZ14: 0.9252336449 | EA14: 0.9032258065 | EB14: 0.5 | EC14: 0.8213783404
B15: 2016 | C15: 0.8333333333 | D15: 0.9 | E15: 0.8651685393 | F15: 0.7 | G15: 1 | H15: 0.76 | I15: 0.75 | J15: 0.8777777778 | L15: 1 | M15: 0.8363636364 | N15: 0.9230769231 | O15: 0.6666666667 | P15: 0.6666666667 | Q15: 0.6666666667 | R15: 0.7808219178 | S15: 0.6363636364 | T15: 0.75 | U15: 0.7105263158 | V15: 0.7894736842 | W15: 0.8048780488 | Y15: 0.6875 | Z15: 0.9270833333 | AA15: 0.8870967742 | AB15: 0.7575757576 | AC15: 0.9090909091 | AD15: 0.7575757576 | AE15: 0.7 | AF15: 1 | AG15: 0.5454545455 | AH15: 0.5 | AI15: 0.7307692308 | AJ15: 0.8723404255 | AK15: 0.9 | AL15: 0.5 | AM15: 0.9244444444 | AN15: 0.7884615385 | AO15: 0.875 | AP15: 0.7272727273 | AQ15: 1 | AR15: 0.8852459016 | AS15: 0.7333333333 | AT15: 0.8947368421 | AU15: 0.8 | AV15: 0.8139534884 | AW15: 0.8846153846 | AX15: 0.6666666667 | AY15: 0.9 | AZ15: 0.6923076923 | BA15: 1 | BB15: 0.6875 | BC15: 0.96 | BD15: 0.7777777778 | BE15: 0.7961783439 | BF15: 0.6960784314 | BG15: 0.8235294118 | BH15: 1 | BI15: 0.85 | BJ15: 0.6 | BK15: 1 | BL15: 0.6666666667 | BM15: 0.9375 | BN15: 0.75 | BO15: 0.5 | BP15: 0.9166666667 | BQ15: 0.75 | BR15: 0.7619047619 | BS15: 0.7631578947 | BT15: 0.5 | BU15: 0.8484848485 | BV15: 0.641509434 | BW15: 0.9090909091 | BX15: 1 | BY15: 0.8235294118 | BZ15: 1 | CA15: 0.652173913 | CB15: 1 | CC15: 0.9705882353 | CD15: 0.9 | CE15: 1 | CF15: 0.8611111111 | CG15: 0.9154228856 | CH15: 0.6666666667 | CI15: 0.875 | CJ15: 0.8333333333 | CL15: 0.6666666667 | CM15: 0.7272727273 | CN15: 0.7647058824 | CO15: 0.6444444444 | CP15: 0.6875 | CQ15: 0.25 | CR15: 0.9338842975 | CS15: 0.8181818182 | CT15: 1 | CU15: 0.8235294118 | CV15: 0.7830188679 | CW15: 0.7358490566 | CX15: 0.7272727273 | CY15: 0.6666666667 | CZ15: 0.6748466258 | DA15: 0.3333333333 | DB15: 0.8549019608 | DC15: 0.829787234 | DD15: 0.75 | DE15: 0.7961783439 | DF15: 0.724137931 | DG15: 0.829787234 | DH15: 0.9166666667 | DI15: 0.7 | DJ15: 0.9333333333 | DK15: 0.5 | DL15: 0.8804347826 | DM15: 0.88 | DN15: 0.875 | DO15: 0.5833333333 | DQ15: 1 | DR15: 0.8888888889 | DS15: 0.8050847458 | DT15: 0.8571428571 | DU15: 0.8409090909 | DV15: 0.875 | DW15: 0.6666666667 | DX15: 1 | DY15: 0.9 | DZ15: 0.9541284404 | EA15: 0.8974358974 | EB15: 0.25 | EC15: 0.8195706827
B16: 2017
A17: Percent of Children Who Exit from Foster Care to a Permanent Living Arrangement (Target = 86%) | B17: 2015 | C17: 0.3333333333 | D17: 0.66 | E17: 0.724137931 | F17: 0.8333333333 | G17: 1 | H17: 0.7777777778 | I17: 0.5 | J17: 0.7222222222 | K17: 0.8888888889 | M17: 0.9310344828 | N17: 1 | O17: 0.8571428571 | P17: 0.7368421053 | Q17: 1 | R17: 0.8333333333 | S17: 1 | T17: 0.8 | U17: 0.75 | V17: 0.7142857143 | W17: 0.6875 | Y17: 0.6666666667 | Z17: 0.6551724138 | AA17: 0.4761904762 | AB17: 0.8181818182 | AC17: 0.5 | AD17: 0.8181818182 | AE17: 0.8333333333 | AF17: 1 | AG17: 0.8947368421 | AH17: 1 | AI17: 0.5909090909 | AJ17: 0.9642857143 | AK17: 0.875 | AL17: 0.6 | AM17: 0.7699115044 | AN17: 0.8510638298 | AO17: 0.8333333333 | AP17: 0.8333333333 | AR17: 0.8055555556 | AS17: 0.8611111111 | AT17: 0.9130434783 | AU17: 0.6666666667 | AV17: 0.9166666667 | AW17: 0.8421052632 | AX17: 0.6666666667 | AY17: 0.5714285714 | AZ17: 0.5 | BA17: 0.5 | BB17: 0.75 | BC17: 0.7575757576 | BD17: 0.5 | BE17: 0.7926829268 | BF17: 0.6875 | BG17: 0.9069767442 | BI17: 0.7692307692 | BJ17: 1 | BK17: 1 | BM17: 0.5 | BO17: 0.8571428571 | BP17: 0.8181818182 | BQ17: 0.8 | BR17: 0.8 | BS17: 0.5714285714 | BT17: 0.9230769231 | BU17: 0.7457627119 | BV17: 0.75 | BW17: 0.8571428571 | BY17: 0.9069767442 | BZ17: 1 | CA17: 0.8 | CB17: 0.5 | CC17: 0.8571428571 | CD17: 1 | CE17: 1 | CF17: 0.693877551 | CG17: 0.8453608247 | CI17: 1 | CJ17: 0.875 | CK17: 0.5 | CL17: 0.25 | CM17: 0.8571428571 | CN17: 1 | CO17: 0.8684210526 | CP17: 0.25 | CQ17: 0.6 | CR17: 0.7906976744 | CS17: 0.5 | CU17: 1 | CV17: 0.5609756098 | CW17: 0.7857142857 | CX17: 0.8571428571 | CY17: 0.8461538462 | CZ17: 0.7752808989 | DA17: 1 | DB17: 0.7314814815 | DC17: 0.8076923077 | DD17: 0.8 | DE17: 0.7926829268 | DF17: 0.8333333333 | DG17: 0.8076923077 | DH17: 0.8095238095 | DI17: 1 | DJ17: 0.8461538462 | DL17: 0.6909090909 | DM17: 0.8518518519 | DN17: 0.7948717949 | DO17: 0.2 | DQ17: 1 | DR17: 0.7741935484 | DS17: 0.6705882353 | DT17: 0.75 | DU17: 0.7333333333 | DV17: 0.7948717949 | DW17: 0.9 | DX17: 1 | DY17: 0.8333333333 | DZ17: 0.8181818182 | EA17: 0.7222222222 | EB17: 0.6 | EC17: 0.775711575
B18: 2016 | C18: 0.8 | D18: 0.7450980392 | E18: 0.7297297297 | F18: 0.5 | H18: 0.9090909091 | I18: 0.75 | J18: 0.7636363636 | K18: 1 | L18: 1 | M18: 0.8285714286 | N18: 0.8 | P18: 0.6 | R18: 0.7941176471 | T18: 0.8 | U18: 0.7222222222 | V18: 1 | W18: 0.8 | Y18: 0.7142857143 | Z18: 0.6666666667 | AA18: 0.8333333333 | AB18: 0.8 | AC18: 1 | AD18: 0.8 | AE18: 0.5 | AF18: 0.25 | AG18: 0.8620689655 | AH18: 1 | AI18: 0.5806451613 | AJ18: 0.9433962264 | AK18: 0.8333333333 | AL18: 0.2 | AM18: 0.7047619048 | AN18: 0.8611111111 | AO18: 0.8 | AP18: 0.8 | AQ18: 1 | AR18: 0.7272727273 | AS18: 1 | AT18: 0.9473684211 | AU18: 1 | AV18: 0.8518518519 | AW18: 0.75 | AX18: 0.8181818182 | AY18: 0.8333333333 | AZ18: 0.7777777778 | BA18: 0.6666666667 | BB18: 0.5555555556 | BC18: 0.6153846154 | BD18: 0.8571428571 | BE18: 0.7205882353 | BF18: 0.8076923077 | BG18: 0.88 | BI18: 0.75 | BJ18: 1 | BK18: 1 | BM18: 0.5 | BN18: 1 | BO18: 0.5 | BP18: 0.8076923077 | BQ18: 0.8 | BR18: 0.8095238095 | BS18: 0.5 | BT18: 1 | BU18: 0.8070175439 | BV18: 0.75 | BW18: 1 | BY18: 0.88 | BZ18: 1 | CA18: 1 | CB18: 0.8571428571 | CC18: 0.8636363636 | CD18: 0.75 | CF18: 0.6739130435 | CG18: 0.8870967742 | CI18: 0.25 | CJ18: 1 | CK18: 0.75 | CL18: 0.8275862069 | CM18: 1 | CN18: 1 | CO18: 0.8484848485 | CP18: 0.8571428571 | CR18: 0.7073170732 | CS18: 0.8 | CT18: 0.8333333333 | CU18: 0.8 | CV18: 0.6904761905 | CW18: 0.625 | CX18: 0.7272727273 | CY18: 0.8 | CZ18: 0.75 | DA18: 1 | DB18: 0.6704545455 | DC18: 0.8421052632 | DD18: 0.8 | DE18: 0.7205882353 | DF18: 0.7878787879 | DG18: 0.8421052632 | DH18: 0.7142857143 | DI18: 1 | DJ18: 0.7857142857 | DK18: 1 | DL18: 0.7179487179 | DM18: 0.8695652174 | DN18: 0.7049180328 | DO18: 0.8333333333 | DQ18: 1 | DR18: 0.6842105263 | DS18: 0.6632653061 | DT18: 0.8 | DU18: 0.8125 | DV18: 0.7049180328 | DW18: 1 | DX18: 0.8888888889 | DY18: 0.9230769231 | DZ18: 0.8032786885 | EA18: 0.7826086957 | EC18: 0.7733895706
B19: 2017
A20: Composite Performance Measure3 | B20: 2015 | C20: 2 | D20: 2.333333333 | E20: 2.5 | F20: 2.5 | G20: 3.25 | H20: 3.166666667 | I20: 2.5 | J20: 2 | K20: 2.5 | L20: 2.25 | M20: 2.6 | N20: 3 | O20: 3.833333333 | P20: 1.833333333 | Q20: 3 | R20: 1.5 | S20: 3.8 | T20: 2.8 | U20: 2.666666667 | V20: 2 | W20: 2.833333333 | X20: 3 | Y20: 2.166666667 | Z20: 2 | AA20: 3 | AB20: 2.5 | AC20: 1.8 | AD20: 3.4 | AE20: 2.2 | AF20: 3.333333333 | AG20: 2.666666667 | AH20: 3.8 | AI20: 2.166666667 | AJ20: 2.5 | AK20: 2.833333333 | AL20: 2.2 | AM20: 3.166666667 | AN20: 2.333333333 | AO20: 3.2 | AP20: 3 | AQ20: 3 | AR20: 2.666666667 | AS20: 2.166666667 | AT20: 3.833333333 | AU20: 2.4 | AV20: 2.8 | AW20: 2.4 | AX20: 1.333333333 | AY20: 3 | AZ20: 3 | BA20: 2.6 | BB20: 2.166666667 | BC20: 3 | BD20: 3 | BE20: 2.166666667 | BF20: 2.5 | BG20: 2 | BH20: 1 | BI20: 2.5 | BJ20: 3.4 | BK20: 3.166666667 | BL20: 3 | BM20: 2.5 | BN20: 3.2 | BO20: 1.5 | BP20: 2.666666667 | BQ20: 2.6 | BR20: 2.333333333 | BS20: 3.166666667 | BT20: 2.75 | BU20: 1.833333333 | BV20: 1.833333333 | BW20: 3 | BX20: 2.5 | BY20: 2.666666667 | BZ20: 3.4 | CA20: 2.5 | CB20: 3 | CC20: 2.2 | CD20: 3.333333333 | CE20: 3.6 | CF20: 2.333333333 | CG20: 2.666666667 | CH20: 1.25 | CI20: 3.2 | CJ20: 3.4 | CK20: 2 | CL20: 2.666666667 | CM20: 3 | CN20: 3.4 | CO20: 2.666666667 | CP20: 2.5 | CQ20: 3.166666667 | CR20: 2.166666667 | CS20: 2.333333333 | CT20: 2.8 | CU20: 2.4 | CV20: 2.5 | CW20: 2.166666667 | CX20: 2.5 | CY20: 1.666666667 | CZ20: 1.666666667 | DA20: 2.833333333 | DB20: 2.333333333 | DC20: 2.833333333 | DD20: 2.333333333 | DE20: 2 | DF20: 2.666666667 | DG20: 2.166666667 | DH20: 1.8 | DI20: 3 | DJ20: 3.833333333 | DK20: 2.75 | DL20: 2.666666667 | DM20: 3.333333333 | DN20: 2.5 | DO20: 1.833333333 | DP20: 2 | DQ20: 3.333333333 | DR20: 2.333333333 | DS20: 1.833333333 | DT20: 2.166666667 | DU20: 2.833333333 | DV20: 2.666666667 | DW20: 3.166666667 | DX20: 2.8 | DY20: 2.333333333 | DZ20: 2 | EA20: 2.5 | EB20: 2.666666667 | EC20: 2.598333333
B21: 2016 | C21: 2.5 | D21: 3.166666667 | E21: 2.333333333 | F21: 2.6 | G21: 1.75 | H21: 2.333333333 | I21: 2.333333333 | J21: 2.166666667 | K21: 3.6 | L21: 4 | M21: 2.833333333 | N21: 2.4 | O21: 3.4 | P21: 1.833333333 | Q21: 3.25 | R21: 1.333333333 | S21: 2 | T21: 3.2 | U21: 2.833333333 | V21: 2.6 | W21: 3 | X21: 2 | Y21: 2.166666667 | Z21: 2.666666667 | AA21: 3 | AB21: 2.333333333 | AC21: 3.6 | AD21: 3.2 | AE21: 3 | AF21: 2.666666667 | AG21: 3.166666667 | AH21: 3.6 | AI21: 2 | AJ21: 2.666666667 | AK21: 2.5 | AL21: 3 | AM21: 3 | AN21: 2.333333333 | AO21: 3.6 | AP21: 2.333333333 | AQ21: 3 | AR21: 3.666666667 | AS21: 2.5 | AT21: 2.833333333 | AU21: 2.6 | AV21: 2.5 | AW21: 1.8 | AX21: 2.5 | AY21: 2.6 | AZ21: 2.166666667 | BA21: 1.8 | BB21: 2.333333333 | BC21: 3.666666667 | BD21: 3 | BE21: 1.666666667 | BF21: 2.666666667 | BG21: 2 | BH21: 2.5 | BI21: 3 | BJ21: 2 | BK21: 4 | BL21: 2.666666667 | BM21: 2.333333333 | BN21: 3.5 | BO21: 1.5 | BP21: 1.8 | BQ21: 3.2 | BR21: 2.333333333 | BS21: 2 | BT21: 3.333333333 | BU21: 1.5 | BV21: 2 | BW21: 2.6 | BX21: 3.25 | BY21: 3.4 | BZ21: 3 | CA21: 2.666666667 | CB21: 3.166666667 | CC21: 3.4 | CD21: 2.666666667 | CE21: 3.75 | CF21: 2 | CG21: 3.333333333 | CH21: 1.25 | CI21: 3 | CJ21: 2.666666667 | CK21: 1.5 | CL21: 1.666666667 | CM21: 2.4 | CN21: 1.8 | CO21: 2.666666667 | CP21: 2.5 | CQ21: 2.75 | CR21: 2.5 | CS21: 3.2 | CT21: 2.5 | CU21: 3.4 | CV21: 2 | CW21: 2 | CX21: 2.333333333 | CY21: 1.833333333 | CZ21: 1.666666667 | DA21: 3.166666667 | DB21: 2.5 | DC21: 3 | DD21: 2.166666667 | DE21: 2.5 | DF21: 1.666666667 | DG21: 2.333333333 | DH21: 1.666666667 | DI21: 2.666666667 | DJ21: 2.666666667 | DK21: 3 | DL21: 2.166666667 | DM21: 3.5 | DN21: 3 | DO21: 2.666666667 | DP21: 3 | DQ21: 4 | DR21: 1.8 | DS21: 1.666666667 | DT21: 2.6 | DU21: 3 | DV21: 2.666666667 | DW21: 3.5 | DX21: 3.4 | DY21: 3 | DZ21: 1.666666667 | EA21: 2.833333333 | EB21: 2.4 | EC21: 2.617179487
B22: 2017

Sheet All_Original (hidden)
B1: CSA Performance Measures - FY2015-2017
A2: Fips | B2: Locality | C2: Percent of Youth with a Decrease in CANS Child School Domain1 | E2: Percent of Youth with a Decrease in CANS Child Behavior/Emotional Needs Domain1 | G2: Percent of Youth Receiving ICC Against Those in Residential2 (Target = 75%) | I2: Percent of Youth Receiving CBS Out of All CSA Youth (Target = 50%) | K2: Percent of Foster Care Children in Family-based Placements (Target = 85%) | M2: Percent of Children Who Exit from Foster Care to a Permanent Living Arrangement (Target = 86%) | O2: Composite Performance Measure3 | Q2: SCH15 | R2: SCH16 | S2: CANS15 | T2: CANS16 | U2: ICC15 | V2: ICC16 | W2: CBS15 | X2: CBS16 | Y2: Fam15 | Z2: Fam16 | AA2: Per15 | AB2: Per16 | AC2: Com15 | AD2: Com16 | AE2: CANS15 | AH2: ICC Rank15 | AK2: CBS15 | AN2: Family15 | AQ2: Permanency15 | AT2: Composite15 | AW2: CANS16 | AZ2: ICC Rank16 | BC2: CBS16 | BF2: Family16 | BI2: Permanency16 | BL2: Composite16
A3: 1 | B3: Accomack | C3: 0.5 | D3: 0.75 | E3: 0.6666666667 | F3: 0.625 | G3: 0 | H3: 0 | I3: 0.09090909091 | J3: 0.25 | K3: 0.7142857143 | L3: 0.8333333333 | M3: 0.3333333333 | N3: 0.8 | O3: 2 | P3: 2.5 | Q3: 59t | R3: 7t | S3: 19t | T3: 1t | U3: 53t | V3: 54t | W3: 124 | X3: 110t | Y3: 92t | Z3: 56t | AA3: 116 | AB3: 57t | AC3: 104t | AD3: 86t | AE3: 0.19 | AF3: =IF(E3<>"",MAX(E3,AE3),"") -> 0.6666666667 | AG3: 19t | AH3: 0.53 | AI3: =IF(G3<>"",MAX(G3,AH3),"") -> 0.53 | AJ3: 53t | AK3: 1.24 | AL3: =IF(I3<>"",MAX(I3,AK3),"") -> 1.24 | AM3: 124 | AN3: 0.92 | AO3: =IF(K3<>"",MAX(K3,AN3),"") -> 0.92 | AP3: 92t | AQ3: 1.16 | AR3: =IF(M3<>"",MAX(M3,AQ3),"") -> 1.16 | AS3: 116 | AT3: 1.06 | AU3: =IF(O3<>"",MAX(O3,AT3),"") -> 2 | AV3: 106t | AW3: 0.01 | AX3: =IF(F3<>"",MAX(F3,AW3),"") -> 0.625 | AY3: 1t | AZ3: 0.54 | BA3: =IF(H3<>"",MAX(H3,AZ3),"") -> 0.54 | BB3: 54t | BC3: 1.1 | BD3: =IF(J3<>"",MAX(J3,BC3),"") -> 1.1 | BE3: 110t | BF3: 53 | BG3: =IF(L3<>"",MAX(L3,BF3),"") -> 53 | BH3: 53 | BI3: 0.57 | BJ3: =IF(N3<>"",MAX(N3,BI3),"") -> 0.8 | BK3: 57t | BL3: 1.06 | BM3: =IF(P3<>"",MAX(P3,BL3),"") -> 2.5 | BN3: 106t
A4: 3 | B4: Albemarle | C4: 0.4666666667 | D4: 0.4942528736 | E4: 0.3466666667 | F4: 0.5287356322 | G4: 0.5 | H4: 0.6875 | I4: 0.4894894895 | J4: 0.6060606061 | K4: 0.869047619 | L4: 0.9 | M4: 0.66 | N4: 0.7450980392 | O4: 2.333333333 | P4: 3.166666667 | Q4: 99t | R4: 77 | S4: 110 | T4: 42t | U4: 24t | V4: 20 | W4: 74 | X4: 41 | Y4: 45 | Z4: 29t | AA4: 97 | AB4: 84 | AC4: 83t | AD4: 21t | AE4: 1.1 | AF4: 1.1 | AG4: 110 | AH4: 0.24 | AI4: 0.5 | AJ4: 24t | AK4: 0.74 | AL4: 0.74 | AM4: 74 | AN4: 0.45 | AO4: 0.869047619 | AP4: 45 | AQ4: 0.97 | AR4: 0.97 | AS4: 97 | AT4: 0.65 | AU4: 2.333333333 | AV4: 65t | AW4: 0.42 | AX4: 0.5287356322 | AY4: 42t | AZ4: 0.2 | BA4: 0.6875 | BB4: 20 | BC4: 0.41 | BD4: 0.6060606061 | BE4: 41 | BF4: 1 | BG4: 1 | BH4: 1 | BI4: 0.84 | BJ4: 0.84 | BK4: 84 | BL4: 0.08 | BM4: 3.166666667 | BN4: 8t | CC4: 0.45 | CE4: 0.45
A5: 510 | B5: Alexandria | C5: 0.5 | D5: 0.3823529412 | E5: 0.3793103448 | F5: 0.4117647059 | G5: 0.5833333333 | H5: 0.8571428571 | I5: 0.489539749 | J5: 0.5043859649 | K5: 0.8865979381 | L5: 0.8651685393 | M5: 0.724137931 | N5: 0.7297297297 | O5: 2.5 | P5: 2.333333333 | Q5: 91 | R5: 58 | S5: 96 | T5: 101 | U5: 21 | V5: 15 | W5: 72 | X5: 71 | Y5: 36 | Z5: 48 | AA5: 85 | AB5: 85 | AC5: 83t | AD5: 56t | AE5: 0.96 | AF5: 0.96 | AG5: 96 | AH5: 0.21 | AI5: 0.5833333333 | AJ5: 21 | AK5: 0.72 | AL5: 0.72 | AM5: 72 | AN5: 0.36 | AO5: 0.8865979381 | AP5: 36 | AQ5: 0.85 | AR5: 0.85 | AS5: 85 | AT5: 0.65 | AU5: 2.5 | AV5: 65t | AW5: 1.01 | AX5: 1.01 | AY5: 101 | AZ5: 0.15 | BA5: 0.8571428571 | BB5: 15 | BC5: 0.71 | BD5: 0.71 | BE5: 71 | BF5: 34 | BG5: 34 | BH5: 34 | BI5: 0.85 | BJ5: 0.85 | BK5: 85 | BL5: 0.66 | BM5: 2.333333333 | BN5: 66t | CC5: 0.36 | CE5: 0.36
A6: 5 | B6: Alleghany | C6: 0.5 | D6: 0.6 | E6: 0.5 | F6: 0.4 | G6: 0 | I6: 0.7333333333 | J6: 0.8070175439 | K6: 0.3333333333 | L6: 0.7 | M6: 0.8333333333 | N6: 0.5 | O6: 2.5 | P6: 2.6 | Q6: 18t | R6: 53t | S6: 19t | T6: 94t | U6: 53t | W6: 10 | X6: 9 | Y6: 124t | Z6: 94t | AA6: 45t | AB6: 110t | AC6: 29t | AD6: 81t | AE6: 0.19 | AF6: 0.5 | AG6: 19t | AH6: 0.53 | AI6: 0.53 | AJ6: 53t | AK6: 0.1 | AL6: 0.7333333333 | AM6: 10 | AN6: 1.24 | AO6: 1.24 | AP6: 124t | AQ6: 0.45 | AR6: 0.8333333333 | AS6: 45t | AT6: 0.43 | AU6: 2.5 | AV6: 43t | AW6: 0.94 | AX6: 0.94 | AY6: 94t | AZ6: 0 | BC6: 0.09 | BD6: 0.8070175439 | BE6: 9 | BF6: 68 | BG6: 68 | BH6: 68 | BI6: 1.1 | BJ6: 1.1 | BK6: 110t | BL6: 0.91 | BM6: 2.6 | BN6: 91t | CC6: 1.24 | CE6: 1.24
A7: 7 | B7: Amelia | C7: 0.6 | D7: 0.4 | E7: 0.8 | F7: 0 | I7: 0.4285714286 | J7: 0.4545454545 | L7: 1 | M7: 1 | O7: 3.25 | P7: 1.75 | Q7: 32t | R7: 17 | S7: 9 | T7: 105t | W7: 86t | X7: 86t | Z7: 1t | AA7: 1t | AC7: 19 | AD7: 104t | AE7: 0.09 | AF7: 0.8 | AG7: 9 | AK7: 0.86 | AL7: 0.86 | AM7: 86t | AN7: 0 | AQ7: 0.01 | AR7: 1 | AS7: 1t | AT7: 0.26 | AU7: 3.25 | AV7: 26t | AW7: 1.05 | AX7: 1.05 | AY7: 105t | AZ7: 0 | BC7: 0.86 | BD7: 0.86 | BE7: 86t | BF7: 2 | BG7: 2 | BH7: 2 | BI7: 0 | BL7: 1.29 | BM7: 1.75 | BN7: 129t | CC7: 0 | CE7: 0
A8: 9 | B8: Amherst | C8: 0.6956521739 | D8: 0.3870967742 | E8: 0.5652173913 | F8: 0.5161290323 | G8: 1 | H8: 0.1 | I8: 0.3670886076 | J8: 0.5211267606 | K8: 0.875 | L8: 0.76 | M8: 0.7777777778 | N8: 0.9090909091 | O8: 3.166666667 | P8: 2.333333333 | Q8: 16t | R8: 52 | S8: 38 | T8: 42t | U8: 1t | V8: 44t | W8: 97 | X8: 64 | Y8: 42t | Z8: 78 | AA8: 71 | AB8: 27 | AC8: 24t | AD8: 21t | AE8: 0.38 | AF8: 0.5652173913 | AG8: 38 | AH8: 0.01 | AI8: 1 | AJ8: 1t | AK8: 0.97 | AL8: 0.97 | AM8: 97 | AN8: 0.42 | AO8: 0.875 | AP8: 42t | AQ8: 0.71 | AR8: 0.7777777778 | AS8: 71 | AT8: 0.26 | AU8: 3.166666667 | AV8: 26t | AW8: 0.42 | AX8: 0.5161290323 | AY8: 42t | AZ8: 0.44 | BA8: 0.44 | BB8: 44t | BC8: 0.64 | BD8: 0.64 | BE8: 64 | BF8: 69 | BG8: 69 | BH8: 69 | BI8: 0.27 | BJ8: 0.9090909091 | BK8: 27 | BL8: 0.22 | BM8: 2.333333333 | BN8: 22t | CC8: 0.42 | CE8: 0.42
A9: 11 | B9: Appomattox | C9: 0.44 | D9: 0.5714285714 | E9: 0.44 | F9: 0.4571428571 | G9: 0.4285714286 | H9: 0 | I9: 0.5375 | J9: 0.5454545455 | K9: 0.8947368421 | L9: 0.75 | M9: 0.5 | N9: 0.75 | O9: 2.5 | P9: 2.333333333 | Q9: 99t | R9: 50t | S9: 92 | T9: 73t | U9: 29 | V9: 54t | W9: 56 | X9: 55t | Y9: 30 | Z9: 81t | AA9: 106t | AB9: 77t | AC9: 71t | AD9: 69t | AE9: 0.92 | AF9: 0.92 | AG9: 92 | AH9: 0.29 | AI9: 0.4285714286 | AJ9: 29 | AK9: 0.56 | AL9: 0.56 | AM9: 56 | AN9: 0.3 | AO9: 0.8947368421 | AP9: 30 | AQ9: 1.06 | AR9: 1.06 | AS9: 106t | AT9: 0.43 | AU9: 2.5 | AV9: 43t | AW9: 0.73 | AX9: 0.73 | AY9: 73t | AZ9: 0.54 | BA9: 0.54 | BB9: 54t | BC9: 0.55 | BD9: 0.55 | BE9: 55t | BF9: 70 | BG9: 70 | BH9: 70 | BI9: 0.77 | BJ9: 0.77 | BK9: 77t | BL9: 0.77 | BM9: 2.333333333 | BN9: 77t | CC9: 0.3 | CE9: 0.3
A10: 13 | B10: Arlington | C10: 0.5396825397 | D10: 0.5166666667 | E10: 0.5238095238 | F10: 0.45 | G10: 0 | H10: 0.04651162791 | I10: 0.3886462882 | J10: 0.3611111111 | K10: 0.7777777778 | L10: 0.8777777778 | M10: 0.7222222222 | N10: 0.7636363636 | O10: 2 | P10: 2.166666667 | Q10: 57 | R10: 65t | S10: 37 | T10: 89 | U10: 53t | V10: 50 | W10: 94 | X10: 99 | Y10: 81 | Z10: 42 | AA10: 86t | AB10: 76 | AC10: 98t | AD10: 125t | AE10: 0.37 | AF10: 0.5238095238 | AG10: 37 | AH10: 0.53 | AI10: 0.53 | AJ10: 53t | AK10: 0.94 | AL10: 0.94 | AM10: 94 | AN10: 0.81 | AO10: 0.81 | AP10: 81 | AQ10: 0.86 | AR10: 0.86 | AS10: 86t | AT10: 1.06 | AU10: 2 | AV10: 106t | AW10: 0.89 | AX10: 0.89 | AY10: 89 | AZ10: 0.5 | BA10: 0.5 | BB10: 50 | BC10: 0.99 | BD10: 0.99 | BE10: 99 | BF10: 3 | BG10: 3 | BH10: 3 | BI10: 0.76 | BJ10: 0.7636363636 | BK10: 76 | BL10: 1.24 | BM10: 2.166666667 | BN10: 124t | CC10: 0.81 | CE10: 0.81
A11: 15 | B11: Augusta | C11: 0.4857142857 | D11: 0.4857142857 | E11: 0.4285714286 | F11: 0.7142857143 | G11: 1 | H11: 1 | I11: 0.5025125628 | J11: 0.5490196078 | K11: 0.5 | M11: 0.8888888889 | N11: 1 | O11: 2.5 | P11: 3.6 | Q11: 90 | R11: 22 | S11: 90 | T11: 21 | U11: 1t | V11: 1t | W11: 68 | X11: 51t | Y11: 120t | AA11: 28 | AB11: 1t | AC11: 83t | AD11: 3t | AE11: 0.9 | AF11: 0.9 | AG11: 90 | AH11: 0.01 | AI11: 1 | AJ11: 1t | AK11: 0.68 | AL11: 0.68 | AM11: 68 | AN11: 1.2 | AO11: 1.2 | AP11: 120t | AQ11: 0.28 | AR11: 0.8888888889 | AS11: 28 | AT11: 0.65 | AU11: 2.5 | AV11: 65t | AW11: 0.21 | AX11: 0.7142857143 | AY11: 21 | AZ11: 0.01 | BA11: 1 | BB11: 1t | BC11: 0.51 | BD11: 0.5490196078 | BE11: 51t | BI11: 0.01 | BJ11: 1 | BK11: 1t | BL11: 0.08 | BM11: 3.6 | BN11: 8t | CC11: 1.2 | CE11: 1.2
A12: 17 | B12: Bath | C12: 0 | E12: 0 | I12: 0.6666666667 | J12: 0.6666666667 | K12: 0.8 | L12: 1 | N12: 1 | O12: 2.25 | P12: 4 | Q12: 119t | S12: 117t | W12: 26 | X12: 23t | Y12: 72t | Z12: 1t | AB12: 1t | AC12: 96 | AD12: 3t | AE12: 1.17 | AF12: 1.17 | AG12: 117t | AK12: 0.26 | AL12: 0.6666666667 | AM12: 26 | AN12: 0.72 | AO12: 0.8 | AP12: 72t | AS12: 0 | AT12: 0.62 | AU12: 2.25 | AV12: 62t | AW12: 0 | AZ12: 0 | BC12: 0.23 | BD12: 0.6666666667 | BE12: 23t | BF12: 4 | BG12: 4 | BH12: 4 | BI12: 0.01 | BJ12: 1 | BK12: 1t | BL12: 0.07 | BM12: 4 | BN12: 7 | CC12: 0.72 | CE12: 0.72
A13: 19 | B13: Bedford County_Bedford City | C13: 0.6111111111 | D13: 0.6037735849 | E13: 0.3888888889 | F13: 0.5471698113 | H13: 0 | I13: 0.3867924528 | J13: 0.5 | K13: 0.8103448276 | L13: 0.8363636364 | M13: 0.9310344828 | N13: 0.8285714286 | O13: 2.6 | P13: 2.833333333 | Q13: 48 | R13: 53t | S13: 105t | T13: 75t | V13: 54t | W13: 95 | X13: 72t | Y13: 68 | Z13: 55 | AA13: 20 | AB13: 48 | AC13: 68t | AD13: 86t | AE13: 1.05 | AF13: 1.05 | AG13: 105t | AK13: 0.95 | AL13: 0.95 | AM13: 95 | AN13: 0.68 | AO13: 0.8103448276 | AP13: 68 | AQ13: 0.2 | AR13: 0.9310344828 | AS13: 20 | AT13: 0.95 | AU13: 2.6 | AV13: 95t | AW13: 0.75 | AX13: 0.75 | AY13: 75t | AZ13: 0.54 | BA13: 0.54 | BB13: 54t | BC13: 0.72 | BD13: 0.72 | BE13: 72t | BF13: 54 | BG13: 54 | BH13: 54 | BI13: 0.48 | BJ13: 0.8285714286 | BK13: 48 | BL13: 0.95 | BM13: 2.833333333 | BN13: 95t | CC13: 0.68 | CE13: 0.68
A14: 21 | B14: Bland | D14: 0.8 | F14: 0.4 | I14: 0.06666666667 | J14: 0.06666666667 | K14: 0.9166666667 | L14: 0.9230769231 | M14: 1 | N14: 0.8 | O14: 3 | P14: 2.4 | W14: 128 | X14: 126 | Y14: 27 | Z14: 23 | AA14: 1t | AB14: 57t | AC14: 29t | AD14: 86t | AK14: 1.28 | AL14: 1.28 | AM14: 128 | AN14: 0.27 | AO14: 0.9166666667 | AP14: 27 | AQ14: 0.01 | AR14: 1 | AS14: 1t | AT14: 0.26 | AU14: 3 | AV14: 26t | AW14: 0 | AX14: 0.4 | AZ14: 0 | BC14: 1.26 | BD14: 1.26 | BE14: 126 | BF14: 5 | BG14: 5 | BH14: 5 | BI14: 0.57 | BJ14: 0.8 | BK14: 57t | BL14: 0.86 | BM14: 2.4 | BN14: 86t | CC14: 0.27 | CE14: 0.27
A15: 23 | B15: Botetourt | C15: 0.8181818182 | D15: 0.6315789474 | E15: 0.6363636364 | F15: 0.5789473684 | G15: 1 | H15: 0.3333333333 | I15: 0.7272727273 | J15: 0.7804878049 | K15: 1 | L15: 0.6666666667 | M15: 0.8571428571 | O15: 3.833333333 | P15: 3.4 | Q15: 10 | R15: 31t | S15: 16 | T15: 60t | U15: 1t | V15: 25t | W15: 11t | X15: 12 | Y15: 1t | Z15: 103t | AA15: 33t | AC15: 1t | AD15: 7t | AE15: 0.16 | AF15: 0.6363636364 | AG15: 16 | AH15: 0.01 | AI15: 1 | AJ15: 1t | AK15: 0.11 | AL15: 0.7272727273 | AM15: 11t | AN15: 0.01 | AO15: 1 | AP15: 1t | AQ15: 0.33 | AR15: 0.8571428571 | AS15: 33t | AT15: 0.01 | AU15: 3.833333333 | AV15: 1t | AW15: 0.6 | AX15: 0.6 | AY15: 60t | AZ15: 0.25 | BA15: 0.3333333333 | BB15: 25t | BC15: 0.12 | BD15: 0.7804878049 | BE15: 12 | BF15: 71t | BG15: 0.6666666667 | BH15: 71t | BI15: 0 | BL15: 0.12 | BM15: 3.4 | BN15: 12t | CC15: 0.01 | CE15: 0.01
A16: 520 | B16: Bristol | C16: 0.5789473684 | D16: 0.75 | E16: 0.4210526316 | F16: 0.25 | G16: 0.1489361702 | H16: 0.1578947368 | I16: 0.0977443609 | J16: 0.09333333333 | K16: 0.7666666667 | L16: 0.6666666667 | M16: 0.7368421053 | N16: 0.6 | O16: 1.833333333 | P16: 1.833333333 | Q16: 46 | R16: 1t | S16: 97t | T16: 113t | U16: 45 | V16: 41 | W16: 122 | X16: 123 | Y16: 82 | Z16: 103t | AA16: 82 | AB16: 107 | AC16: 114t | AD16: 117t | AE16: 0.97 | AF16: 0.97 | AG16: 97t | AH16: 0.45 | AI16: 0.45 | AJ16: 45 | AK16: 1.22 | AL16: 1.22 | AM16: 122 | AN16: 0.82 | AO16: 0.82 | AP16: 82 | AQ16: 0.82 | AR16: 0.82 | AS16: 82 | AT16: 1.25 | AU16: 1.833333333 | AV16: 125t | AW16: 1.13 | AX16: 1.13 | AY16: 113t | AZ16: 0.41 | BA16: 0.41 | BB16: 41 | BC16: 1.23 | BD16: 1.23 | BE16: 123 | BF16: 115 | BG16: 115 | BH16: 115 | BI16: 1.07 | BJ16: 1.07 | BK16: 107 | BL16: 1.24 | BM16: 1.833333333 | BN16: 124t | CC16: 0.82 | CE16: 0.82
A17: 25 | B17: Brunswick | C17: 0.6666666667 | D17: 0.625 | E17: 0.6666666667 | F17: 0.75 | I17: 0.4210526316 | J17: 0.5238095238 | K17: 0.6666666667 | L17: 0.6666666667 | M17: 1 | O17: 3 | P17: 3.25 | Q17: 1t | R17: 108t | S17: 19t | T17: 80t | W17: 88 | X17: 63 | Y17: 100t | Z17: 103t | AA17: 1t | AC17: 29t | AD17: 122 | AE17: 0.19 | AF17: 0.6666666667 | AG17: 19t | AK17: 0.88 | AL17: 0.88 | AM17: 88 | AN17: 1 | AO17: 1 | AP17: 100t | AQ17: 0.01 | AR17: 1 | AS17: 1t | AT17: 0.55 | AU17: 3 | AV17: 55t | AW17: 0.8 | AX17: 0.8 | AY17: 80t | AZ17: 0 | BC17: 0.63 | BD17: 0.63 | BE17: 63 | BF17: 71t | BG17: 0.6666666667 | BH17: 71t | BI17: 0 | BL17: 1.06 | BM17: 3.25 | BN17: 106t | CC17: 1 | CE17: 1
A18: 27 | B18: Buchanan | C18: 0.4705882353 | D18: 0.3 | E18: 0.4117647059 | F18: 0.25 | G18: 0 | H18: 0 | I18: 0.2716049383 | J18: 0.08641975309 | K18: 0.7910447761 | L18: 0.7808219178 | M18: 0.8333333333 | N18: 0.7941176471 | O18: 1.5 | P18: 1.333333333 | Q18: 104 | R18: 90 | S18: 71t | T18: 91 | U18: 53t | V18: 54t | W18: 110 | X18: 125 | Y18: 78 | Z18: 73 | AA18: 45t | AB18: 71 | AC18: 121t | AD18: 128 | AE18: 0.71 | AF18: 0.71 | AG18: 71t | AH18: 0.53 | AI18: 0.53 | AJ18: 53t | AK18: 1.1 | AL18: 1.1 | AM18: 110 | AN18: 0.78 | AO18: 0.7910447761 | AP18: 78 | AQ18: 0.45 | AR18: 0.8333333333 | AS18: 45t | AT18: 1.17 | AU18: 1.5 | AV18: 117t | AW18: 0.91 | AX18: 0.91 | AY18: 91 | AZ18: 0.54 | BA18: 0.54 | BB18: 54t | BC18: 1.25 | BD18: 1.25 | BE18: 125 | BF18: 73 | BG18: 73 | BH18: 73 | BI18: 0.71 | BJ18: 0.7941176471 | BK18: 71 | BL18: 1.24 | BM18: 1.333333333 | BN18: 124t | CC18: 0.78 | CE18: 0.78
A19: 29 | B19: Buckingham | C19: 0.8571428571 | D19: 0.2727272727 | E19: 0.5714285714 | F19: 0.2727272727 | I19: 0.7101449275 | J19: 0.737704918 | K19: 0.8 | L19: 0.6363636364 | M19: 1 | O19: 3.8 | P19: 2 | Q19: 18t | R19: 70t | S19: 47t | T19: 103 | W19: 17 | X19: 15 | Y19: 72t | Z19: 115 | AA19: 1t | AC19: 4t | AD19: 69t | AE19: 0.47 | AF19: 0.5714285714 | AG19: 47t | AK19: 0.17 | AL19: 0.7101449275 | AM19: 17 | AN19: 0.72 | AO19: 0.8 | AP19: 72t | AQ19: 0.01 | AR19: 1 | AS19: 1t | AT19: 0.09 | AU19: 3.8 | AV19: 9t | AW19: 1.03 | AX19: 1.03 | AY19: 103 | AZ19: 0 | BC19: 0.15 | BD19: 0.737704918 | BE19: 15 | BF19: 74 | BG19: 74 | BH19: 74 | BI19: 0 | BL19: 0.64 | BM19: 2 | BN19: 64t | CC19: 0.72 | CE19: 0.72
A20: 530 | B20: Buena Vista | C20: 0.5 | D20: 0.6923076923 | E20: 0.8 | F20: 0.6923076923 | I20: 0.6976744186 | J20: 0.8333333333 | K20: 0.5789473684 | L20: 0.75 | M20: 0.8 | N20: 0.8 | O20: 2.8 | P20: 3.2 | Q20: 59t | R20: 48t | S20: 18 | T20: 25 | W20: 21 | X20: 6 | Y20: 114t | Z20: 81t | AA20: 60t | AB20: 57t | AC20: 48t | AD20: 28t | AE20: 0.18 | AF20: 0.8 | AG20: 18 | AK20: 0.21 | AL20: 0.6976744186 | AM20: 21 | AN20: 1.14 | AO20: 1.14 | AP20: 114t | AQ20: 0.6 | AR20: 0.8 | AS20: 60t | AT20: 0.26 | AU20: 2.8 | AV20: 26t | AW20: 0.25 | AX20: 0.6923076923 | AY20: 25 | AZ20: 0 | BC20: 0.06 | BD20: 0.8333333333 | BE20: 6 | BF20: 116 | BG20: 116 | BH20: 116 | BI20: 0.57 | BJ20: 0.8 | BK20: 57t | BL20: 0.3 | BM20: 3.2 | BN20: 30t | CC20: 1.14 | CE20: 1.14
A21: 31 | B21: Campbell | C21: 0.5151515152 | D21: 0.6071428571 | E21: 0.5454545455 | F21: 0.7142857143 | G21: 0 | H21: 0 | I21: 0.6467065868 | J21: 0.6538461538 | K21: 0.8333333333 | L21: 0.7105263158 | M21: 0.75 | N21: 0.7222222222 | O21: 2.666666667 | P21: 2.833333333 | Q21: 43 | R21: 31t | S21: 28 | T21: 16t | U21: 53t | V21: 54t | W21: 31 | X21: 27 | Y21: 57t | Z21: 93 | AA21: 77t | AB21: 88 | AC21: 29t | AD21: 28t | AE21: 0.28 | AF21: 0.5454545455 | AG21: 28 | AH21: 0.53 | AI21: 0.53 | AJ21: 53t | AK21: 0.31 | AL21: 0.6467065868 | AM21: 31 | AN21: 0.57 | AO21: 0.8333333333 | AP21: 57t | AQ21: 0.77 | AR21: 0.77 | AS21: 77t | AT21: 0.43 | AU21: 2.666666667 | AV21: 43t | AW21: 0.16 | AX21: 0.7142857143 | AY21: 16t | AZ21: 0.54 | BA21: 0.54 | BB21: 54t | BC21: 0.27 | BD21: 0.6538461538 | BE21: 27 | BF21: 75 | BG21: 75 | BH21: 75 | BI21: 0.88 | BJ21: 0.88 | BK21: 88 | BL21: 0.5 | BM21: 2.833333333 | BN21: 50t | CC21: 0.57 | CE21: 0.57
A22: 33 | B22: Caroline | C22: 0.6666666667 | D22: 0.6666666667 | E22: 0.3333333333 | F22: 0.25 | G22: 0 | I22: 0.4745762712 | J22: 0.4909090909 | K22: 0.7368421053 | L22: 0.7894736842 | M22: 0.7142857143 | N22: 1 | O22: 2 | P22: 2.6 | Q22: 84 | R22: 31t | S22: 117t | T22: 105t | U22: 53t | W22: 78 | X22: 76 | Y22: 87 | Z22: 70 | AA22: 88 | AB22: 1t | AC22: 126t | AD22: 64t | AE22: 1.17 | AF22: 1.17 | AG22: 117t | AH22: 0.53 | AI22: 0.53 | AJ22: 53t | AK22: 0.78 | AL22: 0.78 | AM22: 78 | AN22: 0.87 | AO22: 0.87 | AP22: 87 | AQ22: 0.88 | AR22: 0.88 | AS22: 88 | AT22: 1.22 | AU22: 2 | AV22: 122t | AW22: 1.05 | AX22: 1.05 | AY22: 105t | AZ22: 0 | BC22: 0.76 | BD22: 0.76 | BE22: 76 | BF22: 76 | BG22: 76 | BH22: 76 | BI22: 0.01 | BJ22: 1 | BK22: 1t | BL22: 0.91 | BM22: 2.6 | BN22: 91t | CC22: 0.87 | CE22: 0.87
A23: 35 | B23: Carroll | C23: 0.4888888889 | D23: 0.6046511628 | E23: 0.4222222222 | F23: 0.4651162791 | G23: 1 | H23: 1 | I23: 0.6639344262 | J23: 0.5338983051 | K23: 0.8846153846 | L23: 0.8048780488 | M23: 0.6875 | N23: 0.8 | O23: 2.833333333 | P23: 3 | Q23: 94 | R23: 29 | S23: 93 | T23: 58 | U23: 1t | V23: 1t | W23: 27 | X23: 60 | Y23: 38t | Z23: 66 | AA23: 91t | AB23: 57t | AC23: 55t | AD23: 15t | AE23: 0.93 | AF23: 0.93 | AG23: 93 | AH23: 0.01 | AI23: 1 | AJ23: 1t | AK23: 0.27 | AL23: 0.6639344262 | AM23: 27 | AN23: 0.38 | AO23: 0.8846153846 | AP23: 38t | AQ23: 0.91 | AR23: 0.91 | AS23: 91t | AT23: 0.26 | AU23: 2.833333333 | AV23: 26t | AW23: 0.58 | AX23: 0.58 | AY23: 58 | AZ23: 0.01 | BA23: 1 | BB23: 1t | BC23: 0.6 | BD23: 0.6 | BE23: 60 | BF23: 55 | BG23: 55 | BH23: 55 | BI23: 0.57 | BJ23: 0.8 | BK23: 57t | BL23: 0.22 | BM23: 3 | BN23: 22t | CC23: 0.38 | CE23: 0.38
A24: 36 | B24: Charles City | C24: 1 | D24: 0 | E24: 0 | F24: 0 | I24: 0.625 | J24: 0.8888888889 | O24: 3 | P24: 2 | Q24: 1t | R24: 108t | S24: 117t | T24: 113t | W24: 38t | X24: 1 | AC24: 29t | AD24: 104t | AE24: 1.17 | AF24: 1.17 | AG24: 117t | AK24: 0.38 | AL24: 0.625 | AM24: 38t | AN24: 0 | AS24: 0 | AT24: 0.76 | AU24: 3 | AV24: 76t | AW24: 1.13 | AX24: 1.13 | AY24: 113t | AZ24: 0 | BC24: 0.01 | BD24: 0.8888888889 | BE24: 1 | BI24: 0 | BL24: 0.73 | BM24: 2 | BN24: 73t | CC24: 0 | CE24: 0
A25: 37 | B25: Charlotte | C25: 0.2857142857 | D25: 0.25 | E25: 0.3571428571 | F25: 0.6875 | G25: 0 | H25: 0.1 | I25: 0.5842696629 | J25: 0.5405405405 | K25: 0.9259259259 | L25: 0.6875 | M25: 0.6666666667 | N25: 0.7142857143 | O25: 2.166666667 | P25: 2.166666667 | Q25: 106 | R25: 74t | S25: 101 | T25: 18t | U25: 53t | V25: 44t | W25: 44 | X25: 57t | Y25: 23 | Z25: 99t | AA25: 94t | AB25: 92t | AC25: 98t | AD25: 69t | AE25: 1.01 | AF25: 1.01 | AG25: 101 | AH25: 0.53 | AI25: 0.53 | AJ25: 53t | AK25: 0.44 | AL25: 0.5842696629 | AM25: 44 | AN25: 0.23 | AO25: 0.9259259259 | AP25: 23 | AQ25: 0.94 | AR25: 0.94 | AS25: 94t | AT25: 0.79 | AU25: 2.166666667 | AV25: 79t | AW25: 0.18 | AX25: 0.6875 | AY25: 18t | AZ25: 0.44 | BA25: 0.44 | BB25: 44t | BC25: 0.57 | BD25: 0.57 | BE25: 57t | BF25: 77 | BG25: 77 | BH25: 77 | BI25: 0.92 | BJ25: 0.92 | BK25: 92t | BL25: 0.5 | BM25: 2.166666667 | BN25: 50t | CC25: 0.23 | CE25: 0.23
A26: 540 | B26: Charlottesville | C26: 0.488372093 | D26: 0.5925925926 | E26: 0.4186046512 | F26: 0.3148148148 | G26: 0.2285714286 | H26: 0.2903225806 | I26: 0.5663430421 | J26: 0.5454545455 | K26: 0.7816091954 | L26: 0.9270833333 | M26: 0.6551724138 | N26: 0.6666666667 | O26: 2 | P26: 2.666666667 | Q26: 83 | R26: 96 | S26: 103t | T26: 98 | U26: 39 | V26: 34 | W26: 47 | X26: 55t | Y26: 79 | Z26: 21 | AA26: 98 | AB26: 102t | AC26: 114t | AD26: 117t | AE26: 1.03 | AF26: 1.03 | AG26: 103t | AH26: 0.39 | AI26: 0.39 | AJ26: 39 | AK26: 0.47 | AL26: 0.5663430421 | AM26: 47 | AN26: 0.79 | AO26: 0.79 | AP26: 79 | AQ26: 0.98 | AR26: 0.98 | AS26: 98 | AT26: 1.06 | AU26: 2 | AV26: 106t | AW26: 0.98 | AX26: 0.98 | AY26: 98 | AZ26: 0.34 | BA26: 0.34 | BB26: 34 | BC26: 0.55 | BD26: 0.55 | BE26: 55t | BF26: 35 | BG26: 35 | BH26: 35 | BI26: 1.02 | BJ26: 1.02 | BK26: 102t | BL26: 1.06 | BM26: 2.666666667 | BN26: 106t | CC26: 0.79 | CE26: 0.79
A27: 550 | B27: Chesapeake | C27: 0.5909090909 | D27: 0.5957446809 | E27: 0.6590909091 | F27: 0.5744680851 | G27: 0.2222222222 | H27: 0.3043478261 | I27: 0.5611510791 | J27: 0.4429530201 | K27: 0.8358208955 | L27: 0.8870967742 | M27: 0.4761904762 | N27: 0.8333333333 | O27: 3 | P27: 3 | Q27: 26 | R27: 102 | S27: 35 | T27: 49 | U27: 40t | V27: 32 | W27: 50 | X27: 91 | Y27: 56 | Z27: 37 | AA27: 115 | AB27: 43t | AC27: 29t | AD27: 100t | AE27: 0.35 | AF27: 0.6590909091 | AG27: 35 | AH27: 0.4 | AI27: 0.4 | AJ27: 40t | AK27: 0.5 | AL27: 0.5611510791 | AM27: 50 | AN27: 0.56 | AO27: 0.8358208955 | AP27: 56 | AQ27: 1.15 | AR27: 1.15 | AS27: 115 | AT27: 0.43 | AU27: 3 | AV27: 43t | AW27: 0.49 | AX27: 0.5744680851 | AY27: 49 | AZ27: 0.32 | BA27: 0.32 | BB27: 32 | BC27: 0.91 | BD27: 0.91 | BE27: 91 | BF27: 36 | BG27: 36 | BH27: 36 | BI27: 0.43 | BJ27: 0.8333333333 | BK27: 43t | BL27: 0.77 | BM27: 3 | BN27: 77t | CC27: 0.56 | CE27: 0.56
A28: 41 | B28: Chesterfield | C28: 0.5495495495 | D28: 0.5631067961 | E28: 0.4504504505 | F28: 0.4757281553 | G28: 0.1290322581 | H28: 0.1627906977 | I28: 0.5129032258 | J28: 0.5275362319 | K28: 0.8064516129 | L28: 0.7575757576 | M28: 0.8181818182 | N28: 0.8 | O28: 2.5 | P28: 2.333333333 | Q28: 53 | R28: 30 | S28: 74 | T28: 72 | U28: 46 | V28: 40 | W28: 65 | X28: 61 | Y28: 70t | Z28: 79t | AA28: 52t | AB28: 57t | AC28: 71t | AD28: 69t | AE28: 0.74 | AF28: 0.74 | AG28: 74 | AH28: 0.46 | AI28: 0.46 | AJ28: 46 | AK28: 0.65 | AL28: 0.65 | AM28: 65 | AN28: 0.7 | AO28: 0.8064516129 | AP28: 70t | AQ28: 0.52 | AR28: 0.8181818182 | AS28: 52t | AT28: 0.79 | AU28: 2.5 | AV28: 79t | AW28: 0.72 | AX28: 0.72 | AY28: 72 | AZ28: 0.4 | BA28: 0.4 | BB28: 40 | BC28: 0.61 | BD28: 0.61 | BE28: 61 | BF28: 78 | BG28: 78 | BH28: 78 | BI28: 0.57 | BJ28: 0.8 | BK28: 57t | BL28: 0.95 | BM28: 2.333333333 | BN28: 95t | CC28: 0.7 | CE28: 0.7
A29: 43 | B29: Clarke | C29: 0.3333333333 | D29: 0.8333333333 | E29: 0.3333333333 | F29: 0.8333333333 | I29: 0.4333333333 | J29: 0.5 | K29: 0.8888888889 | L29: 0.9090909091 | M29: 0.5 | N29: 1 | O29: 1.8 | P29: 3.6 | Q29: 108 | R29: 10t | S29: 105t | T29: 9 | W29: 85 | X29: 72t | Y29: 32t | Z29: 27t | AA29: 106t | AB29: 1t | AC29: 118t | AD29: 7t | AE29: 1.05 | AF29: 1.05 | AG29: 105t | AK29: 0.85 | AL29: 0.85 | AM29: 85 | AN29: 0.32 | AO29: 0.8888888889 | AP29: 32t | AQ29: 1.06 | AR29: 1.06 | AS29: 106t | AT29: 1.06 | AU29: 1.8 | AV29: 106t | AW29: 0.09 | AX29: 0.8333333333 | AY29: 9 | AZ29: 0 | BC29: 0.72 | BD29: 0.72 | BE29: 72t | BF29: 6 | BG29: 6 | BH29: 6 | BI29: 0.01 | BJ29: 1 | BK29: 1t | BL29: 0.12 | BM29: 3.6 | BN29: 12t | CC29: 0.32 | CE29: 0.32
A30: 570 | B30: Colonial Heights | C30: 0.6666666667 | D30: 1 | E30: 0.5 | F30: 0.5555555556 | I30: 0.625 | J30: 0.6333333333 | K30: 0.8064516129 | L30: 0.7575757576 | M30: 0.8181818182 | N30: 0.8 | O30: 3.4 | P30: 3.2 | Q30: 18t | R30: 7t | S30: 19t | T30: 105t | W30: 38t | X30: 30 | Y30: 70t | Z30: 79t | AA30: 52t | AB30: 57t | AC30: 4t | AD30: 52t | AE30: 0.19 | AF30: 0.5 | AG30: 19t | AK30: 0.38 | AL30: 0.625 | AM30: 38t | AN30: 0.7 | AO30: 0.8064516129 | AP30: 70t | AQ30: 0.52 | AR30: 0.8181818182 | AS30: 52t | AT30: 0.09 | AU30: 3.4 | AV30: 9t | AW30: 1.05 | AX30: 1.05 | AY30: 105t | AZ30: 0 | BC30: 0.3 | BD30: 0.6333333333 | BE30: 30 | BF30: 117 | BG30: 117 | BH30: 117 | BI30: 0.57 | BJ30: 0.8 | BK30: 57t | BL30: 0.73 | BM30: 3.2 | BN30: 73t | CC30: 0.7 | CE30: 0.7
A31: 580 | B31: Covington | C31: 0 | D31: 0.625 | E31: 0 | F31: 0.5 | I31: 0.7272727273 | J31: 0.8181818182 | K31: 0.3333333333 | L31: 0.7 | M31: 0.8333333333 | N31: 0.5 | O31: 2.2 | P31: 3 | R31: 1t | T31: 1t | W31: 11t | X31: 8 | Y31: 124t | Z31: 94t | AA31: 45t | AB31: 110t | AC31: 29t | AD31: 18t | AF31: 0 | AK31: 0.11 | AL31: 0.7272727273 | AM31: 11t | AN31: 1.24 | AO31: 1.24 | AP31: 124t | AQ31: 0.45 | AR31: 0.8333333333 | AS31: 45t | AT31: 0.26 | AU31: 2.2 | AV31: 26t | AW31: 0.01 | AX31: 0.5 | AY31: 1t | AZ31: 0 | BC31: 0.08 | BD31: 0.8181818182 | BE31: 8 | BF31: 118 | BG31: 118 | BH31: 118 | BI31: 1.1 | BJ31: 1.1 | BK31: 110t | BL31: 0.3 | BM31: 3 | BN31: 30t | CC31: 1.24 | CE31: 1.24
A32: 45 | B32: Craig | C32: 0.2857142857 | D32: 0 | E32: 0.5714285714 | F32: 0 | G32: 0.3333333333 | H32: 1 | I32: 0.71875 | J32: 0.6206896552 | K32: 0.8888888889 | L32: 1 | M32: 1 | N32: 0.25 | O32: 3.333333333 | P32: 2.666666667 | Q32: 117 | R32: 13t | S32: 32 | T32: 80t | U32: 33t | V32: 1t | W32: 15 | X32: 37 | Y32: 32t | Z32: 1t | AA32: 1t | AB32: 115t | AC32: 14t | AD32: 21t | AE32: 0.32 | AF32: 0.5714285714 | AG32: 32 | AH32: 0.33 | AI32: 0.3333333333 | AJ32: 33t | AK32: 0.15 | AL32: 0.71875 | AM32: 15 | AN32: 0.32 | AO32: 0.8888888889 | AP32: 32t | AQ32: 0.01 | AR32: 1 | AS32: 1t | AT32: 0.01 | AU32: 3.333333333 | AV32: 1t | AW32: 0.8 | AX32: 0.8 | AY32: 80t | AZ32: 0.01 | BA32: 1 | BB32: 1t | BC32: 0.37 | BD32: 0.6206896552 | BE32: 37 | BF32: 7 | BG32: 7 | BH32: 7 | BI32: 1.15 | BJ32: 1.15 | BK32: 115t | BL32: 0.3 | BM32: 2.666666667 | BN32: 30t | CC32: 0.32 | CE32: 0.32
A33: 47 | B33: Culpeper | C33: 0.3636363636 | D33: 0.6 | E33: 0.5454545455 | F33: 0.8 | G33: 0 | H33: 0 | I33: 0.6778242678 | J33: 0.6592920354 | K33: 0.6896551724 | L33: 0.5454545455 | M33: 0.8947368421 | N33: 0.8620689655 | O33: 2.666666667 | P33: 3.166666667 | Q33: 109t | R33: 15 | S33: 34 | T33: 10 | U33: 53t | V33: 54t | W33: 24 | X33: 26 | Y33: 96 | Z33: 118 | AA33: 27 | AB33: 34 | AC33: 55t | AD33: 21t | AE33: 0.34 | AF33: 0.5454545455 | AG33: 34 | AH33: 0.53 | AI33: 0.53 | AJ33: 53t | AK33: 0.24 | AL33: 0.6778242678 | AM33: 24 | AN33: 0.96 | AO33: 0.96 | AP33: 96 | AQ33: 0.27 | AR33: 0.8947368421 | AS33: 27 | AT33: 0.26 | AU33: 2.666666667 | AV33: 26t | AW33: 0.1 | AX33: 0.8 | AY33: 10 | AZ33: 0.54 | BA33: 0.54 | BB33: 54t | BC33: 0.26 | BD33: 0.6592920354 | BE33: 26 | BF33: 79 | BG33: 79 | BH33: 79 | BI33: 0.34 | BJ33: 0.8620689655 | BK33: 34 | BL33: 0.3 | BM33: 3.166666667 | BN33: 30t | CC33: 0.96 | CE33: 0.96
A34: 49 | B34: Cumberland | C34: 0.8 | D34: 0.6363636364 | E34: 0.7 | F34: 0.6363636364 | I34: 0.7142857143 | J34: 0.6285714286 | K34: 0.8333333333 | L34: 0.5 | M34: 1 | N34: 1 | O34: 3.8 | P34: 3.6 | Q34: 32t | R34: 103t | S34: 47t | T34: 104 | W34: 16 | X34: 33 | Y34: 57t | Z34: 119t | AA34: 1t | AB34: 1t | AC34: 4t | AD34: 64t | AE34: 0.47 | AF34: 0.7 | AG34: 47t | AK34: 0.16 | AL34: 0.7142857143 | AM34: 16 | AN34: 0.57 | AO34: 0.8333333333 | AP34: 57t | AQ34: 0.01 | AR34: 1 | AS34: 1t | AT34: 0.09 | AU34: 3.8 | AV34: 9t | AW34: 1.04 | AX34: 1.04 | AY34: 104 | AZ34: 0 | BC34: 0.33 | BD34: 0.6285714286 | BE34: 33 | BF34: 80t | BG34: 0.5 | BH34: 80t | BI34: 0.01 | BJ34: 1 | BK34: 1t | BL34: 0.3 | BM34: 3.6 | BN34: 30t | CC34: 0.57 | CE34: 0.57
A35: 590 | B35: Danville | C35: 0.5319148936 | D35: 0.5306122449 | E35: 0.4255319149 | F35: 0.4081632653 | G35: 0 | H35: 0 | I35: 0.5541401274 | J35: 0.5197368421 | K35: 0.6444444444 | L35: 0.7307692308 | M35: 0.5909090909 | N35: 0.5806451613 | O35: 2.166666667 | P35: 2 | Q35: 52 | R35: 28 | S35: 62 | T35: 59 | U35: 53t | V35: 54t | W35: 51 | X35: 65 | Y35: 104 | Z35: 88 | AA35: 102 | AB35: 108 | AC35: 71t | AD35: 69t | AE35: 0.62 | AF35: =IF(E35<>"",MAX(E35,AE35),"") -> 0.62 | AG35: 62 | AH35: 0.53 | AI35: =IF(G35<>"",MAX(G35,AH35),"") -> 0.53 | AJ35: 53t | AK35: 0.51 | AL35: =IF(I35<>"",MAX(I35,AK35),"") -> 0.5541401274 | AM35: 51 | AN35: 1.04 | AO35: =IF(K35<>"",MAX(K35,AN35),"") -> 1.04 | AP35: 104 | AQ35: 1.02 | AR35: =IF(M35<>"",MAX(M35,AQ35),"") -> 1.02 | AS35: 102 | AT35: 0.79 | AU35: =IF(O35<>"",MAX(O35,AT35),"") -> 2.166666667 | AV35: 79t | AW35: 0.59 | AX35: =IF(F35<>"",MAX(F35,AW35),"") -> 0.59 | AY35: 59 | AZ35: 0.54 | BA35: =IF(H35<>"",MAX(H35,AZ35),"") -> 0.54 | BB35: 54t | BC35: 0.65 | BD35: =IF(J35<>"",MAX(J35,BC35),"") -> 0.65 | BE35: 65 | BF35: 119 | BG35: =IF(L35<>"",MAX(L35,BF35),"") -> 119 | BH35: 119 | BI35: 1.08 | BJ35: =IF(N35<>"",MAX(N35,BI35),"") -> 1.08 | BK35: 108 | BL35: 0.95 | BM35: =IF(P35<>"",MAX(P35,BL35),"") -> 2 | BN35: 95t | CC35: 1.04 | CE35: 1.04
A36: 51 | B36: Dickenson | C36: 0.4571428571 | D36: 0.4722222222 | E36: 0.5142857143 | F36: 0.3888888889 | G36: 0 | H36: 0 | I36: 0.4895104895 | J36: 0.5801526718 | K36: 0.8985507246 | L36: 0.8723404255 | M36: 0.9642857143 | N36: 0.9433962264 | O36: 2.5 | P36: 2.666666667 | Q36: 107 | R36: 67t | S36: 70 | T36: 71 | U36: 53t | V36: 54t | W36: 73 | X36: 48 | Y36: 29 | Z36: 47 | AA36: 19 | AB36: 25 | AC36: 83t | AD36: 45t | AE36: 0.7 | AF36: 0.7 | AG36: 70 | AH36: 0.53 | AI36: 0.53 | AJ36: 53t | AK36: 0.73 | AL36: 0.73 | AM36: 73 | AN36: 0.29 | AO36: 0.8985507246 | AP36: 29 | AQ36: 0.19 | AR36: 0.9642857143 | AS36: 19 | AT36: 0.65 | AU36: 2.5 | AV36: 65t | AW36: 0.71 | AX36: 0.71 | AY36: 71 | AZ36: 0.54 | BA36: 0.54 | BB36: 54t | BC36: 0.48 | BD36: 0.5801526718 | BE36: 48 | BF36: 8 | BG36: 8 | BH36: 8 | BI36: 0.25 | BJ36: 0.9433962264 | BK36: 25 | BL36: 0.3 | BM36: 2.666666667 | BN36: 30t | CC36: 0.29 | CE36: 0.29
A37: 53 | B37: Dinwiddie | C37: 0.6666666667 | D37: 0.4666666667 | E37: 0.4761904762 | F37: 0.2 | G37: 0.25 | H37: 0.1428571429 | I37: 0.5208333333 | J37: 0.6 | K37: 0.8214285714 | L37: 0.9 | M37: 0.875 | N37: 0.8333333333 | O37: 2.833333333 | P37: 2.5 | Q37: 44 | R37: 48t | S37: 64 | T37: 50 | U37: 37 | V37: 42 | W37: 61 | X37: 42t | Y37: 63 | Z37: 29t | AA37: 29t | AB37: 43t | AC37: 29t | AD37: 45t | AE37: 0.64 | AF37: 0.64 | AG37: 64 | AH37: 0.37 | AI37: 0.37 | AJ37: 37 | AK37: 0.61 | AL37: 0.61 | AM37: 61 | AN37: 0.63 | AO37: 0.8214285714 | AP37: 63 | AQ37: 0.29 | AR37: 0.875 | AS37: 29t | AT37: 0.43 | AU37: 2.833333333 | AV37: 43t | AW37: 0.5 | AX37: 0.5 | AY37: 50 | AZ37: 0.42 | BA37: 0.42 | BB37: 42 | BC37: 0.42 | BD37: 0.6 | BE37: 42t | BF37: 9 | BG37: 9 | BH37: 9 | BI37: 0.43 | BJ37: 0.8333333333 | BK37: 43t | BL37: 0.5 | BM37: 2.5 | BN37: 50t | CC37: 0.63 | CE37: 0.63
A38: 57 | B38: Essex | C38: 0.5 | D38: 0.5 | E38: 1 | F38: 1 | I38: 0.3333333333 | J38: 0.6129032258 | K38: 0.6666666667 | L38: 0.5 | M38: 0.6 | N38: 0.2 | O38: 2.2 | P38: 3 | Q38: 119t | R38: 31t | S38: 47t | T38: 30t | W38: 101t | X38: 38 | Y38: 100t | Z38: 119t | AA38: 99t | AB38: 117 | AC38: 118t | AD38: 18t | AE38: 0.47 | AF38: 1 | AG38: 47t | AK38: 1.01 | AL38: 1.01 | AM38: 101t | AN38: 1 | AO38: 1 | AP38: 100t | AQ38: 0.99 | AR38: 0.99 | AS38: 99t | AT38: 1.06 | AU38: 2.2 | AV38: 106t | AW38: 0.3 | AX38: 1 | AY38: 30t | AZ38: 0 | BC38: 0.38 | BD38: 0.6129032258 | BE38: 38 | BF38: 80t | BG38: 0.5 | BH38: 80t | BI38: 1.17 | BJ38: 1.17 | BK38: 117 | BL38: 0.3 | BM38: 3 | BN38: 30t | CC38: 1 | CE38: 1
A39: 1300 | B39: Fairfax_Falls Church | C39: 0.474537037 | D39: 0.4219066937 | E39: 0.4976851852 | F39: 0.5050709939 | G39: 0.8612440191 | H39: 0.9292035398 | I39: 0.6736214605 | J39: 0.6784996651 | K39: 0.8684210526 | L39: 0.9244444444 | M39: 0.7699115044 | N39: 0.7047619048 | O39: 3.166666667 | P39: 3 | Q39: 75 | R39: 92 | S39: 46 | T39: 67 | U39: 14 | V39: 13 | W39: 25 | X39: 21 | Y39: 46 | Z39: 22 | AA39: 74 | AB39: 97 | AC39: 24t | AD39: 45t | AE39: 0.46 | AF39: 0.4976851852 | AG39: 46 | AH39: 0.14 | AI39: 0.8612440191 | AJ39: 14 | AK39: 0.25 | AL39: 0.6736214605 | AM39: 25 | AN39: 0.46 | AO39: 0.8684210526 | AP39: 46 | AQ39: 0.74 | AR39: 0.7699115044 | AS39: 74 | AT39: 0.14 | AU39: 3.166666667 | AV39: 14t | AW39: 0.67 | AX39: 0.67 | AY39: 67 | AZ39: 0.13 | BA39: 0.9292035398 | BB39: 13 | BC39: 0.21 | BD39: 0.6784996651 | BE39: 21 | BF39: 52 | BG39: 52 | BH39: 52 | BI39: 0.97 | BJ39: 0.97 | BK39: 97 | BL39: 0.22 | BM39: 3 | BN39: 22t | CC39: 0.46 | CE39: 0.46
A40: 61 | B40: Fauquier | C40: 0.4642857143 | D40: 0.4482758621 | E40: 0.5 | F40: 0.4827586207 | G40: 0.2142857143 | H40: 0.07142857143 | I40: 0.5277777778 | J40: 0.6096491228 | K40: 0.8 | L40: 0.7884615385 | M40: 0.8510638298 | N40: 0.8611111111 | O40: 2.333333333 | P40: 2.333333333 | Q40: 85 | R40: 46t | S40: 66t | T40: 46t | U40: 42 | V40: 47 | W40: 58 | X40: 39 | Y40: 72t | Z40: 71 | AA40: 40 | AB40: 35 | AC40: 83t | AD40: 28t | AE40: 0.66 | AF40: 0.66 | AG40: 66t | AH40: 0.42 | AI40: 0.42 | AJ40: 42 | AK40: 0.58 | AL40: 0.58 | AM40: 58 | AN40: 0.72 | AO40: 0.8 | AP40: 72t | AQ40: 0.4 | AR40: 0.8510638298 | AS40: 40 | AT40: 0.65 | AU40: 2.333333333 | AV40: 65t | AW40: 0.46 | AX40: 0.4827586207 | AY40: 46t | AZ40: 0.47 | BA40: 0.47 | BB40: 47 | BC40: 0.39 | BD40: 0.6096491228 | BE40: 39 | BF40: 82 | BG40: 82 | BH40: 82 | BI40: 0.35 | BJ40: 0.8611111111 | BK40: 35 | BL40: 0.3 | BM40: 2.333333333 | BN40: 30t | CC40: 0.72 | CE40: 0.72
A41: 63 | B41: Floyd | C41: 0.5 | D41: 0.5555555556 | E41: 0.5 | F41: 0.5555555556 | I41: 0.6 | J41: 0.6 | K41: 0.875 | L41: 0.875 | M41: 0.8333333333 | N41: 0.8 | O41: 3.2 | P41: 3.6 | Q41: 119t | R41: 83t | S41: 1t | T41: 80t | W41: 43 | X41: 42t | Y41: 42t | Z41: 43t | AA41: 45t | AB41: 57t | AC41: 20t | AD41: 81t | AE41: 0.01 | AF41: 0.5 | AG41: 1t | AK41: 0.43 | AL41: 0.6 | AM41: 43 | AN41: 0.42 | AO41: 0.875 | AP41: 42t | AQ41: 0.45 | AR41: 0.8333333333 | AS41: 45t | AT41: 0.06 | AU41: 3.2 | AV41: 6t | AW41: 0.8 | AX41: 0.8 | AY41: 80t | AZ41: 0 | BC41: 0.42 | BD41: 0.6 | BE41: 42t | BF41: 10 | BG41: 10 | BH41: 10 | BI41: 0.57 | BJ41: 0.8 | BK41: 57t | BL41: 0.6 | BM41: 3.6 | BN41: 60t | CC41: 0.42 | CE41: 0.42
A42: 65 | B42: Fluvanna | C42: 0.5555555556 | D42: 0.4482758621 | E42: 0.6666666667 | F42: 0.6206896552 | G42: 0 | H42: 0.04347826087 | I42: 0.8034188034 | J42: 0.7280701754 | K42: 0.8333333333 | L42: 0.7272727273 | M42: 0.8333333333 | N42: 0.8 | O42: 3 | P42: 2.333333333 | Q42: 58 | R42: 78t | S42: 39t | T42: 16t | U42: 53t | V42: 51 | W42: 4 | X42: 17 | Y42: 57t | Z42: 89t | AA42: 45t | AB42: 57t | AC42: 29t | AD42: 69t | AE42: 0.39 | AF42: 0.6666666667 | AG42: 39t | AH42: 0.53 | AI42: 0.53 | AJ42: 53t | AK42: 0.04 | AL42: 0.8034188034 | AM42: 4 | AN42: 0.57 | AO42: 0.8333333333 | AP42: 57t | AQ42: 0.45 | AR42: 0.8333333333 | AS42: 45t | AT42: 0.26 | AU42: 3 | AV42: 26t | AW42: 0.16 | AX42: 0.6206896552 | AY42: 16t | AZ42: 0.51 | BA42: 0.51 | BB42: 51 | BC42: 0.17 | BD42: 0.7280701754 | BE42: 17 | BF42: 83 | BG42: 83 | BH42: 83 | BI42: 0.57 | BJ42: 0.8 | BK42: 57t | BL42: 0.5 | BM42: 2.333333333 | BN42: 50t | CC42: 0.57 | CE42: 0.57
A43: 620 | B43: Franklin City | C43: 0.5 | E43: 1 | G43: 1 | I43: 0.2857142857 | J43: 0 | K43: 1 | L43: 1 | N43: 1 | O43: 3 | P43: 3 | Q43: 59t | S43: 1t | U43: 1t | W43: 107 | X43: 127t | Y43: 1t | Z43: 1t | AB43: 1t | AC43: 29t | AD43: 28t | AE43: 0.01 | AF43: 1 | AG43: 1t | AH43: 0.01 | AI43: 1 | AJ43: 1t | AK43: 1.07 | AL43: 1.07 | AM43: 107 | AN43: 0.01 | AO43: 1 | AP43: 1t | AS43: 0 | AT43: 0.18 | AU43: 3 | AV43: 18t | AW43: 0 | AZ43: 0 | BC43: 1.27 | BD43: 1.27 | BE43: 127t | BF43: 37 | BG43: 37 | BH43: 37 | BI43: 0.01 | BJ43: 1 | BK43: 1t | BL43: 0.3 | BM43: 3 | BN43: 30t | CC43: 0.01 | CE43: 0.01
A44: 67 | B44: Franklin County | C44: 0.4181818182 | D44: 0.5490196078 | E44: 0.3636363636 | F44: 0.568627451 | G44: 0.5555555556 | H44: 1 | I44: 0.6274509804 | J44: 0.6666666667 | K44: 0.8571428571 | L44: 0.8852459016 | M44: 0.8055555556 | N44: 0.7272727273 | O44: 2.666666667 | P44: 3.666666667 | Q44: 105 | R44: 81 | S44: 95 | T44: 92 | U44: 22 | V44: 1t | W44: 37 | X44: 23t | Y44: 48t | Z44: 38 | AA44: 59 | AB44: 86t | AC44: 55t | AD44: 56t | AE44: 0.95 | AF44: 0.95 | AG44: 95 | AH44: 0.22 | AI44: 0.5555555556 | AJ44: 22 | AK44: 0.37 | AL44: 0.6274509804 | AM44: 37 | AN44: 0.48 | AO44: 0.8571428571 | AP44: 48t | AQ44: 0.59 | AR44: 0.8055555556 | AS44: 59 | AT44: 0.26 | AU44: 2.666666667 | AV44: 26t | AW44: 0.92 | AX44: 0.92 | AY44: 92 | AZ44: 0.01 | BA44: 1 | BB44: 1t | BC44: 0.23 | BD44: 0.6666666667 | BE44: 23t | BF44: 11 | BG44: 11 | BH44: 11 | BI44: 0.86 | BJ44: 0.86 | BK44: 86t | BL44: 0.3 | BM44: 3.666666667 | BN44: 30t | CC44: 0.48 | CE44: 0.48
A45: 69 | B45: Frederick | C45: 0.5 | D45: 0.59375 | E45: 0.4642857143 | F45: 0.5 | G45: 0 | H45: 0 | I45: 0.4198473282 | J45: 0.4468085106 | K45: 0.8 | L45: 0.7333333333 | M45: 0.8611111111 | N45: 1 | O45: 2.166666667 | P45: 2.5 | Q45: 79 | R45: 18 | S45: 78t | T45: 66 | U45: 53t | V45: 54t | W45: 89 | X45: 89 | Y45: 72t | Z45: 87 | AA45: 32 | AB45: 1t | AC45: 98t | AD45: 69t | AE45: 0.78 | AF45: 0.78 | AG45: 78t | AH45: 0.53 | AI45: 0.53 | AJ45: 53t | AK45: 0.89 | AL45: 0.89 | AM45: 89 | AN45: 0.72 | AO45: 0.8 | AP45: 72t | AQ45: 0.32 | AR45: 0.8611111111 | AS45: 32 | AT45: 0.97 | AU45: 2.166666667 | AV45: 97t | AW45: 0.66 | AX45: 0.66 | AY45: 66 | AZ45: 0.54 | BA45: 0.54 | BB45: 54t | BC45: 0.89 | BD45: 0.89 | BE45: 89 | BF45: 84 | BG45: 84 | BH45: 84 | BI45: 0.01 | BJ45: 1 | BK45: 1t | BL45: 0.95 | BM45: 2.5 | BN45: 95t | CC45: 0.72 | CE45: 0.72
A46: 630 | B46: Fredericksburg | C46: 0.6470588235 | D46: 0.4705882353 | E46: 0.7058823529 | F46: 0.5294117647 | G46: 0.375 | H46: 0.1666666667 | I46: 0.5303030303 | J46: 0.5373134328 | K46: 0.875 | L46: 0.8947368421 | M46: 0.9130434783 | N46: 0.9473684211 | O46: 3.833333333 | P46: 2.833333333 | Q46: 39 | R46: 74t | S46: 10 | T46: 18t | U46: 30 | V46: 39 | W46: 57 | X46: 59 | Y46: 42t | Z46: 35 | AA46: 23 | AB46: 24 | AC46: 1t | AD46: 45t | AE46: 0.1 | AF46: 0.7058823529 | AG46: 10 | AH46: 0.3 | AI46: 0.375 | AJ46: 30 | AK46: 0.57 | AL46: 0.57 | AM46: 57 | AN46: 0.42 | AO46: 0.875 | AP46: 42t | AQ46: 0.23 | AR46: 0.9130434783 | AS46: 23 | AT46: 0.01 | AU46: 3.833333333 | AV46: 1t | AW46: 0.18 | AX46: 0.5294117647 | AY46: 18t | AZ46: 0.39 | BA46: 0.39 | BB46: 39 | BC46: 0.59 | BD46: 0.59 | BE46: 59 | BF46: 38 | BG46: 38 | BH46: 38 | BI46: 0.24 | BJ46: 0.9473684211 | BK46: 24 | BL46: 0.22 | BM46: 2.833333333 | BN46: 22t | CC46: 0.42 | CE46: 0.42
A47: 640 | B47: Galax | C47: 0.3571428571 | D47: 0.4285714286 | E47: 0.2857142857 | F47: 0.2857142857 | I47: 0.9411764706 | J47: 0.7843137255 | K47: 1 | L47: 0.8 | M47: 0.6666666667 | N47: 1 | O47: 2.4 | P47: 2.6 | Q47: 88 | R47: 70t | S47: 78t | T47: 30t | W47: 1 | X47: 11 | Y47: 1t | Z47: 67 | AA47: 94t | AB47: 1t | AC47: 68t | AD47: 7t | AE47: 0.78 | AF47: 0.78 | AG47: 78t | AK47: 0.01 | AL47: 0.9411764706 | AM47: 1 | AN47: 0.01 | AO47: 1 | AP47: 1t | AQ47: 0.94 | AR47: 0.94 | AS47: 94t | AT47: 0.26 | AU47: 2.4 | AV47: 26t | AW47: 0.3 | AX47: 0.3 | AY47: 30t | AZ47: 0 | BC47: 0.11 | BD47: 0.7843137255 | BE47: 11 | BF47: 62 | BG47: 62 | BH47: 62 | BI47: 0.01 | BJ47: 1 | BK47: 1t | BL47: 0.01 | BM47: 2.6 | BN47: 1t | CC47: 0.01 | CE47: 0.01
A48: 71 | B48: Giles | C48: 0.6 | D48: 0.6333333333 | E48: 0.4 | F48: 0.5 | H48: 0 | I48: 0.2933333333 | J48: 0.3571428571 | K48: 0.8857142857 | L48: 0.8139534884 | M48: 0.9166666667 | N48: 0.8518518519 | O48: 2.8 | P48: 2.5 | Q48: 14t | R48: 12 | S48: 66t | T48: 51 | V48: 54t | W48: 106 | X48: 100t | Y48: 37 | Z48: 64 | AA48: 22 | AB48: 39 | AC48: 20t | AD48: 56t | AE48: 0.66 | AF48: 0.66 | AG48: 66t | AK48: 1.06 | AL48: 1.06 | AM48: 106 | AN48: 0.37 | AO48: 0.8857142857 | AP48: 37 | AQ48: 0.22 | AR48: 0.9166666667 | AS48: 22 | AT48: 0.26 | AU48: 2.8 | AV48: 26t | AW48: 0.51 | AX48: 0.51 | AY48: 51 | AZ48: 0.54 | BA48: 0.54 | BB48: 54t | BC48: 1 | BD48: 1 | BE48: 100t | BF48: 56 | BG48: 56 | BH48: 56 | BI48: 0.39 | BJ48: 0.8518518519 | BK48: 39 | BL48: 0.77 | BM48: 2.5 | BN48: 77t | CC48: 0.37 | CE48: 0.37
A49: 73 | B49: Gloucester | C49: 0.3333333333 | D49: 0.4 | E49: 0.6111111111 | F49: 0.35 | I49: 0.2549019608 | J49: 0.2037037037 | K49: 0.8333333333 | L49: 0.8846153846 | M49: 0.8421052632 | N49: 0.75 | O49: 2.4 | P49: 1.8 | Q49: 109t | R49: 97t | S49: 26t | T49: 99t | W49: 114 | X49: 116 | Y49: 57t | Z49: 39 | AA49: 44 | AB49: 77t | AC49: 80t | AD49: 124 | AE49: 0.26 | AF49: 0.6111111111 | AG49: 26t | AK49: 1.14 | AL49: 1.14 | AM49: 114 | AN49: 0.57 | AO49: 0.8333333333 | AP49: 57t | AQ49: 0.44 | AR49: 0.8421052632 | AS49: 44 | AT49: 0.55 | AU49: 2.4 | AV49: 55t | AW49: 0.99 | AX49: 0.99 | AY49: 99t | AZ49: 0 | BC49: 1.16 | BD49: 1.16 | BE49: 116 | BF49: 12 | BG49: 12 | BH49: 12 | BI49: 0.77 | BJ49: 0.77 | BK49: 77t | BL49: 1.2 | BM49: 1.8 | BN49: 120 | CC49: 0.57 | CE49: 0.57
A50: 75 | B50: Goochland | C50: 0.2857142857 | D50: 0.7142857143 | E50: 0.3571428571 | F50: 0.5714285714 | G50: 0 | H50: 0.09090909091 | I50: 0.325 | J50: 0.2888888889 | K50: 0.6 | L50: 0.6666666667 | M50: 0.6666666667 | N50: 0.8181818182 | O50: 1.333333333 | P50: 2.5 | Q50: 111 | R50: 7t | S50: 109 | T50: 105t | U50: 53t | V50: 46 | W50: 104 | X50: 105 | Y50: 111t | Z50: 103t | AA50: 94t | AB50: 50 | AC50: 128 | AD50: 104t | AE50: 1.09 | AF50: 1.09 | AG50: 109 | AH50: 0.53 | AI50: 0.53 | AJ50: 53t | AK50: 1.04 | AL50: 1.04 | AM50: 104 | AN50: 1.11 | AO50: 1.11 | AP50: 111t | AQ50: 0.94 | AR50: 0.94 | AS50: 94t | AT50: 1.25 | AU50: 1.333333333 | AV50: 125t | AW50: 1.05 | AX50: 1.05 | AY50: 105t | AZ50: 0.46 | BA50: 0.46 | BB50: 46 | BC50: 1.05 | BD50: 1.05 | BE50: 105 | BF50: 85 | BG50: 85 | BH50: 85 | BI50: 0.5 | BJ50: 0.8181818182 | BK50: 50 | BL50: 1.21 | BM50: 2.5 | BN50: 121t | CC50: 1.11 | CE50: 1.11
A51: 77 | B51: Grayson | C51: 0.4583333333 | D51: 0.2142857143 | E51: 0.5833333333 | F51: 0.2857142857 | I51: 0.6440677966 | J51: 0.6326530612 | K51: 0.9444444444 | L51: 0.9 | M51: 0.5714285714 | N51: 0.8333333333 | O51: 3 | P51: 2.6 | Q51: 86 | R51: 97t | S51: 42 | T51: 99t | W51: 32 | X51: 31 | Y51: 20 | Z51: 29t | AA51: 103t | AB51: 43t | AC51: 29t | AD51: 64t | AE51: 0.42 | AF51: 0.5833333333 | AG51: 42 | AK51: 0.32 | AL51: 0.6440677966 | AM51: 32 | AN51: 0.2 | AO51: 0.9444444444 | AP51: 20 | AQ51: 1.03 | AR51: 1.03 | AS51: 103t | AT51: 0.09 | AU51: 3 | AV51: 9t | AW51: 0.99 | AX51: 0.99 | AY51: 99t | AZ51: 0 | BC51: 0.31 | BD51: 0.6326530612 | BE51: 31 | BF51: 13 | BG51: 13 | BH51: 13 | BI51: 0.43 | BJ51: 0.8333333333 | BK51: 43t | BL51: 0.3 | BM51: 2.6 | BN51: 30t | CC51: 0.2 | CE51: 0.2
A52: 79 | B52: Greene | C52: 0.7 | D52: 0.4375 | E52: 0.55 | F52: 0.5625 | H52: 0 | I52: 0.525 | J52: 0.511627907 | K52: 0.7272727273 | L52: 0.6923076923 | M52: 0.5 | N52: 0.7777777778 | O52: 3 | P52: 2.166666667 | Q52: 32t | R52: 83t | S52: 47t | T52: 60t | V52: 54t | W52: 59 | X52: 67 | Y52: 88t | Z52: 98 | AA52: 106t | AB52: 75 | AC52: 48t | AD52: 104t | AE52: 0.47 | AF52: 0.55 | AG52: 47t | AK52: 0.59 | AL52: 0.59 | AM52: 59 | AN52: 0.88 | AO52: 0.88 | AP52: 88t | AQ52: 1.06 | AR52: 1.06 | AS52: 106t | AT52: 0.76 | AU52: 3 | AV52: 76t | AW52: 0.6 | AX52: 0.6 | AY52: 60t | AZ52: 0.54 | BA52: 0.54 | BB52: 54t | BC52: 0.67 | BD52: 0.67 | BE52: 67 | BF52: 86 | BG52: 86 | BH52: 86 | BI52: 0.75 | BJ52: 0.7777777778 | BK52: 75 | BL52: 0.95 | BM52: 2.166666667 | BN52: 95t | CC52: 0.88 | CE52: 0.88
A53: 1200 | B53: Greensville_Emporia | C53: 0.6666666667 | D53: 0 | E53: 0.3333333333 | F53: 0 | I53: 0.4827586207 | J53: 0.4545454545 | K53: 1 | L53: 1 | M53: 0.5 | N53: 0.6666666667 | O53: 2.6 | P53: 1.8 | Q53: 59t | S53: 47t | W53: 75t | X53: 86t | Y53: 1t | Z53: 1t | AA53: 106t | AB53: 102t | AC53: 68t | AD53: 86t | AE53: 0.47 | AF53: 0.47 | AG53: 47t | AK53: 0.75 | AL53: 0.75 | AM53: 75t | AN53: 0.01 | AO53: 1 | AP53: 1t | AQ53: 1.06 | AR53: 1.06 | AS53: 106t | AT53: 0.55 | AU53: 2.6 | AV53: 55t | AW53: 0 | AX53: 0 | AZ53: 0 | BC53: 0.86 | BD53: 0.86 | BE53: 86t | BF53: 51 | BG53: 51 | BH53: 51 | BI53: 1.02 | BJ53: 1.02 | BK53: 102t | BL53: 0.86 | BM53: 1.8 | BN53: 86t | CC53: 0.01 | CE53: 0.01
A54: 83 | B54: Halifax | C54: 0.4117647059 | D54: 0.7272727273 | E54: 0.5294117647 | F54: 0.3636363636 | G54: 0 | H54: 0 | I54: 0.6354166667 | J54: 0.6095238095 | K54: 0.6428571429 | L54: 0.6875 | M54: 0.75 | N54: 0.5555555556 | O54: 2.166666667 | P54: 2.333333333 | Q54: 76t | R54: 83t | S54: 29 | T54: 11t | U54: 53t | V54: 54t | W54: 34 | X54: 40 | Y54: 105 | Z54: 99t | AA54: 77t | AB54: 109 | AC54: 71t | AD54: 86t | AE54: 0.29 | AF54: 0.5294117647 | AG54: 29 | AH54: 0.53 | AI54: 0.53 | AJ54: 53t | AK54: 0.34 | AL54: 0.6354166667 | AM54: 34 | AN54: 1.05 | AO54: 1.05 | AP54: 105 | AQ54: 0.77 | AR54: 0.77 | AS54: 77t | AT54: 0.65 | AU54: 2.166666667 | AV54: 65t | AW54: 0.11 | AX54: 0.3636363636 | AY54: 11t | AZ54: 0.54 | BA54: 0.54 | BB54: 54t | BC54: 0.4 | BD54: 0.6095238095 | BE54: 40 | BF54: 87 | BG54: 87 | BH54: 87 | BI54: 1.09 | BJ54: 1.09 | BK54: 109 | BL54: 0.66 | BM54: 2.333333333 | BN54: 66t | CC54: 1.05 | CE54: 1.05
A55: 650 | B55: Hampton | C55: 0.4047619048 | D55: 0.5573770492 | E55: 0.5 | F55: 0.5573770492 | G55: 1 | H55: 1 | I55: 0.8403846154 | J55: 0.8203592814 | K55: 0.9636363636 | L55: 0.96 | M55: 0.7575757576 | N55: 0.6153846154 | O55: 3 | P55: 3.666666667 | Q55: 71 | R55: 16 | S55: 39t | T55: 63 | U55: 1t | V55: 1t | W55: 3 | X55: 7 | Y55: 18 | Z55: 16 | AA55: 76 | AB55: 106 | AC55: 14t | AD55: 11 | AE55: 0.39 | AF55: 0.5 | AG55: 39t | AH55: 0.01 | AI55: 1 | AJ55: 1t | AK55: 0.03 | AL55: 0.8403846154 | AM55: 3 | AN55: 0.18 | AO55: 0.9636363636 | AP55: 18 | AQ55: 0.76 | AR55: 0.76 | AS55: 76 | AT55: 0.08 | AU55: 3 | AV55: 8 | AW55: 0.63 | AX55: 0.63 | AY55: 63 | AZ55: 0.01 | BA55: 1 | BB55: 1t | BC55: 0.07 | BD55: 0.8203592814 | BE55: 7 | BF55: 39 | BG55: 39 | BH55: 39 | BI55: 1.06 | BJ55: 1.06 | BK55: 106 | BL55: 0.14 | BM55: 3.666666667 | BN55: 14t | CC55: 0.18 | CE55: 0.18
A56: 85 | B56: Hanover | C56: 0.6 | D56: 0.6744186047 | E56: 0.6 | F56: 0.5813953488 | G56: 0.04545454545 | H56: 0.2142857143 | I56: 0.5819672131 | J56: 0.6218487395 | K56: 0.8148148148 | L56: 0.7777777778 | M56: 0.5 | N56: 0.8571428571 | O56: 3 | P56: 3 | Q56: 41 | R56: 31t | S56: 25 | T56: 30t | U56: 51 | V56: 37 | W56: 45 | X56: 36 | Y56: 64 | Z56: 74 | AA56: 106t | AB56: 36t | AC56: 29t | AD56: 21t | AE56: 0.25 | AF56: 0.6 | AG56: 25 | AH56: 0.51 | AI56: 0.51 | AJ56: 51 | AK56: 0.45 | AL56: 0.5819672131 | AM56: 45 | AN56: 0.64 | AO56: 0.8148148148 | AP56: 64 | AQ56: 1.06 | AR56: 1.06 | AS56: 106t | AT56: 0.43 | AU56: 3 | AV56: 43t | AW56: 0.3 | AX56: 0.5813953488 | AY56: 30t | AZ56: 0.37 | BA56: 0.37 | BB56: 37 | BC56: 0.36 | BD56: 0.6218487395 | BE56: 36 | BF56: 88 | BG56: 88 | BH56: 88 | BI56: 0.36 | BJ56: 0.8571428571 | BK56: 36t | BL56: 0.3 | BM56: 3 | BN56: 30t | CC56: 0.64 | CE56: 0.64
A57: 660 | B57: Harrisonburg | C57: 0.5 | D57: 0.4814814815 | E57: 0.35 | F57: 0.3333333333 | G57: 0.4761904762 | H57: 0.2962962963 | I57: 0.4046242775 | J57: 0.40625 | K57: 0.8116883117 | L57: 0.7961783439 | M57: 0.7926829268 | N57: 0.7205882353 | O57: 2.166666667 | P57: 1.666666667 | Q57: 96t | R57: 50t | S57: 103t | T57: 90 | U57: 27 | V57: 33 | W57: 92 | X57: 93 | Y57: 66t | Z57: 68t | AA57: 67t | AB57: 89t | AC57: 104t | AD57: 104t | AE57: 1.03 | AF57: 1.03 | AG57: 103t | AH57: 0.27 | AI57: 0.4761904762 | AJ57: 27 | AK57: 0.92 | AL57: 0.92 | AM57: 92 | AN57: 0.66 | AO57: 0.8116883117 | AP57: 66t | AQ57: 0.67 | AR57: 0.7926829268 | AS57: 67t | AT57: 0.97 | AU57: 2.166666667 | AV57: 97t | AW57: 0.9 | AX57: 0.9 | AY57: 90 | AZ57: 0.33 | BA57: 0.33 | BB57: 33 | BC57: 0.93 | BD57: 0.93 | BE57: 93 | BF57: 120 | BG57: 120 | BH57: 120 | BI57: 0.89 | BJ57: 0.89 | BK57: 89t | BL57: 1.18 | BM57: 1.666666667 | BN57: 118t | CC57: 0.66 | CE57: 0.66
A58: 87 | B58: Henrico | C58: 0.4375 | D58: 0.4406779661 | E58: 0.475 | F58: 0.5254237288 | G58: 0.9473684211 | H58: 0.7666666667 | I58: 0.6347150259 | J58: 0.6223958333 | K58: 0.7522123894 | L58: 0.6960784314 | M58: 0.6875 | N58: 0.8076923077 | O58: 2.5 | P58: 2.666666667 | Q58: 92t | R58: 67t | S58: 76 | T58: 28 | U58: 13 | V58: 17 | W58: 35 | X58: 35 | Y58: 84 | Z58: 97 | AA58: 91t | AB58: 53t | AC58: 71t | AD58: 28t | AE58: 0.76 | AF58: 0.76 | AG58: 76 | AH58: 0.13 | AI58: 0.9473684211 | AJ58: 13 | AK58: 0.35 | AL58: 0.6347150259 | AM58: 35 | AN58: 0.84 | AO58: 0.84 | AP58: 84 | AQ58: 0.91 | AR58: 0.91 | AS58: 91t | AT58: 0.43 | AU58: 2.5 | AV58: 43t | AW58: 0.28 | AX58: 0.5254237288 | AY58: 28 | AZ58: 0.17 | BA58: 0.7666666667 | BB58: 17 | BC58: 0.35 | BD58: 0.6223958333 | BE58: 35 | BF58: 89 | BG58: 89 | BH58: 89 | BI58: 0.53 | BJ58: 0.8076923077 | BK58: 53t | BL58: 0.22 | BM58: 2.666666667 | BN58: 22t | CC58: 0.84 | CE58: 0.84
A59: 89 | B59: Henry | C59: 0.4705882353 | D59: 0.4230769231 | E59: 0.3725490196 | F59: 0.3846153846 | G59: 0 | I59: 0.4765625 | J59: 0.2372881356 | K59: 0.825 | L59: 0.8235294118 | M59: 0.9069767442 | N59: 0.88 | O59: 2 | P59: 2 | Q59: 87 | R59: 80 | S59: 99 | T59: 78 | U59: 53t | W59: 77 | X59: 112 | Y59: 61t | Z59: 60t | AA59: 24t | AB59: 30t | AC59: 104t | AD59: 104t | AE59: 0.99 | AF59: 0.99 | AG59: 99 | AH59: 0.53 | AI59: 0.53 | AJ59: 53t | AK59: 0.77 | AL59: 0.77 | AM59: 77 | AN59: 0.61 | AO59: 0.825 | AP59: 61t | AQ59: 0.24 | AR59: 0.9069767442 | AS59: 24t | AT59: 0.97 | AU59: 2 | AV59: 97t | AW59: 0.78 | AX59: 0.78 | AY59: 78 | AZ59: 0 | BC59: 1.12 | BD59: 1.12 | BE59: 112 | BF59: 57 | BG59: 57 | BH59: 57 | BI59: 0.3 | BJ59: 0.88 | BK59: 30t | BL59: 0.91 | BM59: 2 | BN59: 91t | CC59: 0.61 | CE59: 0.61
A60: 91 | B60: Highland | I60: 0 | J60: 0 | L60: 1 | O60: 1 | P60: 2.5 | W60: 129t | X60: 127t | Z60: 1t | AC60: 130 | AD60: 130 | AK60: 1.29 | AL60: 1.29 | AM60: 129t | AN60: 0 | AS60: 0 | AT60: 1.3 | AU60: 1.3 | AV60: 130 | AW60: 0 | AZ60: 0 | BC60: 1.27 | BD60: 1.27 | BE60: 127t | BF60: 14t | BG60: 1 | BH60: 14t | BI60: 0 | BL60: 1.29 | BM60: 2.5 | BN60: 129t | CC60: 0 | CE60: 0
A61: 670 | B61: Hopewell | C61: 0.6 | D61: 0.75 | E61: 0.4 | F61: 0.375 | G61: 0 | I61: 0.7441860465 | J61: 0.7698412698 | K61: 0.8095238095 | L61: 0.85 | M61: 0.7692307692 | N61: 0.75 | O61: 2.5 | P61: 3 | Q61: 29 | R61: 31t | S61: 77 | T61: 30t | U61: 53t | W61: 7 | X61: 14 | Y61: 69 | Z61: 52 | AA61: 75 | AB61: 77t | AC61: 55t | AD61: 12t | AE61: 0.77 | AF61: 0.77 | AG61: 77 | AH61: 0.53 | AI61: 0.53 | AJ61: 53t | AK61: 0.07 | AL61: 0.7441860465 | AM61: 7 | AN61: 0.69 | AO61: 0.8095238095 | AP61: 69 | AQ61: 0.75 | AR61: 0.7692307692 | AS61: 75 | AT61: 0.79 | AU61: 2.5 | AV61: 79t | AW61: 0.3 | AX61: 0.375 | AY61: 30t | AZ61: 0 | BC61: 0.14 | BD61: 0.7698412698 | BE61: 14 | BF61: 40 | BG61: 40 | BH61: 40 | BI61: 0.77 | BJ61: 0.77 | BK61: 77t | BL61: 0.18 | BM61: 3 | BN61: 18t | CC61: 0.69 | CE61: 0.69
A62: 93 | B62: Isle of Wight | C62: 1 | D62: 0.375 | E62: 1 | F62: 0.375 | H62: 0.3333333333 | I62: 0.08333333333 | J62: 0 | K62: 1 | L62: 0.6 | M62: 1 | N62: 1 | O62: 3.4 | P62: 2 | Q62: 8 | R62: 94 | S62: 1t | T62: 94t | V62: 25t | W62: 125t | X62: 127t | Y62: 1t | Z62: 116 | AA62: 1t | AB62: 1t | AC62: 9t | AD62: 86t | AE62: 0.01 | AF62: 1 | AG62: 1t | AK62: 1.25 | AL62: 1.25 | AM62: 125t | AN62: 0.01 | AO62: 1 | AP62: 1t | AQ62: 0.01 | AR62: 1 | AS62: 1t | AT62: 0.18 | AU62: 3.4 | AV62: 18t | AW62: 0.94 | AX62: 0.94 | AY62: 94t | AZ62: 0.25 | BA62: 0.3333333333 | BB62: 25t | BC62: 1.27 | BD62: 1.27 | BE62: 127t | BF62: 90 | BG62: 90 | BH62: 90 | BI62: 0.01 | BJ62: 1 | BK62: 1t | BL62: 0.66 | BM62: 2 | BN62: 66t | CC62: 0.01 | CE62: 0.01
A63: 95 | B63: James City | C63: 0.5 | D63: 0.65 | E63: 0.875 | F63: 0.7 | G63: 0.2857142857 | I63: 0.5192307692 | J63: 0.6470588235 | K63: 1 | L63: 1 | M63: 1 | N63: 1 | O63: 3.166666667 | P63: 4 | Q63: 101t | R63: 69 | S63: 11 | T63: 27 | U63: 35 | W63: 62 | X63: 28 | Y63: 1t | Z63: 1t | AA63: 1t | AB63: 1t | AC63: 29t | AD63: 7t | AE63: 0.11 | AF63: 0.875 | AG63: 11 | AH63: 0.35 | AI63: 0.35 | AJ63: 35 | AK63: 0.62 | AL63: 0.62 | AM63: 62 | AN63: 0.01 | AO63: 1 | AP63: 1t | AQ63: 0.01 | AR63: 1 | AS63: 1t | AT63: 0.14 | AU63: 3.166666667 | AV63: 14t | AW63: 0.27 | AX63: 0.7 | AY63: 27 | AZ63: 0 | BC63: 0.28 | BD63: 0.6470588235 | BE63: 28 | BF63: 14t | BG63: 1 | BH63: 14t | BI63: 0.01 | BJ63: 1 | BK63: 1t | BL63: 0.01 | BM63: 4 | BN63: 1t | CC63: 0.01 | CE63: 0.01
A64: 97 | B64: King & Queen | C64: 0.8333333333 | E64: 0.5 | H64: 1 | I64: 0.5 | J64: 0.5 | K64: 0.8 | L64: 0.6666666667 | O64: 3 | P64: 2.666666667 | Q64: 9 | S64: 47t | V64: 1t | W64: 69t | X64: 72t | Y64: 72t | Z64: 103t | AC64: 29t | AD64: 28t | AE64: 0.47 | AF64: 0.5 | AG64: 47t | AK64: 0.69 | AL64: 0.69 | AM64: 69t | AN64: 0.72 | AO64: 0.8 | AP64: 72t | AS64: 0 | AT64: 0.62 | AU64: 3 | AV64: 62t | AW64: 0 | AZ64: 0.01 | BA64: 1 | BB64: 1t | BC64: 0.72 | BD64: 0.72 | BE64: 72t | BF64: 91 | BG64: 91 | BH64: 91 | BI64: 0 | BL64: 0.3 | BM64: 2.666666667 | BN64: 30t | CC64: 0.72 | CE64: 0.72
A65: 99 | B65: King George | C65: 0.6842105263 | D65: 0.4705882353 | E65: 0.4736842105 | F65: 0.2352941176 | G65: 0 | H65: 0 | I65: 0.6896551724 | J65: 0.5490196078 | K65: 0.75 | L65: 0.9375 | M65: 0.5 | N65: 0.5 | O65: 2.5 | P65: 2.333333333 | Q65: 14t | R65: 103t | S65: 66t | T65: 113t | U65: 53t | V65: 54t | W65: 22 | X65: 51t | Y65: 85t | Z65: 18 | AA65: 106t | AB65: 110t | AC65: 55t | AD65: 117t | AE65: 0.66 | AF65: 0.66 | AG65: 66t | AH65: 0.53 | AI65: 0.53 | AJ65: 53t | AK65: 0.22 | AL65: 0.6896551724 | AM65: 22 | AN65: 0.85 | AO65: 0.85 | AP65: 85t | AQ65: 1.06 | AR65: 1.06 | AS65: 106t | AT65: 0.79 | AU65: 2.5 | AV65: 79t | AW65: 1.13 | AX65: 1.13 | AY65: 113t | AZ65: 0.54 | BA65: 0.54 | BB65: 54t | BC65: 0.51 | BD65: 0.5490196078 | BE65: 51t | BF65: 16 | BG65: 16 | BH65: 16 | BI65: 1.1 | BJ65: 1.1 | BK65: 110t | BL65: 1.06 | BM65: 2.333333333 | BN65: 106t | CC65: 0.85 | CE65: 0.85
A66: 101 | B66: King William | C66: 0.5 | D66: 0.5 | E66: 0.625 | F66: 0.75 | G66: 1 | H66: 1 | I66: 0.625 | J66: 0.6315789474 | K66: 0.6 | L66: 0.75 | N66: 1 | O66: 3.2 | P66: 3.5 | Q66: 101t | R66: 1t | S66: 97t | T66: 30t | U66: 1t | V66: 1t | W66: 38t | X66: 32 | Y66: 111t | Z66: 81t | AB66: 1t | AC66: 80t | AD66: 3t | AE66: 0.97 | AF66: 0.97 | AG66: 97t | AH66: 0.01 | AI66: 1 | AJ66: 1t | AK66: 0.38 | AL66: 0.625 | AM66: 38t | AN66: 1.11 | AO66: 1.11 | AP66: 111t | AS66: 0 | AT66: 0.55 | AU66: 3.2 | AV66: 55t | AW66: 0.3 | AX66: 0.75 | AY66: 30t | AZ66: 0.01 | BA66: 1 | BB66: 1t | BC66: 0.32 | BD66: 0.6315789474 | BE66: 32 | BF66: 92 | BG66: 92 | BH66: 92 | BI66: 0.01 | BJ66: 1 | BK66: 1t | BL66: 0.08 | BM66: 3.5 | BN66: 8t | CC66: 1.11 | CE66: 1.11
A67: 103 | B67: Lancaster | C67: 0 | E67: 0 | G67: 0 | H67: 0 | I67: 0.2941176471 | J67: 0.4 | K67: 0.625 | L67: 0.5 | M67: 0.8571428571 | N67: 0.5 | O67: 1.5 | P67: 1.5 | U67: 53t | V67: 54t | W67: 105 | X67: 95t | Y67: 107t | Z67: 119t | AA67: 33t | AB67: 110t | AC67: 120 | AD67: 125t | AF67: =IF(E67<>"",MAX(E67,AE67),"") -> 0 | AH67: 0.53 | AI67: =IF(G67<>"",MAX(G67,AH67),"") -> 0.53 | AJ67: 53t | AK67: 1.05 | AL67: =IF(I67<>"",MAX(I67,AK67),"") -> 1.05 | AM67: 105 | AN67: 1.07 | AO67: =IF(K67<>"",MAX(K67,AN67),"") -> 1.07 | AP67: 107t | AQ67: 0.33 | AR67: =IF(M67<>"",MAX(M67,AQ67),"") -> 0.8571428571 | AS67: 33t | AT67: 1.21 | AU67: =IF(O67<>"",MAX(O67,AT67),"") -> 1.5 | AV67: 121 | AW67: 0 | AX67: =IF(F67<>"",MAX(F67,AW67),"") ->  | AZ67: 0.54 | BA67: =IF(H67<>"",MAX(H67,AZ67),"") -> 0.54 | BB67: 54t | BC67: 0.95 | BD67: =IF(J67<>"",MAX(J67,BC67),"") -> 0.95 | BE67: 95t | BF67: 93 | BG67: =IF(L67<>"",MAX(L67,BF67),"") -> 93 | BH67: 93 | BI67: 1.1 | BJ67: =IF(N67<>"",MAX(N67,BI67),"") -> 1.1 | BK67: 110t | BL67: 1.23 | BM67: =IF(P67<>"",MAX(P67,BL67),"") -> 1.5 | BN67: 123 | CC67: 1.07 | CE67: 1.07
A68: 105 | B68: Lee | C68: 0.7391304348 | D68: 0.4137931034 | E68: 0.5217391304 | F68: 0.3448275862 | G68: 0 | I68: 0.09677419355 | J68: 0.2209302326 | K68: 0.8518518519 | L68: 0.9166666667 | M68: 0.8181818182 | N68: 0.8076923077 | O68: 2.666666667 | P68: 1.8 | Q68: 13 | R68: 27 | S68: 91 | T68: 52t | U68: 53t | W68: 123 | X68: 113 | Y68: 51 | Z68: 24t | AA68: 52t | AB68: 53t | AC68: 83t | AD68: 52t | AE68: 0.91 | AF68: 0.91 | AG68: 91 | AH68: 0.53 | AI68: 0.53 | AJ68: 53t | AK68: 1.23 | AL68: 1.23 | AM68: 123 | AN68: 0.51 | AO68: 0.8518518519 | AP68: 51 | AQ68: 0.52 | AR68: 0.8181818182 | AS68: 52t | AT68: 1.06 | AU68: 2.666666667 | AV68: 106t | AW68: 0.52 | AX68: 0.52 | AY68: 52t | AZ68: 0 | BC68: 1.13 | BD68: 1.13 | BE68: 113 | BF68: 17 | BG68: 17 | BH68: 17 | BI68: 0.53 | BJ68: 0.8076923077 | BK68: 53t | BL68: 0.73 | BM68: 1.8 | BN68: 73t | CC68: 0.51 | CE68: 0.51
A69: 678 | B69: Lexington | C69: 0 | D69: 1 | E69: 1 | F69: 1 | I69: 0.9285714286 | J69: 0.8461538462 | K69: 0.5789473684 | L69: 0.75 | M69: 0.8 | N69: 0.8 | O69: 2.6 | P69: 3.2 | Q69: 1t | S69: 1t | W69: 2 | X69: 5 | Y69: 114t | Z69: 81t | AA69: 60t | AB69: 57t | AC69: 20t | AD69: 56t | AE69: 0.01 | AF69: 1 | AG69: 1t | AK69: 0.02 | AL69: 0.9285714286 | AM69: 2 | AN69: 1.14 | AO69: 1.14 | AP69: 114t | AQ69: 0.6 | AR69: 0.8 | AS69: 60t | AT69: 0.26 | AU69: 2.6 | AV69: 26t | AW69: 0 | AX69: 1 | AZ69: 0 | BC69: 0.05 | BD69: 0.8461538462 | BE69: 5 | BF69: 121 | BG69: 121 | BH69: 121 | BI69: 0.57 | BJ69: 0.8 | BK69: 57t | BL69: 0.64 | BM69: 3.2 | BN69: 64t | CC69: 1.14 | CE69: 1.14
A70: 107 | B70: Loudoun | C70: 0.4459459459 | D70: 0.5245901639 | E70: 0.472972973 | F70: 0.4426229508 | G70: 0.7222222222 | H70: 0.25 | I70: 0.5131578947 | J70: 0.5873786408 | K70: 0.76 | L70: 0.7619047619 | M70: 0.8 | N70: 0.8095238095 | O70: 2.333333333 | P70: 2.333333333 | Q70: 92t | R70: 43 | S70: 45 | T70: 44 | U70: 18 | V70: 35t | W70: 64 | X70: 47 | Y70: 83 | Z70: 77 | AA70: 60t | AB70: 52 | AC70: 71t | AD70: 45t | AE70: 0.45 | AF70: 0.472972973 | AG70: 45 | AH70: 0.18 | AI70: 0.7222222222 | AJ70: 18 | AK70: 0.64 | AL70: 0.64 | AM70: 64 | AN70: 0.83 | AO70: 0.83 | AP70: 83 | AQ70: 0.6 | AR70: 0.8 | AS70: 60t | AT70: 0.43 | AU70: 2.333333333 | AV70: 43t | AW70: 0.44 | AX70: 0.4426229508 | AY70: 44 | AZ70: 0.35 | BA70: 0.35 | BB70: 35t | BC70: 0.47 | BD70: 0.5873786408 | BE70: 47 | BF70: 94 | BG70: 94 | BH70: 94 | BI70: 0.52 | BJ70: 0.8095238095 | BK70: 52 | BL70: 0.66 | BM70: 2.333333333 | BN70: 66t | CC70: 0.83 | CE70: 0.83
A71: 109 | B71: Louisa | C71: 0.6086956522 | D71: 0.4347826087 | E71: 0.5217391304 | F71: 0.3043478261 | G71: 1 | H71: 0.5 | I71: 0.5479452055 | J71: 0.4888888889 | K71: 0.7222222222 | L71: 0.7631578947 | M71: 0.5714285714 | N71: 0.5 | O71: 3.166666667 | P71: 2 | Q71: 36t | R71: 19 | S71: 83t | T71: 65 | U71: 1t | V71: 23 | W71: 53 | X71: 77 | Y71: 90t | Z71: 76 | AA71: 103t | AB71: 110t | AC71: 45t | AD71: 56t | AE71: 0.83 | AF71: 0.83 | AG71: 83t | AH71: 0.01 | AI71: 1 | AJ71: 1t | AK71: 0.53 | AL71: 0.5479452055 | AM71: 53 | AN71: 0.9 | AO71: 0.9 | AP71: 90t | AQ71: 1.03 | AR71: 1.03 | AS71: 103t | AT71: 0.65 | AU71: 3.166666667 | AV71: 65t | AW71: 0.65 | AX71: 0.65 | AY71: 65 | AZ71: 0.23 | BA71: 0.5 | BB71: 23 | BC71: 0.77 | BD71: 0.77 | BE71: 77 | BF71: 95 | BG71: 95 | BH71: 95 | BI71: 1.1 | BJ71: 1.1 | BK71: 110t | BL71: 0.77 | BM71: 2 | BN71: 77t | CC71: 0.9 | CE71: 0.9
A72: 111 | B72: Lunenburg | G72: 0 | I72: 0.7352941176 | J72: 0.847826087 | K72: 0.5714285714 | L72: 0.5 | M72: 0.9230769231 | N72: 1 | O72: 2.75 | P72: 3.333333333 | U72: 53t | W72: 9 | X72: 4 | Y72: 117 | Z72: 119t | AA72: 21 | AB72: 1t | AC72: 53t | AD72: 15t | AH72: 0.53 | AI72: 0.53 | AJ72: 53t | AK72: 0.09 | AL72: 0.7352941176 | AM72: 9 | AN72: 1.17 | AO72: 1.17 | AP72: 117 | AQ72: 0.21 | AR72: 0.9230769231 | AS72: 21 | AT72: 0.55 | AU72: 2.75 | AV72: 55t | AW72: 0 | AZ72: 0 | BC72: 0.04 | BD72: 0.847826087 | BE72: 4 | BF72: 96 | BG72: 96 | BH72: 96 | BI72: 0.01 | BJ72: 1 | BK72: 1t | BL72: 0.17 | BM72: 3.333333333 | BN72: 17 | CC72: 1.17 | CE72: 1.17
A73: 680 | B73: Lynchburg | C73: 0.4057971014 | D73: 0.4179104478 | E73: 0.4492753623 | F73: 0.3731343284 | G73: 0.1587301587 | H73: 0 | I73: 0.3717105263 | J73: 0.4054878049 | K73: 0.8523489933 | L73: 0.8484848485 | M73: 0.7457627119 | N73: 0.8070175439 | O73: 1.833333333 | P73: 1.5 | Q73: 80 | R73: 93 | S73: 81 | T73: 88 | U73: 44 | V73: 54t | W73: 96 | X73: 94 | Y73: 50 | Z73: 53 | AA73: 81 | AB73: 55 | AC73: 121t | AD73: 123 | AE73: 0.81 | AF73: 0.81 | AG73: 81 | AH73: 0.44 | AI73: 0.44 | AJ73: 44 | AK73: 0.96 | AL73: 0.96 | AM73: 96 | AN73: 0.5 | AO73: 0.8523489933 | AP73: 50 | AQ73: 0.81 | AR73: 0.81 | AS73: 81 | AT73: 1.17 | AU73: 1.833333333 | AV73: 117t | AW73: 0.88 | AX73: 0.88 | AY73: 88 | AZ73: 0.54 | BA73: 0.54 | BB73: 54t | BC73: 0.94 | BD73: 0.94 | BE73: 94 | BF73: 63 | BG73: 63 | BH73: 63 | BI73: 0.55 | BJ73: 0.8070175439 | BK73: 55 | BL73: 1.18 | BM73: 1.5 | BN73: 118t | CC73: 0.5 | CE73: 0.5
A74: 113 | B74: Madison | C74: 0.5135135135 | D74: 0.5652173913 | E74: 0.4594594595 | F74: 0.4782608696 | G74: 0 | H74: 0.03846153846 | I74: 0.4909090909 | J74: 0.4434782609 | K74: 0.6756756757 | L74: 0.641509434 | M74: 0.75 | N74: 0.75 | O74: 1.833333333 | P74: 2 | Q74: 95 | R74: 24t | S74: 102 | T74: 45 | U74: 53t | V74: 52 | W74: 71 | X74: 90 | Y74: 98 | Z74: 114 | AA74: 77t | AB74: 77t | AC74: 126t | AD74: 86t | AE74: 1.02 | AF74: 1.02 | AG74: 102 | AH74: 0.53 | AI74: 0.53 | AJ74: 53t | AK74: 0.71 | AL74: 0.71 | AM74: 71 | AN74: 0.98 | AO74: 0.98 | AP74: 98 | AQ74: 0.77 | AR74: 0.77 | AS74: 77t | AT74: 1.22 | AU74: 1.833333333 | AV74: 122t | AW74: 0.45 | AX74: 0.4782608696 | AY74: 45 | AZ74: 0.52 | BA74: 0.52 | BB74: 52 | BC74: 0.9 | BD74: 0.9 | BE74: 90 | BF74: 97 | BG74: 97 | BH74: 97 | BI74: 0.77 | BJ74: 0.77 | BK74: 77t | BL74: 1.06 | BM74: 2 | BN74: 106t | CC74: 0.98 | CE74: 0.98
A75: 683 | B75: Manassas City | C75: 0.5714285714 | D75: 0.5 | E75: 0.7857142857 | F75: 0.2222222222 | I75: 0.4285714286 | J75: 0.4255319149 | K75: 0.8 | L75: 0.9090909091 | M75: 0.8571428571 | N75: 1 | O75: 3 | P75: 2.6 | Q75: 50t | R75: 24t | S75: 12 | T75: 109 | W75: 86t | X75: 92 | Y75: 72t | Z75: 27t | AA75: 33t | AB75: 1t | AC75: 48t | AD75: 64t | AE75: 0.12 | AF75: 0.7857142857 | AG75: 12 | AK75: 0.86 | AL75: 0.86 | AM75: 86t | AN75: 0.72 | AO75: 0.8 | AP75: 72t | AQ75: 0.33 | AR75: 0.8571428571 | AS75: 33t | AT75: 0.55 | AU75: 3 | AV75: 55t | AW75: 1.09 | AX75: 1.09 | AY75: 109 | AZ75: 0 | BC75: 0.92 | BD75: 0.92 | BE75: 92 | BF75: 41 | BG75: 41 | BH75: 41 | BI75: 0.01 | BJ75: 1 | BK75: 1t | BL75: 0.91 | BM75: 2.6 | BN75: 91t | CC75: 0.72 | CE75: 0.72
A76: 685 | B76: Manassas Park | C76: 0 | D76: 0 | E76: 0 | F76: 1 | I76: 0.8 | J76: 0.7368421053 | K76: 1 | L76: 1 | O76: 2.5 | P76: 3.25 | Q76: 119t | R76: 108t | S76: 117t | T76: 1t | W76: 5 | X76: 16 | Y76: 1t | Z76: 1t | AC76: 71t | AD76: 17 | AE76: 1.17 | AF76: 1.17 | AG76: 117t | AK76: 0.05 | AL76: 0.8 | AM76: 5 | AN76: 0.01 | AO76: 1 | AP76: 1t | AS76: 0 | AT76: 0.26 | AU76: 2.5 | AV76: 26t | AW76: 0.01 | AX76: 1 | AY76: 1t | AZ76: 0 | BC76: 0.16 | BD76: 0.7368421053 | BE76: 16 | BF76: 42 | BG76: 42 | BH76: 42 | BI76: 0 | BL76: 0.01 | BM76: 3.25 | BN76: 1t | CC76: 0.01 | CE76: 0.01
A77: 690 | B77: Martinsville | D77: 1 | F77: 0.6666666667 | I77: 0.4444444444 | J77: 0.5 | K77: 0.825 | L77: 0.8235294118 | M77: 0.9069767442 | N77: 0.88 | O77: 2.666666667 | P77: 3.4 | R77: 31t | T77: 30t | W77: 84 | X77: 72t | Y77: 61t | Z77: 60t | AA77: 24t | AB77: 30t | AC77: 55t | AD77: 12t | AK77: 0.84 | AL77: 0.84 | AM77: 84 | AN77: 0.61 | AO77: 0.825 | AP77: 61t | AQ77: 0.24 | AR77: 0.9069767442 | AS77: 24t | AT77: 0.62 | AU77: 2.666666667 | AV77: 62t | AW77: 0.3 | AX77: 0.6666666667 | AY77: 30t | AZ77: 0 | BC77: 0.72 | BD77: 0.72 | BE77: 72t | BF77: 64 | BG77: 64 | BH77: 64 | BI77: 0.3 | BJ77: 0.88 | BK77: 30t | BL77: 0.18 | BM77: 3.4 | BN77: 18t | CC77: 0.61 | CE77: 0.61
A78: 115 | B78: Mathews | C78: 0.5 | E78: 1 | I78: 0.5384615385 | J78: 0.2857142857 | K78: 1 | L78: 1 | M78: 1 | N78: 1 | O78: 3.4 | P78: 3 | Q78: 59t | S78: 1t | W78: 54t | X78: 106 | Y78: 1t | Z78: 1t | AA78: 1t | AB78: 1t | AC78: 9t | AD78: 28t | AE78: 0.01 | AF78: 1 | AG78: 1t | AK78: 0.54 | AL78: 0.54 | AM78: 54t | AN78: 0.01 | AO78: 1 | AP78: 1t | AQ78: 0.01 | AR78: 1 | AS78: 1t | AT78: 0.06 | AU78: 3.4 | AV78: 6t | AW78: 0 | AZ78: 0 | BC78: 1.06 | BD78: 1.06 | BE78: 106 | BF78: 18t | BG78: 1 | BH78: 18t | BI78: 0.01 | BJ78: 1 | BK78: 1t | BL78: 0.3 | BM78: 3 | BN78: 30t | CC78: 0.01 | CE78: 0.01
A79: 117 | B79: Mecklenburg | C79: 0.7368421053 | D79: 0.6666666667 | E79: 0.8947368421 | F79: 0.7333333333 | G79: 0 | H79: 0 | I79: 0.4698795181 | J79: 0.4545454545 | K79: 0.5909090909 | L79: 0.652173913 | M79: 0.8 | N79: 1 | O79: 2.5 | P79: 2.666666667 | Q79: 82 | R79: 53t | S79: 8 | T79: 55t | U79: 53t | V79: 54t | W79: 79 | X79: 86t | Y79: 113 | Z79: 112 | AA79: 60t | AB79: 1t | AC79: 104t | AD79: 86t | AE79: 0.08 | AF79: 0.8947368421 | AG79: 8 | AH79: 0.53 | AI79: 0.53 | AJ79: 53t | AK79: 0.79 | AL79: 0.79 | AM79: 79 | AN79: 1.13 | AO79: 1.13 | AP79: 113 | AQ79: 0.6 | AR79: 0.8 | AS79: 60t | AT79: 0.97 | AU79: 2.5 | AV79: 97t | AW79: 0.55 | AX79: 0.7333333333 | AY79: 55t | AZ79: 0.54 | BA79: 0.54 | BB79: 54t | BC79: 0.86 | BD79: 0.86 | BE79: 86t | BF79: 98 | BG79: 98 | BH79: 98 | BI79: 0.01 | BJ79: 1 | BK79: 1t | BL79: 0.95 | BM79: 2.666666667 | BN79: 95t | CC79: 1.13 | CE79: 1.13
A80: 119 | B80: Middlesex | C80: 0.5 | D80: 0.5 | E80: 0.5 | F80: 0.25 | H80: 1 | I80: 0.625 | J80: 0.6923076923 | K80: 1 | L80: 1 | M80: 0.5 | N80: 0.8571428571 | O80: 3 | P80: 3.166666667 | Q80: 12 | R80: 31t | S80: 47t | T80: 30t | V80: 1t | W80: 38t | X80: 20 | Y80: 1t | Z80: 1t | AA80: 106t | AB80: 36t | AC80: 9t | AD80: 2 | AE80: 0.47 | AF80: 0.5 | AG80: 47t | AK80: 0.38 | AL80: 0.625 | AM80: 38t | AN80: 0.01 | AO80: 1 | AP80: 1t | AQ80: 1.06 | AR80: 1.06 | AS80: 106t | AT80: 0.18 | AU80: 3 | AV80: 18t | AW80: 0.3 | AX80: 0.3 | AY80: 30t | AZ80: 0.01 | BA80: 1 | BB80: 1t | BC80: 0.2 | BD80: 0.6923076923 | BE80: 20 | BF80: 18t | BG80: 1 | BH80: 18t | BI80: 0.36 | BJ80: 0.8571428571 | BK80: 36t | BL80: 0.06 | BM80: 3.166666667 | BN80: 6 | CC80: 0.01 | CE80: 0.01
A81: 121 | B81: Montgomery | C81: 0.48 | D81: 0.5333333333 | E81: 0.28 | F81: 0.5333333333 | I81: 0.2708333333 | J81: 0.488372093 | K81: 0.9523809524 | L81: 0.9705882353 | M81: 0.8571428571 | N81: 0.8636363636 | O81: 2.2 | P81: 3.4 | Q81: 74 | R81: 21 | S81: 112t | T81: 60t | W81: 111 | X81: 78 | Y81: 19 | Z81: 15 | AA81: 33t | AB81: 33 | AC81: 97 | AD81: 12t | AE81: 1.12 | AF81: 1.12 | AG81: 112t | AK81: 1.11 | AL81: 1.11 | AM81: 111 | AN81: 0.19 | AO81: 0.9523809524 | AP81: 19 | AQ81: 0.33 | AR81: 0.8571428571 | AS81: 33t | AT81: 0.95 | AU81: 2.2 | AV81: 95t | AW81: 0.6 | AX81: 0.6 | AY81: 60t | AZ81: 0 | BC81: 0.78 | BD81: 0.78 | BE81: 78 | BF81: 20 | BG81: 20 | BH81: 20 | BI81: 0.33 | BJ81: 0.8636363636 | BK81: 33 | BL81: 0.18 | BM81: 3.4 | BN81: 18t | CC81: 0.19 | CE81: 0.19
A82: 125 | B82: Nelson | I82: 0.6551724138 | J82: 0.4827586207 | K82: 0.7142857143 | L82: 0.9 | M82: 1 | N82: 0.75 | O82: 3.333333333 | P82: 2.666666667 | W82: 30 | X82: 80 | Y82: 92t | Z82: 29t | AA82: 1t | AB82: 77t | AC82: 14t | AD82: 104t | AK82: 0.3 | AL82: 0.6551724138 | AM82: 30 | AN82: 0.92 | AO82: 0.92 | AP82: 92t | AQ82: 0.01 | AR82: 1 | AS82: 1t | AT82: 0.17 | AU82: 3.333333333 | AV82: 17 | AW82: 0 | AZ82: 0 | BC82: 0.8 | BD82: 0.8 | BE82: 80 | BF82: 21 | BG82: 21 | BH82: 21 | BI82: 0.77 | BJ82: 0.77 | BK82: 77t | BL82: 1.06 | BM82: 2.666666667 | BN82: 106t | CC82: 0.92 | CE82: 0.92
A83: 127 | B83: New Kent | C83: 0.6 | D83: 0.5 | E83: 0.7 | F83: 0.8 | I83: 0.7037037037 | J83: 0.6428571429 | K83: 0.75 | L83: 1 | M83: 1 | O83: 3.6 | P83: 3.75 | Q83: 18t | R83: 108t | S83: 36 | T83: 110t | W83: 19 | X83: 29 | Y83: 85t | Z83: 1t | AA83: 1t | AC83: 4t | AD83: 104t | AE83: 0.36 | AF83: 0.7 | AG83: 36 | AK83: 0.19 | AL83: 0.7037037037 | AM83: 19 | AN83: 0.85 | AO83: 0.85 | AP83: 85t | AQ83: 0.01 | AR83: 1 | AS83: 1t | AT83: 0.09 | AU83: 3.6 | AV83: 9t | AW83: 1.1 | AX83: 1.1 | AY83: 110t | AZ83: 0 | BC83: 0.29 | BD83: 0.6428571429 | BE83: 29 | BF83: 22 | BG83: 22 | BH83: 22 | BI83: 0 | BL83: 0.86 | BM83: 3.75 | BN83: 86t | CC83: 0.85 | CE83: 0.85
A84: 700 | B84: Newport News | C84: 0.4197530864 | D84: 0.4090909091 | E84: 0.4320987654 | F84: 0.4318181818 | G84: 0.75 | H84: 0.25 | I84: 0.4664310954 | J84: 0.5075757576 | K84: 0.8846153846 | L84: 0.8611111111 | M84: 0.693877551 | N84: 0.6739130435 | O84: 2.333333333 | P84: 2 | Q84: 89 | R84: 82 | S84: 82 | T84: 97 | U84: 17 | V84: 35t | W84: 80 | X84: 70 | Y84: 38t | Z84: 49 | AA84: 89 | AB84: 100 | AC84: 83t | AD84: 104t | AE84: 0.82 | AF84: 0.82 | AG84: 82 | AH84: 0.17 | AI84: 0.75 | AJ84: 17 | AK84: 0.8 | AL84: 0.8 | AM84: 80 | AN84: 0.38 | AO84: 0.8846153846 | AP84: 38t | AQ84: 0.89 | AR84: 0.89 | AS84: 89 | AT84: 0.65 | AU84: 2.333333333 | AV84: 65t | AW84: 0.97 | AX84: 0.97 | AY84: 97 | AZ84: 0.35 | BA84: 0.35 | BB84: 35t | BC84: 0.7 | BD84: 0.7 | BE84: 70 | BF84: 43 | BG84: 43 | BH84: 43 | BI84: 1 | BJ84: 1 | BK84: 100 | BL84: 0.95 | BM84: 2 | BN84: 95t | CC84: 0.38 | CE84: 0.38
A85: 710 | B85: Norfolk | C85: 0.625 | D85: 0.654676259 | E85: 0.4270833333 | F85: 0.5395683453 | G85: 0.3432835821 | H85: 0.3230769231 | I85: 0.197080292 | J85: 0.25 | K85: 0.8893442623 | L85: 0.9154228856 | M85: 0.8453608247 | N85: 0.8870967742 | O85: 2.666666667 | P85: 3.333333333 | Q85: 40 | R85: 20 | S85: 100 | T85: 64 | U85: 32 | V85: 31 | W85: 119 | X85: 110t | Y85: 31 | Z85: 26 | AA85: 43 | AB85: 29 | AC85: 55t | AD85: 28t | AE85: 1 | AF85: 1 | AG85: 100 | AH85: 0.32 | AI85: 0.3432835821 | AJ85: 32 | AK85: 1.19 | AL85: 1.19 | AM85: 119 | AN85: 0.31 | AO85: 0.8893442623 | AP85: 31 | AQ85: 0.43 | AR85: 0.8453608247 | AS85: 43 | AT85: 0.79 | AU85: 2.666666667 | AV85: 79t | AW85: 0.64 | AX85: 0.64 | AY85: 64 | AZ85: 0.31 | BA85: 0.3230769231 | BB85: 31 | BC85: 1.1 | BD85: 1.1 | BE85: 110t | BF85: 44 | BG85: 44 | BH85: 44 | BI85: 0.29 | BJ85: 0.8870967742 | BK85: 29 | BL85: 0.5 | BM85: 3.333333333 | BN85: 50t | CC85: 0.31 | CE85: 0.31
A86: 131 | B86: Northampton | C86: 0.25 | D86: 0.2857142857 | E86: 0 | F86: 0.1428571429 | I86: 0.2727272727 | J86: 0.3571428571 | K86: 0.6666666667 | L86: 0.6666666667 | O86: 1.25 | P86: 1.25 | Q86: 115 | R86: 108t | S86: 117t | T86: 113t | W86: 109 | X86: 100t | Y86: 100t | Z86: 103t | AC86: 129 | AD86: 129 | AE86: 1.17 | AF86: 1.17 | AG86: 117t | AK86: 1.09 | AL86: 1.09 | AM86: 109 | AN86: 1 | AO86: 1 | AP86: 100t | AS86: 0 | AT86: 1.29 | AU86: 1.29 | AV86: 129 | AW86: 1.13 | AX86: 1.13 | AY86: 113t | AZ86: 0 | BC86: 1 | BD86: 1 | BE86: 100t | BF86: 99t | BG86: 0.6666666667 | BH86: 99t | BI86: 0 | BL86: 1.28 | BM86: 1.28 | BN86: 128 | CC86: 1 | CE86: 1
A87: 133 | B87: Northumberland | C87: 0.3333333333 | D87: 0.6666666667 | E87: 0.5 | F87: 0.3333333333 | H87: 0.3333333333 | I87: 0.7 | J87: 0.5925925926 | K87: 1 | L87: 0.875 | M87: 1 | N87: 0.25 | O87: 3.2 | P87: 3 | Q87: 116 | R87: 83t | S87: 86t | T87: 80t | V87: 25t | W87: 20 | X87: 45 | Y87: 1t | Z87: 43t | AA87: 1t | AB87: 115t | AC87: 48t | AD87: 69t | AE87: 0.86 | AF87: 0.86 | AG87: 86t | AK87: 0.2 | AL87: 0.7 | AM87: 20 | AN87: 0.01 | AO87: 1 | AP87: 1t | AQ87: 0.01 | AR87: 1 | AS87: 1t | AT87: 0.18 | AU87: 3.2 | AV87: 18t | AW87: 0.8 | AX87: 0.8 | AY87: 80t | AZ87: 0.25 | BA87: 0.3333333333 | BB87: 25t | BC87: 0.45 | BD87: 0.5925925926 | BE87: 45 | BF87: 23 | BG87: 23 | BH87: 23 | BI87: 1.15 | BJ87: 1.15 | BK87: 115t | BL87: 0.5 | BM87: 3 | BN87: 50t | CC87: 0.01 | CE87: 0.01
A88: 720 | B88: Norton | C88: 0.6 | E88: 1 | I88: 0.3333333333 | J88: 0.1428571429 | K88: 1 | L88: 0.8333333333 | M88: 0.875 | N88: 1 | O88: 3.4 | P88: 2.666666667 | Q88: 32t | S88: 1t | W88: 101t | X88: 118t | Y88: 1t | Z88: 56t | AA88: 29t | AB88: 1t | AC88: 9t | AD88: 28t | AE88: 0.01 | AF88: 1 | AG88: 1t | AK88: 1.01 | AL88: 1.01 | AM88: 101t | AN88: 0.01 | AO88: 1 | AP88: 1t | AQ88: 0.29 | AR88: 0.875 | AS88: 29t | AT88: 0.18 | AU88: 3.4 | AV88: 18t | AW88: 0 | AZ88: 0 | BC88: 1.18 | BD88: 1.18 | BE88: 118t | BF88: 65 | BG88: 65 | BH88: 65 | BI88: 0.01 | BJ88: 1 | BK88: 1t | BL88: 0.3 | BM88: 2.666666667 | BN88: 30t | CC88: 0.01 | CE88: 0.01
A89: 135 | B89: Nottoway | G89: 0 | I89: 0.08333333333 | J89: 0.1052631579 | K89: 1 | M89: 0.5 | N89: 0.75 | O89: 2 | P89: 1.5 | U89: 53t | W89: 125t | X89: 122 | Y89: 1t | AA89: 106t | AB89: 77t | AC89: 104t | AD89: 86t | AH89: 0.53 | AI89: 0.53 | AJ89: 53t | AK89: 1.25 | AL89: 1.25 | AM89: 125t | AN89: 0.01 | AO89: 1 | AP89: 1t | AQ89: 1.06 | AR89: 1.06 | AS89: 106t | AT89: 1.06 | AU89: 2 | AV89: 106t | AW89: 0 | AZ89: 0 | BC89: 1.22 | BD89: 1.22 | BE89: 122 | BI89: 0.77 | BJ89: 0.77 | BK89: 77t | BL89: 0.86 | BM89: 1.5 | BN89: 86t | CC89: 0.01 | CE89: 0.01
A90: 137 | B90: Orange | C90: 0.5428571429 | D90: 0.3846153846 | E90: 0.7428571429 | F90: 0.4615384615 | G90: 0.09090909091 | H90: 0 | I90: 0.6395348837 | J90: 0.4608695652 | K90: 0.5652173913 | L90: 0.6666666667 | M90: 0.25 | N90: 0.8275862069 | O90: 2.666666667 | P90: 1.666666667 | Q90: 54 | R90: 62t | S90: 13 | T90: 55t | U90: 49 | V90: 54t | W90: 33 | X90: 84 | Y90: 118 | Z90: 103t | AA90: 117t | AB90: 49 | AC90: 55t | AD90: 104t | AE90: 0.13 | AF90: 0.7428571429 | AG90: 13 | AH90: 0.49 | AI90: 0.49 | AJ90: 49 | AK90: 0.33 | AL90: 0.6395348837 | AM90: 33 | AN90: 1.18 | AO90: 1.18 | AP90: 118 | AQ90: 1.17 | AR90: 1.17 | AS90: 117t | AT90: 0.65 | AU90: 2.666666667 | AV90: 65t | AW90: 0.55 | AX90: 0.55 | AY90: 55t | AZ90: 0.54 | BA90: 0.54 | BB90: 54t | BC90: 0.84 | BD90: 0.84 | BE90: 84 | BF90: 99t | BG90: 0.6666666667 | BH90: 99t | BI90: 0.49 | BJ90: 0.8275862069 | BK90: 49 | BL90: 1.06 | BM90: 1.666666667 | BN90: 106t | CC90: 1.18 | CE90: 1.18
A91: 139 | B91: Page | C91: 0.84 | D91: 0.7142857143 | E91: 0.76 | F91: 0.380952381 | G91: 0 | I91: 0.5769230769 | J91: 0.4565217391 | K91: 0.5555555556 | L91: 0.7272727273 | M91: 0.8571428571 | N91: 1 | O91: 3 | P91: 2.4 | Q91: 7 | R91: 23 | S91: 14 | T91: 26 | U91: 53t | W91: 46 | X91: 85 | Y91: 119 | Z91: 89t | AA91: 33t | AB91: 1t | AC91: 29t | AD91: 28t | AE91: 0.14 | AF91: 0.76 | AG91: 14 | AH91: 0.53 | AI91: 0.53 | AJ91: 53t | AK91: 0.46 | AL91: 0.5769230769 | AM91: 46 | AN91: 1.19 | AO91: 1.19 | AP91: 119 | AQ91: 0.33 | AR91: 0.8571428571 | AS91: 33t | AT91: 0.43 | AU91: 3 | AV91: 43t | AW91: 0.26 | AX91: 0.380952381 | AY91: 26 | AZ91: 0 | BC91: 0.85 | BD91: 0.85 | BE91: 85 | BF91: 101 | BG91: 101 | BH91: 101 | BI91: 0.01 | BJ91: 1 | BK91: 1t | BL91: 0.6 | BM91: 2.4 | BN91: 60t | CC91: 1.19 | CE91: 1.19
A92: 141 | B92: Patrick | C92: 0.6666666667 | D92: 0.2727272727 | E92: 0.6666666667 | F92: 0.3636363636 | I92: 0 | J92: 0 | K92: 1 | L92: 0.7647058824 | M92: 1 | N92: 1 | O92: 3.4 | P92: 1.8 | Q92: 27 | R92: 107 | S92: 26t | T92: 55t | W92: 129t | X92: 127t | Y92: 1t | Z92: 75 | AA92: 1t | AB92: 1t | AC92: 9t | AD92: 64t | AE92: 0.26 | AF92: 0.6666666667 | AG92: 26t | AK92: 1.29 | AL92: 1.29 | AM92: 129t | AN92: 0.01 | AO92: 1 | AP92: 1t | AQ92: 0.01 | AR92: 1 | AS92: 1t | AT92: 0.18 | AU92: 3.4 | AV92: 18t | AW92: 0.55 | AX92: 0.55 | AY92: 55t | AZ92: 0 | BC92: 1.27 | BD92: 1.27 | BE92: 127t | BF92: 102 | BG92: 102 | BH92: 102 | BI92: 0.01 | BJ92: 1 | BK92: 1t | BL92: 0.3 | BM92: 1.8 | BN92: 30t | CC92: 0.01 | CE92: 0.01
A93: 730 | B93: Petersburg | C93: 0.6818181818 | D93: 0.6666666667 | E93: 0.6818181818 | F93: 0.6666666667 | G93: 0.07692307692 | H93: 0.1212121212 | I93: 0.3986928105 | J93: 0.4642857143 | K93: 0.6842105263 | L93: 0.6444444444 | M93: 0.8684210526 | N93: 0.8484848485 | O93: 2.666666667 | P93: 2.666666667 | Q93: 30 | R93: 31t | S93: 19t | T93: 30t | U93: 50 | V93: 43 | W93: 93 | X93: 83 | Y93: 97 | Z93: 113 | AA93: 31 | AB93: 40 | AC93: 55t | AD93: 56t | AE93: 0.19 | AF93: 0.6818181818 | AG93: 19t | AH93: 0.5 | AI93: 0.5 | AJ93: 50 | AK93: 0.93 | AL93: 0.93 | AM93: 93 | AN93: 0.97 | AO93: 0.97 | AP93: 97 | AQ93: 0.31 | AR93: 0.8684210526 | AS93: 31 | AT93: 0.79 | AU93: 2.666666667 | AV93: 79t | AW93: 0.3 | AX93: 0.6666666667 | AY93: 30t | AZ93: 0.43 | BA93: 0.43 | BB93: 43 | BC93: 0.83 | BD93: 0.83 | BE93: 83 | BF93: 122 | BG93: 122 | BH93: 122 | BI93: 0.4 | BJ93: 0.8484848485 | BK93: 40 | BL93: 0.77 | BM93: 2.666666667 | BN93: 77t | CC93: 0.97 | CE93: 0.97
A94: 143 | B94: Pittsylvania | C94: 0.4561403509 | D94: 0.4528301887 | E94: 0.4912280702 | F94: 0.3773584906 | G94: 0.125 | H94: 0.5833333333 | I94: 0.7265625 | J94: 0.7172413793 | K94: 0.9285714286 | L94: 0.6875 | M94: 0.25 | N94: 0.8571428571 | O94: 2.5 | P94: 2.5 | Q94: 70 | R94: 73 | S94: 61 | T94: 75t | U94: 48 | V94: 21 | W94: 14 | X94: 18 | Y94: 22 | Z94: 99t | AA94: 117t | AB94: 36t | AC94: 55t | AD94: 21t | AE94: 0.61 | AF94: 0.61 | AG94: 61 | AH94: 0.48 | AI94: 0.48 | AJ94: 48 | AK94: 0.14 | AL94: 0.7265625 | AM94: 14 | AN94: 0.22 | AO94: 0.9285714286 | AP94: 22 | AQ94: 1.17 | AR94: 1.17 | AS94: 117t | AT94: 0.43 | AU94: 2.5 | AV94: 43t | AW94: 0.75 | AX94: 0.75 | AY94: 75t | AZ94: 0.21 | BA94: 0.5833333333 | BB94: 21 | BC94: 0.18 | BD94: 0.7172413793 | BE94: 18 | BF94: 103 | BG94: 103 | BH94: 103 | BI94: 0.36 | BJ94: 0.8571428571 | BK94: 36t | BL94: 0.14 | BM94: 2.5 | BN94: 14t | CC94: 0.22 | CE94: 0.22
A95: 735 | B95: Poquoson | C95: 1 | D95: 1 | E95: 1 | F95: 1 | G95: 0.5 | I95: 0.5384615385 | J95: 0.4 | K95: 0.5 | L95: 0.25 | M95: 0.6 | O95: 3.166666667 | P95: 2.75 | Q95: 1t | R95: 1t | S95: 1t | T95: 1t | U95: 24t | W95: 54t | X95: 95t | Y95: 120t | Z95: 125t | AA95: 99t | AC95: 24t | AD95: 55 | AE95: 0.01 | AF95: 1 | AG95: 1t | AH95: 0.24 | AI95: 0.5 | AJ95: 24t | AK95: 0.54 | AL95: 0.54 | AM95: 54t | AN95: 1.2 | AO95: 1.2 | AP95: 120t | AQ95: 0.99 | AR95: 0.99 | AS95: 99t | AT95: 0.26 | AU95: 3.166666667 | AV95: 26t | AW95: 0.01 | AX95: 1 | AY95: 1t | AZ95: 0 | BC95: 0.95 | BD95: 0.95 | BE95: 95t | BF95: 123 | BG95: 123 | BH95: 123 | BI95: 0 | BL95: 0.86 | BM95: 2.75 | BN95: 86t | CC95: 1.2 | CE95: 1.2
A96: 740 | B96: Portsmouth | C96: 0.3076923077 | D96: 0.4545454545 | E96: 0.4230769231 | F96: 0.4545454545 | G96: 1 | H96: 0.5714285714 | I96: 0.06944444444 | J96: 0.09090909091 | K96: 0.9206349206 | L96: 0.9338842975 | M96: 0.7906976744 | N96: 0.7073170732 | O96: 2.166666667 | P96: 2.5 | Q96: 113 | R96: 60 | S96: 85 | T96: 102 | U96: 1t | V96: 22 | W96: 127 | X96: 124 | Y96: 26 | Z96: 19 | AA96: 69 | AB96: 94 | AC96: 98t | AD96: 86t | AE96: 0.85 | AF96: 0.85 | AG96: 85 | AH96: 0.01 | AI96: 1 | AJ96: 1t | AK96: 1.27 | AL96: 1.27 | AM96: 127 | AN96: 0.26 | AO96: 0.9206349206 | AP96: 26 | AQ96: 0.69 | AR96: 0.7906976744 | AS96: 69 | AT96: 0.79 | AU96: 2.166666667 | AV96: 79t | AW96: 1.02 | AX96: 1.02 | AY96: 102 | AZ96: 0.22 | BA96: 0.5714285714 | BB96: 22 | BC96: 1.24 | BD96: 1.24 | BE96: 124 | BF96: 45 | BG96: 45 | BH96: 45 | BI96: 0.94 | BJ96: 0.94 | BK96: 94 | BL96: 0.77 | BM96: 2.5 | BN96: 77t | CC96: 0.26 | CE96: 0.26
A97: 145 | B97: Powhatan | C97: 0.5151515152 | D97: 0.5714285714 | E97: 0.6060606061 | F97: 0.5714285714 | G97: 0 | I97: 0.5079365079 | J97: 0.5161290323 | K97: 0.625 | L97: 0.8181818182 | M97: 0.5 | N97: 0.8 | O97: 2.333333333 | P97: 3.2 | Q97: 73 | R97: 78t | S97: 43 | T97: 24 | U97: 53t | W97: 66 | X97: 66 | Y97: 107t | Z97: 63 | AA97: 106t | AB97: 57t | AC97: 83t | AD97: 81t | AE97: 0.43 | AF97: 0.6060606061 | AG97: 43 | AH97: 0.53 | AI97: 0.53 | AJ97: 53t | AK97: 0.66 | AL97: 0.66 | AM97: 66 | AN97: 1.07 | AO97: 1.07 | AP97: 107t | AQ97: 1.06 | AR97: 1.06 | AS97: 106t | AT97: 0.79 | AU97: 2.333333333 | AV97: 79t | AW97: 0.24 | AX97: 0.5714285714 | AY97: 24 | AZ97: 0 | BC97: 0.66 | BD97: 0.66 | BE97: 66 | BF97: 58 | BG97: 58 | BH97: 58 | BI97: 0.57 | BJ97: 0.8 | BK97: 57t | BL97: 0.6 | BM97: 3.2 | BN97: 60t | CC97: 1.07 | CE97: 1.07
A98: 147 | B98: Prince Edward | C98: 0.5 | D98: 0.2857142857 | E98: 0 | F98: 0.3571428571 | G98: 0.3333333333 | H98: 0.3333333333 | I98: 0.5625 | J98: 0.5090909091 | K98: 1 | L98: 1 | N98: 0.8333333333 | O98: 2.8 | P98: 2.5 | Q98: 18t | R98: 83t | S98: 117t | T98: 80t | U98: 33t | V98: 25t | W98: 48t | X98: 69 | Y98: 1t | Z98: 1t | AB98: 43t | AC98: 20t | AD98: 69t | AE98: 1.17 | AF98: 1.17 | AG98: 117t | AH98: 0.33 | AI98: 0.3333333333 | AJ98: 33t | AK98: 0.48 | AL98: 0.5625 | AM98: 48t | AN98: 0.01 | AO98: 1 | AP98: 1t | AS98: 0 | AT98: 0.26 | AU98: 2.8 | AV98: 26t | AW98: 0.8 | AX98: 0.8 | AY98: 80t | AZ98: 0.25 | BA98: 0.3333333333 | BB98: 25t | BC98: 0.69 | BD98: 0.69 | BE98: 69 | BF98: 24 | BG98: 24 | BH98: 24 | BI98: 0.43 | BJ98: 0.8333333333 | BK98: 43t | BL98: 0.5 | BM98: 2.5 | BN98: 50t | CC98: 0.01 | CE98: 0.01
A99: 149 | B99: Prince George | C99: 0.3636363636 | D99: 0.7777777778 | E99: 0.2727272727 | F99: 0.5555555556 | I99: 0.6170212766 | J99: 0.7 | K99: 0.6923076923 | L99: 0.8235294118 | M99: 1 | N99: 0.8 | O99: 2.4 | P99: 3.4 | Q99: 112 | R99: 1t | S99: 112t | T99: 30t | W99: 42 | X99: 19 | Y99: 95 | Z99: 60t | AA99: 1t | AB99: 57t | AC99: 80t | AD99: 18t | AE99: 1.12 | AF99: =IF(E99<>"",MAX(E99,AE99),"") -> 1.12 | AG99: 112t | AI99: =IF(G99<>"",MAX(G99,AH99),"") ->  | AK99: 0.42 | AL99: =IF(I99<>"",MAX(I99,AK99),"") -> 0.6170212766 | AM99: 42 | AN99: 0.95 | AO99: =IF(K99<>"",MAX(K99,AN99),"") -> 0.95 | AP99: 95 | AQ99: 0.01 | AR99: =IF(M99<>"",MAX(M99,AQ99),"") -> 1 | AS99: 1t | AT99: 0.55 | AU99: =IF(O99<>"",MAX(O99,AT99),"") -> 2.4 | AV99: 55t | AW99: 0.3 | AX99: =IF(F99<>"",MAX(F99,AW99),"") -> 0.5555555556 | AY99: 30t | AZ99: 0 | BA99: =IF(H99<>"",MAX(H99,AZ99),"") ->  | BC99: 0.19 | BD99: =IF(J99<>"",MAX(J99,BC99),"") -> 0.7 | BE99: 19 | BF99: 59 | BG99: =IF(L99<>"",MAX(L99,BF99),"") -> 59 | BH99: 59 | BI99: 0.57 | BJ99: =IF(N99<>"",MAX(N99,BI99),"") -> 0.8 | BK99: 57t | BL99: 0.3 | BM99: =IF(P99<>"",MAX(P99,BL99),"") -> 3.4 | BN99: 30t | CC99: 0.95 | CE99: 0.95
A100: 153 | B100: Prince William | C100: 0.5769230769 | D100: 0.4846153846 | E100: 0.4711538462 | F100: 0.5 | G100: 0.01075268817 | H100: 0.02857142857 | I100: 0.6633986928 | J100: 0.4820627803 | K100: 0.6705882353 | L100: 0.7830188679 | M100: 0.5609756098 | N100: 0.6904761905 | O100: 2.5 | P100: 2 | Q100: 45 | R100: 44 | S100: 63 | T100: 30t | U100: 52 | V100: 53 | W100: 28 | X100: 81 | Y100: 99 | Z100: 72 | AA100: 105 | AB100: 98 | AC100: 55t | AD100: 69t | AE100: 0.63 | AF100: 0.63 | AG100: 63 | AH100: 0.52 | AI100: 0.52 | AJ100: 52 | AK100: 0.28 | AL100: 0.6633986928 | AM100: 28 | AN100: 0.99 | AO100: 0.99 | AP100: 99 | AQ100: 1.05 | AR100: 1.05 | AS100: 105 | AT100: 0.79 | AU100: 2.5 | AV100: 79t | AW100: 0.3 | AX100: 0.5 | AY100: 30t | AZ100: 0.53 | BA100: 0.53 | BB100: 53 | BC100: 0.81 | BD100: 0.81 | BE100: 81 | BF100: 104 | BG100: 104 | BH100: 104 | BI100: 0.98 | BJ100: 0.98 | BK100: 98 | BL100: 0.95 | BM100: 2 | BN100: 95t | CC100: 0.99 | CE100: 0.99
A101: 155 | B101: Pulaski | C101: 0.44 | D101: 0.4019607843 | E101: 0.5866666667 | F101: 0.5196078431 | G101: 0 | H101: 0 | I101: 0.5240963855 | J101: 0.5482233503 | K101: 0.6363636364 | L101: 0.7358490566 | M101: 0.7857142857 | N101: 0.625 | O101: 2.166666667 | P101: 2 | Q101: 81 | R101: 99 | S101: 47t | T101: 29 | U101: 53t | V101: 54t | W101: 60 | X101: 53 | Y101: 106 | Z101: 86 | AA101: 70 | AB101: 105 | AC101: 104t | AD101: 100t | AE101: 0.47 | AF101: 0.5866666667 | AG101: 47t | AH101: 0.53 | AI101: 0.53 | AJ101: 53t | AK101: 0.6 | AL101: 0.6 | AM101: 60 | AN101: 1.06 | AO101: 1.06 | AP101: 106 | AQ101: 0.7 | AR101: 0.7857142857 | AS101: 70 | AT101: 0.97 | AU101: 2.166666667 | AV101: 97t | AW101: 0.29 | AX101: 0.5196078431 | AY101: 29 | AZ101: 0.54 | BA101: 0.54 | BB101: 54t | BC101: 0.53 | BD101: 0.5482233503 | BE101: 53 | BF101: 105 | BG101: 105 | BH101: 105 | BI101: 1.05 | BJ101: 1.05 | BK101: 105 | BL101: 0.77 | BM101: 2 | BN101: 77t | CC101: 1.06 | CE101: 1.06
A102: 750 | B102: Radford | C102: 0.8571428571 | D102: 0.75 | E102: 0.5714285714 | F102: 0.75 | G102: 0 | H102: 0 | I102: 0.1818181818 | J102: 0.2093023256 | K102: 0.6470588235 | L102: 0.7272727273 | M102: 0.8571428571 | N102: 0.7272727273 | O102: 2.5 | P102: 2.333333333 | Q102: 18t | R102: 6 | S102: 47t | T102: 20 | U102: 53t | V102: 54t | W102: 121 | X102: 115 | Y102: 103 | Z102: 89t | AA102: 33t | AB102: 86t | AC102: 83t | AD102: 86t | AE102: 0.47 | AF102: 0.5714285714 | AG102: 47t | AH102: 0.53 | AI102: 0.53 | AJ102: 53t | AK102: 1.21 | AL102: 1.21 | AM102: 121 | AN102: 1.03 | AO102: 1.03 | AP102: 103 | AQ102: 0.33 | AR102: 0.8571428571 | AS102: 33t | AT102: 1.06 | AU102: 2.5 | AV102: 106t | AW102: 0.2 | AX102: 0.75 | AY102: 20 | AZ102: 0.54 | BA102: 0.54 | BB102: 54t | BC102: 1.15 | BD102: 1.15 | BE102: 115 | BF102: 124 | BG102: 124 | BH102: 124 | BI102: 0.86 | BJ102: 0.86 | BK102: 86t | BL102: 1.06 | BM102: 2.333333333 | BN102: 106t | CC102: 1.03 | CE102: 1.03
A103: 157 | B103: Rappahannock | C103: 0.2857142857 | D103: 0.25 | E103: 0.2857142857 | F103: 0.75 | G103: 0 | H103: 0 | I103: 0.3409090909 | J103: 0.3125 | K103: 0.84 | L103: 0.6666666667 | M103: 0.8461538462 | N103: 0.8 | O103: 1.666666667 | P103: 1.833333333 | Q103: 96t | R103: 83t | S103: 112t | T103: 1t | U103: 53t | V103: 54t | W103: 99 | X103: 103 | Y103: 55 | Z103: 103t | AA103: 41t | AB103: 57t | AC103: 121t | AD103: 104t | AE103: 1.12 | AF103: 1.12 | AG103: 112t | AH103: 0.53 | AI103: 0.53 | AJ103: 53t | AK103: 0.99 | AL103: 0.99 | AM103: 99 | AN103: 0.55 | AO103: 0.84 | AP103: 55 | AQ103: 0.41 | AR103: 0.8461538462 | AS103: 41t | AT103: 1.17 | AU103: 1.666666667 | AV103: 117t | AW103: 0.01 | AX103: 0.75 | AY103: 1t | AZ103: 0.54 | BA103: 0.54 | BB103: 54t | BC103: 1.03 | BD103: 1.03 | BE103: 103 | BF103: 106 | BG103: 106 | BH103: 106 | BI103: 0.57 | BJ103: 0.8 | BK103: 57t | BL103: 0.95 | BM103: 1.833333333 | BN103: 95t | CC103: 0.55 | CE103: 0.55
A104: 760 | B104: Richmond City | C104: 0.5102040816 | D104: 0.5251798561 | E104: 0.4489795918 | F104: 0.4100719424 | G104: 0.2602739726 | H104: 0.198630137 | I104: 0.2106227106 | J104: 0.2114754098 | K104: 0.7272727273 | L104: 0.6748466258 | M104: 0.7752808989 | N104: 0.75 | O104: 1.666666667 | P104: 1.666666667 | Q104: 55 | R104: 45 | S104: 94 | T104: 87 | U104: 36 | V104: 38 | W104: 118 | X104: 114 | Y104: 88t | Z104: 102 | AA104: 72 | AB104: 77t | AC104: 121t | AD104: 117t | AE104: 0.94 | AF104: 0.94 | AG104: 94 | AH104: 0.36 | AI104: 0.36 | AJ104: 36 | AK104: 1.18 | AL104: 1.18 | AM104: 118 | AN104: 0.88 | AO104: 0.88 | AP104: 88t | AQ104: 0.72 | AR104: 0.7752808989 | AS104: 72 | AT104: 1.25 | AU104: 1.666666667 | AV104: 125t | AW104: 0.87 | AX104: 0.87 | AY104: 87 | AZ104: 0.38 | BA104: 0.38 | BB104: 38 | BC104: 1.14 | BD104: 1.14 | BE104: 114 | BF104: 125 | BG104: 125 | BH104: 125 | BI104: 0.77 | BJ104: 0.77 | BK104: 77t | BL104: 1.24 | BM104: 1.666666667 | BN104: 124t | CC104: 0.88 | CE104: 0.88
A105: 159 | B105: Richmond County | C105: 0.3333333333 | D105: 0.3333333333 | E105: 1 | F105: 0.6666666667 | G105: 0.5 | H105: 1 | I105: 0.5 | J105: 0.6666666667 | K105: 0.4 | L105: 0.3333333333 | M105: 1 | N105: 1 | O105: 2.833333333 | P105: 3.166666667 | Q105: 18t | R105: 108t | S105: 19t | T105: 80t | U105: 24t | V105: 1t | W105: 69t | X105: 23t | Y105: 123 | Z105: 124 | AA105: 1t | AB105: 1t | AC105: 14t | AD105: 56t | AE105: 0.19 | AF105: 1 | AG105: 19t | AH105: 0.24 | AI105: 0.5 | AJ105: 24t | AK105: 0.69 | AL105: 0.69 | AM105: 69t | AN105: 1.23 | AO105: 1.23 | AP105: 123 | AQ105: 0.01 | AR105: 1 | AS105: 1t | AT105: 0.24 | AU105: 2.833333333 | AV105: 24t | AW105: 0.8 | AX105: 0.8 | AY105: 80t | AZ105: 0.01 | BA105: 1 | BB105: 1t | BC105: 0.23 | BD105: 0.6666666667 | BE105: 23t | BF105: 107 | BG105: 107 | BH105: 107 | BI105: 0.01 | BJ105: 1 | BK105: 1t | BL105: 0.3 | BM105: 3.166666667 | BN105: 30t | CC105: 1.23 | CE105: 1.23
A106: 770 | B106: Roanoke City | C106: 0.5833333333 | D106: 0.6017699115 | E106: 0.4880952381 | F106: 0.4955752212 | G106: 0.2340425532 | H106: 0 | I106: 0.3350649351 | J106: 0.2670157068 | K106: 0.8870967742 | L106: 0.8549019608 | M106: 0.7314814815 | N106: 0.6704545455 | O106: 2.333333333 | P106: 2.5 | Q106: 38 | R106: 26 | S106: 65 | T106: 54 | U106: 38 | V106: 54t | W106: 100 | X106: 109 | Y106: 35 | Z106: 51 | AA106: 84 | AB106: 101 | AC106: 71t | AD106: 69t | AE106: 0.65 | AF106: 0.65 | AG106: 65 | AH106: 0.38 | AI106: 0.38 | AJ106: 38 | AK106: 1 | AL106: 1 | AM106: 100 | AN106: 0.35 | AO106: 0.8870967742 | AP106: 35 | AQ106: 0.84 | AR106: 0.84 | AS106: 84 | AT106: 0.97 | AU106: 2.333333333 | AV106: 97t | AW106: 0.54 | AX106: 0.54 | AY106: 54 | AZ106: 0.54 | BA106: 0.54 | BB106: 54t | BC106: 1.09 | BD106: 1.09 | BE106: 109 | BF106: 46 | BG106: 46 | BH106: 46 | BI106: 1.01 | BJ106: 1.01 | BK106: 101 | BL106: 0.95 | BM106: 2.5 | BN106: 95t | CC106: 0.35 | CE106: 0.35
A107: 161 | B107: Roanoke County | C107: 0.5333333333 | D107: 0.5192307692 | E107: 0.5666666667 | F107: 0.4423076923 | G107: 0.5238095238 | H107: 0.75 | I107: 0.4509803922 | J107: 0.5092592593 | K107: 0.8490566038 | L107: 0.829787234 | M107: 0.8076923077 | N107: 0.8421052632 | O107: 2.833333333 | P107: 3 | Q107: 47 | R107: 64 | S107: 31 | T107: 52t | U107: 23 | V107: 18 | W107: 82 | X107: 68 | Y107: 52t | Z107: 58t | AA107: 57t | AB107: 41t | AC107: 29t | AD107: 28t | AE107: 0.31 | AF107: 0.5666666667 | AG107: 31 | AH107: 0.23 | AI107: 0.5238095238 | AJ107: 23 | AK107: 0.82 | AL107: 0.82 | AM107: 82 | AN107: 0.52 | AO107: 0.8490566038 | AP107: 52t | AQ107: 0.57 | AR107: 0.8076923077 | AS107: 57t | AT107: 0.43 | AU107: 2.833333333 | AV107: 43t | AW107: 0.52 | AX107: 0.52 | AY107: 52t | AZ107: 0.18 | BA107: 0.75 | BB107: 18 | BC107: 0.68 | BD107: 0.68 | BE107: 68 | BF107: 60 | BG107: 60 | BH107: 60 | BI107: 0.41 | BJ107: 0.8421052632 | BK107: 41t | BL107: 0.22 | BM107: 3 | BN107: 22t | CC107: 0.52 | CE107: 0.52
A108: 163 | B108: Rockbridge | C108: 0.5882352941 | D108: 0.4761904762 | E108: 0.4117647059 | F108: 0.4761904762 | G108: 0 | H108: 0 | I108: 0.7432432432 | J108: 0.6707317073 | K108: 0.5789473684 | L108: 0.75 | M108: 0.8 | N108: 0.8 | O108: 2.333333333 | P108: 2.166666667 | Q108: 76t | R108: 46t | S108: 86t | T108: 46t | U108: 53t | V108: 54t | W108: 8 | X108: 22 | Y108: 114t | Z108: 81t | AA108: 60t | AB108: 57t | AC108: 104t | AD108: 69t | AE108: 0.86 | AF108: 0.86 | AG108: 86t | AH108: 0.53 | AI108: 0.53 | AJ108: 53t | AK108: 0.08 | AL108: 0.7432432432 | AM108: 8 | AN108: 1.14 | AO108: 1.14 | AP108: 114t | AQ108: 0.6 | AR108: 0.8 | AS108: 60t | AT108: 1.06 | AU108: 2.333333333 | AV108: 106t | AW108: 0.46 | AX108: 0.4761904762 | AY108: 46t | AZ108: 0.54 | BA108: 0.54 | BB108: 54t | BC108: 0.22 | BD108: 0.6707317073 | BE108: 22 | BF108: 108 | BG108: 108 | BH108: 108 | BI108: 0.57 | BJ108: 0.8 | BK108: 57t | BL108: 0.77 | BM108: 2.166666667 | BN108: 77t | CC108: 1.14 | CE108: 1.14
A109: 165 | B109: Rockingham | C109: 0.3703703704 | D109: 0.4838709677 | E109: 0.3703703704 | F109: 0.5483870968 | G109: 0.4594594595 | H109: 0.4137931034 | I109: 0.3483146067 | J109: 0.3655913978 | K109: 0.8116883117 | L109: 0.7961783439 | M109: 0.7926829268 | N109: 0.7205882353 | O109: 2 | P109: 2.5 | Q109: 101t | R109: 105 | S109: 105t | T109: 94t | U109: 28 | V109: 24 | W109: 98 | X109: 98 | Y109: 66t | Z109: 68t | AA109: 67t | AB109: 89t | AC109: 104t | AD109: 104t | AE109: 1.05 | AF109: 1.05 | AG109: 105t | AH109: 0.28 | AI109: 0.4594594595 | AJ109: 28 | AK109: 0.98 | AL109: 0.98 | AM109: 98 | AN109: 0.66 | AO109: 0.8116883117 | AP109: 66t | AQ109: 0.67 | AR109: 0.7926829268 | AS109: 67t | AT109: 0.97 | AU109: 2 | AV109: 97t | AW109: 0.94 | AX109: 0.94 | AY109: 94t | AZ109: 0.24 | BA109: 0.4137931034 | BB109: 24 | BC109: 0.98 | BD109: 0.98 | BE109: 98 | BF109: 109 | BG109: 109 | BH109: 109 | BI109: 0.89 | BJ109: 0.89 | BK109: 89t | BL109: 0.95 | BM109: 2.5 | BN109: 95t | CC109: 0.66 | CE109: 0.66
A110: 167 | B110: Russell | C110: 0.6222222222 | D110: 0.5102040816 | E110: 0.5333333333 | F110: 0.4285714286 | G110: 0 | H110: 0 | I110: 0.2307692308 | J110: 0.1393442623 | K110: 0.8656716418 | L110: 0.724137931 | M110: 0.8333333333 | N110: 0.7878787879 | O110: 2.666666667 | P110: 1.666666667 | Q110: 28 | R110: 53t | S110: 44 | T110: 75t | U110: 53t | V110: 54t | W110: 117 | X110: 120 | Y110: 47 | Z110: 92 | AA110: 45t | AB110: 72 | AC110: 55t | AD110: 100t | AE110: 0.44 | AF110: 0.5333333333 | AG110: 44 | AH110: 0.53 | AI110: 0.53 | AJ110: 53t | AK110: 1.17 | AL110: 1.17 | AM110: 117 | AN110: 0.47 | AO110: 0.8656716418 | AP110: 47 | AQ110: 0.45 | AR110: 0.8333333333 | AS110: 45t | AT110: 0.79 | AU110: 2.666666667 | AV110: 79t | AW110: 0.75 | AX110: 0.75 | AY110: 75t | AZ110: 0.54 | BA110: 0.54 | BB110: 54t | BC110: 1.2 | BD110: 1.2 | BE110: 120 | BF110: 110 | BG110: 110 | BH110: 110 | BI110: 0.72 | BJ110: 0.7878787879 | BK110: 72 | BL110: 1.06 | BM110: 1.666666667 | BN110: 106t | CC110: 0.47 | CE110: 0.47
A111: 775 | B111: Salem | C111: 0.4666666667 | D111: 0.2105263158 | E111: 0.4666666667 | F111: 0.3684210526 | G111: 1 | H111: 0.8 | I111: 0.406779661 | J111: 0.46875 | K111: 0.8490566038 | L111: 0.829787234 | M111: 0.8076923077 | N111: 0.8421052632 | O111: 2.166666667 | P111: 2.333333333 | Q111: 76t | R111: 108t | S111: 69 | T111: 112 | U111: 1t | V111: 16 | W111: 91 | X111: 82 | Y111: 52t | Z111: 58t | AA111: 57t | AB111: 41t | AC111: 83t | AD111: 86t | AE111: 0.69 | AF111: 0.69 | AG111: 69 | AH111: 0.01 | AI111: 1 | AJ111: 1t | AK111: 0.91 | AL111: 0.91 | AM111: 91 | AN111: 0.52 | AO111: 0.8490566038 | AP111: 52t | AQ111: 0.57 | AR111: 0.8076923077 | AS111: 57t | AT111: 0.79 | AU111: 2.166666667 | AV111: 79t | AW111: 1.12 | AX111: 1.12 | AY111: 112 | AZ111: 0.16 | BA111: 0.8 | BB111: 16 | BC111: 0.82 | BD111: 0.82 | BE111: 82 | BF111: 66 | BG111: 66 | BH111: 66 | BI111: 0.41 | BJ111: 0.8421052632 | BK111: 41t | BL111: 0.66 | BM111: 2.333333333 | BN111: 66t | CC111: 0.52 | CE111: 0.52
A112: 169 | B112: Scott | C112: 0.2857142857 | D112: 0.2352941176 | E112: 0.1428571429 | F112: 0.2941176471 | H112: 0 | I112: 0.1886792453 | J112: 0.1428571429 | K112: 0.9230769231 | L112: 0.9166666667 | M112: 0.8095238095 | N112: 0.7142857143 | O112: 1.8 | P112: 1.666666667 | Q112: 59t | R112: 100t | S112: 116 | T112: 22t | V112: 54t | W112: 120 | X112: 118t | Y112: 25 | Z112: 24t | AA112: 56 | AB112: 92t | AC112: 104t | AD112: 100t | AE112: 1.16 | AF112: 1.16 | AG112: 116 | AK112: 1.2 | AL112: 1.2 | AM112: 120 | AN112: 0.25 | AO112: 0.9230769231 | AP112: 25 | AQ112: 0.56 | AR112: 0.8095238095 | AS112: 56 | AT112: 1.06 | AU112: 1.8 | AV112: 106t | AW112: 0.22 | AX112: 0.2941176471 | AY112: 22t | AZ112: 0.54 | BA112: 0.54 | BB112: 54t | BC112: 1.18 | BD112: 1.18 | BE112: 118t | BF112: 25 | BG112: 25 | BH112: 25 | BI112: 0.92 | BJ112: 0.92 | BK112: 92t | BL112: 0.77 | BM112: 1.666666667 | BN112: 77t | CC112: 0.25 | CE112: 0.25
A113: 171 | B113: Shenandoah | C113: 0.6034482759 | D113: 0.4358974359 | E113: 0.5 | F113: 0.6153846154 | G113: 0 | H113: 0 | I113: 0.7614678899 | J113: 0.7862068966 | K113: 0.6111111111 | L113: 0.7 | M113: 1 | N113: 1 | O113: 3 | P113: 2.666666667 | Q113: 31 | R113: 53t | S113: 41 | T113: 11t | U113: 53t | V113: 54t | W113: 6 | X113: 10 | Y113: 110 | Z113: 94t | AA113: 1t | AB113: 1t | AC113: 24t | AD113: 28t | AE113: 0.41 | AF113: 0.5 | AG113: 41 | AH113: 0.53 | AI113: 0.53 | AJ113: 53t | AK113: 0.06 | AL113: 0.7614678899 | AM113: 6 | AN113: 1.1 | AO113: 1.1 | AP113: 110 | AQ113: 0.01 | AR113: 1 | AS113: 1t | AT113: 0.26 | AU113: 3 | AV113: 26t | AW113: 0.11 | AX113: 0.6153846154 | AY113: 11t | AZ113: 0.54 | BA113: 0.54 | BB113: 54t | BC113: 0.1 | BD113: 0.7862068966 | BE113: 10 | BF113: 111 | BG113: 111 | BH113: 111 | BI113: 0.01 | BJ113: 1 | BK113: 1t | BL113: 0.3 | BM113: 2.666666667 | BN113: 30t | CC113: 1.1 | CE113: 1.1
A114: 173 | B114: Smyth | C114: 0.7777777778 | D114: 0.1818181818 | E114: 0.7777777778 | F114: 0.2727272727 | G114: 0.8333333333 | H114: 1 | I114: 0.6590909091 | J114: 0.5775862069 | K114: 0.8571428571 | L114: 0.9333333333 | M114: 0.8461538462 | N114: 0.7857142857 | O114: 3.833333333 | P114: 2.666666667 | Q114: 1t | R114: 62t | S114: 17 | T114: 68t | U114: 16 | V114: 1t | W114: 29 | X114: 49 | Y114: 48t | Z114: 20 | AA114: 41t | AB114: 73 | AC114: 1t | AD114: 28t | AE114: 0.17 | AF114: 0.7777777778 | AG114: 17 | AH114: 0.16 | AI114: 0.8333333333 | AJ114: 16 | AK114: 0.29 | AL114: 0.6590909091 | AM114: 29 | AN114: 0.48 | AO114: 0.8571428571 | AP114: 48t | AQ114: 0.41 | AR114: 0.8461538462 | AS114: 41t | AT114: 0.01 | AU114: 3.833333333 | AV114: 1t | AW114: 0.68 | AX114: 0.68 | AY114: 68t | AZ114: 0.01 | BA114: 1 | BB114: 1t | BC114: 0.49 | BD114: 0.5775862069 | BE114: 49 | BF114: 26 | BG114: 26 | BH114: 26 | BI114: 0.73 | BJ114: 0.7857142857 | BK114: 73 | BL114: 0.22 | BM114: 2.666666667 | BN114: 22t | CC114: 0.48 | CE114: 0.48
A115: 175 | B115: Southampton | C115: 1 | D115: 0.6666666667 | E115: 1 | F115: 0.6666666667 | H115: 0.3333333333 | I115: 0.4117647059 | J115: 0.3888888889 | K115: 0.625 | L115: 0.5 | N115: 1 | O115: 2.75 | P115: 3 | Q115: 1t | R115: 13t | S115: 15 | T115: 1t | V115: 25t | W115: 90 | X115: 97 | Y115: 107t | Z115: 119t | AB115: 1t | AC115: 53t | AD115: 28t | AE115: 0.15 | AF115: 1 | AG115: 15 | AK115: 0.9 | AL115: 0.9 | AM115: 90 | AN115: 1.07 | AO115: 1.07 | AP115: 107t | AS115: 0 | AT115: 0.94 | AU115: 2.75 | AV115: 94 | AW115: 0.01 | AX115: 0.6666666667 | AY115: 1t | AZ115: 0.25 | BA115: 0.3333333333 | BB115: 25t | BC115: 0.97 | BD115: 0.97 | BE115: 97 | BF115: 112 | BG115: 112 | BH115: 112 | BI115: 0.01 | BJ115: 1 | BK115: 1t | BL115: 0.5 | BM115: 3 | BN115: 50t | CC115: 1.07 | CE115: 1.07
A116: 177 | B116: Spotsylvania | C116: 0.6164383562 | D116: 0.4142857143 | E116: 0.602739726 | F116: 0.4428571429 | G116: 0.347826087 | H116: 0 | I116: 0.456928839 | J116: 0.5252525253 | K116: 0.7792207792 | L116: 0.8804347826 | M116: 0.6909090909 | N116: 0.7179487179 | O116: 2.666666667 | P116: 2.166666667 | Q116: 42 | R116: 65t | S116: 30 | T116: 70 | U116: 31 | V116: 54t | W116: 81 | X116: 62 | Y116: 80 | Z116: 40 | AA116: 90 | AB116: 91 | AC116: 55t | AD116: 104t | AE116: 0.3 | AF116: 0.602739726 | AG116: 30 | AH116: 0.31 | AI116: 0.347826087 | AJ116: 31 | AK116: 0.81 | AL116: 0.81 | AM116: 81 | AN116: 0.8 | AO116: 0.8 | AP116: 80 | AQ116: 0.9 | AR116: 0.9 | AS116: 90 | AT116: 0.79 | AU116: 2.666666667 | AV116: 79t | AW116: 0.7 | AX116: 0.7 | AY116: 70 | AZ116: 0.54 | BA116: 0.54 | BB116: 54t | BC116: 0.62 | BD116: 0.62 | BE116: 62 | BF116: 27 | BG116: 27 | BH116: 27 | BI116: 0.91 | BJ116: 0.91 | BK116: 91 | BL116: 1.06 | BM116: 2.166666667 | BN116: 106t | CC116: 0.8 | CE116: 0.8
A117: 179 | B117: Stafford | C117: 0.775 | D117: 0.5606060606 | E117: 0.65 | F117: 0.5606060606 | G117: 0 | H117: 0 | I117: 0.6319444444 | J117: 0.6242424242 | K117: 0.9655172414 | L117: 0.88 | M117: 0.8518518519 | N117: 0.8695652174 | O117: 3.333333333 | P117: 3.5 | Q117: 11 | R117: 61 | S117: 33 | T117: 30t | U117: 53t | V117: 54t | W117: 36 | X117: 34 | Y117: 17 | Z117: 41 | AA117: 39 | AB117: 32 | AC117: 14t | AD117: 21t | AE117: 0.33 | AF117: 0.65 | AG117: 33 | AH117: 0.53 | AI117: 0.53 | AJ117: 53t | AK117: 0.36 | AL117: 0.6319444444 | AM117: 36 | AN117: 0.17 | AO117: 0.9655172414 | AP117: 17 | AQ117: 0.39 | AR117: 0.8518518519 | AS117: 39 | AT117: 0.24 | AU117: 3.333333333 | AV117: 24t | AW117: 0.3 | AX117: 0.5606060606 | AY117: 30t | AZ117: 0.54 | BA117: 0.54 | BB117: 54t | BC117: 0.34 | BD117: 0.6242424242 | BE117: 34 | BF117: 28 | BG117: 28 | BH117: 28 | BI117: 0.32 | BJ117: 0.8695652174 | BK117: 32 | BL117: 0.14 | BM117: 3.5 | BN117: 14t | CC117: 0.17 | CE117: 0.17
A118: 790 | B118: Staunton | C118: 0.5357142857 | D118: 0.5238095238 | E118: 0.3214285714 | F118: 0.4761904762 | G118: 1 | H118: 0.875 | I118: 0.4461538462 | J118: 0.5462184874 | K118: 0.8846153846 | L118: 0.875 | M118: 0.7948717949 | N118: 0.7049180328 | O118: 2.5 | P118: 3 | Q118: 50t | R118: 31t | S118: 115 | T118: 80t | U118: 1t | V118: 14 | W118: 83 | X118: 54 | Y118: 38t | Z118: 43t | AA118: 65t | AB118: 95t | AC118: 71t | AD118: 28t | AE118: 1.15 | AF118: 1.15 | AG118: 115 | AH118: 0.01 | AI118: 1 | AJ118: 1t | AK118: 0.83 | AL118: 0.83 | AM118: 83 | AN118: 0.38 | AO118: 0.8846153846 | AP118: 38t | AQ118: 0.65 | AR118: 0.7948717949 | AS118: 65t | AT118: 0.79 | AU118: 2.5 | AV118: 79t | AW118: 0.8 | AX118: 0.8 | AY118: 80t | AZ118: 0.14 | BA118: 0.875 | BB118: 14 | BC118: 0.54 | BD118: 0.5462184874 | BE118: 54 | BF118: 47t | BG118: 0.875 | BH118: 47t | BI118: 0.95 | BJ118: 0.95 | BK118: 95t | BL118: 0.5 | BM118: 3 | BN118: 50t | CC118: 0.38 | CE118: 0.38
A119: 800 | B119: Suffolk | C119: 0.5 | D119: 0.5 | E119: 0.5 | F119: 0.6111111111 | G119: 0.2222222222 | H119: 0.3333333333 | I119: 0.243902439 | J119: 0.275 | K119: 0.7142857143 | L119: 0.5833333333 | M119: 0.2 | N119: 0.8333333333 | O119: 1.833333333 | P119: 2.666666667 | Q119: 36t | R119: 100t | S119: 83t | T119: 22t | U119: 40t | V119: 25t | W119: 116 | X119: 107 | Y119: 92t | Z119: 117 | AA119: 119 | AB119: 43t | AC119: 114t | AD119: 86t | AE119: 0.83 | AF119: 0.83 | AG119: 83t | AH119: 0.4 | AI119: 0.4 | AJ119: 40t | AK119: 1.16 | AL119: 1.16 | AM119: 116 | AN119: 0.92 | AO119: 0.92 | AP119: 92t | AQ119: 1.19 | AR119: 1.19 | AS119: 119 | AT119: 1.25 | AU119: 1.833333333 | AV119: 125t | AW119: 0.22 | AX119: 0.6111111111 | AY119: 22t | AZ119: 0.25 | BA119: 0.3333333333 | BB119: 25t | BC119: 1.07 | BD119: 1.07 | BE119: 107 | BF119: 126 | BG119: 126 | BH119: 126 | BI119: 0.43 | BJ119: 0.8333333333 | BK119: 43t | BL119: 0.66 | BM119: 2.666666667 | BN119: 66t | CC119: 0.92 | CE119: 0.92
A120: 181 | B120: Surry | C120: 0.1 | D120: 0 | E120: 0.3 | F120: 0.6666666667 | I120: 0.7272727273 | J120: 0.8571428571 | O120: 2 | P120: 3 | Q120: 118 | R120: 108t | S120: 111 | T120: 11t | W120: 11t | X120: 2t | AC120: 104t | AD120: 28t | AE120: 1.11 | AF120: 1.11 | AG120: 111 | AK120: 0.11 | AL120: 0.7272727273 | AM120: 11t | AN120: 0 | AS120: 0 | AT120: 0.76 | AU120: 2 | AV120: 76t | AW120: 0.11 | AX120: 0.6666666667 | AY120: 11t | AZ120: 0 | BC120: 0.02 | BD120: 0.8571428571 | BE120: 2t | BI120: 0 | BL120: 0.01 | BM120: 3 | BN120: 1t | CC120: 0 | CE120: 0
A121: 183 | B121: Sussex | C121: 0.25 | D121: 1 | E121: 0.5 | F121: 1 | G121: 1 | I121: 0.68 | J121: 0.7727272727 | K121: 1 | L121: 1 | M121: 1 | N121: 1 | O121: 3.333333333 | P121: 4 | Q121: 59t | S121: 47t | U121: 1t | W121: 23 | X121: 13 | Y121: 1t | Z121: 1t | AA121: 1t | AB121: 1t | AC121: 8 | AD121: 1 | AE121: 0.47 | AF121: 0.5 | AG121: 47t | AH121: 0.01 | AI121: 1 | AJ121: 1t | AK121: 0.23 | AL121: 0.68 | AM121: 23 | AN121: 0.01 | AO121: 1 | AP121: 1t | AQ121: 0.01 | AR121: 1 | AS121: 1t | AT121: 0.01 | AU121: 3.333333333 | AV121: 1t | AW121: 0 | AX121: 1 | AZ121: 0 | BC121: 0.13 | BD121: 0.7727272727 | BE121: 13 | BF121: 29 | BG121: 29 | BH121: 29 | BI121: 0.01 | BJ121: 1 | BK121: 1t | BL121: 0.01 | BM121: 4 | BN121: 1t | CC121: 0.01 | CE121: 0.01
A122: 185 | B122: Tazewell | C122: 0.64 | D122: 0.45 | E122: 0.48 | F122: 0.35 | G122: 0 | I122: 0.27 | J122: 0.2745098039 | K122: 0.9387755102 | L122: 0.8888888889 | M122: 0.7741935484 | N122: 0.6842105263 | O122: 2.333333333 | P122: 1.8 | Q122: 16t | R122: 31t | S122: 71t | T122: 110t | U122: 53t | W122: 112 | X122: 108 | Y122: 21 | Z122: 36 | AA122: 73 | AB122: 99 | AC122: 83t | AD122: 81t | AE122: 0.71 | AF122: 0.71 | AG122: 71t | AH122: 0.53 | AI122: 0.53 | AJ122: 53t | AK122: 1.12 | AL122: 1.12 | AM122: 112 | AN122: 0.21 | AO122: 0.9387755102 | AP122: 21 | AQ122: 0.73 | AR122: 0.7741935484 | AS122: 73 | AT122: 1.06 | AU122: 2.333333333 | AV122: 106t | AW122: 1.1 | AX122: 1.1 | AY122: 110t | AZ122: 0 | BC122: 1.08 | BD122: 1.08 | BE122: 108 | BF122: 30 | BG122: 30 | BH122: 30 | BI122: 0.99 | BJ122: 0.99 | BK122: 99 | BL122: 1.06 | BM122: 1.8 | BN122: 106t | CC122: 0.21 | CE122: 0.21
A123: 810 | B123: Virginia Beach | C123: 0.4954954955 | D123: 0.4942528736 | E123: 0.4594594595 | F123: 0.4137931034 | G123: 0.128 | H123: 0.05357142857 | I123: 0.3314917127 | J123: 0.126146789 | K123: 0.8136363636 | L123: 0.8050847458 | M123: 0.6705882353 | N123: 0.6632653061 | O123: 1.833333333 | P123: 1.666666667 | Q123: 72 | R123: 95 | S123: 80 | T123: 93 | U123: 47 | V123: 49 | W123: 103 | X123: 121 | Y123: 65 | Z123: 65 | AA123: 93 | AB123: 104 | AC123: 121t | AD123: 125t | AE123: 0.8 | AF123: 0.8 | AG123: 80 | AH123: 0.47 | AI123: 0.47 | AJ123: 47 | AK123: 1.03 | AL123: 1.03 | AM123: 103 | AN123: 0.65 | AO123: 0.8136363636 | AP123: 65 | AQ123: 0.93 | AR123: 0.93 | AS123: 93 | AT123: 1.22 | AU123: 1.833333333 | AV123: 122t | AW123: 0.93 | AX123: 0.93 | AY123: 93 | AZ123: 0.49 | BA123: 0.49 | BB123: 49 | BC123: 1.21 | BD123: 1.21 | BE123: 121 | BF123: 67 | BG123: 67 | BH123: 67 | BI123: 1.04 | BJ123: 1.04 | BK123: 104 | BL123: 1.21 | BM123: 1.666666667 | BN123: 121t | CC123: 0.65 | CE123: 0.65
A124: 187 | B124: Warren | C124: 0.65 | D124: 0.5 | E124: 0.4 | F124: 0.4444444444 | G124: 0 | I124: 0.5185185185 | J124: 0.4833333333 | K124: 0.7222222222 | L124: 0.8571428571 | M124: 0.75 | N124: 0.8 | O124: 2.166666667 | P124: 2.6 | Q124: 59t | R124: 91 | S124: 86t | T124: 30t | U124: 53t | W124: 63 | X124: 79 | Y124: 90t | Z124: 50 | AA124: 77t | AB124: 57t | AC124: 114t | AD124: 99 | AE124: 0.86 | AF124: 0.86 | AG124: 86t | AH124: 0.53 | AI124: 0.53 | AJ124: 53t | AK124: 0.63 | AL124: 0.63 | AM124: 63 | AN124: 0.9 | AO124: 0.9 | AP124: 90t | AQ124: 0.77 | AR124: 0.77 | AS124: 77t | AT124: 1.17 | AU124: 2.166666667 | AV124: 117t | AW124: 0.3 | AX124: 0.4444444444 | AY124: 30t | AZ124: 0 | BC124: 0.79 | BD124: 0.79 | BE124: 79 | BF124: 31 | BG124: 31 | BH124: 31 | BI124: 0.57 | BJ124: 0.8 | BK124: 57t | BL124: 0.73 | BM124: 2.6 | BN124: 73t | CC124: 0.9 | CE124: 0.9
A125: 191 | B125: Washington | C125: 0.75 | D125: 0.5 | E125: 0.5 | F125: 0.7777777778 | G125: 0.6086956522 | H125: 0.7142857143 | I125: 0.2748091603 | J125: 0.1923076923 | K125: 0.8461538462 | L125: 0.8409090909 | M125: 0.7333333333 | N125: 0.8125 | O125: 2.833333333 | P125: 3 | Q125: 18t | R125: 59 | S125: 47t | T125: 11t | U125: 20 | V125: 19 | W125: 108 | X125: 117 | Y125: 54 | Z125: 54 | AA125: 83 | AB125: 51 | AC125: 45t | AD125: 28t | AE125: 0.47 | AF125: 0.5 | AG125: 47t | AH125: 0.2 | AI125: 0.6086956522 | AJ125: 20 | AK125: 1.08 | AL125: 1.08 | AM125: 108 | AN125: 0.54 | AO125: 0.8461538462 | AP125: 54 | AQ125: 0.83 | AR125: 0.83 | AS125: 83 | AT125: 0.65 | AU125: 2.833333333 | AV125: 65t | AW125: 0.11 | AX125: 0.7777777778 | AY125: 11t | AZ125: 0.19 | BA125: 0.7142857143 | BB125: 19 | BC125: 1.17 | BD125: 1.17 | BE125: 117 | BF125: 61 | BG125: 61 | BH125: 61 | BI125: 0.51 | BJ125: 0.8125 | BK125: 51 | BL125: 0.3 | BM125: 3 | BN125: 30t | CC125: 0.54 | CE125: 0.54
A126: 820 | B126: Waynesboro | C126: 0.5 | D126: 0.4545454545 | E126: 0.4666666667 | F126: 0.3636363636 | G126: 0.8571428571 | H126: 1 | I126: 0.4827586207 | J126: 0.5405405405 | K126: 0.8846153846 | L126: 0.875 | M126: 0.7948717949 | N126: 0.7049180328 | O126: 2.666666667 | P126: 2.666666667 | Q126: 56 | R126: 74t | S126: 75 | T126: 46t | U126: 15 | V126: 1t | W126: 75t | X126: 57t | Y126: 38t | Z126: 43t | AA126: 65t | AB126: 95t | AC126: 45t | AD126: 45t | AE126: 0.75 | AF126: 0.75 | AG126: 75 | AH126: 0.15 | AI126: 0.8571428571 | AJ126: 15 | AK126: 0.75 | AL126: 0.75 | AM126: 75t | AN126: 0.38 | AO126: 0.8846153846 | AP126: 38t | AQ126: 0.65 | AR126: 0.7948717949 | AS126: 65t | AT126: 0.43 | AU126: 2.666666667 | AV126: 43t | AW126: 0.46 | AX126: 0.46 | AY126: 46t | AZ126: 0.01 | BA126: 1 | BB126: 1t | BC126: 0.57 | BD126: 0.57 | BE126: 57t | BF126: 47t | BG126: 0.875 | BH126: 47t | BI126: 0.95 | BJ126: 0.95 | BK126: 95t | BL126: 0.22 | BM126: 2.666666667 | BN126: 22t | CC126: 0.38 | CE126: 0.38
A127: 193 | B127: Westmoreland | C127: 0.5 | D127: 0.5 | E127: 0.5 | F127: 1 | G127: 0.6666666667 | H127: 1 | I127: 0.7073170732 | J127: 0.8571428571 | K127: 0.3333333333 | L127: 0.6666666667 | M127: 0.9 | N127: 1 | O127: 3.166666667 | P127: 3.5 | Q127: 59t | R127: 31t | S127: 47t | T127: 1t | U127: 19 | V127: 1t | W127: 18 | X127: 2t | Y127: 124t | Z127: 103t | AA127: 26 | AB127: 1t | AC127: 24t | AD127: 3t | AE127: 0.47 | AF127: 0.5 | AG127: 47t | AH127: 0.19 | AI127: 0.6666666667 | AJ127: 19 | AK127: 0.18 | AL127: 0.7073170732 | AM127: 18 | AN127: 1.24 | AO127: 1.24 | AP127: 124t | AQ127: 0.26 | AR127: 0.9 | AS127: 26 | AT127: 0.14 | AU127: 3.166666667 | AV127: 14t | AW127: 0.01 | AX127: 1 | AY127: 1t | AZ127: 0.01 | BA127: 1 | BB127: 1t | BC127: 0.02 | BD127: 0.8571428571 | BE127: 2t | BF127: 113 | BG127: 113 | BH127: 113 | BI127: 0.01 | BJ127: 1 | BK127: 1t | BL127: 0.08 | BM127: 3.5 | BN127: 8t | CC127: 1.24 | CE127: 1.24
A128: 830 | B128: Williamsburg | C128: 0.6666666667 | D128: 1 | E128: 0.3333333333 | F128: 1 | I128: 0.25 | J128: 0.3333333333 | K128: 0.8888888889 | L128: 1 | M128: 1 | N128: 0.8888888889 | O128: 2.8 | P128: 3.4 | Q128: 59t | R128: 108t | S128: 47t | T128: 1t | W128: 115 | X128: 102 | Y128: 32t | Z128: 1t | AA128: 1t | AB128: 28 | AC128: 48t | AD128: 52t | AE128: 0.47 | AF128: 0.47 | AG128: 47t | AH128: 0 | AK128: 1.15 | AL128: 1.15 | AM128: 115 | AN128: 0.32 | AO128: 0.8888888889 | AP128: 32t | AQ128: 0.01 | AR128: 1 | AS128: 1t | AT128: 0.26 | AU128: 2.8 | AV128: 26t | AW128: 0.01 | AX128: 1 | AY128: 1t | AZ128: 0 | BC128: 1.02 | BD128: 1.02 | BE128: 102 | BF128: 49 | BG128: 49 | BH128: 49 | BI128: 0.28 | BJ128: 0.8888888889 | BK128: 28 | BL128: 0.18 | BM128: 3.4 | BN128: 18t | CC128: 0.32 | CE128: 0.32
A129: 840 | B129: Winchester | C129: 0.3333333333 | D129: 0.4375 | E129: 0.3888888889 | F129: 0.5625 | G129: 0 | H129: 0.06666666667 | I129: 0.5535714286 | J129: 0.5923566879 | K129: 1 | L129: 0.9 | M129: 0.8333333333 | N129: 0.9230769231 | O129: 2.333333333 | P129: 3 | Q129: 114 | R129: 70t | S129: 105t | T129: 79 | U129: 53t | V129: 48 | W129: 52 | X129: 46 | Y129: 1t | Z129: 29t | AA129: 45t | AB129: 26 | AC129: 83t | AD129: 56t | AE129: 1.05 | AF129: 1.05 | AG129: 105t | AH129: 0.53 | AI129: 0.53 | AJ129: 53t | AK129: 0.52 | AL129: 0.5535714286 | AM129: 52 | AN129: 0.01 | AO129: 1 | AP129: 1t | AQ129: 0.45 | AR129: 0.8333333333 | AS129: 45t | AT129: 0.65 | AU129: 2.333333333 | AV129: 65t | AW129: 0.79 | AX129: 0.79 | AY129: 79 | AZ129: 0.48 | BA129: 0.48 | BB129: 48 | BC129: 0.46 | BD129: 0.5923566879 | BE129: 46 | BF129: 50 | BG129: 50 | BH129: 50 | BI129: 0.26 | BJ129: 0.9230769231 | BK129: 26 | BL129: 0.5 | BM129: 3 | BN129: 50t | CC129: 0.01 | CE129: 0.01
A130: 195 | B130: Wise | C130: 0.5 | D130: 0.3125 | E130: 0.4166666667 | F130: 0.375 | G130: 0 | H130: 0 | I130: 0.2582417582 | J130: 0.303030303 | K130: 0.9252336449 | L130: 0.9541284404 | M130: 0.8181818182 | N130: 0.8032786885 | O130: 2 | P130: 1.666666667 | Q130: 49 | R130: 106 | S130: 71t | T130: 68t | U130: 53t | V130: 54t | W130: 113 | X130: 104 | Y130: 24 | Z130: 17 | AA130: 52t | AB130: 56 | AC130: 83t | AD130: 117t | AE130: 0.71 | AF130: 0.71 | AG130: 71t | AH130: 0.53 | AI130: 0.53 | AJ130: 53t | AK130: 1.13 | AL130: 1.13 | AM130: 113 | AN130: 0.24 | AO130: 0.9252336449 | AP130: 24 | AQ130: 0.52 | AR130: 0.8181818182 | AS130: 52t | AT130: 0.97 | AU130: 2 | AV130: 97t | AW130: 0.68 | AX130: 0.68 | AY130: 68t | AZ130: 0.54 | BA130: 0.54 | BB130: 54t | BC130: 1.04 | BD130: 1.04 | BE130: 104 | BF130: 32 | BG130: 32 | BH130: 32 | BI130: 0.56 | BJ130: 0.8032786885 | BK130: 56 | BL130: 1.06 | BM130: 1.666666667 | BN130: 106t | CC130: 0.24 | CE130: 0.24
A131: 197 | B131: Wythe | C131: 0.5 | D131: 0.6666666667 | E131: 0.5 | F131: 0.4761904762 | G131: 0 | H131: 0 | I131: 0.5052631579 | J131: 0.5565217391 | K131: 0.9032258065 | L131: 0.8974358974 | M131: 0.7222222222 | N131: 0.7826086957 | O131: 2.5 | P131: 2.833333333 | Q131: 59t | R131: 10t | S131: 86t | T131: 73t | U131: 53t | V131: 54t | W131: 67 | X131: 50 | Y131: 28 | Z131: 34 | AA131: 86t | AB131: 74 | AC131: 98t | AD131: 45t | AE131: 0.86 | AF131: =IF(E131<>"",MAX(E131,AE131),"") -> 0.86 | AG131: 86t | AH131: 0.53 | AI131: =IF(G131<>"",MAX(G131,AH131),"") -> 0.53 | AJ131: 53t | AK131: 0.67 | AL131: =IF(I131<>"",MAX(I131,AK131),"") -> 0.67 | AM131: 67 | AN131: 0.28 | AO131: =IF(K131<>"",MAX(K131,AN131),"") -> 0.9032258065 | AP131: 28 | AQ131: 0.86 | AR131: =IF(M131<>"",MAX(M131,AQ131),"") -> 0.86 | AS131: 86t | AT131: 0.97 | AU131: =IF(O131<>"",MAX(O131,AT131),"") -> 2.5 | AV131: 97t | AW131: 0.73 | AX131: =IF(F131<>"",MAX(F131,AW131),"") -> 0.73 | AY131: 73t | AZ131: 0.54 | BA131: =IF(H131<>"",MAX(H131,AZ131),"") -> 0.54 | BB131: 54t | BC131: 0.5 | BD131: =IF(J131<>"",MAX(J131,BC131),"") -> 0.5565217391 | BE131: 50 | BF131: 33 | BG131: =IF(L131<>"",MAX(L131,BF131),"") -> 33 | BH131: 33 | BI131: 0.74 | BJ131: =IF(N131<>"",MAX(N131,BI131),"") -> 0.7826086957 | BK131: 74 | BL131: 0.66 | BM131: =IF(P131<>"",MAX(P131,BL131),"") -> 2.833333333 | BN131: 66t | CC131: 0.28 | CE131: 0.28
A132: 199 | B132: York | C132: 0.6 | D132: 0.2 | E132: 0.5 | F132: 0.6 | G132: 0.2 | H132: 0 | I132: 0.5625 | J132: 0.6 | K132: 0.5 | L132: 0.25 | M132: 0.6 | O132: 2.666666667 | P132: 2.4 | Q132: 96t | R132: 83t | S132: 47t | T132: 11t | U132: 43 | V132: 54t | W132: 48t | X132: 42t | Y132: 120t | Z132: 125t | AA132: 99t | AC132: 98t | AD132: 81t | AE132: 0.47 | AF132: =IF(E132<>"",MAX(E132,AE132),"") -> 0.5 | AG132: 47t | AH132: 0.43 | AI132: =IF(G132<>"",MAX(G132,AH132),"") -> 0.43 | AJ132: 43 | AK132: 0.48 | AL132: =IF(I132<>"",MAX(I132,AK132),"") -> 0.5625 | AM132: 48t | AN132: 1.2 | AO132: =IF(K132<>"",MAX(K132,AN132),"") -> 1.2 | AP132: 120t | AQ132: 0.99 | AR132: =IF(M132<>"",MAX(M132,AQ132),"") -> 0.99 | AS132: 99t | AT132: 0.79 | AU132: =IF(O132<>"",MAX(O132,AT132),"") -> 2.666666667 | AV132: 79t | AW132: 0.11 | AX132: =IF(F132<>"",MAX(F132,AW132),"") -> 0.6 | AY132: 11t | AZ132: 0.54 | BA132: =IF(H132<>"",MAX(H132,AZ132),"") -> 0.54 | BB132: 54t | BC132: 0.42 | BD132: =IF(J132<>"",MAX(J132,BC132),"") -> 0.6 | BE132: 42t | BF132: 114 | BG132: =IF(L132<>"",MAX(L132,BF132),"") -> 114 | BH132: 114 | BI132: 0 | BL132: 0.6 | BM132: =IF(P132<>"",MAX(P132,BL132),"") -> 2.4 | BN132: 60t | CC132: 1.2 | CE132: 1.2
B133: Statewide | C133: 0.5184128631 | D133: 0.4985922703 | E133: 0.4909232365 | F133: 0.4845149731 | G133: 0.3192267503 | H133: 0.3104557641 | I133: 0.5039400346 | J133: 0.5048650042 | K133: 0.8213783404 | L133: 0.8195706827 | M133: 0.775711575 | N133: 0.7733895706 | O133: 2.598333333 | P133: 2.617179487
B135: Locality Performance Measures with Rankings
L139: l
B166: 1Decreases in CANS scores are generally indicative of improved functioning. CANS performance measures are updated periodically with the youth's latest scores. Scores are expected to decrease as time passes and more services are provided. The average number of days between the youth's inital and latest scores is 474 days for FY 2015 and 319 days for FY 2016. As such, FY 2015 CANS scores are not directly comparable to FY 2016 CANS scores.
B167: 2For the percent of youth receiving ICC, the average is taken for non-zero values only.
B168: 3For each of the five outcome measures, localities are assigned a score relative to their proximity to either the statewide average or targets set by the Commonwealth. The composite outcome measure score is calculated using the average of the six outcome measure scores, with 4 being the highest possible score.

Sheet All
B1: CSA Performance Measures - FY2016-2018
A2: Fips | C2: Percent of Youth with a Decrease in CANS Child School Domain1 | F2: Percent of Youth with a Decrease in CANS Child Behavior/Emotional Needs Domain1 | I2: Percent of Youth with a Decrease in CANS Child Strengths Domain1 | L2: Percent of Youth Receiving ICC Against Those in Residential2 (Target=75%) | O2: Percent of Youth Receiving CBS Out of All CSA Youth (Target=50%) | R2: Percent of Foster Care Children in Family-based Placements (Target=85%) | U2: Percent of Children Who Exit from Foster Care to a Permanent Living Arrangement (Target = 86%) | X2: Composite Performance Measure3 | AA2: SCH16 | AB2: SCH17 | AC2: SCH18 | AD2: BEH16 | AE2: BEH17 | AF2: BEH18 | AG2: STH16 | AH2: STH17 | AI2: STH18 | AJ2: ICC16 | AK2: ICC17 | AL2: ICC18 | AM2: CBS16 | AN2: CBS17 | AO2: CBS18 | AP2: Fam16 | AQ2: Fam17 | AR2: Fam18 | AS2: Per16 | AT2: Per17 | AU2: Per18 | AV2: Com16 | AW2: Com17 | AX2: Com18 | AY2: CANS16_School | BB2: CANS16_Behavior | BE2: CANS16_Strength | BH2: ICC Rank16 | BK2: CBS16 | BN2: Family16 | BQ2: Permanency16 | BT2: Composite16 | BW2: CANS17_School | BZ2: CANS17_Behavior | CC2: CANS17_Strength | CF2: ICC Rank17 | CI2: CBS17 | CL2: Family17 | CO2: Permanency17 | CR2: Composite17 | CU2: CANS18_School | CX2: CANS18_Behavior | DA2: CANS18_Strength | DD2: ICC Rank18 | DG2: CBS18 | DJ2: Family18 | DM2: Permanency18 | DP2: Composite18
B3: Locality | C3: 2016 | D3: 2017 | E3: 2018 | F3: 2016 | G3: 2017 | H3: 2018 | I3: 2016 | J3: 2017 | K3: 2018 | L3: 2016 | M3: 2017 | N3: 2018 | O3: 2016 | P3: 2017 | Q3: 2018 | R3: 2016 | S3: 2017 | T3: 2018 | U3: 2016 | V3: 2017 | W3: 2018 | X3: 2016 | Y3: 2017 | Z3: 2018
A4: 1 | B4: Accomack | C4: 0.5714285714 | D4: 0.4444444444 | E4: 0.375 | F4: 0.4285714286 | G4: 0.3333333333 | H4: 0.4444444444 | I4: 0.5714285714 | J4: 0.4444444444 | K4: 0.4444444444 | L4: 0 | M4: 0 | N4: 0 | O4: 0.25 | P4: 0.3448275862 | Q4: 0.1612903226 | R4: 0.8333333333 | S4: 1 | T4: 0.9230769231 | U4: 0.8 | V4: 0.667 | W4: 0.8333333333 | X4: 2 | Y4: 1.571428571 | Z4: 1.857142857 | AA4: 41t | AB4: 84 | AC4: 86t | AD4: 89t | AE4: 102t | AF4: 66t | AG4: 64 | AH4: 111 | AI4: 88t | AJ4: 54t | AK4: 58t | AL4: 54t | AM4: 110t | AN4: 99t | AO4: 121 | AP4: 56t | AQ4: 1t | AR4: 22t | AS4: 57t | AT4: 93t | AU4: 41t | AV4: 108t | AW4: 124t | AX4: 115t | AY4: 0.41 | AZ4: =IF(C4<>"",MAX(C4,AY4),"") -> 0.5714285714 | BA4: 41t | BB4: 0.89 | BC4: =IF(F4<>"",MAX(F4,BB4),"") -> 0.89 | BD4: 89t | BE4: 0.64 | BF4: =IF(I4<>"",MAX(I4,BE4),"") -> 0.64 | BG4: 64 | BH4: 0.54 | BI4: =IF(L4<>"",MAX(L4,BH4),"") -> 0.54 | BJ4: 54t | BK4: 1.1 | BL4: =IF(O4<>"",MAX(O4,BK4),"") -> 1.1 | BM4: 110t | BN4: 0.56 | BO4: =IF(R4<>"",MAX(R4,BN4),"") -> 0.8333333333 | BP4: 56t | BQ4: 0.57 | BR4: =IF(U4<>"",MAX(U4,BQ4),"") -> 0.8 | BS4: 57t | BT4: 1.08 | BU4: =IF(X4<>"",MAX(X4,BT4),"") -> 2 | BV4: 108t | BW4: 0.84 | BX4: =IF(D4<>"",MAX(D4,BW4),"") -> 0.84 | BY4: 84 | BZ4: 1.02 | CA4: =IF(G4<>"",MAX(G4,BZ4),"") -> 1.02 | CB4: 102t | CC4: 1.11 | CD4: =IF(J4<>"",MAX(J4,CC4),"") -> 1.11 | CE4: 111 | CF4: 0.58 | CG4: =IF(M4<>"",MAX(M4,CF4),"") -> 0.58 | CH4: 58t | CI4: 0.99 | CJ4: =IF(P4<>"",MAX(P4,CI4),"") -> 0.99 | CK4: 99t | CL4: 0.01 | CM4: =IF(S4<>"",MAX(S4,CL4),"") -> 1 | CN4: 1t | CO4: 0.93 | CP4: =IF(V4<>"",MAX(V4,CO4),"") -> 0.93 | CQ4: 93t | CR4: 1.24 | CS4: =IF(Y4<>"",MAX(Y4,CR4),"") -> 1.571428571 | CT4: 124t | CU4: 0.86 | CV4: =IF(E4<>"",MAX(E4,CU4),"") -> 0.86 | CW4: 86t | CX4: 0.66 | CY4: =IF(H4<>"",MAX(H4,CX4),"") -> 0.66 | CZ4: 66t | DA4: 0.88 | DB4: =IF(K4<>"",MAX(K4,DA4),"") -> 0.88 | DC4: 88t | DD4: 0.54 | DE4: =IF(N4<>"",MAX(N4,DD4),"") -> 0.54 | DF4: 54t | DG4: 1.21 | DH4: =IF(Q4<>"",MAX(Q4,DG4),"") -> 1.21 | DI4: 121 | DJ4: 0.22 | DK4: =IF(T4<>"",MAX(T4,DJ4),"") -> 0.9230769231 | DL4: 22t | DM4: 41 | DN4: =IF(W4<>"",MAX(W4,DM4),"") -> 41 | DO4: 41t | DP4: 1.15 | DQ4: =IF(Z4<>"",MAX(Z4,DP4),"") -> 1.857142857 | DR4: 115t
A5: 3 | B5: Albemarle | C5: 0.4375 | D5: 0.5573770492 | E5: 0.5294117647 | F5: 0.5208333333 | G5: 0.5409836066 | H5: 0.5294117647 | I5: 0.5416666667 | J5: 0.7213114754 | K5: 0.5411764706 | L5: 0.6875 | M5: 1 | N5: 0.68 | O5: 0.6060606061 | P5: 0.7080745342 | Q5: 0.6918032787 | R5: 0.9 | S5: 0.7692307692 | T5: 0.8850574713 | U5: 0.7450980392 | V5: 0.951 | W5: 0.675 | X5: 2.857142857 | Y5: 3.571428571 | Z5: 3.428571429 | AA5: 88t | AB5: 54 | AC5: 44t | AD5: 66 | AE5: 57 | AF5: 34 | AG5: 77 | AH5: 34 | AI5: 60 | AJ5: 20 | AK5: 1t | AL5: 25 | AM5: 41 | AN5: 18 | AO5: 19 | AP5: 29t | AQ5: 75t | AR5: 35 | AS5: 84 | AT5: 21 | AU5: 87 | AV5: 40t | AW5: 9t | AX5: 10t | AY5: 0.88 | AZ5: =IF(C5<>"",MAX(C5,AY5),"") -> 0.88 | BA5: 88t | BB5: 0.66 | BC5: =IF(F5<>"",MAX(F5,BB5),"") -> 0.66 | BD5: 66 | BE5: 0.77 | BF5: =IF(I5<>"",MAX(I5,BE5),"") -> 0.77 | BG5: 77 | BH5: 0.2 | BI5: =IF(L5<>"",MAX(L5,BH5),"") -> 0.6875 | BJ5: 20 | BK5: 0.41 | BL5: =IF(O5<>"",MAX(O5,BK5),"") -> 0.6060606061 | BM5: 41 | BN5: 0.29 | BO5: =IF(R5<>"",MAX(R5,BN5),"") -> 0.9 | BP5: 29t | BQ5: 0.84 | BR5: =IF(U5<>"",MAX(U5,BQ5),"") -> 0.84 | BS5: 84 | BT5: 0.4 | BU5: =IF(X5<>"",MAX(X5,BT5),"") -> 2.857142857 | BV5: 40t | BW5: 0.54 | BX5: =IF(D5<>"",MAX(D5,BW5),"") -> 0.5573770492 | BY5: 54 | BZ5: 0.57 | CA5: =IF(G5<>"",MAX(G5,BZ5),"") -> 0.57 | CB5: 57 | CC5: 0.34 | CD5: =IF(J5<>"",MAX(J5,CC5),"") -> 0.7213114754 | CE5: 34 | CF5: 0.01 | CG5: =IF(M5<>"",MAX(M5,CF5),"") -> 1 | CH5: 1t | CI5: 0.18 | CJ5: =IF(P5<>"",MAX(P5,CI5),"") -> 0.7080745342 | CK5: 18 | CL5: 0.75 | CM5: =IF(S5<>"",MAX(S5,CL5),"") -> 0.7692307692 | CN5: 75t | CO5: 0.21 | CP5: =IF(V5<>"",MAX(V5,CO5),"") -> 0.951 | CQ5: 21 | CR5: 0.09 | CS5: =IF(Y5<>"",MAX(Y5,CR5),"") -> 3.571428571 | CT5: 9t | CU5: 0.44 | CV5: =IF(E5<>"",MAX(E5,CU5),"") -> 0.5294117647 | CW5: 44t | CX5: 0.34 | CY5: =IF(H5<>"",MAX(H5,CX5),"") -> 0.5294117647 | CZ5: 34 | DA5: 0.6 | DB5: =IF(K5<>"",MAX(K5,DA5),"") -> 0.6 | DC5: 60 | DD5: 0.25 | DE5: =IF(N5<>"",MAX(N5,DD5),"") -> 0.68 | DF5: 25 | DG5: 0.19 | DH5: =IF(Q5<>"",MAX(Q5,DG5),"") -> 0.6918032787 | DI5: 19 | DJ5: 0.35 | DK5: =IF(T5<>"",MAX(T5,DJ5),"") -> 0.8850574713 | DL5: 35 | DM5: 87 | DN5: =IF(W5<>"",MAX(W5,DM5),"") -> 87 | DO5: 87 | DP5: 0.1 | DQ5: =IF(Z5<>"",MAX(Z5,DP5),"") -> 3.428571429 | DR5: 10t
A6: 510 | B6: Alexandria | C6: 0.4222222222 | D6: 0.6486486486 | E6: 0.4285714286 | F6: 0.4222222222 | G6: 0.5405405405 | H6: 0.3023255814 | I6: 0.5333333333 | J6: 0.5945945946 | K6: 0.5581395349 | L6: 0.8571428571 | M6: 1 | N6: 1 | O6: 0.5043859649 | P6: 0.5283842795 | Q6: 0.52 | R6: 0.8651685393 | S6: 0.8863636364 | T6: 0.90625 | U6: 0.7297297297 | V6: 0.774 | W6: 0.7714285714 | X6: 2.142857143 | Y6: 3.285714286 | Z6: 2.571428571 | AA6: 94 | AB6: 34 | AC6: 72t | AD6: 93 | AE6: 58 | AF6: 108 | AG6: 81 | AH6: 71 | AI6: 54t | AJ6: 15 | AK6: 1t | AL6: 1t | AM6: 71 | AN6: 66 | AO6: 68t | AP6: 48 | AQ6: 36t | AR6: 28 | AS6: 85 | AT6: 74 | AU6: 60t | AV6: 99t | AW6: 26t | AX6: 59t | AY6: 0.94 | AZ6: 0.94 | BA6: 94 | BB6: 0.93 | BC6: 0.93 | BD6: 93 | BE6: 0.81 | BF6: 0.81 | BG6: 81 | BH6: 0.15 | BI6: 0.8571428571 | BJ6: 15 | BK6: 0.71 | BL6: 0.71 | BM6: 71 | BN6: 0.48 | BO6: 0.8651685393 | BP6: 48 | BQ6: 0.85 | BR6: 0.85 | BS6: 85 | BT6: 0.99 | BU6: 2.142857143 | BV6: 99t | BW6: 0.34 | BX6: 0.6486486486 | BY6: 34 | BZ6: 0.58 | CA6: 0.58 | CB6: 58 | CC6: 0.71 | CD6: 0.71 | CE6: 71 | CF6: 0.01 | CG6: 1 | CH6: 1t | CI6: 0.66 | CJ6: 0.66 | CK6: 66 | CL6: 0.36 | CM6: 0.8863636364 | CN6: 36t | CO6: 0.74 | CP6: 0.774 | CQ6: 74 | CR6: 0.26 | CS6: 3.285714286 | CT6: 26t | CU6: 0.72 | CV6: 0.72 | CW6: 72t | CX6: 1.08 | CY6: 1.08 | CZ6: 108 | DA6: 0.54 | DB6: 0.5581395349 | DC6: 54t | DD6: 0.01 | DE6: 1 | DF6: 1t | DG6: 0.68 | DH6: =IF(Q6<>"",MAX(Q6,DG6),"") -> 0.68 | DI6: 68t | DJ6: 0.28 | DK6: 0.90625 | DL6: 28 | DM6: 60 | DN6: 60 | DO6: 60t | DP6: 0.59 | DQ6: 2.571428571 | DR6: 59t
A7: 5 | B7: Alleghany | C7: 0.6363636364 | D7: 0.7 | E7: 0.5555555556 | F7: 0.5454545455 | G7: 0.6 | H7: 0.6666666667 | I7: 0.6818181818 | J7: 0.8 | K7: 0.4444444444 | O7: 0.8070175439 | P7: 0.6896551724 | Q7: 0.6833333333 | R7: 0.7 | S7: 0.7692307692 | T7: 0.8 | U7: 0.5 | V7: 0.5 | W7: 0.625 | X7: 3.166666667 | Y7: 3.333333333 | Z7: 3 | AA7: 23t | AB7: 24t | AC7: 34t | AD7: 53t | AE7: 36t | AF7: 12t | AG7: 35 | AH7: 18t | AI7: 88t | AM7: 9 | AN7: 21 | AO7: 20 | AP7: 94t | AQ7: 75t | AR7: 63t | AS7: 110t | AT7: 105t | AU7: 98t | AV7: 20t | AW7: 23t | AX7: 29t | AY7: 0.23 | AZ7: 0.6363636364 | BA7: 23t | BB7: 0.53 | BC7: 0.5454545455 | BD7: 53t | BE7: 0.35 | BF7: 0.6818181818 | BG7: 35 | BK7: 0.09 | BL7: 0.8070175439 | BM7: 9 | BN7: 0.94 | BO7: 0.94 | BP7: 94t | BQ7: 1.1 | BR7: 1.1 | BS7: 110t | BT7: 0.2 | BU7: 3.166666667 | BV7: 20t | BW7: 0.24 | BX7: 0.7 | BY7: 24t | BZ7: 0.36 | CA7: 0.6 | CB7: 36t | CC7: 0.18 | CD7: 0.8 | CE7: 18t | CI7: 0.21 | CJ7: 0.6896551724 | CK7: 21 | CL7: 0.75 | CM7: 0.7692307692 | CN7: 75t | CO7: 1.05 | CP7: 1.05 | CQ7: 105t | CR7: 0.23 | CS7: 3.333333333 | CT7: 23t | CU7: 0.34 | CV7: 0.5555555556 | CW7: 34t | CX7: 0.12 | CY7: 0.6666666667 | CZ7: 12t | DA7: 0.88 | DB7: 0.88 | DC7: 88t | DG7: 0.2 | DH7: 0.6833333333 | DI7: 20 | DJ7: 0.63 | DK7: 0.8 | DL7: 63t | DM7: 98 | DN7: 98 | DO7: 98t | DP7: 0.29 | DQ7: 3 | DR7: 29t
A8: 7 | B8: Amelia | C8: 0.4 | D8: 0 | E8: 0.5 | F8: 0 | G8: 0.6666666667 | H8: 1 | I8: 0.4 | J8: 0 | K8: 0 | O8: 0.4545454545 | P8: 0.6363636364 | Q8: 0.6666666667 | R8: 1 | S8: 0 | T8: 1 | X8: 1.6 | Y8: 2.4 | Z8: 3.2 | AA8: 100t | AB8: 121t | AC8: 49t | AD8: 121t | AE8: 24t | AF8: 1t | AG8: 108t | AH8: 122t | AI8: 119t | AM8: 86t | AN8: 31t | AO8: 24t | AP8: 1t | AQ8: 126t | AR8: 1t | AV8: 123 | AW8: 92t | AX8: 22 | AY8: 1 | AZ8: 1 | BA8: 100t | BB8: 1.21 | BC8: 1.21 | BD8: 121t | BE8: 1.08 | BF8: 1.08 | BG8: 108t | BK8: 0.86 | BL8: 0.86 | BM8: 86t | BN8: 0.01 | BO8: 1 | BP8: 1t | BT8: 1.23 | BU8: 1.6 | BV8: 123 | BW8: 1.21 | BX8: 1.21 | BY8: 121t | BZ8: 0.24 | CA8: 0.6666666667 | CB8: 24t | CC8: 1.22 | CD8: 1.22 | CE8: 122t | CI8: 0.31 | CJ8: 0.6363636364 | CK8: 31t | CL8: 1.26 | CM8: 1.26 | CN8: 126t | CR8: 0.92 | CS8: 2.4 | CT8: 92t | CU8: 0.49 | CV8: 0.5 | CW8: 49t | CX8: 0.01 | CY8: 1 | CZ8: 1t | DA8: 1.19 | DB8: 1.19 | DC8: 119t | DG8: 0.24 | DH8: 0.6666666667 | DI8: 24t | DJ8: 0.01 | DK8: 1 | DL8: 1t | DP8: 0.22 | DQ8: 3.2 | DR8: 22
A9: 9 | B9: Amherst | C9: 0.4827586207 | D9: 0.3125 | E9: 0.5555555556 | F9: 0.5862068966 | G9: 0.5625 | H9: 0.4444444444 | I9: 0.5172413793 | J9: 0.5 | K9: 0.5 | L9: 0.1 | M9: 0.1428571429 | N9: 0.3333333333 | O9: 0.5211267606 | P9: 0.52 | Q9: 0.5352112676 | R9: 0.76 | S9: 0.8260869565 | T9: 0.8947368421 | U9: 0.9090909091 | V9: 0.882 | W9: 1 | X9: 2.428571429 | Y9: 2.428571429 | Z9: 2.714285714 | AA9: 77 | AB9: 116 | AC9: 34t | AD9: 38 | AE9: 52 | AF9: 66t | AG9: 85 | AH9: 97t | AI9: 65t | AJ9: 44t | AK9: 47t | AL9: 38t | AM9: 64 | AN9: 68 | AO9: 65t | AP9: 78 | AQ9: 58t | AR9: 32 | AS9: 27 | AT9: 37t | AU9: 1t | AV9: 79t | AW9: 82t | AX9: 49t | AY9: 0.77 | AZ9: 0.77 | BA9: 77 | BB9: 0.38 | BC9: 0.5862068966 | BD9: 38 | BE9: 0.85 | BF9: 0.85 | BG9: 85 | BH9: 0.44 | BI9: 0.44 | BJ9: 44t | BK9: 0.64 | BL9: 0.64 | BM9: 64 | BN9: 0.78 | BO9: 0.78 | BP9: 78 | BQ9: 0.27 | BR9: 0.9090909091 | BS9: 27 | BT9: 0.79 | BU9: 2.428571429 | BV9: 79t | BW9: 1.16 | BX9: 1.16 | BY9: 116 | BZ9: 0.52 | CA9: 0.5625 | CB9: 52 | CC9: 0.97 | CD9: 0.97 | CE9: 97t | CF9: 0.47 | CG9: 0.47 | CH9: 47t | CI9: 0.68 | CJ9: 0.68 | CK9: 68 | CL9: 0.58 | CM9: 0.8260869565 | CN9: 58t | CO9: 0.37 | CP9: 0.882 | CQ9: 37t | CR9: 0.82 | CS9: 2.428571429 | CT9: 82t | CU9: 0.34 | CV9: 0.5555555556 | CW9: 34t | CX9: 0.66 | CY9: 0.66 | CZ9: 66t | DA9: 0.65 | DB9: 0.65 | DC9: 65t | DD9: 0.38 | DE9: 0.38 | DF9: 38t | DG9: 0.65 | DH9: 0.65 | DI9: 65t | DJ9: 0.32 | DK9: 0.8947368421 | DL9: 32 | DM9: 1 | DN9: 1 | DO9: 1t | DP9: 0.49 | DQ9: 2.714285714 | DR9: 49t
A10: 11 | B10: Appomattox | C10: 0.7096774194 | D10: 0.4090909091 | E10: 0.5806451613 | F10: 0.5806451613 | G10: 0.5 | H10: 0.4516129032 | I10: 0.7419354839 | J10: 0.5454545455 | K10: 0.4516129032 | L10: 0 | M10: 0 | N10: 0 | O10: 0.5454545455 | P10: 0.3442622951 | Q10: 0.4098360656 | R10: 0.75 | S10: 0.875 | T10: 0.8 | U10: 0.75 | V10: 0.8 | W10: 0.625 | X10: 2.857142857 | Y10: 1.714285714 | Z10: 2 | AA10: 13 | AB10: 92 | AC10: 25t | AD10: 39t | AE10: 64t | AF10: 63 | AG10: 26 | AH10: 88t | AI10: 86 | AJ10: 54t | AK10: 58t | AL10: 54t | AM10: 55t | AN10: 101 | AO10: 89 | AP10: 81t | AQ10: 39t | AR10: 63t | AS10: 77t | AT10: 63t | AU10: 98t | AV10: 40t | AW10: 120t | AX10: 106t | AY10: 0.13 | AZ10: 0.7096774194 | BA10: 13 | BB10: 0.39 | BC10: 0.5806451613 | BD10: 39t | BE10: 0.26 | BF10: 0.7419354839 | BG10: 26 | BH10: 0.54 | BI10: 0.54 | BJ10: 54t | BK10: 0.55 | BL10: 0.55 | BM10: 55t | BN10: 0.81 | BO10: 0.81 | BP10: 81t | BQ10: 0.77 | BR10: 0.77 | BS10: 77t | BT10: 0.4 | BU10: 2.857142857 | BV10: 40t | BW10: 0.92 | BX10: 0.92 | BY10: 92 | BZ10: 0.64 | CA10: 0.64 | CB10: 64t | CC10: 0.88 | CD10: 0.88 | CE10: 88t | CF10: 0.58 | CG10: 0.58 | CH10: 58t | CI10: 1.01 | CJ10: 1.01 | CK10: 101 | CL10: 0.39 | CM10: 0.875 | CN10: 39t | CO10: 0.63 | CP10: 0.8 | CQ10: 63t | CR10: 1.2 | CS10: 1.714285714 | CT10: 120t | CU10: 0.25 | CV10: 0.5806451613 | CW10: 25t | CX10: 0.63 | CY10: 0.63 | CZ10: 63 | DA10: 0.86 | DB10: 0.86 | DC10: 86 | DD10: 0.54 | DE10: 0.54 | DF10: 54t | DG10: 0.89 | DH10: 0.89 | DI10: 89 | DJ10: 0.63 | DK10: 0.8 | DL10: 63t | DM10: 98 | DN10: 98 | DO10: 98t | DP10: 1.06 | DQ10: 2 | DR10: 106t
A11: 13 | B11: Arlington | C11: 0.5076923077 | D11: 0.5692307692 | E11: 0.5517241379 | F11: 0.5230769231 | G11: 0.5692307692 | H11: 0.4482758621 | I11: 0.5846153846 | J11: 0.5230769231 | K11: 0.6206896552 | L11: 0.04651162791 | M11: 0.0303030303 | N11: 0.15 | O11: 0.3611111111 | P11: 0.3286384977 | Q11: 0.3902439024 | R11: 0.8777777778 | S11: 0.9102564103 | T11: 0.9545454545 | U11: 0.7636363636 | V11: 0.755 | W11: 0.7714285714 | X11: 2.428571429 | Y11: 2.428571429 | Z11: 2.571428571 | AA11: 62 | AB11: 51 | AC11: 37 | AD11: 64 | AE11: 51 | AF11: 65 | AG11: 62 | AH11: 94 | AI11: 35t | AJ11: 50 | AK11: 56 | AL11: 49 | AM11: 99 | AN11: 104 | AO11: 93 | AP11: 42 | AQ11: 26 | AR11: 16 | AS11: 76 | AT11: 78 | AU11: 60t | AV11: 79t | AW11: 82t | AX11: 59t | AY11: 0.62 | AZ11: 0.62 | BA11: 62 | BB11: 0.64 | BC11: 0.64 | BD11: 64 | BE11: 0.62 | BF11: 0.62 | BG11: 62 | BH11: 0.5 | BI11: 0.5 | BJ11: 50 | BK11: 0.99 | BL11: 0.99 | BM11: 99 | BN11: 0.42 | BO11: 0.8777777778 | BP11: 42 | BQ11: 0.76 | BR11: 0.7636363636 | BS11: 76 | BT11: 0.79 | BU11: 2.428571429 | BV11: 79t | BW11: 0.51 | BX11: 0.5692307692 | BY11: 51 | BZ11: 0.51 | CA11: 0.5692307692 | CB11: 51 | CC11: 0.94 | CD11: 0.94 | CE11: 94 | CF11: 0.56 | CG11: 0.56 | CH11: 56 | CI11: 1.04 | CJ11: 1.04 | CK11: 104 | CL11: 0.0026 | CM11: 0.9102564103 | CN11: 26 | CO11: 0.78 | CP11: 0.78 | CQ11: 78 | CR11: 0.82 | CS11: 2.428571429 | CT11: 82t | CU11: 0.37 | CV11: 0.5517241379 | CW11: 37 | CX11: 0.65 | CY11: 0.65 | CZ11: 65 | DA11: 0.35 | DB11: 0.6206896552 | DC11: 35t | DD11: 0.49 | DE11: 0.49 | DF11: 49 | DG11: 0.93 | DH11: 0.93 | DI11: 93 | DJ11: 0.16 | DK11: 0.9545454545 | DL11: 16 | DM11: 60 | DN11: 60 | DO11: 60t | DP11: 0.59 | DQ11: 2.571428571 | DR11: 59t
A12: 15 | B12: Augusta | C12: 0.525 | D12: 0.4888888889 | E12: 0.5434782609 | F12: 0.7 | G12: 0.5217391304 | H12: 0.3913043478 | I12: 0.675 | J12: 0.6304347826 | K12: 0.4347826087 | L12: 1 | M12: 1 | N12: 1 | O12: 0.5490196078 | P12: 0.5485436893 | Q12: 0.5658536585 | S12: 0 | T12: 0.75 | U12: 1 | V12: 0.667 | W12: 0.8333333333 | X12: 3.833333333 | Y12: 2.714285714 | Z12: 2.571428571 | AA12: 58t | AB12: 78t | AC12: 41 | AD12: 19t | AE12: 63 | AF12: 84 | AG12: 36 | AH12: 58 | AI12: 94t | AJ12: 1t | AK12: 1t | AL12: 1t | AM12: 51t | AN12: 57 | AO12: 56 | AQ12: 126t | AR12: 88t | AS12: 1t | AT12: 93t | AU12: 41t | AV12: 4 | AW12: 56t | AX12: 59t | AY12: 0.58 | AZ12: 0.58 | BA12: 58t | BB12: 0.19 | BC12: 0.7 | BD12: 19t | BE12: 0.36 | BF12: 0.675 | BG12: 36 | BH12: 0.01 | BI12: 1 | BJ12: 1t | BK12: 0.51 | BL12: 0.5490196078 | BM12: 51t | BQ12: 0.01 | BR12: 1 | BS12: 1t | BT12: 0.04 | BU12: 3.833333333 | BV12: 4 | BW12: 0.78 | BX12: 0.78 | BY12: 78t | BZ12: 0.63 | CA12: 0.63 | CB12: 63 | CC12: 0.58 | CD12: 0.6304347826 | CE12: 58 | CF12: 0.01 | CG12: 1 | CH12: 1t | CI12: 0.57 | CJ12: 0.57 | CK12: 57 | CL12: 1.26 | CM12: 1.26 | CN12: 126t | CO12: 0.93 | CP12: 0.93 | CQ12: 93t | CR12: 0.56 | CS12: 2.714285714 | CT12: 56t | CU12: 0.41 | CV12: 0.5434782609 | CW12: 41 | CX12: 0.84 | CY12: 0.84 | CZ12: 84 | DA12: 0.94 | DB12: 0.94 | DC12: 94t | DD12: 0.01 | DE12: 1 | DF12: 1t | DG12: 0.56 | DH12: 0.5658536585 | DI12: 56 | DJ12: 0.88 | DK12: 0.88 | DL12: 88t | DM12: 41 | DN12: 41 | DO12: 41t | DP12: 0.59 | DQ12: 2.571428571 | DR12: 59t
A13: 17 | B13: Bath | C13: 1 | D13: 1 | F13: 0.5 | G13: 1 | I13: 1 | J13: 1 | O13: 0.6666666667 | P13: 0.8 | Q13: 0.75 | R13: 1 | U13: 1 | V13: 1 | X13: 3.666666667 | Y13: 4 | Z13: 4 | AA13: 1t | AB13: 1t | AD13: 69t | AE13: 1t | AG13: 1t | AH13: 1t | AM13: 23t | AN13: 7t | AO13: 8t | AP13: 1t | AS13: 1t | AT13: 1t | AV13: 6 | AW13: 1t | AX13: 1t | AY13: 0.01 | AZ13: 1 | BA13: 1t | BB13: 0.69 | BC13: 0.69 | BD13: 69t | BE13: 0.01 | BF13: 1 | BG13: 1t | BK13: 0.23 | BL13: 0.6666666667 | BM13: 23t | BN13: 0.01 | BO13: 1 | BP13: 1t | BQ13: 0.01 | BR13: 1 | BS13: 1t | BT13: 0.06 | BU13: 3.666666667 | BV13: 6 | BW13: 0.01 | BX13: 1 | BY13: 1t | BZ13: 0.01 | CA13: 1 | CB13: 1t | CC13: 0.01 | CD13: 1 | CE13: 1t | CI13: 0.07 | CJ13: 0.8 | CK13: 7t | CO13: 0.01 | CP13: 1 | CQ13: 1t | CR13: 0.01 | CS13: 4 | CT13: 1t | DG13: 0.08 | DH13: 0.75 | DI13: 8t | DP13: 0.01 | DQ13: 4 | DR13: 1t
A14: 19 | B14: Bedford | C14: 0.5789473684 | D14: 0.4098360656 | E14: 0.4909090909 | F14: 0.5087719298 | G14: 0.606557377 | H14: 0.5272727273 | I14: 0.6140350877 | J14: 0.5573770492 | K14: 0.6909090909 | L14: 0 | M14: 0 | N14: 0 | O14: 0.5 | P14: 0.5533333333 | Q14: 0.4919786096 | R14: 0.8363636364 | S14: 0.6379310345 | T14: 0.661971831 | U14: 0.8285714286 | V14: 0.885 | W14: 0.7222222222 | X14: 2.571428571 | Y14: 2.428571429 | Z14: 2.571428571 | AA14: 37 | AB14: 91 | AC14: 56 | AD14: 68 | AE14: 35 | AF14: 35 | AG14: 53t | AH14: 84 | AI14: 17 | AJ14: 54t | AK14: 58t | AL14: 54t | AM14: 72t | AN14: 55 | AO14: 80 | AP14: 55 | AQ14: 102 | AR14: 109 | AS14: 48 | AT14: 36 | AU14: 74 | AV14: 67t | AW14: 82t | AX14: 59t | AY14: 0.37 | AZ14: 0.5789473684 | BA14: 37 | BB14: 0.68 | BC14: 0.68 | BD14: 68 | BE14: 0.53 | BF14: 0.6140350877 | BG14: 53t | BH14: 0.54 | BI14: 0.54 | BJ14: 54t | BK14: 0.72 | BL14: 0.72 | BM14: 72t | BN14: 0.55 | BO14: 0.8363636364 | BP14: 55 | BQ14: 0.48 | BR14: 0.8285714286 | BS14: 48 | BT14: 0.67 | BU14: 2.571428571 | BV14: 67t | BW14: 0.91 | BX14: 0.91 | BY14: 91 | BZ14: 0.35 | CA14: 0.606557377 | CB14: 35 | CC14: 0.84 | CD14: 0.84 | CE14: 84 | CF14: 0.58 | CG14: 0.58 | CH14: 58t | CI14: 0.55 | CJ14: 0.5533333333 | CK14: 55 | CL14: 0.0102 | CM14: 0.6379310345 | CN14: 102 | CO14: 0.36 | CP14: 0.885 | CQ14: 36 | CR14: 0.82 | CS14: 2.428571429 | CT14: 82t | CU14: 0.56 | CV14: 0.56 | CW14: 56 | CX14: 0.35 | CY14: 0.5272727273 | CZ14: 35 | DA14: 0.17 | DB14: 0.6909090909 | DC14: 17 | DD14: 0.54 | DE14: 0.54 | DF14: 54t | DG14: 0.8 | DH14: 0.8 | DI14: 80 | DJ14: 1.09 | DK14: 1.09 | DL14: 109 | DM14: 74 | DN14: 74 | DO14: 74 | DP14: 0.59 | DQ14: 2.571428571 | DR14: 59t
A15: 21 | B15: Bland | C15: 0.8 | E15: 0 | F15: 0.4 | H15: 0.5 | I15: 0.8 | K15: 0 | O15: 0.06666666667 | P15: 0.4210526316 | Q15: 0.25 | R15: 0.9230769231 | S15: 0.8333333333 | T15: 1 | U15: 0.8 | V15: 0.909 | X15: 2.666666667 | Y15: 2.666666667 | Z15: 2.2 | AA15: 9 | AC15: 120t | AD15: 97t | AF15: 39t | AG15: 12t | AI15: 119t | AM15: 126 | AN15: 87 | AO15: 116 | AP15: 23 | AQ15: 55t | AR15: 1t | AS15: 57t | AT15: 28t | AV15: 60t | AW15: 61t | AX15: 93t | AY15: 0.09 | AZ15: 0.8 | BA15: 9 | BB15: 0.97 | BC15: 0.97 | BD15: 97t | BE15: 0.12 | BF15: 0.8 | BG15: 12t | BK15: 1.26 | BL15: 1.26 | BM15: 126 | BN15: 0.23 | BO15: 0.9230769231 | BP15: 23 | BQ15: 0.57 | BR15: 0.8 | BS15: 57t | BT15: 0.6 | BU15: 2.666666667 | BV15: 60t | CI15: 0.87 | CJ15: 0.87 | CK15: 87 | CL15: 0.55 | CM15: 0.8333333333 | CN15: 55t | CO15: 0.28 | CP15: 0.909 | CQ15: 28t | CR15: 0.61 | CS15: 2.666666667 | CT15: 61t | CU15: 1.2 | CV15: 1.2 | CW15: 120t | CX15: 0.39 | CY15: 0.5 | CZ15: 39t | DA15: 1.19 | DB15: 1.19 | DC15: 119t | DG15: 1.16 | DH15: 1.16 | DI15: 116 | DJ15: 0.01 | DK15: 1 | DL15: 1t | DP15: 0.93 | DQ15: 2.2 | DR15: 93t
A16: 23 | B16: Botetourt | C16: 0.625 | D16: 0.4 | E16: 0.5454545455 | F16: 0.625 | G16: 0.3 | H16: 0.6363636364 | I16: 0.4375 | J16: 0.7 | K16: 0.4545454545 | L16: 0.3333333333 | M16: 0.6666666667 | N16: 1 | O16: 0.7804878049 | P16: 0.7111111111 | Q16: 0.8333333333 | R16: 0.6666666667 | S16: 1 | T16: 1 | X16: 3 | Y16: 3 | Z16: 3.5 | AA16: 25t | AB16: 95t | AC16: 40 | AD16: 33 | AE16: 110t | AF16: 19 | AG16: 103 | AH16: 42t | AI16: 85 | AJ16: 25t | AK16: 22t | AL16: 1t | AM16: 12 | AN16: 17 | AO16: 3 | AP16: 103t | AQ16: 1t | AR16: 1t | AV16: 28t | AW16: 35t | AX16: 8t | AY16: 0.25 | AZ16: 0.625 | BA16: 25t | BB16: 0.33 | BC16: 0.625 | BD16: 33 | BE16: 1.03 | BF16: 1.03 | BG16: 103 | BH16: 0.25 | BI16: 0.3333333333 | BJ16: 25t | BK16: 0.12 | BL16: 0.7804878049 | BM16: 12 | BN16: 1.03 | BO16: 1.03 | BP16: 103t | BT16: 0.28 | BU16: 3 | BV16: 28t | BW16: 0.95 | BX16: 0.95 | BY16: 95t | BZ16: 1.1 | CA16: 1.1 | CB16: 110t | CC16: 0.42 | CD16: 0.7 | CE16: 42t | CF16: 0.22 | CG16: 0.6666666667 | CH16: 22t | CI16: 0.17 | CJ16: 0.7111111111 | CK16: 17 | CL16: 0.01 | CM16: 1 | CN16: 1t | CR16: 0.35 | CS16: 3 | CT16: 35t | CU16: 0.4 | CV16: 0.5454545455 | CW16: 40 | CX16: 0.19 | CY16: 0.6363636364 | CZ16: 19 | DA16: 0.85 | DB16: 0.85 | DC16: 85 | DD16: 0.01 | DE16: 1 | DF16: 1t | DG16: 0.03 | DH16: 0.8333333333 | DI16: 3 | DJ16: 0.01 | DK16: 1 | DL16: 1t | DP16: 0.08 | DQ16: 3.5 | DR16: 8t
A17: 520 | B17: Bristol | C17: 0.5 | D17: 0.8571428571 | E17: 0.4444444444 | F17: 0.75 | G17: 0.5 | H17: 0.4444444444 | I17: 0.5 | J17: 0.6428571429 | K17: 0.5 | L17: 0.1578947368 | M17: 0.07692307692 | N17: 0.1304347826 | O17: 0.09333333333 | P17: 0.1505376344 | Q17: 0.1818181818 | R17: 0.6666666667 | S17: 0.7068965517 | T17: 0.7735849057 | U17: 0.6 | V17: 0.833 | W17: 0.7083333333 | X17: 2 | Y17: 2.428571429 | Z17: 1.571428571 | AA17: 64t | AB17: 10 | AC17: 67t | AD17: 12t | AE17: 64t | AF17: 66t | AG17: 86t | AH17: 57 | AI17: 65t | AJ17: 41 | AK17: 52t | AL17: 50 | AM17: 123 | AN17: 118 | AO17: 119 | AP17: 103t | AQ17: 92 | AR17: 80 | AS17: 107 | AT17: 53t | AU17: 78 | AV17: 108t | AW17: 82t | AX17: 125t | AY17: 0.64 | AZ17: 0.64 | BA17: 64t | BB17: 0.12 | BC17: 0.75 | BD17: 12t | BE17: 0.86 | BF17: 0.86 | BG17: 86t | BH17: 0.41 | BI17: 0.41 | BJ17: 41 | BK17: 1.23 | BL17: 1.23 | BM17: 123 | BN17: 1.03 | BO17: 1.03 | BP17: 103t | BQ17: 1.07 | BR17: 1.07 | BS17: 107 | BT17: 1.08 | BU17: 2 | BV17: 108t | BW17: 0.1 | BX17: 0.8571428571 | BY17: 10 | BZ17: 0.64 | CA17: 0.64 | CB17: 64t | CC17: 0.57 | CD17: 0.6428571429 | CE17: 57 | CF17: 0.52 | CG17: 0.52 | CH17: 52t | CI17: 1.18 | CJ17: 1.18 | CK17: 118 | CL17: 0.0092 | CM17: 0.7068965517 | CN17: 92 | CO17: 0.53 | CP17: 0.833 | CQ17: 53t | CR17: 0.82 | CS17: 2.428571429 | CT17: 82t | CU17: 0.67 | CV17: 0.67 | CW17: 67t | CX17: 0.66 | CY17: 0.66 | CZ17: 66t | DA17: 0.65 | DB17: 0.65 | DC17: 65t | DD17: 0.5 | DE17: 0.5 | DF17: 50 | DG17: 1.19 | DH17: 1.19 | DI17: 119 | DJ17: 0.8 | DK17: 0.8 | DL17: 80 | DM17: 78 | DN17: 78 | DO17: 78 | DP17: 1.25 | DQ17: 1.571428571 | DR17: 125t
A18: 25 | B18: Brunswick | C18: 0.5714285714 | D18: 1 | E18: 0.6666666667 | F18: 0.7142857143 | G18: 1 | H18: 0.3333333333 | I18: 0.4285714286 | J18: 1 | K18: 0.6666666667 | O18: 0.5238095238 | P18: 0.48 | Q18: 0.5 | R18: 0.6666666667 | S18: 0.8333333333 | T18: 0.8333333333 | X18: 2.8 | Y18: 3.4 | Z18: 3 | AA18: 41t | AB18: 1t | AC18: 11t | AD18: 17t | AE18: 1t | AF18: 97t | AG18: 105t | AH18: 1t | AI18: 21t | AM18: 63 | AN18: 76 | AO18: 74t | AP18: 103t | AQ18: 55t | AR18: 52t | AV18: 51t | AW18: 21t | AX18: 29t | AY18: 0.41 | AZ18: 0.5714285714 | BA18: 41t | BB18: 0.17 | BC18: 0.7142857143 | BD18: 17t | BE18: 1.05 | BF18: 1.05 | BG18: 105t | BK18: 0.63 | BL18: 0.63 | BM18: 63 | BN18: 1.03 | BO18: 1.03 | BP18: 103t | BT18: 0.51 | BU18: 2.8 | BV18: 51t | BW18: 0.01 | BX18: 1 | BY18: 1t | BZ18: 0.01 | CA18: 1 | CB18: 1t | CC18: 0.01 | CD18: 1 | CE18: 1t | CI18: 0.76 | CJ18: 0.76 | CK18: 76 | CL18: 0.55 | CM18: 0.8333333333 | CN18: 55t | CR18: 0.21 | CS18: 3.4 | CT18: 21t | CU18: 0.11 | CV18: 0.6666666667 | CW18: 11t | CX18: 0.97 | CY18: 0.97 | CZ18: 97t | DA18: 0.21 | DB18: 0.6666666667 | DC18: 21t | DG18: 0.74 | DH18: 0.74 | DI18: 74t | DJ18: 0.52 | DK18: 0.8333333333 | DL18: 52t | DP18: 0.29 | DQ18: 3 | DR18: 29t
A19: 27 | B19: Buchanan | C19: 0.4 | D19: 0.6666666667 | E19: 0.55 | F19: 0.48 | G19: 0.6 | H19: 0.45 | I19: 0.76 | J19: 0.8 | K19: 0.8 | L19: 0 | M19: 0 | N19: 0 | O19: 0.08641975309 | P19: 0.03846153846 | Q19: 0.1568627451 | R19: 0.7808219178 | S19: 0.7424242424 | T19: 0.7173913043 | U19: 0.7941176471 | V19: 0.897 | W19: 0.9285714286 | X19: 1.857142857 | Y19: 2.857142857 | Z19: 2.571428571 | AA19: 100t | AB19: 30t | AC19: 39 | AD19: 79 | AE19: 36t | AF19: 64 | AG19: 21 | AH19: 18t | AI19: 9 | AJ19: 54t | AK19: 58t | AL19: 54t | AM19: 125 | AN19: 126 | AO19: 122 | AP19: 73 | AQ19: 86 | AR19: 95 | AS19: 71 | AT19: 32 | AU19: 13 | AV19: 115t | AW19: 46t | AX19: 59t | AY19: 1 | AZ19: 1 | BA19: 100t | BB19: 0.79 | BC19: 0.79 | BD19: 79 | BE19: 0.21 | BF19: 0.76 | BG19: 21 | BH19: 0.54 | BI19: 0.54 | BJ19: 54t | BK19: 1.25 | BL19: 1.25 | BM19: 125 | BN19: 0.73 | BO19: 0.7808219178 | BP19: 73 | BQ19: 0.71 | BR19: 0.7941176471 | BS19: 71 | BT19: 1.15 | BU19: 1.857142857 | BV19: 115t | BW19: 0.3 | BX19: 0.6666666667 | BY19: 30t | BZ19: 0.36 | CA19: 0.6 | CB19: 36t | CC19: 0.18 | CD19: 0.8 | CE19: 18t | CF19: 0.58 | CG19: 0.58 | CH19: 58t | CI19: 1.26 | CJ19: 1.26 | CK19: 126 | CL19: 0.0086 | CM19: 0.7424242424 | CN19: 86 | CO19: 0.32 | CP19: 0.897 | CQ19: 32 | CR19: 0.46 | CS19: 2.857142857 | CT19: 46t | CU19: 0.39 | CV19: 0.55 | CW19: 39 | CX19: 0.64 | CY19: 0.64 | CZ19: 64 | DA19: 0.09 | DB19: 0.8 | DC19: 9 | DD19: 0.54 | DE19: 0.54 | DF19: 54t | DG19: 1.22 | DH19: 1.22 | DI19: 122 | DJ19: 0.95 | DK19: 0.95 | DL19: 95 | DM19: 13 | DN19: 13 | DO19: 13 | DP19: 0.59 | DQ19: 2.571428571 | DR19: 59t
A20: 29 | B20: Buckingham | C20: 0.4705882353 | D20: 0.3888888889 | E20: 0.28 | F20: 0.5294117647 | G20: 0.5555555556 | H20: 0.28 | I20: 0.5882352941 | J20: 0.5555555556 | K20: 0.44 | O20: 0.737704918 | P20: 0.7567567568 | Q20: 0.6617647059 | R20: 0.6363636364 | S20: 0.6428571429 | T20: 0.8 | V20: 1 | W20: 0.6666666667 | X20: 2.8 | Y20: 2.833333333 | Z20: 2 | AA20: 82 | AB20: 99t | AC20: 109t | AD20: 62 | AE20: 54t | AF20: 113 | AG20: 61 | AH20: 85t | AI20: 92 | AM20: 15 | AN20: 12 | AO20: 29 | AP20: 115 | AQ20: 101 | AR20: 63t | AT20: 1t | AU20: 88t | AV20: 51t | AW20: 50t | AX20: 106t | AY20: 0.82 | AZ20: 0.82 | BA20: 82 | BB20: 0.62 | BC20: 0.62 | BD20: 62 | BE20: 0.61 | BF20: 0.61 | BG20: 61 | BK20: 0.15 | BL20: 0.737704918 | BM20: 15 | BN20: 1.15 | BO20: 1.15 | BP20: 115 | BT20: 0.51 | BU20: 2.8 | BV20: 51t | BW20: 0.99 | BX20: 0.99 | BY20: 99t | BZ20: 0.54 | CA20: 0.5555555556 | CB20: 54t | CC20: 0.85 | CD20: 0.85 | CE20: 85t | CI20: 0.12 | CJ20: 0.7567567568 | CK20: 12 | CL20: 0.0101 | CM20: 0.6428571429 | CN20: 101 | CO20: 0.01 | CP20: 1 | CQ20: 1t | CR20: 0.5 | CS20: 2.833333333 | CT20: 50t | CU20: 1.09 | CV20: 1.09 | CW20: 109t | CX20: 1.13 | CY20: 1.13 | CZ20: 113 | DA20: 0.92 | DB20: 0.92 | DC20: 92 | DG20: 0.29 | DH20: 0.6617647059 | DI20: 29 | DJ20: 0.63 | DK20: 0.8 | DL20: 63t | DM20: 88 | DN20: 88 | DO20: 88t | DP20: 1.06 | DQ20: 2 | DR20: 106t
A21: 530 | B21: Buena Vista | C21: 0.6153846154 | D21: 0.6818181818 | E21: 0.3902439024 | F21: 0.6923076923 | G21: 0.5909090909 | H21: 0.487804878 | I21: 0.5384615385 | J21: 0.7272727273 | K21: 0.7317073171 | M21: 0.5 | N21: 0.4285714286 | O21: 0.8333333333 | P21: 0.6851851852 | Q21: 0.6666666667 | R21: 0.75 | S21: 0.5357142857 | T21: 0.7380952381 | U21: 0.8 | V21: 0.7 | W21: 1 | X21: 3 | Y21: 3.428571429 | Z21: 3 | AA21: 28t | AB21: 29 | AC21: 83 | AD21: 22 | AE21: 44 | AF21: 52 | AG21: 78t | AH21: 33 | AI21: 12 | AK21: 29t | AL21: 35 | AM21: 6 | AN21: 23t | AO21: 24t | AP21: 81t | AQ21: 108t | AR21: 90t | AS21: 57t | AT21: 89t | AU21: 1t | AV21: 28t | AW21: 16t | AX21: 29t | AY21: 0.28 | AZ21: 0.6153846154 | BA21: 28t | BB21: 0.22 | BC21: 0.6923076923 | BD21: 22 | BE21: 0.78 | BF21: 0.78 | BG21: 78t | BK21: 0.06 | BL21: 0.8333333333 | BM21: 6 | BN21: 0.81 | BO21: 0.81 | BP21: 81t | BQ21: 0.57 | BR21: 0.8 | BS21: 57t | BT21: 0.28 | BU21: 3 | BV21: 28t | BW21: 0.29 | BX21: 0.6818181818 | BY21: 29 | BZ21: 0.44 | CA21: 0.5909090909 | CB21: 44 | CC21: 0.33 | CD21: 0.7272727273 | CE21: 33 | CF21: 0.29 | CG21: 0.5 | CH21: 29t | CI21: 0.23 | CJ21: 0.6851851852 | CK21: 23t | CL21: 1.08 | CM21: 1.08 | CN21: 108t | CO21: 0.89 | CP21: 0.89 | CQ21: 89t | CR21: 0.16 | CS21: 3.428571429 | CT21: 16t | CU21: 0.83 | CV21: 0.83 | CW21: 83 | CX21: 0.52 | CY21: 0.52 | CZ21: 52 | DA21: 0.12 | DB21: 0.7317073171 | DC21: 12 | DD21: 0.35 | DE21: 0.4285714286 | DF21: 35 | DG21: 0.24 | DH21: 0.6666666667 | DI21: 24t | DJ21: 0.9 | DK21: 0.9 | DL21: 90t | DM21: 1 | DN21: 1 | DO21: 1t | DP21: 0.29 | DQ21: 3 | DR21: 29t
A22: 31 | B22: Campbell | C22: 0.53125 | D22: 0.6153846154 | E22: 0.6153846154 | F22: 0.75 | G22: 0.6666666667 | H22: 0.4358974359 | I22: 0.625 | J22: 0.7179487179 | K22: 0.5897435897 | L22: 0 | M22: 0 | N22: 0 | O22: 0.6538461538 | P22: 0.6015037594 | Q22: 0.5534591195 | R22: 0.7105263158 | S22: 0.8 | T22: 0.7837837838 | U22: 0.7222222222 | V22: 0.828 | W22: 0.8095238095 | X22: 2.714285714 | Y22: 3.285714286 | Z22: 2.428571429 | AA22: 55 | AB22: 40 | AC22: 20t | AD22: 12t | AE22: 24t | AF22: 72 | AG22: 48t | AH22: 35 | AI22: 44 | AJ22: 54t | AK22: 58t | AL22: 54t | AM22: 27 | AN22: 40 | AO22: 60 | AP22: 93 | AQ22: 65t | AR22: 76 | AS22: 88 | AT22: 56 | AU22: 49 | AV22: 54t | AW22: 26t | AX22: 73t | AY22: 0.55 | AZ22: 0.55 | BA22: 55 | BB22: 0.12 | BC22: 0.75 | BD22: 12t | BE22: 0.48 | BF22: 0.625 | BG22: 48t | BH22: 0.54 | BI22: 0.54 | BJ22: 54t | BK22: 0.27 | BL22: 0.6538461538 | BM22: 27 | BN22: 0.93 | BO22: 0.93 | BP22: 93 | BQ22: 0.88 | BR22: 0.88 | BS22: 88 | BT22: 0.54 | BU22: 2.714285714 | BV22: 54t | BW22: 0.4 | BX22: 0.6153846154 | BY22: 40 | BZ22: 0.24 | CA22: 0.6666666667 | CB22: 24t | CC22: 0.35 | CD22: 0.7179487179 | CE22: 35 | CF22: 0.58 | CG22: 0.58 | CH22: 58t | CI22: 0.4 | CJ22: 0.6015037594 | CK22: 40 | CL22: 0.65 | CM22: 0.8 | CN22: 65t | CO22: 0.56 | CP22: 0.828 | CQ22: 56 | CR22: 0.26 | CS22: 3.285714286 | CT22: 26t | CU22: 0.2 | CV22: 0.6153846154 | CW22: 20t | CX22: 0.72 | CY22: 0.72 | CZ22: 72 | DA22: 0.44 | DB22: 0.5897435897 | DC22: 44 | DD22: 0.54 | DE22: 0.54 | DF22: 54t | DG22: 0.6 | DH22: 0.6 | DI22: 60 | DJ22: 0.76 | DK22: 0.7837837838 | DL22: 76 | DM22: 49 | DN22: 49 | DO22: 49 | DP22: 0.73 | DQ22: 2.428571429 | DR22: 73t
A23: 33 | B23: Caroline | C23: 0.619047619 | D23: 0.5625 | E23: 0.2307692308 | F23: 0.5714285714 | G23: 0.75 | H23: 0.3846153846 | I23: 0.7619047619 | J23: 0.75 | K23: 0.6923076923 | O23: 0.4909090909 | P23: 0.4107142857 | Q23: 0.5789473684 | R23: 0.7894736842 | S23: 0.8 | T23: 0.6470588235 | U23: 1 | V23: 0.429 | W23: 0.8125 | X23: 3.333333333 | Y23: 3 | Z23: 2.5 | AA23: 27 | AB23: 52t | AC23: 115t | AD23: 43t | AE23: 18t | AF23: 85t | AG23: 20 | AH23: 27t | AI23: 15t | AM23: 76 | AN23: 88 | AO23: 52t | AP23: 70 | AQ23: 65t | AR23: 110 | AS23: 1t | AT23: 109t | AU23: 47t | AV23: 13t | AW23: 35t | AX23: 70t | AY23: 0.27 | AZ23: 0.619047619 | BA23: 27 | BB23: 0.43 | BC23: 0.5714285714 | BD23: 43t | BE23: 0.2 | BF23: 0.7619047619 | BG23: 20 | BK23: 0.76 | BL23: 0.76 | BM23: 76 | BN23: 0.7 | BO23: 0.7894736842 | BP23: 70 | BQ23: 0.01 | BR23: 1 | BS23: 1t | BT23: 0.13 | BU23: 3.333333333 | BV23: 13t | BW23: 0.52 | BX23: 0.5625 | BY23: 52t | BZ23: 0.18 | CA23: 0.75 | CB23: 18t | CC23: 0.27 | CD23: 0.75 | CE23: 27t | CI23: 0.88 | CJ23: 0.88 | CK23: 88 | CL23: 0.65 | CM23: 0.8 | CN23: 65t | CO23: 1.09 | CP23: 1.09 | CQ23: 109t | CR23: 0.35 | CS23: 3 | CT23: 35t | CU23: 1.15 | CV23: 1.15 | CW23: 115t | CX23: 0.85 | CY23: 0.85 | CZ23: 85t | DA23: 0.15 | DB23: 0.6923076923 | DC23: 15t | DG23: 0.52 | DH23: 0.5789473684 | DI23: 52t | DJ23: 1.1 | DK23: 1.1 | DL23: 110 | DM23: 47 | DN23: 47 | DO23: 47t | DP23: 0.7 | DQ23: 2.5 | DR23: 70t
A24: 35 | B24: Carroll | C24: 0.6 | D24: 0.6842105263 | E24: 0.28 | F24: 0.24 | G24: 0.5263157895 | H24: 0.32 | I24: 0.72 | J24: 0.5789473684 | K24: 0.52 | L24: 1 | M24: 1 | N24: 0.5454545455 | O24: 0.5338983051 | P24: 0.4710743802 | Q24: 0.3114754098 | R24: 0.8048780488 | S24: 0.75 | T24: 0.6911764706 | U24: 0.8 | V24: 0.75 | W24: 0.8 | X24: 3 | Y24: 2.571428571 | Z24: 1.857142857 | AA24: 31t | AB24: 28 | AC24: 109t | AD24: 118 | AE24: 62 | AF24: 102 | AG24: 29 | AH24: 75t | AI24: 63 | AJ24: 1t | AK24: 1t | AL24: 28 | AM24: 60 | AN24: 80 | AO24: 108 | AP24: 66 | AQ24: 82t | AR24: 104 | AS24: 57t | AT24: 79t | AU24: 51t | AV24: 28t | AW24: 68t | AX24: 115t | AY24: 0.31 | AZ24: 0.6 | BA24: 31t | BB24: 1.18 | BC24: 1.18 | BD24: 118 | BE24: 0.29 | BF24: 0.72 | BG24: 29 | BH24: 0.01 | BI24: 1 | BJ24: 1t | BK24: 0.6 | BL24: 0.6 | BM24: 60 | BN24: 0.66 | BO24: 0.8048780488 | BP24: 66 | BQ24: 0.57 | BR24: 0.8 | BS24: 57t | BT24: 0.28 | BU24: 3 | BV24: 28t | BW24: 0.28 | BX24: 0.6842105263 | BY24: 28 | BZ24: 0.62 | CA24: 0.62 | CB24: 62 | CC24: 0.75 | CD24: 0.75 | CE24: 75t | CF24: 0.01 | CG24: 1 | CH24: 1t | CI24: 0.8 | CJ24: 0.8 | CK24: 80 | CL24: 0.82 | CM24: 0.82 | CN24: 82t | CO24: 0.79 | CP24: 0.79 | CQ24: 79t | CR24: 0.68 | CS24: 2.571428571 | CT24: 68t | CU24: 1.09 | CV24: 1.09 | CW24: 109t | CX24: 1.02 | CY24: 1.02 | CZ24: 102 | DA24: 0.63 | DB24: 0.63 | DC24: 63 | DD24: 0.28 | DE24: 0.5454545455 | DF24: 28 | DG24: 1.08 | DH24: 1.08 | DI24: 108 | DJ24: 1.04 | DK24: 1.04 | DL24: 104 | DM24: 51 | DN24: 51 | DO24: 51t | DP24: 1.15 | DQ24: 1.857142857 | DR24: 115t
A25: 36 | B25: Charles City | C25: 0.3333333333 | D25: 0.3333333333 | E25: 0.6 | F25: 0.3333333333 | G25: 0.6666666667 | H25: 0.6 | I25: 0.3333333333 | J25: 0.3333333333 | K25: 0.4 | O25: 0.8888888889 | P25: 0.8333333333 | Q25: 0.8 | X25: 1.75 | Y25: 2.5 | Z25: 3.25 | AA25: 110t | AB25: 107t | AC25: 23 | AD25: 109t | AE25: 24t | AF25: 24t | AG25: 112t | AH25: 117t | AI25: 101t | AM25: 1 | AN25: 3 | AO25: 5t | AV25: 119t | AW25: 79t | AX25: 21 | AY25: 1.1 | AZ25: 1.1 | BA25: 110t | BB25: 1.09 | BC25: 1.09 | BD25: 109t | BE25: 1.12 | BF25: 1.12 | BG25: 112t | BK25: 0.01 | BL25: 0.8888888889 | BM25: 1 | BT25: 1.19 | BU25: 1.75 | BV25: 119t | BW25: 1.07 | BX25: 1.07 | BY25: 107t | BZ25: 0.24 | CA25: 0.6666666667 | CB25: 24t | CC25: 1.17 | CD25: 1.17 | CE25: 117t | CI25: 0.03 | CJ25: 0.8333333333 | CK25: 3 | CR25: 0.79 | CS25: 2.5 | CT25: 79t | CU25: 0.23 | CV25: 0.6 | CW25: 23 | CX25: 0.24 | CY25: 0.6 | CZ25: 24t | DA25: 1.01 | DB25: 1.01 | DC25: 101t | DG25: 0.05 | DH25: 0.8 | DI25: 5t | DP25: 0.21 | DQ25: 3.25 | DR25: 21
A26: 37 | B26: Charlotte | C26: 0.1 | D26: 0.6 | E26: 0.4615384615 | F26: 0.4 | G26: 0.6 | H26: 0.3076923077 | I26: 0.3 | J26: 0.8 | K26: 0.4615384615 | L26: 0.1 | M26: 0.07692307692 | N26: 0 | O26: 0.5405405405 | P26: 0.6229508197 | Q26: 0.546875 | R26: 0.6875 | S26: 0.8620689655 | T26: 0.9130434783 | U26: 0.7142857143 | V26: 1 | W26: 0.8181818182 | X26: 1.571428571 | Y26: 3.571428571 | Z26: 2.285714286 | AA26: 121 | AB26: 41t | AC26: 63 | AD26: 97t | AE26: 36t | AF26: 105t | AG26: 115 | AH26: 18t | AI26: 84 | AJ26: 44t | AK26: 52t | AL26: 54t | AM26: 57t | AN26: 35 | AO26: 61 | AP26: 99t | AQ26: 45 | AR26: 25 | AS26: 92t | AT26: 1t | AU26: 46 | AV26: 124t | AW26: 9t | AX26: 88t | AY26: 1.21 | AZ26: 1.21 | BA26: 121 | BB26: 0.97 | BC26: 0.97 | BD26: 97t | BE26: 1.15 | BF26: 1.15 | BG26: 115 | BH26: 0.44 | BI26: 0.44 | BJ26: 44t | BK26: 0.57 | BL26: 0.57 | BM26: 57t | BN26: 0.99 | BO26: 0.99 | BP26: 99t | BQ26: 0.92 | BR26: 0.92 | BS26: 92t | BT26: 1.24 | BU26: 1.571428571 | BV26: 124t | BW26: 0.41 | BX26: 0.6 | BY26: 41t | BZ26: 0.36 | CA26: 0.6 | CB26: 36t | CC26: 0.18 | CD26: 0.8 | CE26: 18t | CF26: 0.52 | CG26: 0.52 | CH26: 52t | CI26: 0.35 | CJ26: 0.6229508197 | CK26: 35 | CL26: 0.0045 | CM26: 0.8620689655 | CN26: 45 | CO26: 0.01 | CP26: 1 | CQ26: 1t | CR26: 0.09 | CS26: 3.571428571 | CT26: 9t | CU26: 0.63 | CV26: 0.63 | CW26: 63 | CX26: 1.05 | CY26: 1.05 | CZ26: 105t | DA26: 0.84 | DB26: 0.84 | DC26: 84 | DD26: 0.54 | DE26: 0.54 | DF26: 54t | DG26: 0.61 | DH26: 0.61 | DI26: 61 | DJ26: 0.25 | DK26: 0.9130434783 | DL26: 25 | DM26: 46 | DN26: 46 | DO26: 46 | DP26: 0.88 | DQ26: 2.285714286 | DR26: 88t
A27: 540 | B27: Charlottesville | C27: 0.5079365079 | D27: 0.3188405797 | E27: 0.3333333333 | F27: 0.3968253968 | G27: 0.3333333333 | H27: 0.3666666667 | I27: 0.4603174603 | J27: 0.4782608696 | K27: 0.55 | L27: 0.2903225806 | M27: 0.6315789474 | N27: 0.8571428571 | O27: 0.5454545455 | P27: 0.574742268 | Q27: 0.6327944573 | R27: 0.9270833333 | S27: 0.9024390244 | T27: 0.9126984127 | U27: 0.6666666667 | V27: 0.763 | W27: 0.7608695652 | X27: 2.285714286 | Y27: 2.428571429 | Z27: 2.714285714 | AA27: 61 | AB27: 114 | AC27: 95t | AD27: 101 | AE27: 102t | AF27: 89t | AG27: 95 | AH27: 105 | AI27: 57 | AJ27: 34 | AK27: 24 | AL27: 21 | AM27: 55t | AN27: 47 | AO27: 38 | AP27: 21 | AQ27: 28 | AR27: 26 | AS27: 102t | AT27: 76 | AU27: 62 | AV27: 89t | AW27: 82t | AX27: 49t | AY27: 0.61 | AZ27: 0.61 | BA27: 61 | BB27: 1.01 | BC27: 1.01 | BD27: 101 | BE27: 0.95 | BF27: 0.95 | BG27: 95 | BH27: 0.34 | BI27: 0.34 | BJ27: 34 | BK27: 0.55 | BL27: 0.55 | BM27: 55t | BN27: 0.21 | BO27: 0.9270833333 | BP27: 21 | BQ27: 1.02 | BR27: 1.02 | BS27: 102t | BT27: 0.89 | BU27: 2.285714286 | BV27: 89t | BW27: 1.14 | BX27: 1.14 | BY27: 114 | BZ27: 1.02 | CA27: 1.02 | CB27: 102t | CC27: 1.05 | CD27: 1.05 | CE27: 105 | CF27: 0.24 | CG27: 0.6315789474 | CH27: 24 | CI27: 0.47 | CJ27: 0.574742268 | CK27: 47 | CL27: 0.0028 | CM27: 0.9024390244 | CN27: 28 | CO27: 0.76 | CP27: 0.763 | CQ27: 76 | CR27: 0.82 | CS27: 2.428571429 | CT27: 82t | CU27: 0.95 | CV27: 0.95 | CW27: 95t | CX27: 0.89 | CY27: 0.89 | CZ27: 89t | DA27: 0.57 | DB27: 0.57 | DC27: 57 | DD27: 0.21 | DE27: 0.8571428571 | DF27: 21 | DG27: 0.38 | DH27: 0.6327944573 | DI27: 38 | DJ27: 0.26 | DK27: 0.9126984127 | DL27: 26 | DM27: 62 | DN27: 62 | DO27: 62 | DP27: 0.49 | DQ27: 2.714285714 | DR27: 49t
A28: 550 | B28: Chesapeake | C28: 0.5306122449 | D28: 0.5161290323 | E28: 0.5 | F28: 0.5306122449 | G28: 0.5483870968 | H28: 0.4318181818 | I28: 0.693877551 | J28: 0.6451612903 | K28: 0.3863636364 | L28: 0.3043478261 | M28: 0.1428571429 | N28: 0.5 | O28: 0.4429530201 | P28: 0.5408805031 | Q28: 0.6226415094 | R28: 0.8870967742 | S28: 0.8615384615 | T28: 0.8507462687 | U28: 0.8333333333 | V28: 0.929 | W28: 0.6818181818 | X28: 2.857142857 | Y28: 3.142857143 | Z28: 2.857142857 | AA28: 56 | AB28: 67 | AC28: 49t | AD28: 60t | AE28: 56 | AF28: 73 | AG28: 33 | AH28: 56 | AI28: 105 | AJ28: 32 | AK28: 47t | AL28: 29t | AM28: 91 | AN28: 63 | AO28: 41 | AP28: 37 | AQ28: 46 | AR28: 48 | AS28: 43t | AT28: 26 | AU28: 86 | AV28: 40t | AW28: 32t | AX28: 42t | AY28: 0.56 | AZ28: 0.56 | BA28: 56 | BB28: 0.6 | BC28: 0.6 | BD28: 60t | BE28: 0.33 | BF28: 0.693877551 | BG28: 33 | BH28: 0.32 | BI28: 0.32 | BJ28: 32 | BK28: 0.91 | BL28: 0.91 | BM28: 91 | BN28: 0.37 | BO28: 0.8870967742 | BP28: 37 | BQ28: 0.43 | BR28: 0.8333333333 | BS28: 43t | BT28: 0.4 | BU28: 2.857142857 | BV28: 40t | BW28: 0.67 | BX28: 0.67 | BY28: 67 | BZ28: 0.56 | CA28: 0.56 | CB28: 56 | CC28: 0.56 | CD28: 0.6451612903 | CE28: 56 | CF28: 0.47 | CG28: 0.47 | CH28: 47t | CI28: 0.63 | CJ28: 0.63 | CK28: 63 | CL28: 0.0046 | CM28: 0.8615384615 | CN28: 46 | CO28: 0.26 | CP28: 0.929 | CQ28: 26 | CR28: 0.32 | CS28: 3.142857143 | CT28: 32t | CU28: 0.49 | CV28: 0.5 | CW28: 49t | CX28: 0.73 | CY28: 0.73 | CZ28: 73 | DA28: 1.05 | DB28: 1.05 | DC28: 105 | DD28: 0.29 | DE28: 0.5 | DF28: 29t | DG28: 0.41 | DH28: 0.6226415094 | DI28: 41 | DJ28: 0.48 | DK28: 0.8507462687 | DL28: 48 | DM28: 86 | DN28: 86 | DO28: 86 | DP28: 0.42 | DQ28: 2.857142857 | DR28: 42t
A29: 41 | B29: Chesterfield | C29: 0.5045045045 | D29: 0.5288461538 | E29: 0.5777777778 | F29: 0.4954954955 | G29: 0.4519230769 | H29: 0.3666666667 | I29: 0.5585585586 | J29: 0.625 | K29: 0.5888888889 | L29: 0.1627906977 | M29: 0.1555555556 | N29: 0.1290322581 | O29: 0.5275362319 | P29: 0.5694050992 | Q29: 0.6046511628 | R29: 0.7575757576 | S29: 0.7628865979 | T29: 0.7524752475 | U29: 0.8 | V29: 0.837 | W29: 0.6666666667 | X29: 2.142857143 | Y29: 2.428571429 | Z29: 2.428571429 | AA29: 63 | AB29: 63 | AC29: 27 | AD29: 77 | AE29: 80 | AF29: 89t | AG29: 69 | AH29: 60 | AI29: 45 | AJ29: 40 | AK29: 46 | AL29: 51 | AM29: 61 | AN29: 50 | AO29: 48 | AP29: 79t | AQ29: 79t | AR29: 86t | AS29: 57t | AT29: 51t | AU29: 88t | AV29: 99t | AW29: 82t | AX29: 73t | AY29: 0.63 | AZ29: 0.63 | BA29: 63 | BB29: 0.77 | BC29: 0.77 | BD29: 77 | BE29: 0.69 | BF29: 0.69 | BG29: 69 | BH29: 0.4 | BI29: 0.4 | BJ29: 40 | BK29: 0.61 | BL29: 0.61 | BM29: 61 | BN29: 0.79 | BO29: 0.79 | BP29: 79t | BQ29: 0.57 | BR29: 0.8 | BS29: 57t | BT29: 0.99 | BU29: 2.142857143 | BV29: 99t | BW29: 0.63 | BX29: 0.63 | BY29: 63 | BZ29: 0.8 | CA29: 0.8 | CB29: 80 | CC29: 0.6 | CD29: 0.625 | CE29: 60 | CF29: 0.46 | CG29: 0.46 | CH29: 46 | CI29: 0.5 | CJ29: 0.5694050992 | CK29: 50 | CL29: 0.79 | CM29: 0.79 | CN29: 79t | CO29: 0.51 | CP29: 0.837 | CQ29: 51t | CR29: 0.82 | CS29: 2.428571429 | CT29: 82t | CU29: 0.27 | CV29: 0.5777777778 | CW29: 27 | CX29: 0.89 | CY29: 0.89 | CZ29: 89t | DA29: 0.45 | DB29: 0.5888888889 | DC29: 45 | DD29: 0.51 | DE29: 0.51 | DF29: 51 | DG29: 0.48 | DH29: 0.6046511628 | DI29: 48 | DJ29: 0.86 | DK29: 0.86 | DL29: 86t | DM29: 88 | DN29: 88 | DO29: 88t | DP29: 0.73 | DQ29: 2.428571429 | DR29: 73t
A30: 43 | B30: Clarke | C30: 0.5 | D30: 1 | F30: 0.75 | G30: 1 | I30: 0.25 | J30: 0.6666666667 | O30: 0.5 | P30: 0.4347826087 | Q30: 0.5 | R30: 0.9090909091 | S30: 0.7272727273 | T30: 0.8 | U30: 1 | V30: 0.667 | W30: 0.8 | X30: 3 | Y30: 2.833333333 | Z30: 2.333333333 | AA30: 64t | AB30: 1t | AD30: 12t | AE30: 1t | AG30: 119 | AH30: 47t | AM30: 72t | AN30: 83 | AO30: 74t | AP30: 27t | AQ30: 88 | AR30: 63t | AS30: 1t | AT30: 93t | AU30: 51t | AV30: 28t | AW30: 50t | AX30: 84t | AY30: 0.64 | AZ30: 0.64 | BA30: 64t | BB30: 0.12 | BC30: 0.75 | BD30: 12t | BE30: 1.19 | BF30: 1.19 | BG30: 119 | BK30: 0.72 | BL30: 0.72 | BM30: 72t | BN30: 0.27 | BO30: 0.9090909091 | BP30: 27t | BQ30: 0.01 | BR30: 1 | BS30: 1t | BT30: 0.28 | BU30: 3 | BV30: 28t | BW30: 0.01 | BX30: 1 | BY30: 1t | BZ30: 0.01 | CA30: 1 | CB30: 1t | CC30: 0.47 | CD30: 0.6666666667 | CE30: 47t | CI30: 0.83 | CJ30: 0.83 | CK30: 83 | CL30: 0.0088 | CM30: 0.7272727273 | CN30: 88 | CO30: 0.93 | CP30: 0.93 | CQ30: 93t | CR30: 0.5 | CS30: 2.833333333 | CT30: 50t | DG30: 0.74 | DH30: 0.74 | DI30: 74t | DJ30: 0.63 | DK30: 0.8 | DL30: 63t | DM30: 51 | DN30: 51 | DO30: 51t | DP30: 0.84 | DQ30: 2.333333333 | DR30: 84t
A31: 570 | B31: Colonial Heights | C31: 1 | D31: 0.619047619 | E31: 0.5294117647 | F31: 0.75 | G31: 0.6666666667 | H31: 0.7058823529 | I31: 0.75 | J31: 0.5238095238 | K31: 0.4705882353 | M31: 0.25 | O31: 0.6333333333 | P31: 0.6590909091 | Q31: 0.75 | R31: 0.7575757576 | S31: 0.7628865979 | T31: 0.7524752475 | U31: 0.8 | V31: 0.837 | W31: 0.6666666667 | X31: 3.333333333 | Y31: 2.714285714 | Z31: 2.833333333 | AA31: 1t | AB31: 39 | AC31: 44t | AD31: 12t | AE31: 24t | AF31: 10 | AG31: 23t | AH31: 93 | AI31: 81t | AK31: 42t | AM31: 30 | AN31: 30 | AO31: 8t | AP31: 79t | AQ31: 79t | AR31: 86t | AS31: 57t | AT31: 51t | AU31: 88t | AV31: 13t | AW31: 56t | AX31: 47t | AY31: 0.01 | AZ31: 1 | BA31: 1t | BB31: 0.12 | BC31: 0.75 | BD31: 12t | BE31: 0.23 | BF31: 0.75 | BG31: 23t | BK31: 0.3 | BL31: 0.6333333333 | BM31: 30 | BN31: 0.79 | BO31: 0.79 | BP31: 79t | BQ31: 0.57 | BR31: 0.8 | BS31: 57t | BT31: 0.13 | BU31: 3.333333333 | BV31: 13t | BW31: 0.39 | BX31: 0.619047619 | BY31: 39 | BZ31: 0.24 | CA31: 0.6666666667 | CB31: 24t | CC31: 0.93 | CD31: 0.93 | CE31: 93 | CF31: 0.42 | CG31: 0.42 | CH31: 42t | CI31: 0.3 | CJ31: 0.6590909091 | CK31: 30 | CL31: 0.79 | CM31: 0.79 | CN31: 79t | CO31: 0.51 | CP31: 0.837 | CQ31: 51t | CR31: 0.56 | CS31: 2.714285714 | CT31: 56t | CU31: 0.44 | CV31: 0.5294117647 | CW31: 44t | CX31: 0.1 | CY31: 0.7058823529 | CZ31: 10 | DA31: 0.81 | DB31: 0.81 | DC31: 81t | DG31: 0.08 | DH31: 0.75 | DI31: 8t | DJ31: 0.86 | DK31: 0.86 | DL31: 86t | DM31: 88 | DN31: 88 | DO31: 88t | DP31: 0.47 | DQ31: 2.833333333 | DR31: 47t
A32: 580 | B32: Covington | C32: 0.6666666667 | F32: 0.5555555556 | I32: 0.5555555556 | O32: 0.8181818182 | P32: 0.9473684211 | Q32: 0.8 | R32: 0.7 | S32: 0.7692307692 | T32: 0.8 | U32: 0.5 | V32: 0.5 | W32: 0.625 | X32: 2.833333333 | Y32: 2.666666667 | Z32: 3 | AA32: 14t | AD32: 50t | AG32: 70t | AM32: 8 | AN32: 2 | AO32: 5t | AP32: 94t | AQ32: 75t | AR32: 63t | AS32: 110t | AT32: 105t | AU32: 98t | AV32: 49t | AW32: 61t | AX32: 29t | AY32: 0.14 | AZ32: 0.6666666667 | BA32: 14t | BB32: 0.5 | BC32: 0.5555555556 | BD32: 50t | BE32: 0.7 | BF32: 0.7 | BG32: 70t | BK32: 0.08 | BL32: 0.8181818182 | BM32: 8 | BN32: 0.94 | BO32: 0.94 | BP32: 94t | BQ32: 1.1 | BR32: 1.1 | BS32: 110t | BT32: 0.49 | BU32: 2.833333333 | BV32: 49t | CI32: 0.02 | CJ32: 0.9473684211 | CK32: 2 | CL32: 0.75 | CM32: 0.7692307692 | CN32: 75t | CO32: 1.05 | CP32: 1.05 | CQ32: 105t | CR32: 0.61 | CS32: 2.666666667 | CT32: 61t | DG32: 0.05 | DH32: 0.8 | DI32: 5t | DJ32: 0.63 | DK32: 0.8 | DL32: 63t | DM32: 98 | DN32: 98 | DO32: 98t | DP32: 0.29 | DQ32: 3 | DR32: 29t
A33: 45 | B33: Craig | C33: 0 | D33: 0.75 | E33: 0.4285714286 | F33: 0.1428571429 | G33: 0.25 | H33: 0.4285714286 | I33: 0.2857142857 | J33: 0.5 | K33: 0.4285714286 | L33: 1 | M33: 1 | N33: 1 | O33: 0.6206896552 | P33: 0.5416666667 | Q33: 0.6086956522 | R33: 1 | S33: 0.8888888889 | T33: 0.5 | U33: 0.25 | V33: 1 | W33: 0.875 | X33: 2.428571429 | Y33: 3 | Z33: 2.714285714 | AA33: 122t | AB33: 16t | AC33: 72t | AD33: 120 | AE33: 115t | AF33: 74t | AG33: 116t | AH33: 97t | AI33: 96t | AJ33: 1t | AK33: 1t | AL33: 1t | AM33: 37 | AN33: 62 | AO33: 46 | AP33: 1t | AQ33: 35 | AR33: 118t | AS33: 115t | AT33: 1t | AU33: 29t | AV33: 79t | AW33: 35t | AX33: 49t | AY33: 1.22 | AZ33: 1.22 | BA33: 122t | BB33: 1.2 | BC33: 1.2 | BD33: 120 | BE33: 1.16 | BF33: 1.16 | BG33: 116t | BH33: 0.01 | BI33: 1 | BJ33: 1t | BK33: 0.37 | BL33: 0.6206896552 | BM33: 37 | BN33: 0.01 | BO33: 1 | BP33: 1t | BQ33: 1.15 | BR33: 1.15 | BS33: 115t | BT33: 0.79 | BU33: 2.428571429 | BV33: 79t | BW33: 0.16 | BX33: 0.75 | BY33: 16t | BZ33: 1.15 | CA33: 1.15 | CB33: 115t | CC33: 0.97 | CD33: 0.97 | CE33: 97t | CF33: 0.01 | CG33: 1 | CH33: 1t | CI33: 0.62 | CJ33: 0.62 | CK33: 62 | CL33: 0.0035 | CM33: 0.8888888889 | CN33: 35 | CO33: 0.01 | CP33: 1 | CQ33: 1t | CR33: 0.35 | CS33: 3 | CT33: 35t | CU33: 0.72 | CV33: 0.72 | CW33: 72t | CX33: 0.74 | CY33: 0.74 | CZ33: 74t | DA33: 0.96 | DB33: 0.96 | DC33: 96t | DD33: 0.01 | DE33: 1 | DF33: 1t | DG33: 0.46 | DH33: 0.6086956522 | DI33: 46 | DJ33: 1.18 | DK33: 1.18 | DL33: 118t | DM33: 29 | DN33: 29 | DO33: 29t | DP33: 0.49 | DQ33: 2.714285714 | DR33: 49t
A34: 47 | B34: Culpeper | C34: 0.5 | D34: 0.4242424242 | E34: 0.5053763441 | F34: 0.6842105263 | G34: 0.5757575758 | H34: 0.4838709677 | I34: 0.6578947368 | J34: 0.7121212121 | K34: 0.5591397849 | L34: 0 | M34: 0 | N34: 0 | O34: 0.6592920354 | P34: 0.7186147186 | Q34: 0.7096774194 | R34: 0.5454545455 | S34: 0.6470588235 | T34: 0.7608695652 | U34: 0.8620689655 | V34: 0.652 | W34: 0.5909090909 | X34: 3.142857143 | Y34: 2.571428571 | Z34: 2.714285714 | AA34: 64t | AB34: 86 | AC34: 48 | AD34: 23 | AE34: 47 | AF34: 53t | AG34: 43 | AH34: 37 | AI34: 52 | AJ34: 54t | AK34: 58t | AL34: 54t | AM34: 26 | AN34: 16 | AO34: 16 | AP34: 118 | AQ34: 100 | AR34: 83 | AS34: 34 | AT34: 99 | AU34: 103 | AV34: 23t | AW34: 68t | AX34: 49t | AY34: 0.64 | AZ34: 0.64 | BA34: 64t | BB34: 0.23 | BC34: 0.6842105263 | BD34: 23 | BE34: 0.43 | BF34: 0.6578947368 | BG34: 43 | BH34: 0.54 | BI34: 0.54 | BJ34: 54t | BK34: 0.26 | BL34: 0.6592920354 | BM34: 26 | BN34: 1.18 | BO34: 1.18 | BP34: 118 | BQ34: 0.34 | BR34: 0.8620689655 | BS34: 34 | BT34: 0.23 | BU34: 3.142857143 | BV34: 23t | BW34: 0.86 | BX34: 0.86 | BY34: 86 | BZ34: 0.47 | CA34: 0.5757575758 | CB34: 47 | CC34: 0.37 | CD34: 0.7121212121 | CE34: 37 | CF34: 0.58 | CG34: 0.58 | CH34: 58t | CI34: 0.16 | CJ34: 0.7186147186 | CK34: 16 | CL34: 0.01 | CM34: 0.6470588235 | CN34: 100 | CO34: 0.99 | CP34: 0.99 | CQ34: 99 | CR34: 0.68 | CS34: 2.571428571 | CT34: 68t | CU34: 0.48 | CV34: 0.5053763441 | CW34: 48 | CX34: 0.53 | CY34: 0.53 | CZ34: 53t | DA34: 0.52 | DB34: 0.5591397849 | DC34: 52 | DD34: 0.54 | DE34: 0.54 | DF34: 54t | DG34: 0.16 | DH34: 0.7096774194 | DI34: 16 | DJ34: 0.83 | DK34: 0.83 | DL34: 83 | DM34: 103 | DN34: 103 | DO34: 103 | DP34: 0.49 | DQ34: 2.714285714 | DR34: 49t
A35: 49 | B35: Cumberland | C35: 0.5714285714 | D35: 0.6 | E35: 0.2307692308 | F35: 0.5714285714 | G35: 0.6 | H35: 0.3076923077 | I35: 0.2857142857 | J35: 1 | K35: 0.3846153846 | O35: 0.6285714286 | P35: 0.6785714286 | Q35: 0.5151515152 | R35: 0.5 | S35: 0.5 | T35: 0.7857142857 | U35: 1 | V35: 0.667 | W35: 0.5 | X35: 3.166666667 | Y35: 3.333333333 | Z35: 1.5 | AA35: 41t | AB35: 41t | AC35: 115t | AD35: 43t | AE35: 36t | AF35: 105t | AG35: 116t | AH35: 1t | AI35: 106t | AM35: 33 | AN35: 26 | AO35: 72 | AP35: 119t | AQ35: 112t | AR35: 75 | AS35: 1t | AT35: 93t | AU35: 105t | AV35: 20t | AW35: 23t | AX35: 128t | AY35: 0.41 | AZ35: 0.5714285714 | BA35: 41t | BB35: 0.43 | BC35: 0.5714285714 | BD35: 43t | BE35: 1.16 | BF35: 1.16 | BG35: 116t | BK35: 0.33 | BL35: 0.6285714286 | BM35: 33 | BN35: 1.19 | BO35: 1.19 | BP35: 119t | BQ35: 0.01 | BR35: 1 | BS35: 1t | BT35: 0.2 | BU35: 3.166666667 | BV35: 20t | BW35: 0.41 | BX35: 0.6 | BY35: 41t | BZ35: 0.36 | CA35: 0.6 | CB35: 36t | CC35: 0.01 | CD35: 1 | CE35: 1t | CI35: 0.26 | CJ35: 0.6785714286 | CK35: 26 | CL35: 1.12 | CM35: 1.12 | CN35: 112t | CO35: 0.93 | CP35: 0.93 | CQ35: 93t | CR35: 0.23 | CS35: 3.333333333 | CT35: 23t | CU35: 1.15 | CV35: 1.15 | CW35: 115t | CX35: 1.05 | CY35: 1.05 | CZ35: 105t | DA35: 1.06 | DB35: 1.06 | DC35: 106t | DG35: 0.72 | DH35: 0.72 | DI35: 72 | DJ35: 0.75 | DK35: 0.7857142857 | DL35: 75 | DM35: 105 | DN35: 105 | DO35: 105t | DP35: 1.28 | DQ35: 1.5 | DR35: 128t
A36: 590 | B36: Danville | C36: 0.5227272727 | D36: 0.4821428571 | E36: 0.6511627907 | F36: 0.4772727273 | G36: 0.4107142857 | H36: 0.3953488372 | I36: 0.4545454545 | J36: 0.5178571429 | K36: 0.5581395349 | L36: 0 | M36: 0.02857142857 | N36: 0 | O36: 0.5197368421 | P36: 0.5375 | Q36: 0.5174825175 | R36: 0.7307692308 | S36: 0.5087719298 | T36: 0.3888888889 | U36: 0.5806451613 | V36: 1 | W36: 0.6923076923 | X36: 2 | Y36: 2 | Z36: 2.142857143 | AA36: 60 | AB36: 80 | AC36: 17 | AD36: 80 | AE36: 84 | AF36: 83 | AG36: 96t | AH36: 95 | AI36: 54t | AJ36: 54t | AK36: 57 | AL36: 54t | AM36: 65 | AN36: 64 | AO36: 71 | AP36: 88 | AQ36: 111 | AR36: 126 | AS36: 108 | AT36: 1t | AU36: 80 | AV36: 108t | AW36: 104t | AX36: 98t | AY36: 0.6 | AZ36: 0.6 | BA36: 60 | BB36: 0.8 | BC36: 0.8 | BD36: 80 | BE36: 0.96 | BF36: 0.96 | BG36: 96t | BH36: 0.54 | BI36: 0.54 | BJ36: 54t | BK36: 0.65 | BL36: 0.65 | BM36: 65 | BN36: 0.88 | BO36: 0.88 | BP36: 88 | BQ36: 1.08 | BR36: 1.08 | BS36: 108 | BT36: 1.08 | BU36: 2 | BV36: 108t | BW36: 0.8 | BX36: 0.8 | BY36: 80 | BZ36: 0.84 | CA36: 0.84 | CB36: 84 | CC36: 0.95 | CD36: 0.95 | CE36: 95 | CF36: 0.57 | CG36: 0.57 | CH36: 57 | CI36: 0.64 | CJ36: 0.64 | CK36: 64 | CL36: 0.0111 | CM36: 0.5087719298 | CN36: 111 | CO36: 0.01 | CP36: 1 | CQ36: 1t | CR36: 1.04 | CS36: 2 | CT36: 104t | CU36: 0.17 | CV36: 0.6511627907 | CW36: 17 | CX36: 0.83 | CY36: 0.83 | CZ36: 83 | DA36: 0.54 | DB36: 0.5581395349 | DC36: 54t | DD36: 0.54 | DE36: 0.54 | DF36: 54t | DG36: 0.71 | DH36: 0.71 | DI36: 71 | DJ36: 1.26 | DK36: 1.26 | DL36: 126 | DM36: 80 | DN36: 80 | DO36: 80 | DP36: 0.98 | DQ36: 2.142857143 | DR36: 98t
A37: 51 | B37: Dickenson | C37: 0.4285714286 | D37: 0.5 | E37: 0.4390243902 | F37: 0.2285714286 | G37: 0.5333333333 | H37: 0.4390243902 | I37: 0.4857142857 | J37: 0.7666666667 | K37: 0.512195122 | L37: 0 | M37: 0 | N37: 0 | O37: 0.5801526718 | P37: 0.547008547 | Q37: 0.606557377 | R37: 0.8723404255 | S37: 0.8039215686 | T37: 0.7575757576 | U37: 0.9433962264 | V37: 0.833 | W37: 0.9393939394 | X37: 2.285714286 | Y37: 2.714285714 | Z37: 2.428571429 | AA37: 91t | AB37: 69t | AC37: 69 | AD37: 119 | AE37: 59 | AF37: 71 | AG37: 90 | AH37: 25 | AI37: 64 | AJ37: 54t | AK37: 58t | AL37: 54t | AM37: 48 | AN37: 58 | AO37: 47 | AP37: 47 | AQ37: 64 | AR37: 85 | AS37: 25 | AT37: 53t | AU37: 11 | AV37: 89t | AW37: 56t | AX37: 73t | AY37: 0.91 | AZ37: 0.91 | BA37: 91t | BB37: 1.19 | BC37: 1.19 | BD37: 119 | BE37: 0.9 | BF37: 0.9 | BG37: 90 | BH37: 0.54 | BI37: 0.54 | BJ37: 54t | BK37: 0.48 | BL37: 0.5801526718 | BM37: 48 | BN37: 0.47 | BO37: 0.8723404255 | BP37: 47 | BQ37: 0.25 | BR37: 0.9433962264 | BS37: 25 | BT37: 0.89 | BU37: 2.285714286 | BV37: 89t | BW37: 0.69 | BX37: 0.69 | BY37: 69t | BZ37: 0.59 | CA37: 0.59 | CB37: 59 | CC37: 0.25 | CD37: 0.7666666667 | CE37: 25 | CF37: 0.58 | CG37: 0.58 | CH37: 58t | CI37: 0.58 | CJ37: 0.58 | CK37: 58 | CL37: 0.0064 | CM37: 0.8039215686 | CN37: 64 | CO37: 0.53 | CP37: 0.833 | CQ37: 53t | CR37: 0.56 | CS37: 2.714285714 | CT37: 56t | CU37: 0.69 | CV37: 0.69 | CW37: 69 | CX37: 0.71 | CY37: 0.71 | CZ37: 71 | DA37: 0.64 | DB37: 0.64 | DC37: 64 | DD37: 0.54 | DE37: 0.54 | DF37: 54t | DG37: 0.47 | DH37: 0.606557377 | DI37: 47 | DJ37: 0.85 | DK37: 0.85 | DL37: 85 | DM37: 11 | DN37: 11 | DO37: 11 | DP37: 0.73 | DQ37: 2.428571429 | DR37: 73t
A38: 53 | B38: Dinwiddie | C38: 0.6153846154 | D38: 0.7222222222 | E38: 0.5806451613 | F38: 0.3076923077 | G38: 0.5555555556 | H38: 0.6451612903 | I38: 0.6923076923 | J38: 0.6666666667 | K38: 0.8064516129 | L38: 0.1428571429 | M38: 0.2857142857 | N38: 0.8888888889 | O38: 0.6 | P38: 0.6851851852 | Q38: 0.7464788732 | R38: 0.9 | S38: 0.8421052632 | T38: 0.7692307692 | U38: 0.8333333333 | V38: 0.875 | W38: 0.7777777778 | X38: 3 | Y38: 3.428571429 | Z38: 3.428571429 | AA38: 28t | AB38: 21 | AC38: 25t | AD38: 112t | AE38: 54t | AF38: 18 | AG38: 34 | AH38: 47t | AI38: 8 | AJ38: 42 | AK38: 39t | AL38: 20 | AM38: 42t | AN38: 23t | AO38: 12 | AP38: 29t | AQ38: 53 | AR38: 81 | AS38: 43t | AT38: 40t | AU38: 58t | AV38: 28t | AW38: 16t | AX38: 10t | AY38: 0.28 | AZ38: 0.6153846154 | BA38: 28t | BB38: 1.12 | BC38: 1.12 | BD38: 112t | BE38: 0.34 | BF38: 0.6923076923 | BG38: 34 | BH38: 0.42 | BI38: 0.42 | BJ38: 42 | BK38: 0.42 | BL38: 0.6 | BM38: 42t | BN38: 0.29 | BO38: 0.9 | BP38: 29t | BQ38: 0.43 | BR38: 0.8333333333 | BS38: 43t | BT38: 0.28 | BU38: 3 | BV38: 28t | BW38: 0.21 | BX38: 0.7222222222 | BY38: 21 | BZ38: 0.54 | CA38: 0.5555555556 | CB38: 54t | CC38: 0.47 | CD38: 0.6666666667 | CE38: 47t | CF38: 0.39 | CG38: 0.39 | CH38: 39t | CI38: 0.23 | CJ38: 0.6851851852 | CK38: 23t | CL38: 0.0053 | CM38: 0.8421052632 | CN38: 53 | CO38: 0.4 | CP38: 0.875 | CQ38: 40t | CR38: 0.16 | CS38: 3.428571429 | CT38: 16t | CU38: 0.25 | CV38: 0.5806451613 | CW38: 25t | CX38: 0.18 | CY38: 0.6451612903 | CZ38: 18 | DA38: 0.08 | DB38: 0.8064516129 | DC38: 8 | DD38: 0.2 | DE38: 0.8888888889 | DF38: 20 | DG38: 0.12 | DH38: 0.7464788732 | DI38: 12 | DJ38: 0.81 | DK38: 0.81 | DL38: 81 | DM38: 58 | DN38: 58 | DO38: 58t | DP38: 0.1 | DQ38: 3.428571429 | DR38: 10t
A39: 57 | B39: Essex | C39: 0.6666666667 | D39: 0.4705882353 | E39: 0.5 | F39: 0.6666666667 | G39: 0.4705882353 | H39: 0.5 | I39: 1 | J39: 0.5294117647 | K39: 0.5 | M39: 0 | N39: 0.2857142857 | O39: 0.6129032258 | P39: 0.4285714286 | Q39: 0.525 | R39: 0.5 | S39: 0.4666666667 | T39: 0.5384615385 | U39: 0.2 | V39: 1 | W39: 1 | X39: 3.333333333 | Y39: 1.857142857 | Z39: 2.428571429 | AA39: 14t | AB39: 82 | AC39: 49t | AD39: 25t | AE39: 75 | AF39: 39t | AG39: 1t | AH39: 92 | AI39: 65t | AK39: 58t | AL39: 42t | AM39: 38 | AN39: 86 | AO39: 67 | AP39: 119t | AQ39: 118 | AR39: 117 | AS39: 117 | AT39: 1t | AU39: 1t | AV39: 13t | AW39: 110t | AX39: 73t | AY39: 0.14 | AZ39: 0.6666666667 | BA39: 14t | BB39: 0.25 | BC39: 0.6666666667 | BD39: 25t | BE39: 0.01 | BF39: 1 | BG39: 1t | BK39: 0.38 | BL39: 0.6129032258 | BM39: 38 | BN39: 1.19 | BO39: 1.19 | BP39: 119t | BQ39: 1.17 | BR39: 1.17 | BS39: 117 | BT39: 0.13 | BU39: 3.333333333 | BV39: 13t | BW39: 0.82 | BX39: 0.82 | BY39: 82 | BZ39: 0.75 | CA39: 0.75 | CB39: 75 | CC39: 0.92 | CD39: 0.92 | CE39: 92 | CF39: 0.58 | CG39: 0.58 | CH39: 58t | CI39: 0.86 | CJ39: 0.86 | CK39: 86 | CL39: 0.0118 | CM39: 0.4666666667 | CN39: 118 | CO39: 0.01 | CP39: 1 | CQ39: 1t | CR39: 1.1 | CS39: 1.857142857 | CT39: 110t | CU39: 0.49 | CV39: 0.5 | CW39: 49t | CX39: 0.39 | CY39: 0.5 | CZ39: 39t | DA39: 0.65 | DB39: 0.65 | DC39: 65t | DD39: 0.42 | DE39: 0.42 | DF39: 42t | DG39: 0.67 | DH39: 0.67 | DI39: 67 | DJ39: 1.17 | DK39: 1.17 | DL39: 117 | DM39: 1 | DN39: 1 | DO39: 1t | DP39: 0.73 | DQ39: 2.428571429 | DR39: 73t
A40: 1300 | B40: Fairfax_Falls Church | C40: 0.4192139738 | D40: 0.4704142012 | E40: 0.3954154728 | F40: 0.5349344978 | G40: 0.5591715976 | H40: 0.4441260745 | I40: 0.5655021834 | J40: 0.5650887574 | K40: 0.558739255 | L40: 0.9292035398 | M40: 1 | N40: 1 | O40: 0.6784996651 | P40: 0.6972027972 | Q40: 0.6803966438 | R40: 0.9244444444 | S40: 0.8894736842 | T40: 0.8238636364 | U40: 0.7047619048 | V40: 0.86 | W40: 0.6981132075 | X40: 2.857142857 | Y40: 3.428571429 | Z40: 2.857142857 | AA40: 97 | AB40: 83 | AC40: 81 | AD40: 56 | AE40: 53 | AF40: 70 | AG40: 66 | AH40: 81 | AI40: 53 | AJ40: 13 | AK40: 1t | AL40: 1t | AM40: 21 | AN40: 20 | AO40: 22 | AP40: 22 | AQ40: 34 | AR40: 56 | AS40: 97 | AT40: 44 | AU40: 79 | AV40: 40t | AW40: 16t | AX40: 42t | AY40: 0.97 | AZ40: 0.97 | BA40: 97 | BB40: 0.56 | BC40: 0.56 | BD40: 56 | BE40: 0.66 | BF40: 0.66 | BG40: 66 | BH40: 0.13 | BI40: 0.9292035398 | BJ40: 13 | BK40: 0.21 | BL40: 0.6784996651 | BM40: 21 | BN40: 0.22 | BO40: 0.9244444444 | BP40: 22 | BQ40: 0.97 | BR40: 0.97 | BS40: 97 | BT40: 0.4 | BU40: 2.857142857 | BV40: 40t | BW40: 0.83 | BX40: 0.83 | BY40: 83 | BZ40: 0.53 | CA40: 0.5591715976 | CB40: 53 | CC40: 0.81 | CD40: 0.81 | CE40: 81 | CF40: 0.01 | CG40: 1 | CH40: 1t | CI40: 0.2 | CJ40: 0.6972027972 | CK40: 20 | CL40: 0.0034 | CM40: 0.8894736842 | CN40: 34 | CO40: 0.44 | CP40: 0.86 | CQ40: 44 | CR40: 0.16 | CS40: 3.428571429 | CT40: 16t | CU40: 0.81 | CV40: 0.81 | CW40: 81 | CX40: 0.7 | CY40: 0.7 | CZ40: 70 | DA40: 0.53 | DB40: 0.558739255 | DC40: 53 | DD40: 0.01 | DE40: 1 | DF40: 1t | DG40: 0.22 | DH40: 0.6803966438 | DI40: 22 | DJ40: 0.56 | DK40: 0.8238636364 | DL40: 56 | DM40: 79 | DN40: 79 | DO40: 79 | DP40: 0.42 | DQ40: 2.857142857 | DR40: 42t
A41: 61 | B41: Fauquier | C41: 0.5 | D41: 0.3513513514 | E41: 0.5609756098 | F41: 0.5333333333 | G41: 0.5945945946 | H41: 0.512195122 | I41: 0.6 | J41: 0.7297297297 | K41: 0.6585365854 | L41: 0.07142857143 | M41: 0 | N41: 0 | O41: 0.6096491228 | P41: 0.5638297872 | Q41: 0.5878787879 | R41: 0.7884615385 | S41: 0.8181818182 | T41: 0.6976744186 | U41: 0.8611111111 | V41: 0.975 | W41: 0.9090909091 | X41: 2.857142857 | Y41: 3 | Z41: 3.285714286 | AA41: 64t | AB41: 105 | AC41: 31 | AD41: 57t | AE41: 42 | AF41: 37 | AG41: 56t | AH41: 32 | AI41: 29 | AJ41: 47 | AK41: 58t | AL41: 54t | AM41: 39 | AN41: 52 | AO41: 50 | AP41: 71 | AQ41: 61t | AR41: 102 | AS41: 35 | AT41: 19 | AU41: 16 | AV41: 40t | AW41: 35t | AX41: 18t | AY41: 0.64 | AZ41: 0.64 | BA41: 64t | BB41: 0.57 | BC41: 0.57 | BD41: 57t | BE41: 0.56 | BF41: 0.6 | BG41: 56t | BH41: 0.47 | BI41: 0.47 | BJ41: 47 | BK41: 0.39 | BL41: 0.6096491228 | BM41: 39 | BN41: 0.71 | BO41: 0.7884615385 | BP41: 71 | BQ41: 0.35 | BR41: 0.8611111111 | BS41: 35 | BT41: 0.4 | BU41: 2.857142857 | BV41: 40t | BW41: 1.05 | BX41: 1.05 | BY41: 105 | BZ41: 0.42 | CA41: 0.5945945946 | CB41: 42 | CC41: 0.32 | CD41: 0.7297297297 | CE41: 32 | CF41: 0.58 | CG41: 0.58 | CH41: 58t | CI41: 0.52 | CJ41: 0.5638297872 | CK41: 52 | CL41: 0.61 | CM41: 0.8181818182 | CN41: 61t | CO41: 0.19 | CP41: 0.975 | CQ41: 19 | CR41: 0.35 | CS41: 3 | CT41: 35t | CU41: 0.31 | CV41: 0.5609756098 | CW41: 31 | CX41: 0.37 | CY41: 0.512195122 | CZ41: 37 | DA41: 0.29 | DB41: 0.6585365854 | DC41: 29 | DD41: 0.54 | DE41: 0.54 | DF41: 54t | DG41: 0.5 | DH41: 0.5878787879 | DI41: 50 | DJ41: 1.02 | DK41: 1.02 | DL41: 102 | DM41: 16 | DN41: 16 | DO41: 16 | DP41: 0.18 | DQ41: 3.285714286 | DR41: 18t
A42: 63 | B42: Floyd | C42: 0.5 | D42: 0.6666666667 | E42: 0.7272727273 | F42: 0.5 | G42: 0.3333333333 | H42: 0.3636363636 | I42: 0.4 | J42: 0.7777777778 | K42: 0.3636363636 | O42: 0.6 | P42: 0.375 | Q42: 0.3142857143 | R42: 0.875 | S42: 0.8571428571 | T42: 0.8181818182 | U42: 0.8 | V42: 0.625 | W42: 0.5 | X42: 2.666666667 | Y42: 2.666666667 | Z42: 2.166666667 | AA42: 64t | AB42: 30t | AC42: 6 | AD42: 69t | AE42: 102t | AF42: 91 | AG42: 108t | AH42: 24 | AI42: 110 | AM42: 42t | AN42: 93 | AO42: 107 | AP42: 43t | AQ42: 48 | AR42: 57t | AS42: 57t | AT42: 101t | AU42: 105t | AV42: 60t | AW42: 61t | AX42: 95t | AY42: 0.64 | AZ42: 0.64 | BA42: 64t | BB42: 0.69 | BC42: 0.69 | BD42: 69t | BE42: 1.08 | BF42: 1.08 | BG42: 108t | BK42: 0.42 | BL42: 0.6 | BM42: 42t | BN42: 0.43 | BO42: 0.875 | BP42: 43t | BQ42: 0.57 | BR42: 0.8 | BS42: 57t | BT42: 0.6 | BU42: 2.666666667 | BV42: 60t | BW42: 0.3 | BX42: 0.6666666667 | BY42: 30t | BZ42: 1.02 | CA42: 1.02 | CB42: 102t | CC42: 0.24 | CD42: 0.7777777778 | CE42: 24 | CI42: 0.93 | CJ42: 0.93 | CK42: 93 | CL42: 0.0048 | CM42: 0.8571428571 | CN42: 48 | CO42: 1.01 | CP42: 1.01 | CQ42: 101t | CR42: 0.61 | CS42: 2.666666667 | CT42: 61t | CU42: 0.06 | CV42: 0.7272727273 | CW42: 6 | CX42: 0.91 | CY42: 0.91 | CZ42: 91 | DA42: 1.1 | DB42: 1.1 | DC42: 110 | DG42: 1.07 | DH42: 1.07 | DI42: 107 | DJ42: 0.57 | DK42: 0.8181818182 | DL42: 57t | DM42: 105 | DN42: 105 | DO42: 105t | DP42: 0.95 | DQ42: 2.166666667 | DR42: 95t
A43: 65 | B43: Fluvanna | C43: 0.4193548387 | D43: 0.3939393939 | E43: 0.4285714286 | F43: 0.5806451613 | G43: 0.4848484848 | H43: 0.5 | I43: 0.4516129032 | J43: 0.4545454545 | K43: 0.4285714286 | L43: 0.04347826087 | M43: 0 | N43: 0 | O43: 0.7280701754 | P43: 0.7226890756 | Q43: 0.6984126984 | R43: 0.7272727273 | S43: 0.75 | T43: 0.8181818182 | U43: 0.8 | W43: 0.6666666667 | X43: 2.142857143 | Y43: 1.833333333 | Z43: 2.571428571 | AA43: 96 | AB43: 98 | AC43: 72t | AD43: 39t | AE43: 71 | AF43: 39t | AG43: 99 | AH43: 108t | AI43: 96t | AJ43: 51 | AK43: 58t | AL43: 54t | AM43: 17 | AN43: 15 | AO43: 18 | AP43: 89t | AQ43: 82t | AR43: 57t | AS43: 57t | AU43: 88t | AV43: 99t | AW43: 117t | AX43: 59t | AY43: 0.96 | AZ43: 0.96 | BA43: 96 | BB43: 0.39 | BC43: 0.5806451613 | BD43: 39t | BE43: 0.99 | BF43: 0.99 | BG43: 99 | BH43: 0.51 | BI43: 0.51 | BJ43: 51 | BK43: 0.17 | BL43: 0.7280701754 | BM43: 17 | BN43: 0.89 | BO43: 0.89 | BP43: 89t | BQ43: 0.57 | BR43: 0.8 | BS43: 57t | BT43: 0.99 | BU43: 2.142857143 | BV43: 99t | BW43: 0.98 | BX43: 0.98 | BY43: 98 | BZ43: 0.71 | CA43: 0.71 | CB43: 71 | CC43: 1.08 | CD43: 1.08 | CE43: 108t | CF43: 0.58 | CG43: 0.58 | CH43: 58t | CI43: 0.15 | CJ43: 0.7226890756 | CK43: 15 | CL43: 0.82 | CM43: 0.82 | CN43: 82t | CR43: 1.17 | CS43: 1.833333333 | CT43: 117t | CU43: 0.72 | CV43: 0.72 | CW43: 72t | CX43: 0.39 | CY43: 0.5 | CZ43: 39t | DA43: 0.96 | DB43: 0.96 | DC43: 96t | DD43: 0.54 | DE43: 0.54 | DF43: 54t | DG43: 0.18 | DH43: 0.6984126984 | DI43: 18 | DJ43: 0.57 | DK43: 0.8181818182 | DL43: 57t | DM43: 88 | DN43: 88 | DO43: 88t | DP43: 0.59 | DQ43: 2.571428571 | DR43: 59t
A44: 620 | B44: Franklin City | C44: 1 | D44: 0 | E44: 0.5 | F44: 0 | G44: 0 | H44: 0 | I44: 0 | J44: 1 | K44: 0 | M44: 0.5 | N44: 1 | O44: 0 | P44: 0 | Q44: 0 | R44: 1 | S44: 0.5 | T44: 1 | U44: 1 | W44: 0.8571428571 | X44: 2.5 | Y44: 2.166666667 | Z44: 2.428571429 | AA44: 1t | AB44: 121t | AC44: 49t | AD44: 121t | AE44: 123t | AF44: 121t | AG44: 121t | AH44: 1t | AI44: 119t | AK44: 29t | AL44: 1t | AM44: 127t | AN44: 127t | AO44: 127t | AP44: 1t | AQ44: 112t | AR44: 1t | AS44: 1t | AU44: 34t | AV44: 76t | AW44: 99t | AX44: 73t | AY44: 0.01 | AZ44: 1 | BA44: 1t | BB44: 1.21 | BC44: 1.21 | BD44: 121t | BE44: 1.21 | BF44: 1.21 | BG44: 121t | BK44: 1.27 | BL44: 1.27 | BM44: 127t | BN44: 0.01 | BO44: 1 | BP44: 1t | BQ44: 0.01 | BR44: 1 | BS44: 1t | BT44: 0.76 | BU44: 2.5 | BV44: 76t | BW44: 1.21 | BX44: 1.21 | BY44: 121t | BZ44: 1.23 | CA44: 1.23 | CB44: 123t | CC44: 0.01 | CD44: 1 | CE44: 1t | CF44: 0.29 | CG44: 0.5 | CH44: 29t | CI44: 1.27 | CJ44: 1.27 | CK44: 127t | CL44: 1.12 | CM44: 1.12 | CN44: 112t | CR44: 0.99 | CS44: 2.166666667 | CT44: 99t | CU44: 0.49 | CV44: 0.5 | CW44: 49t | CX44: 1.21 | CY44: 1.21 | CZ44: 121t | DA44: 1.19 | DB44: 1.19 | DC44: 119t | DD44: 0.01 | DE44: 1 | DF44: 1t | DG44: 1.27 | DH44: 1.27 | DI44: 127t | DJ44: 0.01 | DK44: 1 | DL44: 1t | DM44: 34 | DN44: 34 | DO44: 34t | DP44: 0.73 | DQ44: 2.428571429 | DR44: 73t
A45: 67 | B45: Franklin County | C45: 0.5740740741 | D45: 0.328125 | E45: 0.4 | F45: 0.3888888889 | G45: 0.34375 | H45: 0.4909090909 | I45: 0.5 | J45: 0.453125 | K45: 0.6 | L45: 1 | M45: 1 | N45: 1 | O45: 0.6666666667 | P45: 0.6632653061 | Q45: 0.6563380282 | R45: 0.8852459016 | S45: 0.8450704225 | T45: 0.7590361446 | U45: 0.7272727273 | V45: 0.778 | W45: 0.76 | X45: 2.857142857 | Y45: 2.285714286 | Z45: 2.857142857 | AA45: 40 | AB45: 113 | AC45: 77t | AD45: 103 | AE45: 101 | AF45: 51 | AG45: 86t | AH45: 110 | AI45: 41 | AJ45: 1t | AK45: 1t | AL45: 1t | AM45: 23t | AN45: 29 | AO45: 30 | AP45: 38 | AQ45: 51 | AR45: 84 | AS45: 86t | AT45: 70t | AU45: 63 | AV45: 40t | AW45: 94t | AX45: 42t | AY45: 0.4 | AZ45: 0.5740740741 | BA45: 40 | BB45: 1.03 | BC45: 1.03 | BD45: 103 | BE45: 0.86 | BF45: 0.86 | BG45: 86t | BH45: 0.01 | BI45: 1 | BJ45: 1t | BK45: 0.23 | BL45: 0.6666666667 | BM45: 23t | BN45: 0.38 | BO45: 0.8852459016 | BP45: 38 | BQ45: 0.86 | BR45: 0.86 | BS45: 86t | BT45: 0.4 | BU45: 2.857142857 | BV45: 40t | BW45: 1.13 | BX45: 1.13 | BY45: 113 | BZ45: 1.01 | CA45: 1.01 | CB45: 101 | CC45: 1.1 | CD45: 1.1 | CE45: 110 | CF45: 0.01 | CG45: 1 | CH45: 1t | CI45: 0.29 | CJ45: 0.6632653061 | CK45: 29 | CL45: 0.0051 | CM45: 0.8450704225 | CN45: 51 | CO45: 0.7 | CP45: 0.778 | CQ45: 70t | CR45: 0.94 | CS45: 2.285714286 | CT45: 94t | CU45: 0.77 | CV45: 0.77 | CW45: 77t | CX45: 0.51 | CY45: 0.51 | CZ45: 51 | DA45: 0.41 | DB45: 0.6 | DC45: 41 | DD45: 0.01 | DE45: 1 | DF45: 1t | DG45: 0.3 | DH45: 0.6563380282 | DI45: 30 | DJ45: 0.84 | DK45: 0.84 | DL45: 84 | DM45: 63 | DN45: 63 | DO45: 63 | DP45: 0.42 | DQ45: 2.857142857 | DR45: 42t
A46: 69 | B46: Frederick | C46: 0.4054054054 | D46: 0.4324324324 | E46: 0.3098591549 | F46: 0.6486486486 | G46: 0.6756756757 | H46: 0.3521126761 | I46: 0.7567567568 | J46: 0.6486486486 | K46: 0.4084507042 | L46: 0 | M46: 0.1111111111 | N46: 0.4615384615 | O46: 0.4468085106 | P46: 0.5072463768 | Q46: 0.5986842105 | R46: 0.7333333333 | S46: 0.7073170732 | T46: 0.7352941176 | U46: 1 | V46: 1 | W46: 0.8333333333 | X46: 2.428571429 | Y46: 2.571428571 | Z46: 2.142857143 | AA46: 98 | AB46: 85 | AC46: 103 | AD46: 30 | AE46: 23 | AF46: 94 | AG46: 22 | AH46: 55 | AI46: 100 | AJ46: 54t | AK46: 49 | AL46: 33 | AM46: 89 | AN46: 73 | AO46: 49 | AP46: 87 | AQ46: 91 | AR46: 93 | AS46: 1t | AT46: 1t | AU46: 41t | AV46: 79t | AW46: 68t | AX46: 98t | AY46: 0.98 | AZ46: 0.98 | BA46: 98 | BB46: 0.3 | BC46: 0.6486486486 | BD46: 30 | BE46: 0.22 | BF46: 0.7567567568 | BG46: 22 | BH46: 0.54 | BI46: 0.54 | BJ46: 54t | BK46: 0.89 | BL46: 0.89 | BM46: 89 | BN46: 0.87 | BO46: 0.87 | BP46: 87 | BQ46: 0.01 | BR46: 1 | BS46: 1t | BT46: 0.79 | BU46: 2.428571429 | BV46: 79t | BW46: 0.85 | BX46: 0.85 | BY46: 85 | BZ46: 0.23 | CA46: 0.6756756757 | CB46: 23 | CC46: 0.55 | CD46: 0.6486486486 | CE46: 55 | CF46: 0.49 | CG46: 0.49 | CH46: 49 | CI46: 0.73 | CJ46: 0.73 | CK46: 73 | CL46: 0.0091 | CM46: 0.7073170732 | CN46: 91 | CO46: 0.01 | CP46: 1 | CQ46: 1t | CR46: 0.68 | CS46: 2.571428571 | CT46: 68t | CU46: 1.03 | CV46: 1.03 | CW46: 103 | CX46: 0.94 | CY46: 0.94 | CZ46: 94 | DA46: 1 | DB46: 1 | DC46: 100 | DD46: 0.33 | DE46: 0.4615384615 | DF46: 33 | DG46: 0.49 | DH46: 0.5986842105 | DI46: 49 | DJ46: 0.93 | DK46: 0.93 | DL46: 93 | DM46: 41 | DN46: 41 | DO46: 41t | DP46: 0.98 | DQ46: 2.142857143 | DR46: 98t
A47: 630 | B47: Fredericksburg | C47: 0.4736842105 | D47: 0.3181818182 | E47: 0.4347826087 | F47: 0.7894736842 | G47: 0.3636363636 | H47: 0.6086956522 | I47: 0.7368421053 | J47: 0.6818181818 | K47: 0.8260869565 | L47: 0.1666666667 | M47: 0 | N47: 0 | O47: 0.5373134328 | P47: 0.5731707317 | Q47: 0.6470588235 | R47: 0.8947368421 | S47: 0.8181818182 | T47: 0.85 | U47: 0.9473684211 | V47: 0.923 | W47: 0.88 | X47: 3.142857143 | Y47: 2.571428571 | Z47: 3.285714286 | AA47: 79t | AB47: 115 | AC47: 71 | AD47: 9 | AE47: 99t | AF47: 22 | AG47: 27t | AH47: 46 | AI47: 7 | AJ47: 39 | AK47: 58t | AL47: 54t | AM47: 59 | AN47: 48 | AO47: 33 | AP47: 35 | AQ47: 61t | AR47: 49 | AS47: 24 | AT47: 27 | AU47: 27t | AV47: 23t | AW47: 68t | AX47: 18t | AY47: 0.79 | AZ47: 0.79 | BA47: 79t | BB47: 0.09 | BC47: 0.7894736842 | BD47: 9 | BE47: 0.27 | BF47: 0.7368421053 | BG47: 27t | BH47: 0.39 | BI47: 0.39 | BJ47: 39 | BK47: 0.59 | BL47: 0.59 | BM47: 59 | BN47: 0.35 | BO47: 0.8947368421 | BP47: 35 | BQ47: 0.24 | BR47: 0.9473684211 | BS47: 24 | BT47: 0.23 | BU47: 3.142857143 | BV47: 23t | BW47: 1.15 | BX47: 1.15 | BY47: 115 | BZ47: 0.99 | CA47: 0.99 | CB47: 99t | CC47: 0.46 | CD47: 0.6818181818 | CE47: 46 | CF47: 0.58 | CG47: 0.58 | CH47: 58t | CI47: 0.48 | CJ47: 0.5731707317 | CK47: 48 | CL47: 0.61 | CM47: 0.8181818182 | CN47: 61t | CO47: 0.27 | CP47: 0.923 | CQ47: 27 | CR47: 0.68 | CS47: 2.571428571 | CT47: 68t | CU47: 0.71 | CV47: 0.71 | CW47: 71 | CX47: 0.22 | CY47: 0.6086956522 | CZ47: 22 | DA47: 0.07 | DB47: 0.8260869565 | DC47: 7 | DD47: 0.54 | DE47: 0.54 | DF47: 54t | DG47: 0.33 | DH47: 0.6470588235 | DI47: 33 | DJ47: 0.49 | DK47: 0.85 | DL47: 49 | DM47: 27 | DN47: 27 | DO47: 27t | DP47: 0.18 | DQ47: 3.285714286 | DR47: 18t
A48: 640 | B48: Galax | C48: 0.5714285714 | D48: 0.2 | E48: 0.3571428571 | F48: 0.5 | G48: 0.3333333333 | H48: 0.4 | I48: 0.6428571429 | J48: 0.7333333333 | K48: 0.6666666667 | N48: 0.2857142857 | O48: 0.7843137255 | P48: 0.7872340426 | Q48: 0.6326530612 | R48: 0.8 | S48: 0.7777777778 | T48: 0.8 | U48: 1 | W48: 0.6666666667 | X48: 3.5 | Y48: 2.4 | Z48: 2.285714286 | AA48: 41t | AB48: 120 | AC48: 91t | AD48: 69t | AE48: 102t | AF48: 81t | AG48: 45 | AH48: 31 | AI48: 21t | AL48: 42t | AM48: 11 | AN48: 9 | AO48: 39 | AP48: 67 | AQ48: 73 | AR48: 63t | AS48: 1t | AU48: 88t | AV48: 9t | AW48: 92t | AX48: 88t | AY48: 0.41 | AZ48: 0.5714285714 | BA48: 41t | BB48: 0.69 | BC48: 0.69 | BD48: 69t | BE48: 0.45 | BF48: 0.6428571429 | BG48: 45 | BK48: 0.11 | BL48: 0.7843137255 | BM48: 11 | BN48: 0.67 | BO48: 0.8 | BP48: 67 | BQ48: 0.01 | BR48: 1 | BS48: 1t | BT48: 0.09 | BU48: 3.5 | BV48: 9t | BW48: 1.2 | BX48: 1.2 | BY48: 120 | BZ48: 1.02 | CA48: 1.02 | CB48: 102t | CC48: 0.31 | CD48: 0.7333333333 | CE48: 31 | CI48: 0.09 | CJ48: 0.7872340426 | CK48: 9 | CL48: 0.0073 | CM48: 0.7777777778 | CN48: 73 | CR48: 0.92 | CS48: 2.4 | CT48: 92t | CU48: 0.91 | CV48: 0.91 | CW48: 91t | CX48: 0.81 | CY48: 0.81 | CZ48: 81t | DA48: 0.21 | DB48: 0.6666666667 | DC48: 21t | DD48: 0.42 | DE48: 0.42 | DF48: 42t | DG48: 0.39 | DH48: 0.6326530612 | DI48: 39 | DJ48: 0.63 | DK48: 0.8 | DL48: 63t | DM48: 88 | DN48: 88 | DO48: 88t | DP48: 0.88 | DQ48: 2.285714286 | DR48: 88t
A49: 71 | B49: Giles | C49: 0.5769230769 | D49: 0.5428571429 | E49: 0.3870967742 | F49: 0.4230769231 | G49: 0.6285714286 | H49: 0.4838709677 | I49: 0.6153846154 | J49: 0.7142857143 | K49: 0.5483870968 | L49: 0 | M49: 0.8888888889 | N49: 0.05263157895 | O49: 0.3571428571 | P49: 0.3398058252 | Q49: 0.3448275862 | R49: 0.8139534884 | S49: 0.8648648649 | T49: 0.8333333333 | U49: 0.8518518519 | V49: 0.892 | W49: 0.84375 | X49: 2.285714286 | Y49: 3.428571429 | Z49: 2.285714286 | AA49: 38t | AB49: 60 | AC49: 85 | AD49: 92 | AE49: 31 | AF49: 53t | AG49: 51t | AH49: 36 | AI49: 58 | AJ49: 54t | AK49: 18 | AL49: 53 | AM49: 100t | AN49: 102 | AO49: 102 | AP49: 64 | AQ49: 44 | AR49: 52t | AS49: 39 | AT49: 33 | AU49: 37t | AV49: 89t | AW49: 16t | AX49: 88t | AY49: 0.38 | AZ49: 0.5769230769 | BA49: 38t | BB49: 0.92 | BC49: 0.92 | BD49: 92 | BE49: 0.51 | BF49: 0.6153846154 | BG49: 51t | BH49: 0.54 | BI49: 0.54 | BJ49: 54t | BK49: 1 | BL49: 1 | BM49: 100t | BN49: 0.64 | BO49: 0.8139534884 | BP49: 64 | BQ49: 0.39 | BR49: 0.8518518519 | BS49: 39 | BT49: 0.89 | BU49: 2.285714286 | BV49: 89t | BW49: 0.6 | BX49: 0.6 | BY49: 60 | BZ49: 0.31 | CA49: 0.6285714286 | CB49: 31 | CC49: 0.36 | CD49: 0.7142857143 | CE49: 36 | CF49: 0.18 | CG49: 0.8888888889 | CH49: 18 | CI49: 1.02 | CJ49: 1.02 | CK49: 102 | CL49: 0.0044 | CM49: 0.8648648649 | CN49: 44 | CO49: 0.33 | CP49: 0.892 | CQ49: 33 | CR49: 0.16 | CS49: 3.428571429 | CT49: 16t | CU49: 0.85 | CV49: 0.85 | CW49: 85 | CX49: 0.53 | CY49: 0.53 | CZ49: 53t | DA49: 0.58 | DB49: 0.58 | DC49: 58 | DD49: 0.53 | DE49: 0.53 | DF49: 53 | DG49: 1.02 | DH49: 1.02 | DI49: 102 | DJ49: 0.52 | DK49: 0.8333333333 | DL49: 52t | DM49: 37 | DN49: 37 | DO49: 37t | DP49: 0.88 | DQ49: 2.285714286 | DR49: 88t
A50: 73 | B50: Gloucester | C50: 0.4375 | D50: 0.625 | E50: 0.3571428571 | F50: 0.3125 | G50: 0.25 | H50: 0.2857142857 | I50: 0.625 | J50: 0.25 | K50: 0.5714285714 | N50: 0.3333333333 | O50: 0.2037037037 | P50: 0.3333333333 | Q50: 0.3090909091 | R50: 0.8846153846 | S50: 1 | T50: 0.8518518519 | U50: 0.75 | V50: 0.95 | W50: 0.8333333333 | X50: 2 | Y50: 2.5 | Z50: 2 | AA50: 88t | AB50: 37t | AC50: 91t | AD50: 111 | AE50: 115t | AF50: 111t | AG50: 48t | AH50: 120 | AI50: 49t | AL50: 38t | AM50: 116 | AN50: 103 | AO50: 109 | AP50: 39 | AQ50: 1t | AR50: 45 | AS50: 77t | AT50: 22 | AU50: 41t | AV50: 108t | AW50: 79t | AX50: 106t | AY50: 0.88 | AZ50: 0.88 | BA50: 88t | BB50: 1.11 | BC50: 1.11 | BD50: 111 | BE50: 0.48 | BF50: 0.625 | BG50: 48t | BK50: 1.16 | BL50: 1.16 | BM50: 116 | BN50: 0.39 | BO50: 0.8846153846 | BP50: 39 | BQ50: 0.77 | BR50: 0.77 | BS50: 77t | BT50: 1.08 | BU50: 2 | BV50: 108t | BW50: 0.37 | BX50: 0.625 | BY50: 37t | BZ50: 1.15 | CA50: 1.15 | CB50: 115t | CC50: 1.2 | CD50: 1.2 | CE50: 120 | CI50: 1.03 | CJ50: 1.03 | CK50: 103 | CL50: 0.01 | CM50: 1 | CN50: 1t | CO50: 0.22 | CP50: 0.95 | CQ50: 22 | CR50: 0.79 | CS50: 2.5 | CT50: 79t | CU50: 0.91 | CV50: 0.91 | CW50: 91t | CX50: 1.11 | CY50: 1.11 | CZ50: 111t | DA50: 0.49 | DB50: 0.5714285714 | DC50: 49t | DD50: 0.38 | DE50: 0.38 | DF50: 38t | DG50: 1.09 | DH50: 1.09 | DI50: 109 | DJ50: 0.45 | DK50: 0.8518518519 | DL50: 45 | DM50: 41 | DN50: 41 | DO50: 41t | DP50: 1.06 | DQ50: 2 | DR50: 106t
A51: 75 | B51: Goochland | C51: 0.6 | D51: 0.5 | E51: 0.4 | F51: 0.4 | G51: 0.25 | H51: 0.4 | I51: 0.6 | J51: 0 | K51: 0.4 | L51: 0.09090909091 | M51: 0 | N51: 0 | O51: 0.2888888889 | P51: 0.2941176471 | Q51: 0.28125 | R51: 0.6666666667 | S51: 0.4285714286 | T51: 0.7647058824 | U51: 0.8181818182 | V51: 0.778 | W51: 0.25 | X51: 2.142857143 | Y51: 1.428571429 | Z51: 1.285714286 | AA51: 31t | AB51: 69t | AC51: 77t | AD51: 97t | AE51: 115t | AF51: 81t | AG51: 56t | AH51: 122t | AI51: 101t | AJ51: 46 | AK51: 58t | AL51: 54t | AM51: 105 | AN51: 109t | AO51: 113 | AP51: 103t | AQ51: 119 | AR51: 82 | AS51: 50 | AT51: 70t | AU51: 114t | AV51: 99t | AW51: 127 | AX51: 130 | AY51: 0.31 | AZ51: 0.6 | BA51: 31t | BB51: 0.97 | BC51: 0.97 | BD51: 97t | BE51: 0.56 | BF51: 0.6 | BG51: 56t | BH51: 0.46 | BI51: 0.46 | BJ51: 46 | BK51: 1.05 | BL51: 1.05 | BM51: 105 | BN51: 1.03 | BO51: 1.03 | BP51: 103t | BQ51: 0.5 | BR51: 0.8181818182 | BS51: 50 | BT51: 0.99 | BU51: 2.142857143 | BV51: 99t | BW51: 0.69 | BX51: 0.69 | BY51: 69t | BZ51: 1.15 | CA51: 1.15 | CB51: 115t | CC51: 1.22 | CD51: 1.22 | CE51: 122t | CF51: 0.58 | CG51: 0.58 | CH51: 58t | CI51: 1.09 | CJ51: 1.09 | CK51: 109t | CL51: 0.0119 | CM51: 0.4285714286 | CN51: 119 | CO51: 0.7 | CP51: 0.778 | CQ51: 70t | CR51: 1.27 | CS51: 1.428571429 | CT51: 127 | CU51: 0.77 | CV51: 0.77 | CW51: 77t | CX51: 0.81 | CY51: 0.81 | CZ51: 81t | DA51: 1.01 | DB51: 1.01 | DC51: 101t | DD51: 0.54 | DE51: 0.54 | DF51: 54t | DG51: 1.13 | DH51: 1.13 | DI51: 113 | DJ51: 0.82 | DK51: 0.82 | DL51: 82 | DM51: 114 | DN51: 114 | DO51: 114t | DP51: 1.3 | DQ51: 1.3 | DR51: 130
A52: 77 | B52: Grayson | C52: 0.1428571429 | D52: 0.3888888889 | E52: 0.625 | F52: 0.2857142857 | G52: 0.2777777778 | H52: 0.5 | I52: 0.4285714286 | J52: 0.5 | K52: 0.5 | M52: 0.3333333333 | N52: 0.2222222222 | O52: 0.6326530612 | P52: 0.2941176471 | Q52: 0.4339622642 | R52: 0.9 | S52: 0.7083333333 | T52: 0.8181818182 | U52: 0.8333333333 | V52: 1 | W52: 0.6428571429 | X52: 2.333333333 | Y52: 1.714285714 | Z52: 2.428571429 | AA52: 119 | AB52: 99t | AC52: 18 | AD52: 114t | AE52: 113 | AF52: 39t | AG52: 105t | AH52: 97t | AI52: 65t | AK52: 35t | AL52: 47 | AM52: 31 | AN52: 109t | AO52: 85 | AP52: 29t | AQ52: 90 | AR52: 57t | AS52: 43t | AT52: 1t | AU52: 95 | AV52: 86t | AW52: 120t | AX52: 73t | AY52: 1.19 | AZ52: 1.19 | BA52: 119 | BB52: 1.14 | BC52: 1.14 | BD52: 114t | BE52: 1.05 | BF52: 1.05 | BG52: 105t | BK52: 0.31 | BL52: 0.6326530612 | BM52: 31 | BN52: 0.29 | BO52: 0.9 | BP52: 29t | BQ52: 0.43 | BR52: 0.8333333333 | BS52: 43t | BT52: 0.86 | BU52: 2.333333333 | BV52: 86t | BW52: 0.99 | BX52: 0.99 | BY52: 99t | BZ52: 1.13 | CA52: 1.13 | CB52: 113 | CC52: 0.97 | CD52: 0.97 | CE52: 97t | CF52: 0.35 | CG52: 0.35 | CH52: 35t | CI52: 1.09 | CJ52: 1.09 | CK52: 109t | CL52: 0.009 | CM52: 0.7083333333 | CN52: 90 | CO52: 0.01 | CP52: 1 | CQ52: 1t | CR52: 1.2 | CS52: 1.714285714 | CT52: 120t | CU52: 0.18 | CV52: 0.625 | CW52: 18 | CX52: 0.39 | CY52: 0.5 | CZ52: 39t | DA52: 0.65 | DB52: 0.65 | DC52: 65t | DD52: 0.47 | DE52: 0.47 | DF52: 47 | DG52: 0.85 | DH52: 0.85 | DI52: 85 | DJ52: 0.57 | DK52: 0.8181818182 | DL52: 57t | DM52: 95 | DN52: 95 | DO52: 95 | DP52: 0.73 | DQ52: 2.428571429 | DR52: 73t
A53: 79 | B53: Greene | C53: 0.7142857143 | D53: 0.7 | E53: 0.3333333333 | F53: 0.4285714286 | G53: 0.8 | H53: 0.2333333333 | I53: 0.7142857143 | J53: 0.9 | K53: 0.5 | L53: 0 | O53: 0.511627907 | P53: 0.5588235294 | Q53: 0.6818181818 | R53: 0.6923076923 | S53: 0.5 | T53: 0.5 | U53: 0.7777777778 | V53: 0.9 | W53: 0.5 | X53: 2.428571429 | Y53: 3.5 | Z53: 1.833333333 | AA53: 12 | AB53: 24t | AC53: 95t | AD53: 89t | AE53: 14t | AF53: 118 | AG53: 30 | AH53: 15 | AI53: 65t | AJ53: 54t | AM53: 67 | AN53: 53 | AO53: 21 | AP53: 98 | AQ53: 112t | AR53: 118t | AS53: 75 | AT53: 30t | AU53: 105t | AV53: 79t | AW53: 11t | AX53: 119 | AY53: 0.12 | AZ53: 0.7142857143 | BA53: 12 | BB53: 0.89 | BC53: 0.89 | BD53: 89t | BE53: 0.3 | BF53: 0.7142857143 | BG53: 30 | BH53: 0.54 | BI53: 0.54 | BJ53: 54t | BK53: 0.67 | BL53: 0.67 | BM53: 67 | BN53: 0.98 | BO53: 0.98 | BP53: 98 | BQ53: 0.75 | BR53: 0.7777777778 | BS53: 75 | BT53: 0.79 | BU53: 2.428571429 | BV53: 79t | BW53: 0.24 | BX53: 0.7 | BY53: 24t | BZ53: 0.14 | CA53: 0.8 | CB53: 14t | CC53: 0.15 | CD53: 0.9 | CE53: 15 | CI53: 0.53 | CJ53: 0.5588235294 | CK53: 53 | CL53: 1.12 | CM53: 1.12 | CN53: 112t | CO53: 0.3 | CP53: 0.9 | CQ53: 30t | CR53: 0.11 | CS53: 3.5 | CT53: 11t | CU53: 0.95 | CV53: 0.95 | CW53: 95t | CX53: 1.18 | CY53: 1.18 | CZ53: 118 | DA53: 0.65 | DB53: 0.65 | DC53: 65t | DG53: 0.21 | DH53: 0.6818181818 | DI53: 21 | DJ53: 1.18 | DK53: 1.18 | DL53: 118t | DM53: 105 | DN53: 105 | DO53: 105t | DP53: 1.19 | DQ53: 1.833333333 | DR53: 119
A54: 1200 | B54: Greensville_Emporia | C54: 0.6666666667 | D54: 0.8 | E54: 0.4 | F54: 0.5 | G54: 0.4 | H54: 0.5 | I54: 0.3333333333 | J54: 0.6 | K54: 0.4 | O54: 0.4545454545 | P54: 0.4 | Q54: 0.4193548387 | R54: 1 | S54: 0.6666666667 | T54: 0.8181818182 | U54: 0.6666666667 | V54: 1 | W54: 0.5 | X54: 2.333333333 | Y54: 2.5 | Z54: 2.166666667 | AA54: 14t | AB54: 11t | AC54: 77t | AD54: 69t | AE54: 89t | AF54: 39t | AG54: 112t | AH54: 67t | AI54: 101t | AM54: 86t | AN54: 90 | AO54: 87 | AP54: 1t | AQ54: 96t | AR54: 57t | AS54: 102t | AT54: 1t | AU54: 105t | AV54: 86t | AW54: 79t | AX54: 95t | AY54: 0.14 | AZ54: 0.6666666667 | BA54: 14t | BB54: 0.69 | BC54: 0.69 | BD54: 69t | BE54: 1.12 | BF54: 1.12 | BG54: 112t | BK54: 0.86 | BL54: 0.86 | BM54: 86t | BN54: 0.01 | BO54: 1 | BP54: 1t | BQ54: 1.02 | BR54: 1.02 | BS54: 102t | BT54: 0.86 | BU54: 2.333333333 | BV54: 86t | BW54: 0.11 | BX54: 0.8 | BY54: 11t | BZ54: 0.89 | CA54: 0.89 | CB54: 89t | CC54: 0.67 | CD54: 0.67 | CE54: 67t | CI54: 0.9 | CJ54: 0.9 | CK54: 90 | CL54: 0.96 | CM54: 0.96 | CN54: 96t | CO54: 0.01 | CP54: 1 | CQ54: 1t | CR54: 0.79 | CS54: 2.5 | CT54: 79t | CU54: 0.77 | CV54: 0.77 | CW54: 77t | CX54: 0.39 | CY54: 0.5 | CZ54: 39t | DA54: 1.01 | DB54: 1.01 | DC54: 101t | DG54: 0.87 | DH54: 0.87 | DI54: 87 | DJ54: 0.57 | DK54: 0.8181818182 | DL54: 57t | DM54: 105 | DN54: 105 | DO54: 105t | DP54: 0.95 | DQ54: 2.166666667 | DR54: 95t
A55: 83 | B55: Halifax | C55: 0.5882352941 | D55: 0.7407407407 | E55: 0.5333333333 | F55: 0.6470588235 | G55: 0.4444444444 | H55: 0.6 | I55: 0.4705882353 | J55: 0.7037037037 | K55: 0.7333333333 | L55: 0 | N55: 0 | O55: 0.6095238095 | P55: 0.6162790698 | Q55: 0.5802469136 | R55: 0.6875 | S55: 0.7666666667 | T55: 0.7777777778 | U55: 0.5555555556 | V55: 0.778 | W55: 0.5 | X55: 2.571428571 | Y55: 2.833333333 | Z55: 3 | AA55: 36 | AB55: 20 | AC55: 43 | AD55: 31t | AE55: 81t | AF55: 24t | AG55: 93 | AH55: 40t | AI55: 11 | AJ55: 54t | AL55: 54t | AM55: 40 | AN55: 36 | AO55: 51 | AP55: 99t | AQ55: 78 | AR55: 78t | AS55: 109 | AT55: 70t | AU55: 105t | AV55: 67t | AW55: 50t | AX55: 29t | AY55: 0.36 | AZ55: 0.5882352941 | BA55: 36 | BB55: 0.31 | BC55: 0.6470588235 | BD55: 31t | BE55: 0.93 | BF55: 0.93 | BG55: 93 | BH55: 0.54 | BI55: 0.54 | BJ55: 54t | BK55: 0.4 | BL55: 0.6095238095 | BM55: 40 | BN55: 0.99 | BO55: 0.99 | BP55: 99t | BQ55: 1.09 | BR55: 1.09 | BS55: 109 | BT55: 0.67 | BU55: 2.571428571 | BV55: 67t | BW55: 0.2 | BX55: 0.7407407407 | BY55: 20 | BZ55: 0.81 | CA55: 0.81 | CB55: 81t | CC55: 0.4 | CD55: 0.7037037037 | CE55: 40t | CI55: 0.36 | CJ55: 0.6162790698 | CK55: 36 | CL55: 0.0078 | CM55: 0.7666666667 | CN55: 78 | CO55: 0.7 | CP55: 0.778 | CQ55: 70t | CR55: 0.5 | CS55: 2.833333333 | CT55: 50t | CU55: 0.43 | CV55: 0.5333333333 | CW55: 43 | CX55: 0.24 | CY55: 0.6 | CZ55: 24t | DA55: 0.11 | DB55: 0.7333333333 | DC55: 11 | DD55: 0.54 | DE55: 0.54 | DF55: 54t | DG55: 0.51 | DH55: 0.5802469136 | DI55: 51 | DJ55: 0.78 | DK55: 0.78 | DL55: 78t | DM55: 105 | DN55: 105 | DO55: 105t | DP55: 0.29 | DQ55: 3 | DR55: 29t
A56: 650 | B56: Hampton | C56: 0.432 | D56: 0.35 | E56: 0.4375 | F56: 0.408 | G56: 0.4583333333 | H56: 0.5 | I56: 0.472 | J56: 0.2833333333 | K56: 0.375 | L56: 1 | M56: 1 | N56: 1 | O56: 0.8203592814 | P56: 0.8306772908 | Q56: 0.8657024793 | R56: 0.96 | S56: 0.9642857143 | T56: 1 | U56: 0.6153846154 | V56: 0.594 | W56: 0.859375 | X56: 2.428571429 | Y56: 2.428571429 | Z56: 3.142857143 | AA56: 90 | AB56: 106 | AC56: 70 | AD56: 95 | AE56: 77 | AF56: 39t | AG56: 92 | AH56: 119 | AI56: 109 | AJ56: 1t | AK56: 1t | AL56: 1t | AM56: 7 | AN56: 4 | AO56: 1 | AP56: 16 | AQ56: 13 | AR56: 1t | AS56: 106 | AT56: 103 | AU56: 33 | AV56: 79t | AW56: 82t | AX56: 26t | AY56: 0.9 | AZ56: 0.9 | BA56: 90 | BB56: 0.95 | BC56: 0.95 | BD56: 95 | BE56: 0.92 | BF56: 0.92 | BG56: 92 | BH56: 0.01 | BI56: 1 | BJ56: 1t | BK56: 0.07 | BL56: 0.8203592814 | BM56: 7 | BN56: 0.16 | BO56: 0.96 | BP56: 16 | BQ56: 1.06 | BR56: 1.06 | BS56: 106 | BT56: 0.79 | BU56: 2.428571429 | BV56: 79t | BW56: 1.06 | BX56: 1.06 | BY56: 106 | BZ56: 0.77 | CA56: 0.77 | CB56: 77 | CC56: 1.19 | CD56: 1.19 | CE56: 119 | CF56: 0.01 | CG56: 1 | CH56: 1t | CI56: 0.04 | CJ56: 0.8306772908 | CK56: 4 | CL56: 0.0013 | CM56: 0.9642857143 | CN56: 13 | CO56: 1.03 | CP56: 1.03 | CQ56: 103 | CR56: 0.82 | CS56: 2.428571429 | CT56: 82t | CU56: 0.7 | CV56: 0.7 | CW56: 70 | CX56: 0.39 | CY56: 0.5 | CZ56: 39t | DA56: 1.09 | DB56: 1.09 | DC56: 109 | DD56: 0.01 | DE56: 1 | DF56: 1t | DG56: 0.01 | DH56: 0.8657024793 | DI56: 1 | DJ56: 0.01 | DK56: 1 | DL56: 1t | DM56: 33 | DN56: 33 | DO56: 33 | DP56: 0.26 | DQ56: 3.142857143 | DR56: 26t
A57: 85 | B57: Hanover | C57: 0.6382978723 | D57: 0.4772727273 | E57: 0.56 | F57: 0.5957446809 | G57: 0.3636363636 | H57: 0.56 | I57: 0.7872340426 | J57: 0.6136363636 | K57: 0.66 | L57: 0.2142857143 | M57: 0.7 | N57: 0.5 | O57: 0.6218487395 | P57: 0.6803278689 | Q57: 0.6439393939 | R57: 0.7777777778 | S57: 0.6 | T57: 0.7058823529 | U57: 0.8571428571 | V57: 0.727 | W57: 0.4444444444 | X57: 3.142857143 | Y57: 2.571428571 | Z57: 3.428571429 | AA57: 21t | AB57: 81 | AC57: 32 | AD57: 37 | AE57: 99t | AF57: 31 | AG57: 16 | AH57: 63 | AI57: 27 | AJ57: 37 | AK57: 21 | AL57: 29t | AM57: 36 | AN57: 25 | AO57: 34 | AP57: 74 | AQ57: 105t | AR57: 99 | AS57: 36t | AT57: 85 | AU57: 111 | AV57: 23t | AW57: 68t | AX57: 10t | AY57: 0.21 | AZ57: 0.6382978723 | BA57: 21t | BB57: 0.37 | BC57: 0.5957446809 | BD57: 37 | BE57: 0.16 | BF57: 0.7872340426 | BG57: 16 | BH57: 0.37 | BI57: 0.37 | BJ57: 37 | BK57: 0.36 | BL57: 0.6218487395 | BM57: 36 | BN57: 0.74 | BO57: 0.7777777778 | BP57: 74 | BQ57: 0.36 | BR57: 0.8571428571 | BS57: 36t | BT57: 0.23 | BU57: 3.142857143 | BV57: 23t | BW57: 0.81 | BX57: 0.81 | BY57: 81 | BZ57: 0.99 | CA57: 0.99 | CB57: 99t | CC57: 0.63 | CD57: 0.63 | CE57: 63 | CF57: 0.21 | CG57: 0.7 | CH57: 21 | CI57: 0.25 | CJ57: 0.6803278689 | CK57: 25 | CL57: 1.05 | CM57: 1.05 | CN57: 105t | CO57: 0.85 | CP57: 0.85 | CQ57: 85 | CR57: 0.68 | CS57: 2.571428571 | CT57: 68t | CU57: 0.32 | CV57: 0.56 | CW57: 32 | CX57: 0.31 | CY57: 0.56 | CZ57: 31 | DA57: 0.27 | DB57: 0.66 | DC57: 27 | DD57: 0.29 | DE57: 0.5 | DF57: 29t | DG57: 0.34 | DH57: 0.6439393939 | DI57: 34 | DJ57: 0.99 | DK57: 0.99 | DL57: 99 | DM57: 111 | DN57: 111 | DO57: 111 | DP57: 0.1 | DQ57: 3.428571429 | DR57: 10t
A58: 660 | B58: Harrisonburg | C58: 0.4666666667 | D58: 0.3703703704 | E58: 0.5588235294 | F58: 0.4 | G58: 0.4074074074 | H58: 0.3529411765 | I58: 0.6333333333 | J58: 0.6296296296 | K58: 0.5 | L58: 0.2962962963 | M58: 0.07407407407 | N58: 0 | O58: 0.40625 | P58: 0.2804878049 | Q58: 0.3655172414 | R58: 0.7961783439 | S58: 0.7967032967 | T58: 0.7090909091 | U58: 0.7205882353 | V58: 0.718 | W58: 0.6896551724 | X58: 2 | Y58: 1.571428571 | Z58: 1.714285714 | AA58: 83 | AB58: 103 | AC58: 33 | AD58: 97t | AE58: 87 | AF58: 92t | AG58: 47 | AH58: 59 | AI58: 65t | AJ58: 33 | AK58: 54 | AL58: 54t | AM58: 93 | AN58: 112 | AO58: 99 | AP58: 68t | AQ58: 67t | AR58: 97t | AS58: 89t | AT58: 86t | AU58: 81t | AV58: 108t | AW58: 124t | AX58: 120t | AY58: 0.83 | AZ58: 0.83 | BA58: 83 | BB58: 0.97 | BC58: 0.97 | BD58: 97t | BE58: 0.47 | BF58: 0.6333333333 | BG58: 47 | BH58: 0.33 | BI58: 0.33 | BJ58: 33 | BK58: 0.93 | BL58: 0.93 | BM58: 93 | BN58: 0.68 | BO58: 0.7961783439 | BP58: 68t | BQ58: 0.89 | BR58: 0.89 | BS58: 89t | BT58: 1.08 | BU58: 2 | BV58: 108t | BW58: 1.03 | BX58: 1.03 | BY58: 103 | BZ58: 0.87 | CA58: 0.87 | CB58: 87 | CC58: 0.59 | CD58: 0.6296296296 | CE58: 59 | CF58: 0.54 | CG58: 0.54 | CH58: 54 | CI58: 1.12 | CJ58: 1.12 | CK58: 112 | CL58: 0.67 | CM58: 0.7967032967 | CN58: 67t | CO58: 0.86 | CP58: 0.86 | CQ58: 86t | CR58: 1.24 | CS58: 1.571428571 | CT58: 124t | CU58: 0.33 | CV58: 0.5588235294 | CW58: 33 | CX58: 0.92 | CY58: 0.92 | CZ58: 92t | DA58: 0.65 | DB58: 0.65 | DC58: 65t | DD58: 0.54 | DE58: 0.54 | DF58: 54t | DG58: 0.99 | DH58: 0.99 | DI58: 99 | DJ58: 0.97 | DK58: 0.97 | DL58: 97t | DM58: 81 | DN58: 81 | DO58: 81t | DP58: 1.2 | DQ58: 1.714285714 | DR58: 120t
A59: 87 | B59: Henrico | C59: 0.4968553459 | D59: 0.6330275229 | E59: 0.5909090909 | F59: 0.5597484277 | G59: 0.6972477064 | H59: 0.6022727273 | I59: 0.4528301887 | J59: 0.6146788991 | K59: 0.6590909091 | L59: 0.7666666667 | M59: 0.619047619 | N59: 0.3448275862 | O59: 0.6223958333 | P59: 0.6718346253 | Q59: 0.7066326531 | R59: 0.6960784314 | S59: 0.7623762376 | T59: 0.724137931 | U59: 0.8076923077 | V59: 0.8 | W59: 0.6326530612 | X59: 2.714285714 | Y59: 3.285714286 | Z59: 3 | AA59: 73 | AB59: 36 | AC59: 24 | AD59: 49 | AE59: 22 | AF59: 23 | AG59: 98 | AH59: 62 | AI59: 28 | AJ59: 17 | AK59: 26 | AL59: 37 | AM59: 35 | AN59: 28 | AO59: 17 | AP59: 97 | AQ59: 81 | AR59: 94 | AS59: 53t | AT59: 63t | AU59: 97 | AV59: 54t | AW59: 26t | AX59: 29t | AY59: 0.73 | AZ59: 0.73 | BA59: 73 | BB59: 0.49 | BC59: 0.5597484277 | BD59: 49 | BE59: 0.98 | BF59: 0.98 | BG59: 98 | BH59: 0.17 | BI59: 0.7666666667 | BJ59: 17 | BK59: 0.35 | BL59: 0.6223958333 | BM59: 35 | BN59: 0.97 | BO59: 0.97 | BP59: 97 | BQ59: 0.53 | BR59: 0.8076923077 | BS59: 53t | BT59: 0.54 | BU59: 2.714285714 | BV59: 54t | BW59: 0.36 | BX59: 0.6330275229 | BY59: 36 | BZ59: 0.22 | CA59: 0.6972477064 | CB59: 22 | CC59: 0.62 | CD59: 0.62 | CE59: 62 | CF59: 0.26 | CG59: 0.619047619 | CH59: 26 | CI59: 0.28 | CJ59: 0.6718346253 | CK59: 28 | CL59: 0.0081 | CM59: 0.7623762376 | CN59: 81 | CO59: 0.63 | CP59: 0.8 | CQ59: 63t | CR59: 0.26 | CS59: 3.285714286 | CT59: 26t | CU59: 0.24 | CV59: 0.5909090909 | CW59: 24 | CX59: 0.23 | CY59: 0.6022727273 | CZ59: 23 | DA59: 0.28 | DB59: 0.6590909091 | DC59: 28 | DD59: 0.37 | DE59: 0.37 | DF59: 37 | DG59: 0.17 | DH59: 0.7066326531 | DI59: 17 | DJ59: 0.94 | DK59: 0.94 | DL59: 94 | DM59: 97 | DN59: 97 | DO59: 97 | DP59: 0.29 | DQ59: 3 | DR59: 29t
A60: 89 | B60: Henry | C60: 0.3888888889 | D60: 0.4193548387 | E60: 0.34375 | F60: 0.3333333333 | G60: 0.3870967742 | H60: 0.46875 | I60: 0.4444444444 | J60: 0.5483870968 | K60: 0.59375 | N60: 0 | O60: 0.2372881356 | P60: 0.1076923077 | Q60: 0.141025641 | R60: 0.8235294118 | S60: 0.9565217391 | T60: 0.8510638298 | U60: 0.88 | V60: 0.821 | W60: 0.8421052632 | X60: 1.833333333 | Y60: 1.833333333 | Z60: 2.428571429 | AA60: 104 | AB60: 88 | AC60: 93 | AD60: 109t | AE60: 95 | AF60: 61 | AG60: 102 | AH60: 87 | AI60: 42 | AL60: 54t | AM60: 112 | AN60: 121 | AO60: 125 | AP60: 60t | AQ60: 14t | AR60: 46t | AS60: 30t | AT60: 59t | AU60: 39t | AV60: 117t | AW60: 117t | AX60: 73t | AY60: 1.04 | AZ60: 1.04 | BA60: 104 | BB60: 1.09 | BC60: 1.09 | BD60: 109t | BE60: 1.02 | BF60: 1.02 | BG60: 102 | BK60: 1.12 | BL60: 1.12 | BM60: 112 | BN60: 0.6 | BO60: 0.8235294118 | BP60: 60t | BQ60: 0.3 | BR60: 0.88 | BS60: 30t | BT60: 1.17 | BU60: 1.833333333 | BV60: 117t | BW60: 0.88 | BX60: 0.88 | BY60: 88 | BZ60: 0.95 | CA60: 0.95 | CB60: 95 | CC60: 0.87 | CD60: 0.87 | CE60: 87 | CI60: 1.21 | CJ60: 1.21 | CK60: 121 | CL60: 0.14 | CM60: 0.9565217391 | CN60: 14t | CO60: 0.59 | CP60: 0.821 | CQ60: 59t | CR60: 1.17 | CS60: 1.833333333 | CT60: 117t | CU60: 0.93 | CV60: 0.93 | CW60: 93 | CX60: 0.61 | CY60: 0.61 | CZ60: 61 | DA60: 0.42 | DB60: 0.59375 | DC60: 42 | DD60: 0.54 | DE60: 0.54 | DF60: 54t | DG60: 1.25 | DH60: 1.25 | DI60: 125 | DJ60: 0.46 | DK60: 0.8510638298 | DL60: 46t | DM60: 39 | DN60: 39 | DO60: 39t | DP60: 0.73 | DQ60: 2.428571429 | DR60: 73t
A61: 91 | B61: Highland | D61: 1 | E61: 0 | G61: 0 | H61: 1 | J61: 1 | K61: 1 | O61: 0 | P61: 0 | Q61: 0 | R61: 1 | S61: 1 | T61: 1 | W61: 1 | X61: 2.5 | Y61: 2.8 | Z61: 3 | AB61: 1t | AC61: 120t | AE61: 123t | AF61: 1t | AH61: 1t | AI61: 1t | AM61: 127t | AN61: 127t | AO61: 127t | AP61: 1t | AQ61: 1t | AR61: 1t | AU61: 1t | AV61: 76t | AW61: 55 | AX61: 29t | BK61: 1.27 | BL61: 1.27 | BM61: 127t | BN61: 0.01 | BO61: 1 | BP61: 1t | BT61: 0.76 | BU61: 2.5 | BV61: 76t | BW61: 0.01 | BX61: 1 | BY61: 1t | BZ61: 1.23 | CA61: 1.23 | CB61: 123t | CC61: 0.01 | CD61: 1 | CE61: 1t | CI61: 1.27 | CJ61: 1.27 | CK61: 127t | CL61: 0.01 | CM61: 1 | CN61: 1t | CR61: 0.55 | CS61: 2.8 | CT61: 55 | CU61: 1.2 | CV61: 1.2 | CW61: 120t | CX61: 0.01 | CY61: 1 | CZ61: 1t | DA61: 0.01 | DB61: 1 | DC61: 1t | DG61: 1.27 | DH61: 1.27 | DI61: 127t | DJ61: 0.01 | DK61: 1 | DL61: 1t | DM61: 1 | DN61: 1 | DO61: 1t | DP61: 0.29 | DQ61: 3 | DR61: 29t
A62: 670 | B62: Hopewell | C62: 0.5 | D62: 0.5 | E62: 0.3888888889 | F62: 0.2777777778 | G62: 0.4090909091 | H62: 0.5 | I62: 0.3888888889 | J62: 0.5454545455 | K62: 0.6666666667 | O62: 0.7698412698 | P62: 0.6739130435 | Q62: 0.6534653465 | R62: 0.85 | S62: 0.95 | T62: 1 | U62: 0.75 | V62: 0.9 | W62: 0.8666666667 | X62: 2.5 | Y62: 2.666666667 | Z62: 3.5 | AA62: 64t | AB62: 69t | AC62: 84 | AD62: 117 | AE62: 85 | AF62: 39t | AG62: 111 | AH62: 88t | AI62: 21t | AM62: 14 | AN62: 27 | AO62: 31 | AP62: 52 | AQ62: 16 | AR62: 1t | AS62: 77t | AT62: 30t | AU62: 32 | AV62: 76t | AW62: 61t | AX62: 8t | AY62: 0.64 | AZ62: 0.64 | BA62: 64t | BB62: 1.17 | BC62: 1.17 | BD62: 117 | BE62: 1.11 | BF62: 1.11 | BG62: 111 | BK62: 0.14 | BL62: 0.7698412698 | BM62: 14 | BN62: 0.52 | BO62: 0.85 | BP62: 52 | BQ62: 0.77 | BR62: 0.77 | BS62: 77t | BT62: 0.76 | BU62: 2.5 | BV62: 76t | BW62: 0.69 | BX62: 0.69 | BY62: 69t | BZ62: 0.85 | CA62: 0.85 | CB62: 85 | CC62: 0.88 | CD62: 0.88 | CE62: 88t | CI62: 0.27 | CJ62: 0.6739130435 | CK62: 27 | CL62: 0.0016 | CM62: 0.95 | CN62: 16 | CO62: 0.3 | CP62: 0.9 | CQ62: 30t | CR62: 0.61 | CS62: 2.666666667 | CT62: 61t | CU62: 0.84 | CV62: 0.84 | CW62: 84 | CX62: 0.39 | CY62: 0.5 | CZ62: 39t | DA62: 0.21 | DB62: 0.6666666667 | DC62: 21t | DG62: 0.31 | DH62: 0.6534653465 | DI62: 31 | DJ62: 0.01 | DK62: 1 | DL62: 1t | DM62: 32 | DN62: 32 | DO62: 32 | DP62: 0.08 | DQ62: 3.5 | DR62: 8t
A63: 93 | B63: Isle of Wight | C63: 0.5714285714 | D63: 0.7142857143 | E63: 0.3636363636 | F63: 0.5714285714 | G63: 0.5714285714 | H63: 0.2727272727 | I63: 0.4285714286 | J63: 0.4285714286 | K63: 0.2727272727 | L63: 0.3333333333 | M63: 0.8 | N63: 0.6666666667 | O63: 0 | P63: 0.09090909091 | Q63: 0 | R63: 0.6 | S63: 0.75 | T63: 0.7142857143 | U63: 1 | V63: 0.5 | W63: 1 | X63: 2.714285714 | Y63: 2.571428571 | Z63: 2 | AA63: 41t | AB63: 22 | AC63: 89 | AD63: 43t | AE63: 49t | AF63: 114 | AG63: 105t | AH63: 113 | AI63: 117 | AJ63: 25t | AK63: 20 | AL63: 26 | AM63: 127t | AN63: 123 | AO63: 127t | AP63: 116 | AQ63: 82t | AR63: 96 | AS63: 1t | AT63: 105t | AU63: 1t | AV63: 54t | AW63: 68t | AX63: 106t | AY63: 0.41 | AZ63: 0.5714285714 | BA63: 41t | BB63: 0.43 | BC63: 0.5714285714 | BD63: 43t | BE63: 1.05 | BF63: 1.05 | BG63: 105t | BH63: 0.25 | BI63: 0.3333333333 | BJ63: 25t | BK63: 1.27 | BL63: 1.27 | BM63: 127t | BN63: 1.16 | BO63: 1.16 | BP63: 116 | BQ63: 0.01 | BR63: 1 | BS63: 1t | BT63: 0.54 | BU63: 2.714285714 | BV63: 54t | BW63: 0.22 | BX63: 0.7142857143 | BY63: 22 | BZ63: 0.49 | CA63: 0.5714285714 | CB63: 49t | CC63: 1.13 | CD63: 1.13 | CE63: 113 | CF63: 0.2 | CG63: 0.8 | CH63: 20 | CI63: 1.23 | CJ63: 1.23 | CK63: 123 | CL63: 0.82 | CM63: 0.82 | CN63: 82t | CO63: 1.05 | CP63: 1.05 | CQ63: 105t | CR63: 0.68 | CS63: 2.571428571 | CT63: 68t | CU63: 0.89 | CV63: 0.89 | CW63: 89 | CX63: 1.14 | CY63: 1.14 | CZ63: 114 | DA63: 1.17 | DB63: 1.17 | DC63: 117 | DD63: 0.26 | DE63: 0.6666666667 | DF63: 26 | DG63: 1.27 | DH63: 1.27 | DI63: 127t | DJ63: 0.96 | DK63: 0.96 | DL63: 96 | DM63: 1 | DN63: 1 | DO63: 1t | DP63: 1.06 | DQ63: 2 | DR63: 106t
A64: 95 | B64: James City | C64: 0.6 | D64: 0.6470588235 | E64: 0.3076923077 | F64: 0.7 | G64: 0.7647058824 | H64: 0.3846153846 | I64: 0.8 | J64: 0.7058823529 | K64: 0.3846153846 | N64: 1 | O64: 0.6470588235 | P64: 0.5714285714 | Q64: 0.5178571429 | R64: 1 | S64: 1 | T64: 0.9333333333 | U64: 1 | V64: 0.857 | W64: 0.75 | X64: 4 | Y64: 3.833333333 | Z64: 2.142857143 | AA64: 31t | AB64: 35 | AC64: 104 | AD64: 19t | AE64: 17 | AF64: 85t | AG64: 12t | AH64: 39 | AI64: 106t | AL64: 1t | AM64: 28 | AN64: 49 | AO64: 70 | AP64: 1t | AQ64: 1t | AR64: 21 | AS64: 1t | AT64: 45 | AU64: 65t | AV64: 1t | AW64: 4 | AX64: 98t | AY64: 0.31 | AZ64: 0.6 | BA64: 31t | BB64: 0.19 | BC64: 0.7 | BD64: 19t | BE64: 0.12 | BF64: 0.8 | BG64: 12t | BK64: 0.28 | BL64: 0.6470588235 | BM64: 28 | BN64: 0.01 | BO64: 1 | BP64: 1t | BQ64: 0.01 | BR64: 1 | BS64: 1t | BT64: 0.01 | BU64: 4 | BV64: 1t | BW64: 0.35 | BX64: 0.6470588235 | BY64: 35 | BZ64: 0.17 | CA64: 0.7647058824 | CB64: 17 | CC64: 0.39 | CD64: 0.7058823529 | CE64: 39 | CI64: 0.49 | CJ64: 0.5714285714 | CK64: 49 | CL64: 0.01 | CM64: 1 | CN64: 1t | CO64: 0.45 | CP64: 0.857 | CQ64: 45 | CR64: 0.04 | CS64: 3.833333333 | CT64: 4 | CU64: 1.04 | CV64: 1.04 | CW64: 104 | CX64: 0.85 | CY64: 0.85 | CZ64: 85t | DA64: 1.06 | DB64: 1.06 | DC64: 106t | DD64: 0.01 | DE64: 1 | DF64: 1t | DG64: 0.7 | DH64: 0.7 | DI64: 70 | DJ64: 0.21 | DK64: 0.9333333333 | DL64: 21 | DM64: 65 | DN64: 65 | DO64: 65t | DP64: 0.98 | DQ64: 2.142857143 | DR64: 98t
A65: 97 | B65: King & Queen | E65: 0 | H65: 0 | K65: 0 | L65: 1 | O65: 0.5 | P65: 0.6363636364 | Q65: 0.6666666667 | R65: 0.6666666667 | S65: 1 | T65: 1 | X65: 2.666666667 | Y65: 4 | Z65: 2.2 | AC65: 120t | AF65: 121t | AI65: 119t | AJ65: 1t | AM65: 72t | AN65: 31t | AO65: 24t | AP65: 103t | AQ65: 1t | AR65: 1t | AV65: 60t | AW65: 1t | AX65: 93t | BH65: 0.01 | BI65: 1 | BJ65: 1t | BK65: 0.72 | BL65: 0.72 | BM65: 72t | BN65: 1.03 | BO65: 1.03 | BP65: 103t | BT65: 0.6 | BU65: 2.666666667 | BV65: 60t | CI65: 0.31 | CJ65: 0.6363636364 | CK65: 31t | CL65: 0.01 | CM65: 1 | CN65: 1t | CR65: 0.01 | CS65: 4 | CT65: 1t | CU65: 1.2 | CV65: 1.2 | CW65: 120t | CX65: 1.21 | CY65: 1.21 | CZ65: 121t | DA65: 1.19 | DB65: 1.19 | DC65: 119t | DG65: 0.24 | DH65: 0.6666666667 | DI65: 24t | DJ65: 0.01 | DK65: 1 | DL65: 1t | DP65: 0.93 | DQ65: 2.2 | DR65: 93t
A66: 99 | B66: King George | C66: 0.5 | D66: 0.7 | E66: 0.2352941176 | F66: 0.35 | G66: 0.7 | H66: 0.4705882353 | I66: 0.45 | J66: 0.6 | K66: 0.6470588235 | L66: 0 | M66: 0 | O66: 0.5490196078 | P66: 0.5490196078 | Q66: 0.5438596491 | R66: 0.9375 | S66: 0.9333333333 | T66: 0.6923076923 | U66: 0.5 | V66: 0.667 | W66: 0.9 | X66: 2.285714286 | Y66: 3 | Z66: 2.833333333 | AA66: 64t | AB66: 24t | AC66: 114 | AD66: 107t | AE66: 21 | AF66: 59t | AG66: 100t | AH66: 67t | AI66: 31 | AJ66: 54t | AK66: 58t | AM66: 51t | AN66: 56 | AO66: 62 | AP66: 18 | AQ66: 18t | AR66: 103 | AS66: 110t | AT66: 93t | AU66: 17t | AV66: 89t | AW66: 35t | AX66: 47t | AY66: 0.64 | AZ66: 0.64 | BA66: 64t | BB66: 1.07 | BC66: 1.07 | BD66: 107t | BE66: 1 | BF66: 1 | BG66: 100t | BH66: 0.54 | BI66: 0.54 | BJ66: 54t | BK66: 0.51 | BL66: 0.5490196078 | BM66: 51t | BN66: 0.18 | BO66: 0.9375 | BP66: 18 | BQ66: 1.1 | BR66: 1.1 | BS66: 110t | BT66: 0.89 | BU66: 2.285714286 | BV66: 89t | BW66: 0.24 | BX66: 0.7 | BY66: 24t | BZ66: 0.21 | CA66: 0.7 | CB66: 21 | CC66: 0.67 | CD66: 0.67 | CE66: 67t | CF66: 0.58 | CG66: 0.58 | CH66: 58t | CI66: 0.56 | CJ66: 0.56 | CK66: 56 | CL66: 0.18 | CM66: 0.9333333333 | CN66: 18t | CO66: 0.93 | CP66: 0.93 | CQ66: 93t | CR66: 0.35 | CS66: 3 | CT66: 35t | CU66: 1.14 | CV66: 1.14 | CW66: 114 | CX66: 0.59 | CY66: 0.59 | CZ66: 59t | DA66: 0.31 | DB66: 0.6470588235 | DC66: 31 | DG66: 0.62 | DH66: 0.62 | DI66: 62 | DJ66: 1.03 | DK66: 1.03 | DL66: 103 | DM66: 17 | DN66: 17 | DO66: 17t | DP66: 0.47 | DQ66: 2.833333333 | DR66: 47t
A67: 101 | B67: King William | C67: 1 | D67: 0.4166666667 | E67: 0.3333333333 | F67: 1 | G67: 0.5833333333 | H67: 0.3333333333 | I67: 1 | J67: 0.5 | K67: 0.3333333333 | L67: 1 | M67: 1 | N67: 1 | O67: 0.6315789474 | P67: 0.8076923077 | Q67: 0.7777777778 | R67: 0.75 | S67: 0.5 | T67: 0.5 | U67: 1 | V67: 0.333 | W67: 0.6666666667 | X67: 3.714285714 | Y67: 2.571428571 | Z67: 2.142857143 | AA67: 1t | AB67: 89 | AC67: 95t | AD67: 1t | AE67: 46 | AF67: 97t | AG67: 1t | AH67: 97t | AI67: 113t | AJ67: 1t | AK67: 1t | AL67: 1t | AM67: 32 | AN67: 6 | AO67: 7 | AP67: 81t | AQ67: 112t | AR67: 118t | AS67: 1t | AT67: 111t | AU67: 88t | AV67: 5 | AW67: 68t | AX67: 98t | AY67: 0.01 | AZ67: 1 | BA67: 1t | BB67: 0.01 | BC67: 1 | BD67: 1t | BE67: 0.01 | BF67: 1 | BG67: 1t | BH67: 0.01 | BI67: 1 | BJ67: 1t | BK67: 0.32 | BL67: 0.6315789474 | BM67: 32 | BN67: 0.81 | BO67: 0.81 | BP67: 81t | BQ67: 0.01 | BR67: 1 | BS67: 1t | BT67: 0.05 | BU67: 3.714285714 | BV67: 5 | BW67: 0.89 | BX67: 0.89 | BY67: 89 | BZ67: 0.46 | CA67: 0.5833333333 | CB67: 46 | CC67: 0.97 | CD67: 0.97 | CE67: 97t | CF67: 0.01 | CG67: 1 | CH67: 1t | CI67: 0.06 | CJ67: 0.8076923077 | CK67: 6 | CL67: 1.12 | CM67: 1.12 | CN67: 112t | CO67: 1.11 | CP67: 1.11 | CQ67: 111t | CR67: 0.68 | CS67: 2.571428571 | CT67: 68t | CU67: 0.95 | CV67: 0.95 | CW67: 95t | CX67: 0.97 | CY67: 0.97 | CZ67: 97t | DA67: 1.13 | DB67: 1.13 | DC67: 113t | DD67: 0.01 | DE67: 1 | DF67: 1t | DG67: 0.07 | DH67: 0.7777777778 | DI67: 7 | DJ67: 1.18 | DK67: 1.18 | DL67: 118t | DM67: 88 | DN67: 88 | DO67: 88t | DP67: 0.98 | DQ67: 2.142857143 | DR67: 98t
A68: 103 | B68: Lancaster | D68: 0.5 | E68: 0.619047619 | G68: 1 | H68: 0.5238095238 | J68: 1 | K68: 0.619047619 | L68: 0 | M68: 0 | O68: 0.4 | P68: 0.4736842105 | Q68: 0.6666666667 | R68: 0.5 | S68: 0.25 | T68: 0.4285714286 | U68: 0.5 | V68: 0.333 | X68: 1.5 | Y68: 2.285714286 | Z68: 3.6 | AB68: 69t | AC68: 19 | AE68: 1t | AF68: 36 | AH68: 1t | AI68: 37 | AJ68: 54t | AK68: 58t | AM68: 95t | AN68: 79 | AO68: 24t | AP68: 119t | AQ68: 124 | AR68: 123 | AS68: 110t | AT68: 111t | AV68: 128t | AW68: 94t | AX68: 5 | BH68: 0.54 | BI68: 0.54 | BJ68: 54t | BK68: 0.95 | BL68: 0.95 | BM68: 95t | BN68: 1.19 | BO68: 1.19 | BP68: 119t | BQ68: 1.1 | BR68: 1.1 | BS68: 110t | BT68: 1.28 | BU68: 1.5 | BV68: 128t | BW68: 0.69 | BX68: 0.69 | BY68: 69t | BZ68: 0.01 | CA68: 1 | CB68: 1t | CC68: 0.01 | CD68: 1 | CE68: 1t | CF68: 0.58 | CG68: 0.58 | CH68: 58t | CI68: 0.79 | CJ68: 0.79 | CK68: 79 | CL68: 0.0124 | CM68: 0.25 | CN68: 124 | CO68: 1.11 | CP68: 1.11 | CQ68: 111t | CR68: 0.94 | CS68: 2.285714286 | CT68: 94t | CU68: 0.19 | CV68: 0.619047619 | CW68: 19 | CX68: 0.36 | CY68: 0.5238095238 | CZ68: 36 | DA68: 0.37 | DB68: 0.619047619 | DC68: 37 | DG68: 0.24 | DH68: 0.6666666667 | DI68: 24t | DJ68: 1.23 | DK68: 1.23 | DL68: 123 | DP68: 0.05 | DQ68: 3.6 | DR68: 5
A69: 105 | B69: Lee | C69: 0.3548387097 | D69: 0.5757575758 | E69: 0.5161290323 | F69: 0.3870967742 | G69: 0.3939393939 | H69: 0.4838709677 | I69: 0.5483870968 | J69: 0.6666666667 | K69: 0.6774193548 | O69: 0.2209302326 | P69: 0.3666666667 | Q69: 0.3176470588 | R69: 0.9166666667 | S69: 0.9298245614 | T69: 0.8913043478 | U69: 0.8076923077 | V69: 0.85 | W69: 0.84375 | X69: 1.833333333 | Y69: 2.833333333 | Z69: 3.166666667 | AA69: 108 | AB69: 48 | AC69: 47 | AD69: 104 | AE69: 94 | AF69: 53t | AG69: 75 | AH69: 47t | AI69: 20 | AM69: 113 | AN69: 95 | AO69: 106 | AP69: 24t | AQ69: 21 | AR69: 33 | AS69: 53t | AT69: 48t | AU69: 37t | AV69: 117t | AW69: 50t | AX69: 23t | AY69: 1.08 | AZ69: =IF(C69<>"",MAX(C69,AY69),"") -> 1.08 | BA69: 108 | BB69: 1.04 | BC69: =IF(F69<>"",MAX(F69,BB69),"") -> 1.04 | BD69: 104 | BE69: 0.75 | BF69: =IF(I69<>"",MAX(I69,BE69),"") -> 0.75 | BG69: 75 | BI69: =IF(L69<>"",MAX(L69,BH69),"") ->  | BK69: 1.13 | BL69: =IF(O69<>"",MAX(O69,BK69),"") -> 1.13 | BM69: 113 | BN69: 0.24 | BO69: =IF(R69<>"",MAX(R69,BN69),"") -> 0.9166666667 | BP69: 24t | BQ69: 0.53 | BR69: =IF(U69<>"",MAX(U69,BQ69),"") -> 0.8076923077 | BS69: 53t | BT69: 1.17 | BU69: =IF(X69<>"",MAX(X69,BT69),"") -> 1.833333333 | BV69: 117t | BW69: 0.48 | BX69: =IF(D69<>"",MAX(D69,BW69),"") -> 0.5757575758 | BY69: 48 | BZ69: 0.94 | CA69: =IF(G69<>"",MAX(G69,BZ69),"") -> 0.94 | CB69: 94 | CC69: 0.47 | CD69: =IF(J69<>"",MAX(J69,CC69),"") -> 0.6666666667 | CE69: 47t | CG69: =IF(M69<>"",MAX(M69,CF69),"") ->  | CI69: 0.95 | CJ69: =IF(P69<>"",MAX(P69,CI69),"") -> 0.95 | CK69: 95 | CL69: 0.0021 | CM69: =IF(S69<>"",MAX(S69,CL69),"") -> 0.9298245614 | CN69: 21 | CO69: 0.48 | CP69: =IF(V69<>"",MAX(V69,CO69),"") -> 0.85 | CQ69: 48t | CR69: 0.5 | CS69: =IF(Y69<>"",MAX(Y69,CR69),"") -> 2.833333333 | CT69: 50t | CU69: 0.47 | CV69: =IF(E69<>"",MAX(E69,CU69),"") -> 0.5161290323 | CW69: 47 | CX69: 0.53 | CY69: =IF(H69<>"",MAX(H69,CX69),"") -> 0.53 | CZ69: 53t | DA69: 0.2 | DB69: =IF(K69<>"",MAX(K69,DA69),"") -> 0.6774193548 | DC69: 20 | DE69: =IF(N69<>"",MAX(N69,DD69),"") ->  | DG69: 1.06 | DH69: =IF(Q69<>"",MAX(Q69,DG69),"") -> 1.06 | DI69: 106 | DJ69: 0.33 | DK69: =IF(T69<>"",MAX(T69,DJ69),"") -> 0.8913043478 | DL69: 33 | DM69: 37 | DN69: =IF(W69<>"",MAX(W69,DM69),"") -> 37 | DO69: 37t | DP69: 0.23 | DQ69: =IF(Z69<>"",MAX(Z69,DP69),"") -> 3.166666667 | DR69: 23t
A70: 678 | B70: Lexington | C70: 0.6666666667 | D70: 0.75 | E70: 0.5 | F70: 0.6666666667 | G70: 0.25 | H70: 0.25 | I70: 0.3333333333 | J70: 0.5 | K70: 0.5 | M70: 0.3333333333 | O70: 0.8461538462 | P70: 0.7647058824 | Q70: 0.5625 | R70: 0.75 | S70: 0.5357142857 | T70: 0.7380952381 | U70: 0.8 | V70: 0.7 | W70: 1 | X70: 2.833333333 | Y70: 2.285714286 | Z70: 2.333333333 | AA70: 14t | AB70: 16t | AC70: 49t | AD70: 25t | AE70: 115t | AF70: 116t | AG70: 112t | AH70: 97t | AI70: 65t | AK70: 35t | AM70: 5 | AN70: 11 | AO70: 57t | AP70: 81t | AQ70: 108t | AR70: 90t | AS70: 57t | AT70: 89t | AU70: 1t | AV70: 49t | AW70: 94t | AX70: 84t | AY70: 0.14 | AZ70: 0.6666666667 | BA70: 14t | BB70: 0.25 | BC70: 0.6666666667 | BD70: 25t | BE70: 1.12 | BF70: 1.12 | BG70: 112t | BK70: 0.05 | BL70: 0.8461538462 | BM70: 5 | BN70: 0.81 | BO70: 0.81 | BP70: 81t | BQ70: 0.57 | BR70: 0.8 | BS70: 57t | BT70: 0.49 | BU70: 2.833333333 | BV70: 49t | BW70: 0.16 | BX70: 0.75 | BY70: 16t | BZ70: 1.15 | CA70: 1.15 | CB70: 115t | CC70: 0.97 | CD70: 0.97 | CE70: 97t | CF70: 0.35 | CG70: 0.35 | CH70: 35t | CI70: 0.11 | CJ70: 0.7647058824 | CK70: 11 | CL70: 1.08 | CM70: 1.08 | CN70: 108t | CO70: 0.89 | CP70: 0.89 | CQ70: 89t | CR70: 0.94 | CS70: 2.285714286 | CT70: 94t | CU70: 0.49 | CV70: 0.5 | CW70: 49t | CX70: 1.16 | CY70: 1.16 | CZ70: 116t | DA70: 0.65 | DB70: 0.65 | DC70: 65t | DG70: 0.57 | DH70: 0.57 | DI70: 57t | DJ70: 0.9 | DK70: 0.9 | DL70: 90t | DM70: 1 | DN70: 1 | DO70: 1t | DP70: 0.84 | DQ70: 2.333333333 | DR70: 84t
A71: 107 | B71: Loudoun | C71: 0.4888888889 | D71: 0.5 | E71: 0.3333333333 | F71: 0.5555555556 | G71: 0.4 | H71: 0.3333333333 | I71: 0.4 | J71: 0.7 | K71: 0.3333333333 | L71: 0.25 | M71: 0.4482758621 | N71: 0.6428571429 | O71: 0.5873786408 | P71: 0.5422222222 | Q71: 0.541322314 | R71: 0.7619047619 | S71: 0.875 | T71: 0.7924528302 | U71: 0.8095238095 | V71: 0.8 | W71: 0.625 | X71: 2.142857143 | Y71: 2.857142857 | Z71: 2 | AA71: 76 | AB71: 69t | AC71: 95t | AD71: 50t | AE71: 89t | AF71: 97t | AG71: 108t | AH71: 42t | AI71: 113t | AJ71: 35t | AK71: 33 | AL71: 27 | AM71: 47 | AN71: 61 | AO71: 63 | AP71: 77 | AQ71: 39t | AR71: 71 | AS71: 52 | AT71: 63t | AU71: 98t | AV71: 99t | AW71: 46t | AX71: 106t | AY71: 0.76 | AZ71: 0.76 | BA71: 76 | BB71: 0.5 | BC71: 0.5555555556 | BD71: 50t | BE71: 1.08 | BF71: 1.08 | BG71: 108t | BH71: 0.35 | BI71: 0.35 | BJ71: 35t | BK71: 0.47 | BL71: 0.5873786408 | BM71: 47 | BN71: 0.77 | BO71: 0.77 | BP71: 77 | BQ71: 0.52 | BR71: 0.8095238095 | BS71: 52 | BT71: 0.99 | BU71: 2.142857143 | BV71: 99t | BW71: 0.69 | BX71: 0.69 | BY71: 69t | BZ71: 0.89 | CA71: 0.89 | CB71: 89t | CC71: 0.42 | CD71: 0.7 | CE71: 42t | CF71: 0.33 | CG71: 0.4482758621 | CH71: 33 | CI71: 0.61 | CJ71: 0.61 | CK71: 61 | CL71: 0.39 | CM71: 0.875 | CN71: 39t | CO71: 0.63 | CP71: 0.8 | CQ71: 63t | CR71: 0.46 | CS71: 2.857142857 | CT71: 46t | CU71: 0.95 | CV71: 0.95 | CW71: 95t | CX71: 0.97 | CY71: 0.97 | CZ71: 97t | DA71: 1.13 | DB71: 1.13 | DC71: 113t | DD71: 0.27 | DE71: 0.6428571429 | DF71: 27 | DG71: 0.63 | DH71: 0.63 | DI71: 63 | DJ71: 0.71 | DK71: 0.7924528302 | DL71: 71 | DM71: 98 | DN71: 98 | DO71: 98t | DP71: 1.06 | DQ71: 2 | DR71: 106t
A72: 109 | B72: Louisa | C72: 0.36 | D72: 0.2258064516 | E72: 0.6923076923 | F72: 0.28 | G72: 0.6129032258 | H72: 0.5384615385 | I72: 0.56 | J72: 0.5161290323 | K72: 0.3846153846 | L72: 0.5 | M72: 0.625 | N72: 0 | O72: 0.4888888889 | P72: 0.4761904762 | Q72: 0.4954954955 | R72: 0.7631578947 | S72: 0.9318181818 | T72: 0.7878787879 | U72: 0.5 | V72: 0.85 | W72: 0.875 | X72: 2 | Y72: 2.714285714 | Z72: 2.571428571 | AA72: 107 | AB72: 118 | AC72: 10 | AD72: 116 | AE72: 33 | AF72: 33 | AG72: 68 | AH72: 96 | AI72: 106t | AJ72: 23 | AK72: 25 | AL72: 54t | AM72: 77 | AN72: 78 | AO72: 77 | AP72: 76 | AQ72: 20 | AR72: 74 | AS72: 110t | AT72: 48t | AU72: 29t | AV72: 108t | AW72: 56t | AX72: 59t | AY72: 1.07 | AZ72: 1.07 | BA72: 107 | BB72: 1.16 | BC72: 1.16 | BD72: 116 | BE72: 0.68 | BF72: 0.68 | BG72: 68 | BH72: 0.23 | BI72: 0.5 | BJ72: 23 | BK72: 0.77 | BL72: 0.77 | BM72: 77 | BN72: 0.76 | BO72: 0.7631578947 | BP72: 76 | BQ72: 1.1 | BR72: 1.1 | BS72: 110t | BT72: 1.08 | BU72: 2 | BV72: 108t | BW72: 1.18 | BX72: 1.18 | BY72: 118 | BZ72: 0.33 | CA72: 0.6129032258 | CB72: 33 | CC72: 0.96 | CD72: 0.96 | CE72: 96 | CF72: 0.25 | CG72: 0.625 | CH72: 25 | CI72: 0.78 | CJ72: 0.78 | CK72: 78 | CL72: 0.002 | CM72: 0.9318181818 | CN72: 20 | CO72: 0.48 | CP72: 0.85 | CQ72: 48t | CR72: 0.56 | CS72: 2.714285714 | CT72: 56t | CU72: 0.1 | CV72: 0.6923076923 | CW72: 10 | CX72: 0.33 | CY72: 0.5384615385 | CZ72: 33 | DA72: 1.06 | DB72: 1.06 | DC72: 106t | DD72: 0.54 | DE72: 0.54 | DF72: 54t | DG72: 0.77 | DH72: 0.77 | DI72: 77 | DJ72: 0.74 | DK72: 0.7878787879 | DL72: 74 | DM72: 29 | DN72: 29 | DO72: 29t | DP72: 0.59 | DQ72: 2.571428571 | DR72: 59t
A73: 111 | B73: Lunenburg | D73: 1 | E73: 0.325 | G73: 1 | H73: 0.5 | J73: 1 | K73: 0.525 | O73: 0.847826087 | P73: 0.816091954 | Q73: 0.8472222222 | R73: 0.5 | S73: 0.8461538462 | T73: 0.6 | U73: 1 | V73: 0.714 | W73: 0.75 | X73: 3.333333333 | Y73: 3.5 | Z73: 2.5 | AB73: 1t | AC73: 100 | AE73: 1t | AF73: 39t | AH73: 1t | AI73: 62 | AM73: 4 | AN73: 5 | AO73: 2 | AP73: 119t | AQ73: 49t | AR73: 113 | AS73: 1t | AT73: 88 | AU73: 65t | AV73: 13t | AW73: 11t | AX73: 70t | BK73: 0.04 | BL73: 0.847826087 | BM73: 4 | BN73: 1.19 | BO73: 1.19 | BP73: 119t | BQ73: 0.01 | BR73: 1 | BS73: 1t | BT73: 0.13 | BU73: 3.333333333 | BV73: 13t | BW73: 0.01 | BX73: 1 | BY73: 1t | BZ73: 0.01 | CA73: 1 | CB73: 1t | CC73: 0.01 | CD73: 1 | CE73: 1t | CI73: 0.05 | CJ73: 0.816091954 | CK73: 5 | CL73: 0.49 | CM73: 0.8461538462 | CN73: 49t | CO73: 0.88 | CP73: 0.88 | CQ73: 88 | CR73: 0.11 | CS73: 3.5 | CT73: 11t | CU73: 1 | CV73: 1 | CW73: 100 | CX73: 0.39 | CY73: 0.5 | CZ73: 39t | DA73: 0.62 | DB73: 0.62 | DC73: 62 | DG73: 0.02 | DH73: 0.8472222222 | DI73: 2 | DJ73: 1.13 | DK73: 1.13 | DL73: 113 | DM73: 65 | DN73: 65 | DO73: 65t | DP73: 0.7 | DQ73: 2.5 | DR73: 70t
A74: 680 | B74: Lynchburg | C74: 0.3717948718 | D74: 0.4078947368 | E74: 0.4117647059 | F74: 0.3924050633 | G74: 0.4078947368 | H74: 0.4705882353 | I74: 0.5443037975 | J74: 0.5657894737 | K74: 0.5 | L74: 0 | M74: 0 | N74: 0 | O74: 0.4054878049 | P74: 0.4035608309 | Q74: 0.4576802508 | R74: 0.8484848485 | S74: 0.8445945946 | T74: 0.7931034483 | U74: 0.8070175439 | V74: 0.877 | W74: 0.8837209302 | X74: 1.571428571 | Y74: 1.857142857 | Z74: 1.857142857 | AA74: 105 | AB74: 93 | AC74: 75t | AD74: 102 | AE74: 86 | AF74: 59t | AG74: 76 | AH74: 80 | AI74: 65t | AJ74: 54t | AK74: 58t | AL74: 54t | AM74: 94 | AN74: 89 | AO74: 83 | AP74: 53 | AQ74: 52 | AR74: 70 | AS74: 55 | AT74: 39 | AU74: 23 | AV74: 124t | AW74: 110t | AX74: 115t | AY74: 1.05 | AZ74: 1.05 | BA74: 105 | BB74: 1.02 | BC74: 1.02 | BD74: 102 | BE74: 0.76 | BF74: 0.76 | BG74: 76 | BH74: 0.54 | BI74: 0.54 | BJ74: 54t | BK74: 0.94 | BL74: 0.94 | BM74: 94 | BN74: 0.53 | BO74: 0.8484848485 | BP74: 53 | BQ74: 0.55 | BR74: 0.8070175439 | BS74: 55 | BT74: 1.24 | BU74: 1.571428571 | BV74: 124t | BW74: 0.93 | BX74: 0.93 | BY74: 93 | BZ74: 0.86 | CA74: 0.86 | CB74: 86 | CC74: 0.8 | CD74: 0.8 | CE74: 80 | CF74: 0.58 | CG74: 0.58 | CH74: 58t | CI74: 0.89 | CJ74: 0.89 | CK74: 89 | CL74: 0.0052 | CM74: 0.8445945946 | CN74: 52 | CO74: 0.39 | CP74: 0.877 | CQ74: 39 | CR74: 1.1 | CS74: 1.857142857 | CT74: 110t | CU74: 0.75 | CV74: 0.75 | CW74: 75t | CX74: 0.59 | CY74: 0.59 | CZ74: 59t | DA74: 0.65 | DB74: 0.65 | DC74: 65t | DD74: 0.54 | DE74: 0.54 | DF74: 54t | DG74: 0.83 | DH74: 0.83 | DI74: 83 | DJ74: 0.7 | DK74: 0.7931034483 | DL74: 70 | DM74: 23 | DN74: 23 | DO74: 23 | DP74: 1.15 | DQ74: 1.857142857 | DR74: 115t
A75: 113 | B75: Madison | C75: 0.5769230769 | D75: 0.2083333333 | E75: 0.3181818182 | F75: 0.5 | G75: 0.4166666667 | H75: 0.5 | I75: 0.7692307692 | J75: 0.8333333333 | K75: 0.5 | L75: 0.03846153846 | M75: 0.04 | N75: 0 | O75: 0.4434782609 | P75: 0.3137254902 | Q75: 0.4047619048 | R75: 0.641509434 | S75: 0.7142857143 | T75: 0.8 | U75: 0.75 | V75: 0.85 | W75: 0.7307692308 | X75: 2.285714286 | Y75: 1.857142857 | Z75: 1.857142857 | AA75: 38t | AB75: 119 | AC75: 101 | AD75: 69t | AE75: 83 | AF75: 39t | AG75: 19 | AH75: 16 | AI75: 65t | AJ75: 52 | AK75: 55 | AL75: 54t | AM75: 90 | AN75: 106 | AO75: 91 | AP75: 114 | AQ75: 89 | AR75: 63t | AS75: 77t | AT75: 48t | AU75: 73 | AV75: 89t | AW75: 110t | AX75: 115t | AY75: 0.38 | AZ75: 0.5769230769 | BA75: 38t | BB75: 0.69 | BC75: 0.69 | BD75: 69t | BE75: 0.19 | BF75: 0.7692307692 | BG75: 19 | BH75: 0.52 | BI75: 0.52 | BJ75: 52 | BK75: 0.9 | BL75: 0.9 | BM75: 90 | BN75: 1.14 | BO75: 1.14 | BP75: 114 | BQ75: 0.77 | BR75: 0.77 | BS75: 77t | BT75: 0.89 | BU75: 2.285714286 | BV75: 89t | BW75: 1.19 | BX75: 1.19 | BY75: 119 | BZ75: 0.83 | CA75: 0.83 | CB75: 83 | CC75: 0.16 | CD75: 0.8333333333 | CE75: 16 | CF75: 0.55 | CG75: 0.55 | CH75: 55 | CI75: 1.06 | CJ75: 1.06 | CK75: 106 | CL75: 0.0089 | CM75: 0.7142857143 | CN75: 89 | CO75: 0.48 | CP75: 0.85 | CQ75: 48t | CR75: 1.1 | CS75: 1.857142857 | CT75: 110t | CU75: 1.01 | CV75: 1.01 | CW75: 101 | CX75: 0.39 | CY75: 0.5 | CZ75: 39t | DA75: 0.65 | DB75: 0.65 | DC75: 65t | DD75: 0.54 | DE75: 0.54 | DF75: 54t | DG75: 0.91 | DH75: 0.91 | DI75: 91 | DJ75: 0.63 | DK75: 0.8 | DL75: 63t | DM75: 73 | DN75: 73 | DO75: 73 | DP75: 1.15 | DQ75: 1.857142857 | DR75: 115t
A76: 683 | B76: Manassas City | C76: 0.45 | D76: 0.4 | E76: 0.1176470588 | F76: 0.35 | G76: 0.4 | H76: 0.3529411765 | I76: 0.45 | J76: 0.5333333333 | K76: 0.4705882353 | M76: 0 | O76: 0.4255319149 | P76: 0.35 | Q76: 0.3720930233 | R76: 0.9090909091 | S76: 0.6875 | T76: 0.7777777778 | U76: 1 | V76: 0.8 | W76: 0.8571428571 | X76: 2.166666667 | Y76: 1.285714286 | Z76: 1.5 | AA76: 85 | AB76: 95t | AC76: 119 | AD76: 107t | AE76: 89t | AF76: 92t | AG76: 100t | AH76: 90t | AI76: 81t | AK76: 58t | AM76: 92 | AN76: 97 | AO76: 97 | AP76: 27t | AQ76: 95 | AR76: 78t | AS76: 1t | AT76: 63t | AU76: 34t | AV76: 96t | AW76: 128t | AX76: 128t | AY76: 0.85 | AZ76: 0.85 | BA76: 85 | BB76: 1.07 | BC76: 1.07 | BD76: 107t | BE76: 1 | BF76: 1 | BG76: 100t | BK76: 0.92 | BL76: 0.92 | BM76: 92 | BN76: 0.27 | BO76: 0.9090909091 | BP76: 27t | BQ76: 0.01 | BR76: 1 | BS76: 1t | BT76: 0.96 | BU76: 2.166666667 | BV76: 96t | BW76: 0.95 | BX76: 0.95 | BY76: 95t | BZ76: 0.89 | CA76: 0.89 | CB76: 89t | CC76: 0.9 | CD76: 0.9 | CE76: 90t | CF76: 0.58 | CG76: 0.58 | CH76: 58t | CI76: 0.97 | CJ76: 0.97 | CK76: 97 | CL76: 0.0095 | CM76: 0.6875 | CN76: 95 | CO76: 0.63 | CP76: 0.8 | CQ76: 63t | CR76: 1.28 | CS76: 1.285714286 | CT76: 128t | CU76: 1.19 | CV76: 1.19 | CW76: 119 | CX76: 0.92 | CY76: 0.92 | CZ76: 92t | DA76: 0.81 | DB76: 0.81 | DC76: 81t | DG76: 0.97 | DH76: 0.97 | DI76: 97 | DJ76: 0.78 | DK76: 0.78 | DL76: 78t | DM76: 34 | DN76: 34 | DO76: 34t | DP76: 1.28 | DQ76: 1.5 | DR76: 128t
A77: 685 | B77: Manassas Park | C77: 0.1666666667 | D77: 0.5625 | E77: 1 | F77: 0.6666666667 | G77: 0.375 | H77: 0 | I77: 0.5 | J77: 0.6875 | K77: 0 | O77: 0.7368421053 | P77: 0.625 | Q77: 0.7391304348 | R77: 1 | S77: 1 | T77: 1 | V77: 1 | W77: 1 | X77: 2.8 | Y77: 3.5 | Z77: 3 | AA77: 117t | AB77: 52t | AC77: 1t | AD77: 25t | AE77: 96 | AF77: 121t | AG77: 86t | AH77: 45 | AI77: 119t | AM77: 16 | AN77: 33t | AO77: 14 | AP77: 1t | AQ77: 1t | AR77: 1t | AT77: 1t | AU77: 1t | AV77: 51t | AW77: 11t | AX77: 29t | AY77: 1.17 | AZ77: 1.17 | BA77: 117t | BB77: 0.25 | BC77: 0.6666666667 | BD77: 25t | BE77: 0.86 | BF77: 0.86 | BG77: 86t | BK77: 0.16 | BL77: 0.7368421053 | BM77: 16 | BN77: 0.01 | BO77: 1 | BP77: 1t | BT77: 0.51 | BU77: 2.8 | BV77: 51t | BW77: 0.52 | BX77: 0.5625 | BY77: 52t | BZ77: 0.96 | CA77: 0.96 | CB77: 96 | CC77: 0.45 | CD77: 0.6875 | CE77: 45 | CI77: 0.33 | CJ77: 0.625 | CK77: 33t | CL77: 0.01 | CM77: 1 | CN77: 1t | CO77: 0.01 | CP77: 1 | CQ77: 1t | CR77: 0.11 | CS77: 3.5 | CT77: 11t | CU77: 0.01 | CV77: 1 | CW77: 1t | CX77: 1.21 | CY77: 1.21 | CZ77: 121t | DA77: 1.19 | DB77: 1.19 | DC77: 119t | DG77: 0.14 | DH77: 0.7391304348 | DI77: 14 | DJ77: 0.01 | DK77: 1 | DL77: 1t | DM77: 1 | DN77: 1 | DO77: 1t | DP77: 0.29 | DQ77: 3 | DR77: 29t
A78: 690 | B78: Martinsville | C78: 0.5714285714 | D78: 0.75 | E78: 0.7142857143 | F78: 0.7142857143 | G78: 1 | H78: 0.5714285714 | I78: 0.8571428571 | J78: 1 | K78: 0.4285714286 | M78: 0.5 | N78: 1 | O78: 0.5 | P78: 0.3 | Q78: 0.3571428571 | R78: 0.8235294118 | S78: 0.9565217391 | T78: 0.8510638298 | U78: 0.88 | V78: 0.821 | W78: 0.8421052632 | X78: 3.5 | Y78: 3.428571429 | Z78: 3 | AA78: 41t | AB78: 16t | AC78: 7t | AD78: 17t | AE78: 1t | AF78: 28t | AG78: 9t | AH78: 1t | AI78: 96t | AK78: 29t | AL78: 1t | AM78: 72t | AN78: 108 | AO78: 100 | AP78: 60t | AQ78: 14t | AR78: 46t | AS78: 30t | AT78: 59t | AU78: 39t | AV78: 9t | AW78: 16t | AX78: 29t | AY78: 0.41 | AZ78: 0.5714285714 | BA78: 41t | BB78: 0.17 | BC78: 0.7142857143 | BD78: 17t | BE78: 0.09 | BF78: 0.8571428571 | BG78: 9t | BK78: 0.72 | BL78: 0.72 | BM78: 72t | BN78: 0.6 | BO78: 0.8235294118 | BP78: 60t | BQ78: 0.3 | BR78: 0.88 | BS78: 30t | BT78: 0.09 | BU78: 3.5 | BV78: 9t | BW78: 0.16 | BX78: 0.75 | BY78: 16t | BZ78: 0.01 | CA78: 1 | CB78: 1t | CC78: 0.01 | CD78: 1 | CE78: 1t | CF78: 0.29 | CG78: 0.5 | CH78: 29t | CI78: 1.08 | CJ78: 1.08 | CK78: 108 | CL78: 0.14 | CM78: 0.9565217391 | CN78: 14t | CO78: 0.59 | CP78: 0.821 | CQ78: 59t | CR78: 0.16 | CS78: 3.428571429 | CT78: 16t | CU78: 0.07 | CV78: 0.7142857143 | CW78: 7t | CX78: 0.28 | CY78: 0.5714285714 | CZ78: 28t | DA78: 0.96 | DB78: 0.96 | DC78: 96t | DD78: 0.01 | DE78: 1 | DF78: 1t | DG78: 1 | DH78: 1 | DI78: 100 | DJ78: 0.46 | DK78: 0.8510638298 | DL78: 46t | DM78: 39 | DN78: 39 | DO78: 39t | DP78: 0.29 | DQ78: 3 | DR78: 29t
A79: 115 | B79: Mathews | C79: 1 | E79: 0.6666666667 | F79: 1 | H79: 0.6666666667 | I79: 0 | K79: 1 | O79: 0.2857142857 | P79: 0.1 | Q79: 0.3846153846 | R79: 1 | S79: 1 | T79: 1 | U79: 1 | V79: 1 | W79: 0.8333333333 | X79: 3 | Y79: 3 | Z79: 3.333333333 | AA79: 1t | AC79: 11t | AD79: 1t | AF79: 12t | AG79: 121t | AI79: 1t | AM79: 106 | AN79: 122 | AO79: 95 | AP79: 1t | AQ79: 1t | AR79: 1t | AS79: 1t | AT79: 1t | AU79: 41t | AV79: 28t | AW79: 35t | AX79: 13t | AY79: 0.01 | AZ79: 1 | BA79: 1t | BB79: 0.01 | BC79: 1 | BD79: 1t | BE79: 1.21 | BF79: 1.21 | BG79: 121t | BK79: 1.06 | BL79: 1.06 | BM79: 106 | BN79: 0.01 | BO79: 1 | BP79: 1t | BQ79: 0.01 | BR79: 1 | BS79: 1t | BT79: 0.28 | BU79: 3 | BV79: 28t | CI79: 1.22 | CJ79: 1.22 | CK79: 122 | CL79: 0.01 | CM79: 1 | CN79: 1t | CO79: 0.01 | CP79: 1 | CQ79: 1t | CR79: 0.35 | CS79: 3 | CT79: 35t | CU79: 0.11 | CV79: 0.6666666667 | CW79: 11t | CX79: 0.12 | CY79: 0.6666666667 | CZ79: 12t | DA79: 0.01 | DB79: 1 | DC79: 1t | DG79: 0.95 | DH79: 0.95 | DI79: 95 | DJ79: 0.01 | DK79: 1 | DL79: 1t | DM79: 41 | DN79: 41 | DO79: 41t | DP79: 0.13 | DQ79: 3.333333333 | DR79: 13t
A80: 117 | B80: Mecklenburg | C80: 0.7222222222 | D80: 0.9 | E80: 0.2631578947 | F80: 0.7777777778 | G80: 0.6 | H80: 0.4210526316 | I80: 0.6666666667 | J80: 0.8 | K80: 0.5789473684 | L80: 0 | M80: 0 | O80: 0.4545454545 | P80: 0.6111111111 | Q80: 0.5747126437 | R80: 0.652173913 | S80: 0.5 | T80: 0.5416666667 | U80: 1 | V80: 0.8 | W80: 0.8888888889 | X80: 2.857142857 | Y80: 3 | Z80: 2.666666667 | AA80: 11 | AB80: 9 | AC80: 111 | AD80: 10t | AE80: 36t | AF80: 76 | AG80: 37t | AH80: 18t | AI80: 47 | AJ80: 54t | AK80: 58t | AM80: 86t | AN80: 37 | AO80: 54 | AP80: 112 | AQ80: 112t | AR80: 116 | AS80: 1t | AT80: 63t | AU80: 20t | AV80: 40t | AW80: 35t | AX80: 57t | AY80: 0.11 | AZ80: 0.7222222222 | BA80: 11 | BB80: 0.1 | BC80: 0.7777777778 | BD80: 10t | BE80: 0.37 | BF80: 0.6666666667 | BG80: 37t | BH80: 0.54 | BI80: 0.54 | BJ80: 54t | BK80: 0.86 | BL80: 0.86 | BM80: 86t | BN80: 1.12 | BO80: 1.12 | BP80: 112 | BQ80: 0.01 | BR80: 1 | BS80: 1t | BT80: 0.4 | BU80: 2.857142857 | BV80: 40t | BW80: 0.09 | BX80: 0.9 | BY80: 9 | BZ80: 0.36 | CA80: 0.6 | CB80: 36t | CC80: 0.18 | CD80: 0.8 | CE80: 18t | CF80: 0.58 | CG80: 0.58 | CH80: 58t | CI80: 0.37 | CJ80: 0.6111111111 | CK80: 37 | CL80: 1.12 | CM80: 1.12 | CN80: 112t | CO80: 0.63 | CP80: 0.8 | CQ80: 63t | CR80: 0.35 | CS80: 3 | CT80: 35t | CU80: 1.11 | CV80: 1.11 | CW80: 111 | CX80: 0.76 | CY80: 0.76 | CZ80: 76 | DA80: 0.47 | DB80: 0.5789473684 | DC80: 47 | DG80: 0.54 | DH80: 0.5747126437 | DI80: 54 | DJ80: 1.16 | DK80: 1.16 | DL80: 116 | DM80: 20 | DN80: 20 | DO80: 20t | DP80: 0.57 | DQ80: 2.666666667 | DR80: 57t
A81: 119 | B81: Middlesex | C81: 0.5 | D81: 0.5 | F81: 0.5 | G81: 0.5 | I81: 0.75 | J81: 1 | L81: 1 | M81: 1 | O81: 0.6923076923 | P81: 0.5882352941 | Q81: 0.7222222222 | R81: 1 | S81: 1 | T81: 1 | U81: 0.8571428571 | V81: 0.8 | W81: 0.4 | X81: 3.428571429 | Y81: 3.142857143 | Z81: 3.333333333 | AA81: 64t | AB81: 69t | AD81: 69t | AE81: 64t | AG81: 23t | AH81: 1t | AJ81: 1t | AK81: 1t | AM81: 20 | AN81: 44 | AO81: 15 | AP81: 1t | AQ81: 1t | AR81: 1t | AS81: 36t | AT81: 63t | AU81: 112 | AV81: 12 | AW81: 32t | AX81: 13t | AY81: 0.64 | AZ81: 0.64 | BA81: 64t | BB81: 0.69 | BC81: 0.69 | BD81: 69t | BE81: 0.23 | BF81: 0.75 | BG81: 23t | BH81: 0.01 | BI81: 1 | BJ81: 1t | BK81: 0.2 | BL81: 0.6923076923 | BM81: 20 | BN81: 0.01 | BO81: 1 | BP81: 1t | BQ81: 0.36 | BR81: 0.8571428571 | BS81: 36t | BT81: 0.12 | BU81: 3.428571429 | BV81: 12 | BW81: 0.69 | BX81: 0.69 | BY81: 69t | BZ81: 0.64 | CA81: 0.64 | CB81: 64t | CC81: 0.01 | CD81: 1 | CE81: 1t | CF81: 0.01 | CG81: 1 | CH81: 1t | CI81: 0.44 | CJ81: 0.5882352941 | CK81: 44 | CL81: 0.01 | CM81: 1 | CN81: 1t | CO81: 0.63 | CP81: 0.8 | CQ81: 63t | CR81: 0.32 | CS81: 3.142857143 | CT81: 32t | DG81: 0.15 | DH81: 0.7222222222 | DI81: 15 | DJ81: 0.01 | DK81: 1 | DL81: 1t | DM81: 112 | DN81: 112 | DO81: 112 | DP81: 0.13 | DQ81: 3.333333333 | DR81: 13t
A82: 121 | B82: Montgomery | C82: 0.6 | D82: 0.5833333333 | E82: 0.6153846154 | F82: 0.5333333333 | G82: 0.3333333333 | H82: 0.4615384615 | I82: 0.4666666667 | J82: 0.75 | K82: 0.6923076923 | O82: 0.488372093 | P82: 0.358974359 | Q82: 0.3695652174 | R82: 0.9705882353 | S82: 0.7333333333 | T82: 0.9 | U82: 0.8636363636 | V82: 0.938 | W82: 0.8947368421 | X82: 3 | Y82: 2.666666667 | Z82: 3.333333333 | AA82: 31t | AB82: 46t | AC82: 20t | AD82: 57t | AE82: 102t | AF82: 62 | AG82: 94 | AH82: 27t | AI82: 15t | AM82: 78 | AN82: 96 | AO82: 98 | AP82: 15 | AQ82: 87 | AR82: 30 | AS82: 33 | AT82: 25 | AU82: 19 | AV82: 28t | AW82: 61t | AX82: 13t | AY82: 0.31 | AZ82: 0.6 | BA82: 31t | BB82: 0.57 | BC82: 0.57 | BD82: 57t | BE82: 0.94 | BF82: 0.94 | BG82: 94 | BK82: 0.78 | BL82: 0.78 | BM82: 78 | BN82: 0.15 | BO82: 0.9705882353 | BP82: 15 | BQ82: 0.33 | BR82: 0.8636363636 | BS82: 33 | BT82: 0.28 | BU82: 3 | BV82: 28t | BW82: 0.46 | BX82: 0.5833333333 | BY82: 46t | BZ82: 1.02 | CA82: 1.02 | CB82: 102t | CC82: 0.27 | CD82: 0.75 | CE82: 27t | CI82: 0.96 | CJ82: 0.96 | CK82: 96 | CL82: 0.0087 | CM82: 0.7333333333 | CN82: 87 | CO82: 0.25 | CP82: 0.938 | CQ82: 25 | CR82: 0.61 | CS82: 2.666666667 | CT82: 61t | CU82: 0.2 | CV82: 0.6153846154 | CW82: 20t | CX82: 0.62 | CY82: 0.62 | CZ82: 62 | DA82: 0.15 | DB82: 0.6923076923 | DC82: 15t | DG82: 0.98 | DH82: 0.98 | DI82: 98 | DJ82: 0.3 | DK82: 0.9 | DL82: 30 | DM82: 19 | DN82: 19 | DO82: 19 | DP82: 0.13 | DQ82: 3.333333333 | DR82: 13t
A83: 125 | B83: Nelson | D83: 0.7777777778 | E83: 0.4 | G83: 0.6666666667 | H83: 0.3 | J83: 0.6666666667 | K83: 0.5 | O83: 0.4827586207 | P83: 0.4324324324 | Q83: 0.4318181818 | R83: 0.9 | S83: 0.9411764706 | T83: 1 | U83: 0.75 | V83: 1 | W83: 0.3333333333 | X83: 2.666666667 | Y83: 3.5 | Z83: 1.666666667 | AB83: 14t | AC83: 77t | AE83: 24t | AF83: 109 | AH83: 47t | AI83: 65t | AM83: 80 | AN83: 84t | AO83: 86 | AP83: 29t | AQ83: 17 | AR83: 1t | AS83: 77t | AT83: 1t | AU83: 113 | AV83: 60t | AW83: 11t | AX83: 123t | BK83: 0.8 | BL83: 0.8 | BM83: 80 | BN83: 0.29 | BO83: 0.9 | BP83: 29t | BQ83: 0.77 | BR83: 0.77 | BS83: 77t | BT83: 0.6 | BU83: 2.666666667 | BV83: 60t | BW83: 0.14 | BX83: 0.7777777778 | BY83: 14t | BZ83: 0.24 | CA83: 0.6666666667 | CB83: 24t | CC83: 0.47 | CD83: 0.6666666667 | CE83: 47t | CI83: 0.84 | CJ83: 0.84 | CK83: 84t | CL83: 0.0017 | CM83: 0.9411764706 | CN83: 17 | CO83: 0.01 | CP83: 1 | CQ83: 1t | CR83: 0.11 | CS83: 3.5 | CT83: 11t | CU83: 0.77 | CV83: 0.77 | CW83: 77t | CX83: 1.09 | CY83: 1.09 | CZ83: 109 | DA83: 0.65 | DB83: 0.65 | DC83: 65t | DG83: 0.86 | DH83: 0.86 | DI83: 86 | DJ83: 0.01 | DK83: 1 | DL83: 1t | DM83: 113 | DN83: 113 | DO83: 113 | DP83: 1.23 | DQ83: 1.666666667 | DR83: 123t
A84: 127 | B84: New Kent | C84: 0.8333333333 | D84: 0.5 | E84: 0.6666666667 | F84: 1 | G84: 0.75 | H84: 1 | I84: 1 | J84: 0.6666666667 | K84: 0.6666666667 | O84: 0.6428571429 | P84: 0.5675675676 | Q84: 0.75 | R84: 1 | S84: 1 | T84: 1 | V84: 1 | W84: 0.7142857143 | X84: 4 | Y84: 3.666666667 | Z84: 3.666666667 | AA84: 8 | AB84: 69t | AC84: 11t | AD84: 1t | AE84: 18t | AF84: 1t | AG84: 1t | AH84: 47t | AI84: 21t | AM84: 29 | AN84: 51 | AO84: 8t | AP84: 1t | AQ84: 1t | AR84: 1t | AT84: 1t | AU84: 76t | AV84: 1t | AW84: 6t | AX84: 3t | AY84: 0.08 | AZ84: 0.8333333333 | BA84: 8 | BB84: 0.01 | BC84: 1 | BD84: 1t | BE84: 0.01 | BF84: 1 | BG84: 1t | BK84: 0.29 | BL84: 0.6428571429 | BM84: 29 | BN84: 0.01 | BO84: 1 | BP84: 1t | BT84: 0.01 | BU84: 4 | BV84: 1t | BW84: 0.69 | BX84: 0.69 | BY84: 69t | BZ84: 0.18 | CA84: 0.75 | CB84: 18t | CC84: 0.47 | CD84: 0.6666666667 | CE84: 47t | CI84: 0.51 | CJ84: 0.5675675676 | CK84: 51 | CL84: 0.01 | CM84: 1 | CN84: 1t | CO84: 0.01 | CP84: 1 | CQ84: 1t | CR84: 0.06 | CS84: 3.666666667 | CT84: 6t | CU84: 0.11 | CV84: 0.6666666667 | CW84: 11t | CX84: 0.01 | CY84: 1 | CZ84: 1t | DA84: 0.21 | DB84: 0.6666666667 | DC84: 21t | DG84: 0.08 | DH84: 0.75 | DI84: 8t | DJ84: 0.01 | DK84: 1 | DL84: 1t | DM84: 76 | DN84: 76 | DO84: 76t | DP84: 0.03 | DQ84: 3.666666667 | DR84: 3t
A85: 700 | B85: Newport News | C85: 0.4285714286 | D85: 0.406779661 | E85: 0.3942307692 | F85: 0.5333333333 | G85: 0.406779661 | H85: 0.419047619 | I85: 0.5523809524 | J85: 0.6101694915 | K85: 0.3523809524 | L85: 0.25 | M85: 0.25 | N85: 0.8333333333 | O85: 0.5075757576 | P85: 0.5182926829 | Q85: 0.4829545455 | R85: 0.8611111111 | S85: 0.9147286822 | T85: 0.9084507042 | U85: 0.6739130435 | V85: 0.804 | W85: 0.7368421053 | X85: 2.285714286 | Y85: 2 | Z85: 2.142857143 | AA85: 91t | AB85: 94 | AC85: 82 | AD85: 57t | AE85: 88 | AF85: 77 | AG85: 73 | AH85: 64t | AI85: 112 | AJ85: 35t | AK85: 42t | AL85: 22 | AM85: 70 | AN85: 70 | AO85: 81 | AP85: 49 | AQ85: 25 | AR85: 27 | AS85: 100 | AT85: 62 | AU85: 71 | AV85: 89t | AW85: 104t | AX85: 98t | AY85: 0.91 | AZ85: 0.91 | BA85: 91t | BB85: 0.57 | BC85: 0.57 | BD85: 57t | BE85: 0.73 | BF85: 0.73 | BG85: 73 | BH85: 0.35 | BI85: 0.35 | BJ85: 35t | BK85: 0.7 | BL85: 0.7 | BM85: 70 | BN85: 0.49 | BO85: 0.8611111111 | BP85: 49 | BQ85: 1 | BR85: 1 | BS85: 100 | BT85: 0.89 | BU85: 2.285714286 | BV85: 89t | BW85: 0.94 | BX85: 0.94 | BY85: 94 | BZ85: 0.88 | CA85: 0.88 | CB85: 88 | CC85: 0.64 | CD85: 0.64 | CE85: 64t | CF85: 0.42 | CG85: 0.42 | CH85: 42t | CI85: 0.7 | CJ85: 0.7 | CK85: 70 | CL85: 0.0025 | CM85: 0.9147286822 | CN85: 25 | CO85: 0.62 | CP85: 0.804 | CQ85: 62 | CR85: 1.04 | CS85: 2 | CT85: 104t | CU85: 0.82 | CV85: 0.82 | CW85: 82 | CX85: 0.77 | CY85: 0.77 | CZ85: 77 | DA85: 1.12 | DB85: 1.12 | DC85: 112 | DD85: 0.22 | DE85: 0.8333333333 | DF85: 22 | DG85: 0.81 | DH85: 0.81 | DI85: 81 | DJ85: 0.27 | DK85: 0.9084507042 | DL85: 27 | DM85: 71 | DN85: 71 | DO85: 71 | DP85: 0.98 | DQ85: 2.142857143 | DR85: 98t
A86: 710 | B86: Norfolk | C86: 0.6382978723 | D86: 0.5555555556 | E86: 0.4854368932 | F86: 0.5744680851 | G86: 0.4603174603 | H86: 0.3495145631 | I86: 0.609929078 | J86: 0.5952380952 | K86: 0.5436893204 | L86: 0.3230769231 | M86: 0.3898305085 | N86: 0.3829787234 | O86: 0.25 | P86: 0.390776699 | Q86: 0.4060150376 | R86: 0.9154228856 | S86: 0.9018404908 | T86: 0.9375 | U86: 0.8870967742 | V86: 0.942 | W86: 0.6865671642 | X86: 3.285714286 | Y86: 2.857142857 | Z86: 2.142857143 | AA86: 21t | AB86: 55t | AC86: 58 | AD86: 42 | AE86: 76 | AF86: 95 | AG86: 55 | AH86: 70 | AI86: 59 | AJ86: 31 | AK86: 34 | AL86: 36 | AM86: 110t | AN86: 92 | AO86: 90 | AP86: 26 | AQ86: 29 | AR86: 19 | AS86: 29 | AT86: 24 | AU86: 84 | AV86: 17t | AW86: 46t | AX86: 98t | AY86: 0.21 | AZ86: 0.6382978723 | BA86: 21t | BB86: 0.42 | BC86: 0.5744680851 | BD86: 42 | BE86: 0.55 | BF86: 0.609929078 | BG86: 55 | BH86: 0.31 | BI86: 0.3230769231 | BJ86: 31 | BK86: 1.1 | BL86: 1.1 | BM86: 110t | BN86: 0.26 | BO86: 0.9154228856 | BP86: 26 | BQ86: 0.29 | BR86: 0.8870967742 | BS86: 29 | BT86: 0.17 | BU86: 3.285714286 | BV86: 17t | BW86: 0.55 | BX86: 0.5555555556 | BY86: 55t | BZ86: 0.76 | CA86: 0.76 | CB86: 76 | CC86: 0.7 | CD86: 0.7 | CE86: 70 | CF86: 0.34 | CG86: 0.3898305085 | CH86: 34 | CI86: 0.92 | CJ86: 0.92 | CK86: 92 | CL86: 0.0029 | CM86: 0.9018404908 | CN86: 29 | CO86: 0.24 | CP86: 0.942 | CQ86: 24 | CR86: 0.46 | CS86: 2.857142857 | CT86: 46t | CU86: 0.58 | CV86: 0.58 | CW86: 58 | CX86: 0.95 | CY86: 0.95 | CZ86: 95 | DA86: 0.59 | DB86: 0.59 | DC86: 59 | DD86: 0.36 | DE86: 0.3829787234 | DF86: 36 | DG86: 0.9 | DH86: 0.9 | DI86: 90 | DJ86: 0.19 | DK86: 0.9375 | DL86: 19 | DM86: 84 | DN86: 84 | DO86: 84 | DP86: 0.98 | DQ86: 2.142857143 | DR86: 98t
A87: 131 | B87: Northampton | C87: 0.2857142857 | D87: 0.3333333333 | E87: 0.75 | F87: 0.2857142857 | G87: 0 | H87: 0.25 | I87: 0.2857142857 | J87: 0 | K87: 1 | O87: 0.3571428571 | P87: 0 | Q87: 0.3333333333 | R87: 0.6666666667 | S87: 0.6 | T87: 0.6666666667 | X87: 1.2 | Y87: 1.2 | Z87: 2.4 | AA87: 115 | AB87: 107t | AC87: 5 | AD87: 114t | AE87: 123t | AF87: 116t | AG87: 116t | AH87: 122t | AI87: 1t | AM87: 100t | AN87: 127t | AO87: 105 | AP87: 103t | AQ87: 105t | AR87: 107t | AV87: 130 | AW87: 130 | AX87: 82t | AY87: 1.15 | AZ87: 1.15 | BA87: 115 | BB87: 1.14 | BC87: 1.14 | BD87: 114t | BE87: 1.16 | BF87: 1.16 | BG87: 116t | BK87: 1 | BL87: 1 | BM87: 100t | BN87: 1.03 | BO87: 1.03 | BP87: 103t | BT87: 1.3 | BU87: 1.3 | BV87: 130 | BW87: 1.07 | BX87: 1.07 | BY87: 107t | BZ87: 1.23 | CA87: 1.23 | CB87: 123t | CC87: 1.22 | CD87: 1.22 | CE87: 122t | CI87: 1.27 | CJ87: 1.27 | CK87: 127t | CL87: 1.05 | CM87: 1.05 | CN87: 105t | CR87: 1.3 | CS87: 1.3 | CT87: 130 | CU87: 0.05 | CV87: 0.75 | CW87: 5 | CX87: 1.16 | CY87: 1.16 | CZ87: 116t | DA87: 0.01 | DB87: 1 | DC87: 1t | DG87: 1.05 | DH87: 1.05 | DI87: 105 | DJ87: 1.07 | DK87: 1.07 | DL87: 107t | DP87: 0.82 | DQ87: 2.4 | DR87: 82t
A88: 133 | B88: Northumberland | C88: 0.6363636364 | D88: 0.8 | E88: 1 | F88: 0.4545454545 | G88: 0.6 | H88: 0.6666666667 | I88: 0.8181818182 | J88: 1 | K88: 0.8333333333 | L88: 0.3333333333 | M88: 0.6666666667 | N88: 1 | O88: 0.5925925926 | P88: 0.5454545455 | Q88: 0.5789473684 | R88: 0.875 | S88: 1 | T88: 1 | U88: 0.25 | V88: 1 | W88: 1 | X88: 3.142857143 | Y88: 3.857142857 | Z88: 4 | AA88: 23t | AB88: 11t | AC88: 1t | AD88: 87 | AE88: 36t | AF88: 12t | AG88: 11 | AH88: 1t | AI88: 6 | AJ88: 25t | AK88: 22t | AL88: 1t | AM88: 45 | AN88: 59t | AO88: 52t | AP88: 43t | AQ88: 1t | AR88: 1t | AS88: 115t | AT88: 1t | AU88: 1t | AV88: 23t | AW88: 3 | AX88: 1t | AY88: 0.23 | AZ88: 0.6363636364 | BA88: 23t | BB88: 0.87 | BC88: 0.87 | BD88: 87 | BE88: 0.11 | BF88: 0.8181818182 | BG88: 11 | BH88: 0.25 | BI88: 0.3333333333 | BJ88: 25t | BK88: 0.45 | BL88: 0.5925925926 | BM88: 45 | BN88: 0.43 | BO88: 0.875 | BP88: 43t | BQ88: 1.15 | BR88: 1.15 | BS88: 115t | BT88: 0.23 | BU88: 3.142857143 | BV88: 23t | BW88: 0.11 | BX88: 0.8 | BY88: 11t | BZ88: 0.36 | CA88: 0.6 | CB88: 36t | CC88: 0.01 | CD88: 1 | CE88: 1t | CF88: 0.22 | CG88: 0.6666666667 | CH88: 22t | CI88: 0.59 | CJ88: 0.59 | CK88: 59t | CL88: 0.01 | CM88: 1 | CN88: 1t | CO88: 0.01 | CP88: 1 | CQ88: 1t | CR88: 0.03 | CS88: 3.857142857 | CT88: 3 | CU88: 0.01 | CV88: 1 | CW88: 1t | CX88: 0.12 | CY88: 0.6666666667 | CZ88: 12t | DA88: 0.06 | DB88: 0.8333333333 | DC88: 6 | DD88: 0.01 | DE88: 1 | DF88: 1t | DG88: 0.52 | DH88: 0.5789473684 | DI88: 52t | DJ88: 0.01 | DK88: 1 | DL88: 1t | DM88: 1 | DN88: 1 | DO88: 1t | DP88: 0.01 | DQ88: 4 | DR88: 1t
A89: 720 | B89: Norton | D89: 0 | G89: 0.3333333333 | J89: 0.3333333333 | O89: 0.1428571429 | P89: 0.1428571429 | Q89: 0.4444444444 | R89: 0.8333333333 | S89: 0.9166666667 | T89: 0.8571428571 | U89: 1 | V89: 1 | W89: 0.8 | X89: 2.666666667 | Y89: 2 | Z89: 2.333333333 | AB89: 121t | AE89: 102t | AH89: 117t | AM89: 118t | AN89: 119 | AO89: 84 | AP89: 56t | AQ89: 24 | AR89: 41t | AS89: 1t | AT89: 1t | AU89: 51t | AV89: 60t | AW89: 104t | AX89: 84t | BK89: 1.18 | BL89: 1.18 | BM89: 118t | BN89: 0.56 | BO89: 0.8333333333 | BP89: 56t | BQ89: 0.01 | BR89: 1 | BS89: 1t | BT89: 0.6 | BU89: 2.666666667 | BV89: 60t | BW89: 1.21 | BX89: 1.21 | BY89: 121t | BZ89: 1.02 | CA89: 1.02 | CB89: 102t | CC89: 1.17 | CD89: 1.17 | CE89: 117t | CI89: 1.19 | CJ89: 1.19 | CK89: 119 | CL89: 0.0024 | CM89: 0.9166666667 | CN89: 24 | CO89: 0.01 | CP89: 1 | CQ89: 1t | CR89: 1.04 | CS89: 2 | CT89: 104t | DG89: 0.84 | DH89: 0.84 | DI89: 84 | DJ89: 0.41 | DK89: 0.8571428571 | DL89: 41t | DM89: 51 | DN89: 51 | DO89: 51t | DP89: 0.84 | DQ89: 2.333333333 | DR89: 84t
A90: 135 | B90: Nottoway | D90: 0.7777777778 | E90: 0.7142857143 | G90: 0.2222222222 | H90: 0.8571428571 | J90: 0.5555555556 | K90: 0.7142857143 | O90: 0.1052631579 | P90: 0.1666666667 | Q90: 0.2380952381 | S90: 0.2 | T90: 0.25 | U90: 0.75 | X90: 1.5 | Y90: 2 | Z90: 3 | AB90: 14t | AC90: 7t | AE90: 120 | AF90: 7 | AH90: 85t | AI90: 13t | AM90: 122 | AN90: 117 | AO90: 117 | AQ90: 125 | AR90: 127 | AS90: 77t | AV90: 128t | AW90: 104t | AX90: 29t | BK90: 1.22 | BL90: 1.22 | BM90: 122 | BQ90: 0.77 | BR90: 0.77 | BS90: 77t | BT90: 1.28 | BU90: 1.5 | BV90: 128t | BW90: 0.14 | BX90: 0.7777777778 | BY90: 14t | BZ90: 1.2 | CA90: 1.2 | CB90: 120 | CC90: 0.85 | CD90: 0.85 | CE90: 85t | CI90: 1.17 | CJ90: 1.17 | CK90: 117 | CL90: 0.0125 | CM90: 0.2 | CN90: 125 | CR90: 1.04 | CS90: 2 | CT90: 104t | CU90: 0.07 | CV90: 0.7142857143 | CW90: 7t | CX90: 0.07 | CY90: 0.8571428571 | CZ90: 7 | DA90: 0.13 | DB90: 0.7142857143 | DC90: 13t | DG90: 1.17 | DH90: 1.17 | DI90: 117 | DJ90: 1.27 | DK90: 1.27 | DL90: 127 | DP90: 0.29 | DQ90: 3 | DR90: 29t
A91: 137 | B91: Orange | C91: 0.4035087719 | D91: 0.5744680851 | E91: 0.5526315789 | F91: 0.5789473684 | G91: 0.5744680851 | H91: 0.6578947368 | I91: 0.6140350877 | J91: 0.8085106383 | K91: 0.6052631579 | L91: 0 | M91: 0 | N91: 0 | O91: 0.4608695652 | P91: 0.5190839695 | Q91: 0.4921875 | R91: 0.6666666667 | S91: 0.8260869565 | T91: 0.7894736842 | U91: 0.8275862069 | V91: 0.7 | W91: 0.72 | X91: 2.142857143 | Y91: 3 | Z91: 2.714285714 | AA91: 99 | AB91: 49 | AC91: 36 | AD91: 41 | AE91: 48 | AF91: 17 | AG91: 53t | AH91: 17 | AI91: 40 | AJ91: 54t | AK91: 58t | AL91: 54t | AM91: 84 | AN91: 69 | AO91: 79 | AP91: 103t | AQ91: 58t | AR91: 72t | AS91: 49 | AT91: 89t | AU91: 75 | AV91: 99t | AW91: 35t | AX91: 49t | AY91: 0.99 | AZ91: 0.99 | BA91: 99 | BB91: 0.41 | BC91: 0.5789473684 | BD91: 41 | BE91: 0.53 | BF91: 0.6140350877 | BG91: 53t | BH91: 0.54 | BI91: 0.54 | BJ91: 54t | BK91: 0.84 | BL91: 0.84 | BM91: 84 | BN91: 1.03 | BO91: 1.03 | BP91: 103t | BQ91: 0.49 | BR91: 0.8275862069 | BS91: 49 | BT91: 0.99 | BU91: 2.142857143 | BV91: 99t | BW91: 0.49 | BX91: 0.5744680851 | BY91: 49 | BZ91: 0.48 | CA91: 0.5744680851 | CB91: 48 | CC91: 0.17 | CD91: 0.8085106383 | CE91: 17 | CF91: 0.58 | CG91: 0.58 | CH91: 58t | CI91: 0.69 | CJ91: 0.69 | CK91: 69 | CL91: 0.58 | CM91: 0.8260869565 | CN91: 58t | CO91: 0.89 | CP91: 0.89 | CQ91: 89t | CR91: 0.35 | CS91: 3 | CT91: 35t | CU91: 0.36 | CV91: 0.5526315789 | CW91: 36 | CX91: 0.17 | CY91: 0.6578947368 | CZ91: 17 | DA91: 0.4 | DB91: 0.6052631579 | DC91: 40 | DD91: 0.54 | DE91: 0.54 | DF91: 54t | DG91: 0.79 | DH91: 0.79 | DI91: 79 | DJ91: 0.72 | DK91: 0.7894736842 | DL91: 72t | DM91: 75 | DN91: 75 | DO91: 75 | DP91: 0.49 | DQ91: 2.714285714 | DR91: 49t
A92: 139 | B92: Page | C92: 0.625 | D92: 0.5 | E92: 0.6086956522 | F92: 0.4583333333 | G92: 0.3666666667 | H92: 0.347826087 | I92: 0.7083333333 | J92: 0.5666666667 | K92: 0.4347826087 | M92: 0 | O92: 0.4565217391 | P92: 0.3448275862 | Q92: 0.380952381 | R92: 0.7272727273 | S92: 0.8235294118 | T92: 0.9166666667 | U92: 1 | V92: 0.5 | W92: 0.8571428571 | X92: 2.666666667 | Y92: 1.714285714 | Z92: 2.333333333 | AA92: 25t | AB92: 69t | AC92: 22 | AD92: 86 | AE92: 97 | AF92: 96 | AG92: 31 | AH92: 79 | AI92: 94t | AK92: 58t | AM92: 85 | AN92: 99t | AO92: 96 | AP92: 89t | AQ92: 60 | AR92: 24 | AS92: 1t | AT92: 105t | AU92: 34t | AV92: 60t | AW92: 120t | AX92: 84t | AY92: 0.25 | AZ92: 0.625 | BA92: 25t | BB92: 0.86 | BC92: 0.86 | BD92: 86 | BE92: 0.31 | BF92: 0.7083333333 | BG92: 31 | BK92: 0.85 | BL92: 0.85 | BM92: 85 | BN92: 0.89 | BO92: 0.89 | BP92: 89t | BQ92: 0.01 | BR92: 1 | BS92: 1t | BT92: 0.6 | BU92: 2.666666667 | BV92: 60t | BW92: 0.69 | BX92: 0.69 | BY92: 69t | BZ92: 0.97 | CA92: 0.97 | CB92: 97 | CC92: 0.79 | CD92: 0.79 | CE92: 79 | CF92: 0.58 | CG92: 0.58 | CH92: 58t | CI92: 0.99 | CJ92: 0.99 | CK92: 99t | CL92: 0.006 | CM92: 0.8235294118 | CN92: 60 | CO92: 1.05 | CP92: 1.05 | CQ92: 105t | CR92: 1.2 | CS92: 1.714285714 | CT92: 120t | CU92: 0.22 | CV92: 0.6086956522 | CW92: 22 | CX92: 0.96 | CY92: 0.96 | CZ92: 96 | DA92: 0.94 | DB92: 0.94 | DC92: 94t | DG92: 0.96 | DH92: 0.96 | DI92: 96 | DJ92: 0.24 | DK92: 0.9166666667 | DL92: 24 | DM92: 34 | DN92: 34 | DO92: 34t | DP92: 0.84 | DQ92: 2.333333333 | DR92: 84t
A93: 141 | B93: Patrick | C93: 0.3 | D93: 0.375 | E93: 0.25 | F93: 0.5 | G93: 0.25 | H93: 0.75 | I93: 0.9 | J93: 0.375 | K93: 0.75 | M93: 0.25 | N93: 0.8 | O93: 0 | P93: 0 | Q93: 0 | R93: 0.7647058824 | S93: 0.7 | T93: 0.8125 | U93: 1 | V93: 0.667 | W93: 0.8888888889 | X93: 2.333333333 | Y93: 1.285714286 | Z93: 3.142857143 | AA93: 113 | AB93: 102 | AC93: 112t | AD93: 69t | AE93: 115t | AF93: 8 | AG93: 8 | AH93: 116 | AI93: 10 | AK93: 42t | AL93: 23t | AM93: 127t | AN93: 127t | AO93: 127t | AP93: 75 | AQ93: 93 | AR93: 61 | AS93: 1t | AT93: 93t | AU93: 20t | AV93: 86t | AW93: 128t | AX93: 26t | AY93: 1.13 | AZ93: 1.13 | BA93: 113 | BB93: 0.69 | BC93: 0.69 | BD93: 69t | BE93: 0.08 | BF93: 0.9 | BG93: 8 | BK93: 1.27 | BL93: 1.27 | BM93: 127t | BN93: 0.75 | BO93: 0.7647058824 | BP93: 75 | BQ93: 0.01 | BR93: 1 | BS93: 1t | BT93: 0.86 | BU93: 2.333333333 | BV93: 86t | BW93: 1.02 | BX93: 1.02 | BY93: 102 | BZ93: 1.15 | CA93: 1.15 | CB93: 115t | CC93: 1.16 | CD93: 1.16 | CE93: 116 | CF93: 0.42 | CG93: 0.42 | CH93: 42t | CI93: 1.27 | CJ93: 1.27 | CK93: 127t | CL93: 0.0093 | CM93: 0.7 | CN93: 93 | CO93: 0.93 | CP93: 0.93 | CQ93: 93t | CR93: 1.28 | CS93: 1.285714286 | CT93: 128t | CU93: 1.12 | CV93: 1.12 | CW93: 112t | CX93: 0.08 | CY93: 0.75 | CZ93: 8 | DA93: 0.1 | DB93: 0.75 | DC93: 10 | DD93: 0.23 | DE93: 0.8 | DF93: 23t | DG93: 1.27 | DH93: 1.27 | DI93: 127t | DJ93: 0.61 | DK93: 0.8125 | DL93: 61 | DM93: 20 | DN93: 20 | DO93: 20t | DP93: 0.26 | DQ93: 3.142857143 | DR93: 26t
A94: 730 | B94: Petersburg | C94: 0.4642857143 | D94: 0.5416666667 | E94: 0.4117647059 | F94: 0.6071428571 | G94: 0.625 | H94: 0.2941176471 | I94: 0.75 | J94: 0.75 | K94: 0.4117647059 | L94: 0.1212121212 | M94: 0 | N94: 0.1818181818 | O94: 0.4642857143 | P94: 0.5079365079 | Q94: 0.6209677419 | R94: 0.6444444444 | S94: 0.6944444444 | T94: 0.6857142857 | U94: 0.8484848485 | V94: 0.778 | W94: 0.6363636364 | X94: 2.571428571 | Y94: 2.571428571 | Z94: 1.714285714 | AA94: 84 | AB94: 62 | AC94: 75t | AD94: 34 | AE94: 32 | AF94: 110 | AG94: 23t | AH94: 27t | AI94: 99 | AJ94: 43 | AK94: 58t | AL94: 48 | AM94: 83 | AN94: 72 | AO94: 43 | AP94: 113 | AQ94: 94 | AR94: 105 | AS94: 40 | AT94: 70t | AU94: 96 | AV94: 67t | AW94: 68t | AX94: 120t | AY94: 0.84 | AZ94: 0.84 | BA94: 84 | BB94: 0.34 | BC94: 0.6071428571 | BD94: 34 | BE94: 0.23 | BF94: 0.75 | BG94: 23t | BH94: 0.43 | BI94: 0.43 | BJ94: 43 | BK94: 0.83 | BL94: 0.83 | BM94: 83 | BN94: 1.13 | BO94: 1.13 | BP94: 113 | BQ94: 0.4 | BR94: 0.8484848485 | BS94: 40 | BT94: 0.67 | BU94: 2.571428571 | BV94: 67t | BW94: 0.62 | BX94: 0.62 | BY94: 62 | BZ94: 0.32 | CA94: 0.625 | CB94: 32 | CC94: 0.27 | CD94: 0.75 | CE94: 27t | CF94: 0.58 | CG94: 0.58 | CH94: 58t | CI94: 0.72 | CJ94: 0.72 | CK94: 72 | CL94: 0.0094 | CM94: 0.6944444444 | CN94: 94 | CO94: 0.7 | CP94: 0.778 | CQ94: 70t | CR94: 0.68 | CS94: 2.571428571 | CT94: 68t | CU94: 0.75 | CV94: 0.75 | CW94: 75t | CX94: 1.1 | CY94: 1.1 | CZ94: 110 | DA94: 0.99 | DB94: 0.99 | DC94: 99 | DD94: 0.48 | DE94: 0.48 | DF94: 48 | DG94: 0.43 | DH94: 0.6209677419 | DI94: 43 | DJ94: 1.05 | DK94: 1.05 | DL94: 105 | DM94: 96 | DN94: 96 | DO94: 96 | DP94: 1.2 | DQ94: 1.714285714 | DR94: 120t
A95: 143 | B95: Pittsylvania | C95: 0.5636363636 | D95: 0.5849056604 | E95: 0.4583333333 | F95: 0.5454545455 | G95: 0.5283018868 | H95: 0.5833333333 | I95: 0.5272727273 | J95: 0.6037735849 | K95: 0.625 | L95: 0.5833333333 | M95: 0.2857142857 | N95: 0.32 | O95: 0.7172413793 | P95: 0.7058823529 | Q95: 0.6526946108 | R95: 0.6875 | S95: 0.9032258065 | T95: 0.6296296296 | U95: 0.8571428571 | V95: 0.769 | W95: 0.7142857143 | X95: 3 | Y95: 3 | Z95: 2.857142857 | AA95: 48 | AB95: 45 | AC95: 64 | AD95: 53t | AE95: 61 | AF95: 27 | AG95: 83 | AH95: 66 | AI95: 33t | AJ95: 21 | AK95: 39t | AL95: 41 | AM95: 18 | AN95: 19 | AO95: 32 | AP95: 99t | AQ95: 27 | AR95: 112 | AS95: 36t | AT95: 75 | AU95: 76t | AV95: 28t | AW95: 35t | AX95: 42t | AY95: 0.48 | AZ95: 0.5636363636 | BA95: 48 | BB95: 0.53 | BC95: 0.5454545455 | BD95: 53t | BE95: 0.83 | BF95: 0.83 | BG95: 83 | BH95: 0.21 | BI95: 0.5833333333 | BJ95: 21 | BK95: 0.18 | BL95: 0.7172413793 | BM95: 18 | BN95: 0.99 | BO95: 0.99 | BP95: 99t | BQ95: 0.36 | BR95: 0.8571428571 | BS95: 36t | BT95: 0.28 | BU95: 3 | BV95: 28t | BW95: 0.45 | BX95: 0.5849056604 | BY95: 45 | BZ95: 0.61 | CA95: 0.61 | CB95: 61 | CC95: 0.66 | CD95: 0.66 | CE95: 66 | CF95: 0.39 | CG95: 0.39 | CH95: 39t | CI95: 0.19 | CJ95: 0.7058823529 | CK95: 19 | CL95: 0.0027 | CM95: 0.9032258065 | CN95: 27 | CO95: 0.75 | CP95: 0.769 | CQ95: 75 | CR95: 0.35 | CS95: 3 | CT95: 35t | CU95: 0.64 | CV95: 0.64 | CW95: 64 | CX95: 0.27 | CY95: 0.5833333333 | CZ95: 27 | DA95: 0.33 | DB95: 0.625 | DC95: 33t | DD95: 0.41 | DE95: 0.41 | DF95: 41 | DG95: 0.32 | DH95: 0.6526946108 | DI95: 32 | DJ95: 1.12 | DK95: 1.12 | DL95: 112 | DM95: 76 | DN95: 76 | DO95: 76t | DP95: 0.42 | DQ95: 2.857142857 | DR95: 42t
A96: 735 | B96: Poquoson | C96: 0.6666666667 | D96: 1 | F96: 1 | G96: 1 | I96: 0.6666666667 | J96: 1 | O96: 0.4 | P96: 0.5454545455 | Q96: 0.6363636364 | R96: 0.25 | S96: 0.4 | T96: 0.4166666667 | W96: 0.25 | X96: 3 | Y96: 3.4 | Z96: 2.666666667 | AA96: 14t | AB96: 1t | AD96: 1t | AE96: 1t | AG96: 37t | AH96: 1t | AM96: 95t | AN96: 59t | AO96: 37 | AP96: 125t | AQ96: 120t | AR96: 124t | AU96: 114t | AV96: 28t | AW96: 21t | AX96: 57t | AY96: 0.14 | AZ96: 0.6666666667 | BA96: 14t | BB96: 0.01 | BC96: 1 | BD96: 1t | BE96: 0.37 | BF96: 0.6666666667 | BG96: 37t | BK96: 0.95 | BL96: 0.95 | BM96: 95t | BN96: 1.25 | BO96: 1.25 | BP96: 125t | BT96: 0.28 | BU96: 3 | BV96: 28t | BW96: 0.01 | BX96: 1 | BY96: 1t | BZ96: 0.01 | CA96: 1 | CB96: 1t | CC96: 0.01 | CD96: 1 | CE96: 1t | CI96: 0.59 | CJ96: 0.59 | CK96: 59t | CL96: 1.2 | CM96: 1.2 | CN96: 120t | CR96: 0.21 | CS96: 3.4 | CT96: 21t | DG96: 0.37 | DH96: 0.6363636364 | DI96: 37 | DJ96: 1.24 | DK96: 1.24 | DL96: 124t | DM96: 114 | DN96: 114 | DO96: 114t | DP96: 0.57 | DQ96: 2.666666667 | DR96: 57t
A97: 740 | B97: Portsmouth | C97: 0.4285714286 | D97: 0.4210526316 | E97: 0.2307692308 | F97: 0.5142857143 | G97: 0.3157894737 | H97: 0.3076923077 | I97: 0.6571428571 | J97: 0.4210526316 | K97: 0.6153846154 | L97: 0.5714285714 | M97: 0.2857142857 | O97: 0.09090909091 | P97: 0.08130081301 | Q97: 0.04347826087 | R97: 0.9338842975 | S97: 0.9292929293 | T97: 0.9027777778 | U97: 0.7073170732 | V97: 0.755 | W97: 0.7346938776 | X97: 2.571428571 | Y97: 1.571428571 | Z97: 2.166666667 | AA97: 91t | AB97: 87 | AC97: 115t | AD97: 67 | AE97: 108 | AF97: 105t | AG97: 44 | AH97: 114 | AI97: 38t | AJ97: 22 | AK97: 39t | AM97: 124 | AN97: 125 | AO97: 126 | AP97: 19 | AQ97: 22 | AR97: 29 | AS97: 94 | AT97: 77 | AU97: 72 | AV97: 67t | AW97: 124t | AX97: 95t | AY97: 0.91 | AZ97: 0.91 | BA97: 91t | BB97: 0.67 | BC97: 0.67 | BD97: 67 | BE97: 0.44 | BF97: 0.6571428571 | BG97: 44 | BH97: 0.22 | BI97: 0.5714285714 | BJ97: 22 | BK97: 1.24 | BL97: 1.24 | BM97: 124 | BN97: 0.19 | BO97: 0.9338842975 | BP97: 19 | BQ97: 0.94 | BR97: 0.94 | BS97: 94 | BT97: 0.67 | BU97: 2.571428571 | BV97: 67t | BW97: 0.87 | BX97: 0.87 | BY97: 87 | BZ97: 1.08 | CA97: 1.08 | CB97: 108 | CC97: 1.14 | CD97: 1.14 | CE97: 114 | CF97: 0.39 | CG97: 0.39 | CH97: 39t | CI97: 1.25 | CJ97: 1.25 | CK97: 125 | CL97: 0.0022 | CM97: 0.9292929293 | CN97: 22 | CO97: 0.77 | CP97: 0.77 | CQ97: 77 | CR97: 1.24 | CS97: 1.571428571 | CT97: 124t | CU97: 1.15 | CV97: 1.15 | CW97: 115t | CX97: 1.05 | CY97: 1.05 | CZ97: 105t | DA97: 0.38 | DB97: 0.6153846154 | DC97: 38t | DG97: 1.26 | DH97: 1.26 | DI97: 126 | DJ97: 0.29 | DK97: 0.9027777778 | DL97: 29 | DM97: 72 | DN97: 72 | DO97: 72 | DP97: 0.95 | DQ97: 2.166666667 | DR97: 95t
A98: 145 | B98: Powhatan | C98: 0.55 | D98: 0.5 | E98: 0.7692307692 | F98: 0.7 | G98: 0.5 | H98: 0.6923076923 | I98: 0.55 | J98: 0.6666666667 | K98: 0.6153846154 | O98: 0.5161290323 | P98: 0.5853658537 | Q98: 0.5609756098 | R98: 0.8181818182 | S98: 0.6666666667 | T98: 0.5454545455 | U98: 0.8 | V98: 0.75 | W98: 0.125 | X98: 3 | Y98: 2.666666667 | Z98: 3.166666667 | AA98: 49t | AB98: 69t | AC98: 4 | AD98: 19t | AE98: 64t | AF98: 11 | AG98: 74 | AH98: 47t | AI98: 38t | AM98: 66 | AN98: 45t | AO98: 59 | AP98: 63 | AQ98: 96t | AR98: 115 | AS98: 57t | AT98: 79t | AU98: 117 | AV98: 28t | AW98: 61t | AX98: 23t | AY98: 0.49 | AZ98: 0.55 | BA98: 49t | BB98: 0.19 | BC98: 0.7 | BD98: 19t | BE98: 0.74 | BF98: 0.74 | BG98: 74 | BK98: 0.66 | BL98: 0.66 | BM98: 66 | BN98: 0.63 | BO98: 0.8181818182 | BP98: 63 | BQ98: 0.57 | BR98: 0.8 | BS98: 57t | BT98: 0.28 | BU98: 3 | BV98: 28t | BW98: 0.69 | BX98: 0.69 | BY98: 69t | BZ98: 0.64 | CA98: 0.64 | CB98: 64t | CC98: 0.47 | CD98: 0.6666666667 | CE98: 47t | CI98: 0.45 | CJ98: 0.5853658537 | CK98: 45t | CL98: 0.96 | CM98: 0.96 | CN98: 96t | CO98: 0.79 | CP98: 0.79 | CQ98: 79t | CR98: 0.61 | CS98: 2.666666667 | CT98: 61t | CU98: 0.04 | CV98: 0.7692307692 | CW98: 4 | CX98: 0.11 | CY98: 0.6923076923 | CZ98: 11 | DA98: 0.38 | DB98: 0.6153846154 | DC98: 38t | DG98: 0.59 | DH98: 0.59 | DI98: 59 | DJ98: 1.15 | DK98: 1.15 | DL98: 115 | DM98: 117 | DN98: 117 | DO98: 117 | DP98: 0.23 | DQ98: 3.166666667 | DR98: 23t
A99: 147 | B99: Prince Edward | C99: 0.34375 | D99: 0.7 | E99: 0.5 | F99: 0.40625 | G99: 0.8 | H99: 1 | I99: 0.5 | J99: 0.8 | K99: 0.5 | L99: 0.3333333333 | M99: 1 | N99: 1 | O99: 0.5090909091 | P99: 0.4444444444 | Q99: 0.5 | R99: 1 | S99: 0.9 | T99: 0.8571428571 | U99: 0.8333333333 | W99: 0.8823529412 | X99: 2.285714286 | Y99: 3.5 | Z99: 3.142857143 | AA99: 109 | AB99: 24t | AC99: 49t | AD99: 96 | AE99: 14t | AF99: 1t | AG99: 86t | AH99: 18t | AI99: 65t | AJ99: 25t | AK99: 1t | AL99: 1t | AM99: 69 | AN99: 82 | AO99: 74t | AP99: 1t | AQ99: 30 | AR99: 41t | AS99: 43t | AU99: 25t | AV99: 89t | AW99: 11t | AX99: 26t | AY99: 1.09 | AZ99: 1.09 | BA99: 109 | BB99: 0.96 | BC99: 0.96 | BD99: 96 | BE99: 0.86 | BF99: 0.86 | BG99: 86t | BH99: 0.25 | BI99: 0.3333333333 | BJ99: 25t | BK99: 0.69 | BL99: 0.69 | BM99: 69 | BN99: 0.01 | BO99: 1 | BP99: 1t | BQ99: 0.43 | BR99: 0.8333333333 | BS99: 43t | BT99: 0.89 | BU99: 2.285714286 | BV99: 89t | BW99: 0.24 | BX99: 0.7 | BY99: 24t | BZ99: 0.14 | CA99: 0.8 | CB99: 14t | CC99: 0.18 | CD99: 0.8 | CE99: 18t | CF99: 0.01 | CG99: 1 | CH99: 1t | CI99: 0.82 | CJ99: 0.82 | CK99: 82 | CL99: 0.003 | CM99: 0.9 | CN99: 30 | CR99: 0.11 | CS99: 3.5 | CT99: 11t | CU99: 0.49 | CV99: 0.5 | CW99: 49t | CX99: 0.01 | CY99: 1 | CZ99: 1t | DA99: 0.65 | DB99: 0.65 | DC99: 65t | DD99: 0.01 | DE99: 1 | DF99: 1t | DG99: 0.74 | DH99: 0.74 | DI99: 74t | DJ99: 0.41 | DK99: 0.8571428571 | DL99: 41t | DM99: 25 | DN99: 25 | DO99: 25t | DP99: 0.26 | DQ99: 3.142857143 | DR99: 26t
A100: 149 | B100: Prince George | C100: 0.7777777778 | D100: 0.5714285714 | E100: 0.7777777778 | F100: 0.7777777778 | G100: 0.1428571429 | H100: 0.5555555556 | I100: 0.5555555556 | J100: 0.1428571429 | K100: 0.4444444444 | N100: 1 | O100: 0.7 | P100: 0.5853658537 | Q100: 0.6222222222 | R100: 0.8235294118 | S100: 0.8333333333 | T100: 0.8571428571 | U100: 0.8 | V100: 0.889 | W100: 0.6666666667 | X100: 3.166666667 | Y100: 2.833333333 | Z100: 3.285714286 | AA100: 10 | AB100: 50 | AC100: 3 | AD100: 10t | AE100: 122 | AF100: 32 | AG100: 70t | AH100: 121 | AI100: 88t | AL100: 1t | AM100: 19 | AN100: 45t | AO100: 42 | AP100: 60t | AQ100: 55t | AR100: 41t | AS100: 57t | AT100: 35 | AU100: 88t | AV100: 20t | AW100: 50t | AX100: 18t | AY100: 0.1 | AZ100: 0.7777777778 | BA100: 10 | BB100: 0.1 | BC100: 0.7777777778 | BD100: 10t | BE100: 0.7 | BF100: 0.7 | BG100: 70t | BK100: 0.19 | BL100: 0.7 | BM100: 19 | BN100: 0.6 | BO100: 0.8235294118 | BP100: 60t | BQ100: 0.57 | BR100: 0.8 | BS100: 57t | BT100: 0.2 | BU100: 3.166666667 | BV100: 20t | BW100: 0.5 | BX100: 0.5714285714 | BY100: 50 | BZ100: 1.22 | CA100: 1.22 | CB100: 122 | CC100: 1.21 | CD100: 1.21 | CE100: 121 | CI100: 0.45 | CJ100: 0.5853658537 | CK100: 45t | CL100: 0.55 | CM100: 0.8333333333 | CN100: 55t | CO100: 0.35 | CP100: 0.889 | CQ100: 35 | CR100: 0.5 | CS100: 2.833333333 | CT100: 50t | CU100: 0.03 | CV100: 0.7777777778 | CW100: 3 | CX100: 0.32 | CY100: 0.5555555556 | CZ100: 32 | DA100: 0.88 | DB100: 0.88 | DC100: 88t | DD100: 0.01 | DE100: 1 | DF100: 1t | DG100: 0.42 | DH100: 0.6222222222 | DI100: 42 | DJ100: 0.41 | DK100: 0.8571428571 | DL100: 41t | DM100: 88 | DN100: 88 | DO100: 88t | DP100: 0.18 | DQ100: 3.285714286 | DR100: 18t
A101: 153 | B101: Prince William | C101: 0.5371900826 | D101: 0.5438596491 | E101: 0.550295858 | F101: 0.5702479339 | G101: 0.5321637427 | H101: 0.4911242604 | I101: 0.520661157 | J101: 0.5906432749 | K101: 0.5266272189 | L101: 0.02857142857 | M101: 0 | N101: 0 | O101: 0.4820627803 | P101: 0.5949119374 | Q101: 0.6177024482 | R101: 0.7830188679 | S101: 0.6629213483 | T101: 0.5612244898 | U101: 0.6904761905 | V101: 0.625 | W101: 0.5813953488 | X101: 2.142857143 | Y101: 2.428571429 | Z101: 2.571428571 | AA101: 54 | AB101: 59 | AC101: 38 | AD101: 47 | AE101: 60 | AF101: 50 | AG101: 84 | AH101: 73 | AI101: 61 | AJ101: 53 | AK101: 58t | AL101: 54t | AM101: 81 | AN101: 42 | AO101: 44 | AP101: 72 | AQ101: 99 | AR101: 114 | AS101: 98 | AT101: 101t | AU101: 104 | AV101: 99t | AW101: 82t | AX101: 59t | AY101: 0.54 | AZ101: 0.54 | BA101: 54 | BB101: 0.47 | BC101: 0.5702479339 | BD101: 47 | BE101: 0.84 | BF101: 0.84 | BG101: 84 | BH101: 0.53 | BI101: 0.53 | BJ101: 53 | BK101: 0.81 | BL101: 0.81 | BM101: 81 | BN101: 0.72 | BO101: 0.7830188679 | BP101: 72 | BQ101: 0.98 | BR101: 0.98 | BS101: 98 | BT101: 0.99 | BU101: 2.142857143 | BV101: 99t | BW101: 0.59 | BX101: 0.59 | BY101: 59 | BZ101: 0.6 | CA101: 0.6 | CB101: 60 | CC101: 0.73 | CD101: 0.73 | CE101: 73 | CF101: 0.58 | CG101: 0.58 | CH101: 58t | CI101: 0.42 | CJ101: 0.5949119374 | CK101: 42 | CL101: 0.0099 | CM101: 0.6629213483 | CN101: 99 | CO101: 1.01 | CP101: 1.01 | CQ101: 101t | CR101: 0.82 | CS101: 2.428571429 | CT101: 82t | CU101: 0.38 | CV101: 0.550295858 | CW101: 38 | CX101: 0.5 | CY101: 0.5 | CZ101: 50 | DA101: 0.61 | DB101: 0.61 | DC101: 61 | DD101: 0.54 | DE101: 0.54 | DF101: 54t | DG101: 0.44 | DH101: 0.6177024482 | DI101: 44 | DJ101: 1.14 | DK101: 1.14 | DL101: 114 | DM101: 104 | DN101: 104 | DO101: 104 | DP101: 0.59 | DQ101: 2.571428571 | DR101: 59t
A102: 155 | B102: Pulaski | C102: 0.4736842105 | D102: 0.4888888889 | E102: 0.34 | F102: 0.4342105263 | G102: 0.4 | H102: 0.48 | I102: 0.7368421053 | J102: 0.6666666667 | K102: 0.58 | L102: 0 | M102: 0 | N102: 0 | O102: 0.5482233503 | P102: 0.5240384615 | Q102: 0.4941176471 | R102: 0.7358490566 | S102: 0.8358208955 | T102: 0.701754386 | U102: 0.625 | V102: 0.643 | W102: 0.6888888889 | X102: 2.142857143 | Y102: 2.285714286 | Z102: 2 | AA102: 79t | AB102: 78t | AC102: 94 | AD102: 88 | AE102: 89t | AF102: 57 | AG102: 27t | AH102: 47t | AI102: 46 | AJ102: 54t | AK102: 58t | AL102: 54t | AM102: 53 | AN102: 67 | AO102: 78 | AP102: 86 | AQ102: 54 | AR102: 100 | AS102: 105 | AT102: 100 | AU102: 83 | AV102: 99t | AW102: 94t | AX102: 106t | AY102: 0.79 | AZ102: 0.79 | BA102: 79t | BB102: 0.88 | BC102: 0.88 | BD102: 88 | BE102: 0.27 | BF102: 0.7368421053 | BG102: 27t | BH102: 0.54 | BI102: 0.54 | BJ102: 54t | BK102: 0.53 | BL102: 0.5482233503 | BM102: 53 | BN102: 0.86 | BO102: 0.86 | BP102: 86 | BQ102: 1.05 | BR102: 1.05 | BS102: 105 | BT102: 0.99 | BU102: 2.142857143 | BV102: 99t | BW102: 0.78 | BX102: 0.78 | BY102: 78t | BZ102: 0.89 | CA102: 0.89 | CB102: 89t | CC102: 0.47 | CD102: 0.6666666667 | CE102: 47t | CF102: 0.58 | CG102: 0.58 | CH102: 58t | CI102: 0.67 | CJ102: 0.67 | CK102: 67 | CL102: 0.0054 | CM102: 0.8358208955 | CN102: 54 | CO102: 1 | CP102: 1 | CQ102: 100 | CR102: 0.94 | CS102: 2.285714286 | CT102: 94t | CU102: 0.94 | CV102: 0.94 | CW102: 94 | CX102: 0.57 | CY102: 0.57 | CZ102: 57 | DA102: 0.46 | DB102: 0.58 | DC102: 46 | DD102: 0.54 | DE102: 0.54 | DF102: 54t | DG102: 0.78 | DH102: 0.78 | DI102: 78 | DJ102: 1 | DK102: 1 | DL102: 100 | DM102: 83 | DN102: 83 | DO102: 83 | DP102: 1.06 | DQ102: 2 | DR102: 106t
A103: 750 | B103: Radford | C103: 0.6666666667 | D103: 0.6 | E103: 0.4444444444 | F103: 0.6666666667 | G103: 0.8 | H103: 0.4444444444 | I103: 0.7777777778 | J103: 0.8 | K103: 0.4444444444 | L103: 0 | M103: 0.3333333333 | O103: 0.2093023256 | P103: 0.3170731707 | Q103: 0.3888888889 | R103: 0.7272727273 | S103: 0.8461538462 | T103: 0.7 | U103: 0.7272727273 | V103: 0.75 | W103: 0.8888888889 | X103: 2.571428571 | Y103: 2.857142857 | Z103: 2 | AA103: 14t | AB103: 41t | AC103: 67t | AD103: 25t | AE103: 14t | AF103: 66t | AG103: 17 | AH103: 18t | AI103: 88t | AJ103: 54t | AK103: 35t | AM103: 115 | AN103: 105 | AO103: 94 | AP103: 89t | AQ103: 49t | AR103: 101 | AS103: 86t | AT103: 79t | AU103: 20t | AV103: 67t | AW103: 46t | AX103: 106t | AY103: 0.14 | AZ103: 0.6666666667 | BA103: 14t | BB103: 0.25 | BC103: 0.6666666667 | BD103: 25t | BE103: 0.17 | BF103: 0.7777777778 | BG103: 17 | BH103: 0.54 | BI103: 0.54 | BJ103: 54t | BK103: 1.15 | BL103: 1.15 | BM103: 115 | BN103: 0.89 | BO103: 0.89 | BP103: 89t | BQ103: 0.86 | BR103: 0.86 | BS103: 86t | BT103: 0.67 | BU103: 2.571428571 | BV103: 67t | BW103: 0.41 | BX103: 0.6 | BY103: 41t | BZ103: 0.14 | CA103: 0.8 | CB103: 14t | CC103: 0.18 | CD103: 0.8 | CE103: 18t | CF103: 0.35 | CG103: 0.35 | CH103: 35t | CI103: 1.05 | CJ103: 1.05 | CK103: 105 | CL103: 0.49 | CM103: 0.8461538462 | CN103: 49t | CO103: 0.79 | CP103: 0.79 | CQ103: 79t | CR103: 0.46 | CS103: 2.857142857 | CT103: 46t | CU103: 0.67 | CV103: 0.67 | CW103: 67t | CX103: 0.66 | CY103: 0.66 | CZ103: 66t | DA103: 0.88 | DB103: 0.88 | DC103: 88t | DG103: 0.94 | DH103: 0.94 | DI103: 94 | DJ103: 1.01 | DK103: 1.01 | DL103: 101 | DM103: 20 | DN103: 20 | DO103: 20t | DP103: 1.06 | DQ103: 2 | DR103: 106t
